Workbook

Sheet Cover
C38: Notes:
C39: 1. | D39: All figures are GST exclusive unless otherwise stated
C40: 2. | D40: A short term contract is a minimum of 12 months

Sheet Inputs >>

Sheet Global
B1: Global Assumptions
C4: Timing
C6: Model start date | D6: Date | F6: =EOMONTH(DATE(F11-1,6,1),0) -> 2024-06-30
C7: Reglatory period length | D7: Years | F7: 5
C8: Current Year | D8: Years | F8: 2025
C10: Regulatory Period | F10: Current | G10: Previous
C11: Year 1 | D11: FY | F11: 2025 | G11: =G12-1 -> 2020
C12: Year 2 | D12: FY | F12: =F11+1 -> 2026 | G12: =G13-1 -> 2021
C13: Year 3 | D13: FY | F13: =F12+1 -> 2027 | G13: =G14-1 -> 2022
C14: Year 4 | D14: FY | F14: =F13+1 -> 2028 | G14: =G15-1 -> 2023
C15: Year 5 | D15: FY | F15: =F14+1 -> 2029 | G15: =RegYear-1 -> 2024
C17: WACC
F19: =TRANSPOSE(List_RegYear) -> 2025 | G19: 2026 | H19: 2027 | I19: 2028 | J19: 2029
C20: Cost of debt
C21: Nominal pre-tax cost of debt | D21: % p.a. | F21: 0.04627075053 | G21: 0.04724036093 | H21: 0.04864679577 | I21: 0.05009822056 | J21: 0.05177406058
C22: Real pre-tax cost of debt | D22: % p.a. | F22: 0.01777527058 | G22: 0.01871847337 | H22: 0.02008660356 | I22: 0.02149849838 | J22: 0.02312869642
C24: Nominal post-tax cost of debt | D24: % p.a. | F24: =F21*(1-F$33*(1-F34)) -> 0.04047005445 | G24: =G21*(1-G$33*(1-G34)) -> 0.0413181104 | H24: =H21*(1-H$33*(1-H34)) -> 0.04254822865 | I24: =I21*(1-I$33*(1-I34)) -> 0.04381769672 | J24: =J21*(1-J$33*(1-J34)) -> 0.04528344638
C25: Real post-tax cost of debt | D25: % p.a. | F25: =(1+F24)/(1+F83)-1 -> 0.0121325581 | G25: =(1+G24)/(1+G83)-1 -> 0.01295751701 | H25: =(1+H24)/(1+H83)-1 -> 0.01415413264 | I25: =(1+I24)/(1+I83)-1 -> 0.01538902638 | J25: =(1+J24)/(1+J83)-1 -> 0.01681485593
C27: Cost of equity
C28: Nominal post-tax cost of equity | D28: % p.a. | F28: 0.07670293 | G28: 0.07670293 | H28: 0.07670293 | I28: 0.07670293 | J28: 0.07670293
C29: Real post-tax cost of equity | D29: % p.a. | F29: 0.04737862103 | G29: 0.04737862103 | H29: 0.04737862103 | I29: 0.04737862103 | J29: 0.04737862103
C31: Tax & Dividend Imputation
C32: Effective tax rate for equity | D32: % | F32: 0.1612624484 | G32: 0.1612624484 | H32: 0.1612624484 | I32: 0.1612624484 | J32: 0.1612624484
C33: Effective tax rate for debt | D33: % | F33: 0.3020824337 | G33: 0.3020824337 | H33: 0.3020824337 | I33: 0.3020824337 | J33: 0.3020824337
C34: Utilisation of imputation credits | D34: % | F34: 0.585 | G34: 0.585 | H34: 0.585 | I34: 0.585 | J34: 0.585
C36: Leverage
C37: Debt | D37: % | F37: 0.6 | G37: 0.6 | H37: 0.6 | I37: 0.6 | J37: 0.6
C38: Equity | D38: % | F38: =1-F37 -> 0.4 | G38: =1-G37 -> 0.4 | H38: =1-H37 -> 0.4 | I38: =1-I37 -> 0.4 | J38: =1-J37 -> 0.4
C40: WACC
C41: Nominal vanilla WACC
C42: =C21 -> Nominal pre-tax cost of debt | D42: % | F42: =F21 -> 0.04627075053 | G42: =G21 -> 0.04724036093 | H42: =H21 -> 0.04864679577 | I42: =I21 -> 0.05009822056 | J42: =J21 -> 0.05177406058
C43: =C28 -> Nominal post-tax cost of equity | D43: % | F43: =F28 -> 0.07670293 | G43: =G28 -> 0.07670293 | H43: =H28 -> 0.07670293 | I43: =I28 -> 0.07670293 | J43: =J28 -> 0.07670293
C44: Nominal vanilla WACC | D44: % | F44: =F42*F$37+F43*F$38 -> 0.05844362232 | G44: =G42*G$37+G43*G$38 -> 0.05902538856 | H44: 0.05986924946 | I44: 0.06074010434 | J44: 0.06174560835
C46: Real vanilla WACC
C47: =C22 -> Real pre-tax cost of debt | D47: % | F47: =F22 -> 0.01777527058 | G47: =G22 -> 0.01871847337 | H47: =H22 -> 0.02008660356 | I47: =I22 -> 0.02149849838 | J47: =J22 -> 0.02312869642
C48: =C29 -> Real post-tax cost of equity | D48: % | F48: =F29 -> 0.04737862103 | G48: =G29 -> 0.04737862103 | H48: =H29 -> 0.04737862103 | I48: =I29 -> 0.04737862103 | J48: =J29 -> 0.04737862103
C49: Real vanilla WACC | D49: % | F49: =F47*F$37+F48*F$38 -> 0.02961661076 | G49: =G47*G$37+G48*G$38 -> 0.03018253243 | H49: 0.03100341055 | I49: 0.03185054744 | J49: 0.03282866627
C51: Post-tax nominal WACC
C52: =C24 -> Nominal post-tax cost of debt | D52: % | F52: =F24 -> 0.04047005445 | G52: =G24 -> 0.0413181104 | H52: =H24 -> 0.04254822865 | I52: =I24 -> 0.04381769672 | J52: =J24 -> 0.04528344638
C53: Nominal post-tax, post imputation, cost of equity | D53: % | F53: =F28 -> 0.07670293 | G53: =G28 -> 0.07670293 | H53: 0.07670293 | I53: 0.07670293 | J53: 0.07670293
C54: Post-tax nominal WACC | D54: % | F54: =F52*F$37+F53*F$38 -> 0.05496320467 | G54: =G52*G$37+G53*G$38 -> 0.05547203824 | H54: 0.05621010919 | I54: 0.05697179003 | J54: 0.05785123983
C56: Post-tax real WACC
C57: =C25 -> Real post-tax cost of debt | D57: % | F57: =F25 -> 0.0121325581 | G57: =G25 -> 0.01295751701 | H57: =H25 -> 0.01415413264 | I57: =I25 -> 0.01538902638 | J57: =J25 -> 0.01681485593
C58: Real post-tax, post imputation, cost of equity | D58: % | F58: =(1+F53)/(1+F83)-1 -> 0.04737862103 | G58: =(1+G53)/(1+G83)-1 -> 0.04737862103 | H58: 0.04737862103 | I58: 0.04737862103 | J58: 0.04737862103
C59: Post-tax real WACC | D59: % | F59: =F57*F$37+F58*F$38 -> 0.02623098327 | G59: =G57*G$37+G58*G$38 -> 0.02672595862 | H59: 0.027443928 | I59: 0.02818486424 | J59: 0.02904036197
C61: Pre-tax nominal WACC
C62: =C21 -> Nominal pre-tax cost of debt | D62: % | F62: =F21 -> 0.04627075053 | G62: =G21 -> 0.04724036093 | H62: =H21 -> 0.04864679577 | I62: =I21 -> 0.05009822056 | J62: =J21 -> 0.05177406058
C63: Nominal pre-tax, post imputation, cost of equity | D63: % | F63: =F28*(1/(1-F32*(1-F34))) -> 0.08220436824 | G63: =G28*(1/(1-G32*(1-G34))) -> 0.08220436824 | H63: =H28*(1/(1-H32*(1-H34))) -> 0.08220436824 | I63: =I28*(1/(1-I32*(1-I34))) -> 0.08220436824 | J63: =J28*(1/(1-J32*(1-J34))) -> 0.08220436824
C64: Pre-tax nominal WACC | D64: % | F64: =F62*F$37+F63*F$38 -> 0.06064419762 | G64: =G62*G$37+G63*G$38 -> 0.06122596386 | H64: 0.06206982476 | I64: 0.06294067963 | J64: 0.06394618364
C66: Pre-tax real WACC
C67: =C22 -> Real pre-tax cost of debt | D67: % | F67: =F22 -> 0.01777527058 | G67: =G22 -> 0.01871847337 | H67: =H22 -> 0.02008660356 | I67: =I22 -> 0.02149849838 | J67: =J22 -> 0.02312869642
C68: Real pre-tax, post imputation, cost of equity | D68: % | F68: =(1+F63)/(1+F83)-1 -> 0.05273022605 | G68: =(1+G63)/(1+G83)-1 -> 0.05273022605 | H68: 0.05273022605 | I68: 0.05273022605 | J68: 0.05273022605
C69: Pre-tax real WACC | D69: % | F69: =F67*F$37+F68*F$38 -> 0.03175725277 | G69: =G67*G$37+G68*G$38 -> 0.03232317444 | H69: 0.03314405255 | I69: 0.03399118945 | J69: 0.03496930827
C71: Summary
C72: Nominal vanilla WACC | D72: % | F72: =F$44 -> 0.05844362232 | G72: =G$44 -> 0.05902538856 | H72: =H$44 -> 0.05986924946 | I72: =I$44 -> 0.06074010434 | J72: =J$44 -> 0.06174560835
C73: Real vanilla WACC | D73: % | F73: =F$49 -> 0.02961661076 | G73: =G$49 -> 0.03018253243 | H73: =H$49 -> 0.03100341055 | I73: =I$49 -> 0.03185054744 | J73: =J$49 -> 0.03282866627
C74: Post-tax nominal WACC | D74: % | F74: =F$54 -> 0.05496320467 | G74: =G$54 -> 0.05547203824 | H74: =H$54 -> 0.05621010919 | I74: =I$54 -> 0.05697179003 | J74: =J$54 -> 0.05785123983
C75: Post-tax real WACC | D75: % | F75: =F$59 -> 0.02623098327 | G75: =G$59 -> 0.02672595862 | H75: =H$59 -> 0.027443928 | I75: =I$59 -> 0.02818486424 | J75: =J$59 -> 0.02904036197
C76: Pre-tax nominal WACC | D76: % | F76: =F$64 -> 0.06064419762 | G76: =G$64 -> 0.06122596386 | H76: =H$64 -> 0.06206982476 | I76: =I$64 -> 0.06294067963 | J76: =J$64 -> 0.06394618364
C77: Pre-tax real WACC | D77: % | F77: =F$69 -> 0.03175725277 | G77: =G$69 -> 0.03232317444 | H77: 0.03314405255 | I77: 0.03399118945 | J77: 0.03496930827
C79: Escalation
C81: Escalation rate
F82: =F$19 -> 2025 | G82: =G$19 -> 2026 | H82: =H$19 -> 2027 | I82: =I$19 -> 2028 | J82: =J$19 -> 2029
C83: CPI | D83: % p.a. | F83: 0.02799781128 | G83: 0.02799781128 | H83: 0.02799781128 | I83: 0.02799781128 | J83: 0.02799781128
C84: LPI | D84: % p.a. | F84: 0.01652827985 | G84: 0.01495766389 | H84: 0.006634271053 | I84: 0.005015929052 | J84: 0.007061266653
C85: Real capex | D85: % p.a. | F85: 0 | G85: 0 | H85: 0 | I85: 0 | J85: 0
C86: Real labour (capex) | D86: % p.a. | F86: =F84*0.2 -> 0.003305655969 | G86: =G84*0.2 -> 0.002991532779 | H86: =H84*0.2 -> 0.001326854211 | I86: =I84*0.2 -> 0.00100318581 | J86: =J84*0.2 -> 0.001412253331
C87: Real opex | D87: % p.a. | F87: =0.294*F84 -> 0.004859314275 | G87: =0.294*G84 -> 0.004397553185 | H87: =0.294*H84 -> 0.001950475689 | I87: =0.294*I84 -> 0.001474683141 | J87: =0.294*J84 -> 0.002076012396
C89: Starting index
C90: =C83 -> CPI | D90: index | F90: 1
C91: =C84 -> LPI | D91: index | F91: 1
C92: =C85 -> Real capex | D92: index | F92: 1
C93: =C86 -> Real labour (capex) | D93: index | F93: 1
C94: =C87 -> Real opex | D94: index | F94: 1
C97: Other
C99: Corporate Tax Rate | D99: % | F99: 0.3
C100: Utilisation of Imputation (Franking) Credits | D100: % | F100: 0.585
C102: Constants
C104: Months in a Year | D104: # | F104: 12
C105: Half | D105: # | F105: 0.5
C106: Million | D106: # | F106: 1000000
C107: Rounding | D107: # | F107: 4

Sheet Service
B1: Service Definitions
B5: Inputs
B7: Service Class | C7: Description | D7: Lamp Type | E7: Nominal Wattage | F7: Actual Wattage | G7: Rate Code | H7: Quantity | I7: Lamp Cost
B8: Minor | C8: NIGHTWATCH MINOR (F42) - FF1A | D8: MF | E8: 42 | F8: 46 | G8: FF1A | H8: 0
B9: Minor | C9: NIGHTWATCH MINOR (F2X14) - FF2A | D9: MF | E9: 28 | F9: 30 | G9: FF2A | H9: 0
B10: Small | C10: NIGHTWATCH SMALL (MH150) - FH1A | D10: MH | E10: 150 | F10: 168 | G10: FH1A | H10: 51
B11: Medium | C11: NIGHTWATCH MEDIUM (MH250) - FH2A | D11: MH | E11: 250 | F11: 268 | G11: FH2A | H11: 267
B12: Large | C12: NIGHTWATCH LARGE (MH400) - FH3A | D12: MH | E12: 400 | F12: 425 | G12: FH3A | H12: 643
B13: X-Large | C13: NIGHTWATCH X-LARGE (MH1000) - FH4A | D13: MH | E13: 1000 | F13: 1040 | G13: FH4A | H13: 358
B14: Minor | C14: NIGHTWATCH MINOR (L17) - FL1A | D14: LED | E14: 17 | F14: 17 | G14: FL1A | H14: 3
B15: Minor | C15: NIGHTWATCH MINOR (L18) - FL1B | D15: LED | E15: 18 | F15: 22 | G15: FL1B | H15: 0
B16: Small | C16: NIGHTWATCH SMALL (L75+) - FL2A | D16: LED | E16: 75 | F16: 79 | G16: FL2A | H16: 5
B17: Medium | C17: NIGHTWATCH MEDIUM (L100+) - FL3A | D17: LED | E17: 100 | F17: 106 | G17: FL3A | H17: 16
B18: Medium | C18: NIGHTWATCH MEDIUM (L150) - FL3B | D18: LED | E18: 150 | F18: 158 | G18: FL3B | H18: 16
B19: Large | C19: NIGHTWATCH LARGE (L150+) - FL4A | D19: LED | E19: 150 | F19: 158 | G19: FL4A | H19: 54
B20: Large | C20: NIGHTWATCH LARGE (L200) - FL4B | D20: LED | E20: 200 | F20: 220 | G20: FL4B | H20: 49
B21: X-Large | C21: NIGHTWATCH X-LARGE (L300+) - FL5A | D21: LED | E21: 300 | F21: 316 | G21: FL5A | H21: 37
B22: Minor | C22: NIGHTWATCH MINOR (M80) - FM1A | D22: MF | E22: 80 | F22: 96 | G22: FM1A | H22: 10
B23: Small | C23: NIGHTWATCH SMALL (S150) - FS1A | D23: HPS | E23: 150 | F23: 173 | G23: FS1A | H23: 18
B24: Medium | C24: NIGHTWATCH MEDIUM (S250) - FS2A | D24: HPS | E24: 250 | F24: 273 | G24: FS2A | H24: 164
B25: Large | C25: NIGHTWATCH LARGE (S400) - FS3A | D25: HPS | E25: 400 | F25: 440 | G25: FS3A | H25: 304
B26: Minor | C26: NIGHTWATCH MINOR (S100) - FS4A | D26: HPS | E26: 100 | F26: 120 | G26: FS4A | H26: 3
B27: Minor | C27: NIGHTWATCH MINOR (S70) - FS5A | D27: HPS | E27: 70 | F27: 86 | G27: FS5A | H27: 6

Sheet Capex
B1: Capex Inputs
C5: Summary labour rate values
C8: Derivation of labour cost per component
C11: Service | D11: Tariff | E11: Subtotal Asset Capex | F11: Subtotal Labour | G11: Luminaire | H11: Control Gear | I11: Louvre | J11: Lamp | K11: PE Cell | L11: Bracket | M11: Ancillary | N11: Labour | O11: Cust. contr. (installation charge) | P11: Notes
B12: 1 | C12: NIGHTWATCH MINOR (F42) - FF1A | D12: FF1A | O12: =S15 -> 912.5996404
B13: 1 | C13: NIGHTWATCH MINOR (F2X14) - FF2A | D13: FF2A | O13: =S15 -> 912.5996404
B14: 2 | C14: NIGHTWATCH SMALL (MH150) - FH1A | D14: FH1A | O14: =S16 -> 1310.851804
B15: 3 | C15: NIGHTWATCH MEDIUM (MH250) - FH2A | D15: FH2A | O15: =S17 -> 1483.971968 | R15: Minor | S15: 912.5996404
B16: 4 | C16: NIGHTWATCH LARGE (MH400) - FH3A | D16: FH3A | O16: =S18 -> 1506.800383 | R16: Small | S16: 1310.851804
B17: 5 | C17: NIGHTWATCH X-LARGE (MH1000) - FH4A | D17: FH4A | O17: =S19 -> 1382.91648 | R17: Medium | S17: 1483.971968
B18: 1 | C18: NIGHTWATCH MINOR (L17) - FL1A | D18: FL1A | O18: =S15 -> 912.5996404 | R18: Large | S18: 1506.800383
B19: 1 | C19: NIGHTWATCH MINOR (L18) - FL1B | D19: FL1B | O19: =S15 -> 912.5996404 | R19: X-Large | S19: 1382.91648
B20: 2 | C20: NIGHTWATCH SMALL (L75+) - FL2A | D20: FL2A | O20: =S16 -> 1310.851804
B21: 3 | C21: NIGHTWATCH MEDIUM (L100+) - FL3A | D21: FL3A | O21: =S17 -> 1483.971968 | R21: Uses a goal-seek formula to align Short term & long term tariffs.
B22: 3 | C22: NIGHTWATCH MEDIUM (L150) - FL3B | D22: FL3B | O22: =S17 -> 1483.971968
B23: 4 | C23: NIGHTWATCH LARGE (L150+) - FL4A | D23: FL4A | O23: =S18 -> 1506.800383
B24: 4 | C24: NIGHTWATCH LARGE (L200) - FL4B | D24: FL4B | O24: =S18 -> 1506.800383
B25: 5 | C25: NIGHTWATCH X-LARGE (L300+) - FL5A | D25: FL5A | O25: =S19 -> 1382.91648
B26: 1 | C26: NIGHTWATCH MINOR (M80) - FM1A | D26: FM1A | O26: =S15 -> 912.5996404
B27: 2 | C27: NIGHTWATCH SMALL (S150) - FS1A | D27: FS1A | O27: =S16 -> 1310.851804
B28: 3 | C28: NIGHTWATCH MEDIUM (S250) - FS2A | D28: FS2A | O28: =S17 -> 1483.971968
B29: 4 | C29: NIGHTWATCH LARGE (S400) - FS3A | D29: FS3A | O29: =S18 -> 1506.800383
B30: 1 | C30: NIGHTWATCH MINOR (S100) - FS4A | D30: FS4A | O30: =S15 -> 912.5996404
B31: 1 | C31: NIGHTWATCH MINOR (S70) - FS5A | D31: FS5A | O31: =S15 -> 912.5996404
D32: =Annuity!D40 -> FS3A
D33: =Annuity!D41 -> FS4A
D34: =Annuity!D42 -> FS5A
D35: =Annuity!#REF! -> 
D36: =Annuity!D43 -> 0
D37: =Annuity!D44 -> 0
D38: =Annuity!D45 -> 0
D39: =Annuity!D46 -> 0
D40: =Annuity!D47 -> 0
D41: =Annuity!D48 -> 0
D42: =Annuity!D49 -> 0
D43: =Annuity!D50 -> 0
D44: =Annuity!D51 -> 0
D45: =Annuity!D52 -> 0
D46: =Annuity!D53 -> 0
D47: =Annuity!D54 -> 0
D48: =Annuity!D55 -> 0
D49: =Annuity!D56 -> 0
D50: =Annuity!D57 -> 0
D51: =Annuity!D58 -> 0
D52: =Annuity!D59 -> 0
D53: =Annuity!D60 -> 0
D54: =Annuity!D61 -> 0
D55: =Annuity!D62 -> 0
D56: =Annuity!D63 -> 0
D57: =Annuity!D64 -> 0
D58: =Annuity!D65 -> 0
D59: =Annuity!D66 -> 0
D60: =Annuity!D67 -> 0
D61: =Annuity!D68 -> 0
D62: =Annuity!D69 -> 0
D63: =Annuity!D70 -> 0
D64: =Annuity!D71 -> 0
D65: =Annuity!D72 -> 0
D66: =Annuity!D73 -> 0
D67: =Annuity!D74 -> 0
D68: =Annuity!D75 -> 0
D69: =Annuity!D76 -> 0
D70: =Annuity!D77 -> 0
D71: =Annuity!D78 -> 0
D72: =Annuity!D79 -> 0
D73: =Annuity!D80 -> 0
D74: =Annuity!D81 -> 0
D75: =Annuity!D82 -> 0
D76: =Annuity!D83 -> 0
D77: =Annuity!D84 -> 0
D78: =Annuity!D85 -> 0
D79: =Annuity!D86 -> 0
D80: =Annuity!D87 -> 0
D81: =Annuity!D88 -> 0
D82: =Annuity!D89 -> 0
D83: =Annuity!D90 -> 0
D84: =Annuity!D91 -> 0
D85: =Annuity!D92 -> 0
D86: =Annuity!D93 -> 0
D87: =Annuity!D94 -> 0
D88: =Annuity!D95 -> 0
D89: =Annuity!D96 -> 0
D90: =Annuity!D97 -> 0
D91: =Annuity!D98 -> 0
D92: =Annuity!D99 -> 0
D93: =Annuity!D100 -> 0
D94: =Annuity!D101 -> 0
D95: =Annuity!D102 -> 0
D96: =Annuity!D103 -> 0
D97: =Annuity!D104 -> 0
D98: =Annuity!D105 -> 0
D99: =Annuity!D106 -> 0
D100: =Annuity!D107 -> 0
D101: =Annuity!D108 -> 0
D102: =Annuity!D109 -> 0
D103: =Annuity!D110 -> 0
D104: =Annuity!D111 -> 0
D105: =Annuity!D112 -> 0
D106: =Annuity!D113 -> 0
D107: =Annuity!D114 -> 0
D108: =Annuity!D115 -> 0
D109: =Annuity!D116 -> 0
D110: =Annuity!D117 -> 0
D111: =Annuity!D118 -> 0
D112: =Annuity!D119 -> 0
D113: =Annuity!D120 -> 0
D114: =Annuity!D121 -> 0
D115: =Annuity!D122 -> 0
D116: =Annuity!D123 -> 0
D117: =Annuity!D124 -> 0
D118: =Annuity!D125 -> 0
D119: =Annuity!D126 -> 0
D120: =Annuity!D127 -> 0
D121: =Annuity!D128 -> 0
D122: =Annuity!D129 -> 0
D123: =Annuity!D130 -> 0
D124: =Annuity!D131 -> 0
D125: =Annuity!D132 -> 0
D126: =Annuity!D133 -> 0
D127: =Annuity!D134 -> 0
D128: =Annuity!D135 -> 0
D129: =Annuity!D136 -> 0
D130: =Annuity!D137 -> 0
D131: =Annuity!D138 -> 0
D132: =Annuity!D139 -> 0

Sheet Opex
B1: Opex Inputs
C5: Summary opex inputs
C8: Opex allocated per component group | D8: Cost (incl. OH)
C9: Minor
C10: Small
C11: Medium
C12: Large
C13: X-Large
C16: Derivation of Opex cost allocated to tariff rate
C19: Description | D19: Service Class | E19: Tariff Rate | F19: Opex per unit [$] | G19: Lamps [$]
C20: =Annuity!C146 -> NIGHTWATCH MINOR (F42) - FF1A | D20: =INDEX(Service!$B8:$G24, MATCH($E20, Service!$G8:$G24, 0), 1) -> Minor | E20: =Annuity!D146 -> FF1A
C21: =Annuity!C147 -> NIGHTWATCH MINOR (F2X14) - FF2A | D21: =INDEX(Service!$B9:$G26, MATCH($E21, Service!$G9:$G26, 0), 1) -> Minor | E21: =Annuity!D147 -> FF2A
C22: =Annuity!C148 -> NIGHTWATCH SMALL (MH150) - FH1A | D22: =INDEX(Service!$B10:$G27, MATCH($E22, Service!$G10:$G27, 0), 1) -> Small | E22: =Annuity!D148 -> FH1A
C23: =Annuity!C149 -> NIGHTWATCH MEDIUM (MH250) - FH2A | D23: =INDEX(Service!$B11:$G28, MATCH($E23, Service!$G11:$G28, 0), 1) -> Medium | E23: =Annuity!D149 -> FH2A
C24: =Annuity!C150 -> NIGHTWATCH LARGE (MH400) - FH3A | D24: =INDEX(Service!$B12:$G29, MATCH($E24, Service!$G12:$G29, 0), 1) -> Large | E24: =Annuity!D150 -> FH3A
C25: =Annuity!C151 -> NIGHTWATCH X-LARGE (MH1000) - FH4A | D25: =INDEX(Service!$B13:$G30, MATCH($E25, Service!$G13:$G30, 0), 1) -> X-Large | E25: =Annuity!D151 -> FH4A
C26: =Annuity!C152 -> NIGHTWATCH MINOR (L17) - FL1A | D26: =INDEX(Service!$B14:$G31, MATCH($E26, Service!$G14:$G31, 0), 1) -> Minor | E26: =Annuity!D152 -> FL1A
C27: =Annuity!C153 -> NIGHTWATCH MINOR (L18) - FL1B | D27: =INDEX(Service!$B15:$G32, MATCH($E27, Service!$G15:$G32, 0), 1) -> Minor | E27: =Annuity!D153 -> FL1B
C28: =Annuity!C154 -> NIGHTWATCH SMALL (L75+) - FL2A | D28: =INDEX(Service!$B16:$G34, MATCH($E28, Service!$G16:$G34, 0), 1) -> Small | E28: =Annuity!D154 -> FL2A
C29: =Annuity!C155 -> NIGHTWATCH MEDIUM (L100+) - FL3A | D29: =INDEX(Service!$B17:$G35, MATCH($E29, Service!$G17:$G35, 0), 1) -> Medium | E29: =Annuity!D155 -> FL3A
C30: =Annuity!C156 -> NIGHTWATCH MEDIUM (L150) - FL3B | D30: =INDEX(Service!$B18:$G36, MATCH($E30, Service!$G18:$G36, 0), 1) -> Medium | E30: =Annuity!D156 -> FL3B
C31: =Annuity!C157 -> NIGHTWATCH LARGE (L150+) - FL4A | D31: =INDEX(Service!$B19:$G37, MATCH($E31, Service!$G19:$G37, 0), 1) -> Large | E31: =Annuity!D157 -> FL4A
C32: =Annuity!C158 -> NIGHTWATCH LARGE (L200) - FL4B | D32: =INDEX(Service!$B20:$G38, MATCH($E32, Service!$G20:$G38, 0), 1) -> Large | E32: =Annuity!D158 -> FL4B
C33: =Annuity!C159 -> NIGHTWATCH X-LARGE (L300+) - FL5A | D33: =INDEX(Service!$B21:$G39, MATCH($E33, Service!$G21:$G39, 0), 1) -> X-Large | E33: =Annuity!D159 -> FL5A
C34: =Annuity!C160 -> NIGHTWATCH MINOR (M80) - FM1A | D34: =INDEX(Service!$B22:$G40, MATCH($E34, Service!$G22:$G40, 0), 1) -> Minor | E34: =Annuity!D160 -> FM1A
C35: =Annuity!C161 -> NIGHTWATCH SMALL (S150) - FS1A | D35: =INDEX(Service!$B23:$G42, MATCH($E35, Service!$G23:$G42, 0), 1) -> Small | E35: =Annuity!D161 -> FS1A
C36: =Annuity!C162 -> NIGHTWATCH MEDIUM (S250) - FS2A | D36: =INDEX(Service!$B24:$G44, MATCH($E36, Service!$G24:$G44, 0), 1) -> Medium | E36: =Annuity!D162 -> FS2A
C37: =Annuity!C163 -> NIGHTWATCH LARGE (S400) - FS3A | D37: =INDEX(Service!$B25:$G46, MATCH($E37, Service!$G25:$G46, 0), 1) -> Large | E37: =Annuity!D163 -> FS3A
C38: =Annuity!C164 -> NIGHTWATCH MINOR (S100) - FS4A | D38: =INDEX(Service!$B26:$G47, MATCH($E38, Service!$G26:$G47, 0), 1) -> Minor | E38: =Annuity!D164 -> FS4A
C39: =Annuity!C165 -> NIGHTWATCH MINOR (S70) - FS5A | D39: =INDEX(Service!$B27:$G48, MATCH($E39, Service!$G27:$G48, 0), 1) -> Minor | E39: =Annuity!D165 -> FS5A
C40: =#REF! ->  | F40: =INDEX(#REF!, MATCH(D40,#REF!, 0), 5) ->  | G40: =IFERROR(INDEX(#REF!, MATCH(D40,#REF!, 0), 6),0) -> 0
C41: =#REF! ->  | F41: =INDEX(#REF!, MATCH(D41,#REF!, 0), 5) ->  | G41: =IFERROR(INDEX(#REF!, MATCH(D41,#REF!, 0), 6),0) -> 0
C42: =#REF! ->  | F42: =INDEX(#REF!, MATCH(D42,#REF!, 0), 5) ->  | G42: =IFERROR(INDEX(#REF!, MATCH(D42,#REF!, 0), 6),0) -> 0
C43: =#REF! ->  | F43: =INDEX(#REF!, MATCH(D43,#REF!, 0), 5) ->  | G43: =IFERROR(INDEX(#REF!, MATCH(D43,#REF!, 0), 6),0) -> 0
C44: =#REF! ->  | F44: =INDEX(#REF!, MATCH(D44,#REF!, 0), 5) ->  | G44: =IFERROR(INDEX(#REF!, MATCH(D44,#REF!, 0), 6),0) -> 0
C45: =#REF! ->  | F45: =INDEX(#REF!, MATCH(D45,#REF!, 0), 5) ->  | G45: =IFERROR(INDEX(#REF!, MATCH(D45,#REF!, 0), 6),0) -> 0
C46: =#REF! ->  | F46: =INDEX(#REF!, MATCH(D46,#REF!, 0), 5) ->  | G46: =IFERROR(INDEX(#REF!, MATCH(D46,#REF!, 0), 6),0) -> 0
C47: =#REF! ->  | F47: =INDEX(#REF!, MATCH(D47,#REF!, 0), 5) ->  | G47: =IFERROR(INDEX(#REF!, MATCH(D47,#REF!, 0), 6),0) -> 0
C48: =#REF! ->  | F48: =INDEX(#REF!, MATCH(D48,#REF!, 0), 5) ->  | G48: =IFERROR(INDEX(#REF!, MATCH(D48,#REF!, 0), 6),0) -> 0
C49: =#REF! ->  | F49: =INDEX(#REF!, MATCH(D49,#REF!, 0), 5) ->  | G49: =IFERROR(INDEX(#REF!, MATCH(D49,#REF!, 0), 6),0) -> 0
C50: =#REF! ->  | F50: =INDEX(#REF!, MATCH(D50,#REF!, 0), 5) ->  | G50: =IFERROR(INDEX(#REF!, MATCH(D50,#REF!, 0), 6),0) -> 0
C51: =#REF! ->  | F51: =INDEX(#REF!, MATCH(D51,#REF!, 0), 5) ->  | G51: =IFERROR(INDEX(#REF!, MATCH(D51,#REF!, 0), 6),0) -> 0
C52: =#REF! ->  | F52: =INDEX(#REF!, MATCH(D52,#REF!, 0), 5) ->  | G52: =IFERROR(INDEX(#REF!, MATCH(D52,#REF!, 0), 6),0) -> 0
C53: =#REF! ->  | F53: =INDEX(#REF!, MATCH(D53,#REF!, 0), 5) ->  | G53: =IFERROR(INDEX(#REF!, MATCH(D53,#REF!, 0), 6),0) -> 0
C54: =#REF! ->  | F54: =INDEX(#REF!, MATCH(D54,#REF!, 0), 5) ->  | G54: =IFERROR(INDEX(#REF!, MATCH(D54,#REF!, 0), 6),0) -> 0
C55: =#REF! ->  | F55: =INDEX(#REF!, MATCH(D55,#REF!, 0), 5) ->  | G55: =IFERROR(INDEX(#REF!, MATCH(D55,#REF!, 0), 6),0) -> 0
C56: =#REF! ->  | F56: =INDEX(#REF!, MATCH(D56,#REF!, 0), 5) ->  | G56: =IFERROR(INDEX(#REF!, MATCH(D56,#REF!, 0), 6),0) -> 0
C57: =#REF! ->  | F57: =INDEX(#REF!, MATCH(D57,#REF!, 0), 5) ->  | G57: =IFERROR(INDEX(#REF!, MATCH(D57,#REF!, 0), 6),0) -> 0
C58: =#REF! ->  | F58: =INDEX(#REF!, MATCH(D58,#REF!, 0), 5) ->  | G58: =IFERROR(INDEX(#REF!, MATCH(D58,#REF!, 0), 6),0) -> 0
C59: =#REF! ->  | F59: =INDEX(#REF!, MATCH(D59,#REF!, 0), 5) ->  | G59: =IFERROR(INDEX(#REF!, MATCH(D59,#REF!, 0), 6),0) -> 0
C60: =#REF! ->  | F60: =INDEX(#REF!, MATCH(D60,#REF!, 0), 5) ->  | G60: =IFERROR(INDEX(#REF!, MATCH(D60,#REF!, 0), 6),0) -> 0
C61: =#REF! ->  | F61: =INDEX(#REF!, MATCH(D61,#REF!, 0), 5) ->  | G61: =IFERROR(INDEX(#REF!, MATCH(D61,#REF!, 0), 6),0) -> 0
C62: =#REF! ->  | F62: =INDEX(#REF!, MATCH(D62,#REF!, 0), 5) ->  | G62: =IFERROR(INDEX(#REF!, MATCH(D62,#REF!, 0), 6),0) -> 0
C63: =#REF! ->  | F63: =INDEX(#REF!, MATCH(D63,#REF!, 0), 5) ->  | G63: =IFERROR(INDEX(#REF!, MATCH(D63,#REF!, 0), 6),0) -> 0
C64: =#REF! ->  | F64: =INDEX(#REF!, MATCH(D64,#REF!, 0), 5) ->  | G64: =IFERROR(INDEX(#REF!, MATCH(D64,#REF!, 0), 6),0) -> 0
C65: =#REF! ->  | F65: =INDEX(#REF!, MATCH(D65,#REF!, 0), 5) ->  | G65: =IFERROR(INDEX(#REF!, MATCH(D65,#REF!, 0), 6),0) -> 0
C66: =#REF! ->  | F66: =INDEX(#REF!, MATCH(D66,#REF!, 0), 5) ->  | G66: =IFERROR(INDEX(#REF!, MATCH(D66,#REF!, 0), 6),0) -> 0
C67: =#REF! ->  | F67: =INDEX(#REF!, MATCH(D67,#REF!, 0), 5) ->  | G67: =IFERROR(INDEX(#REF!, MATCH(D67,#REF!, 0), 6),0) -> 0
C68: =#REF! ->  | F68: =INDEX(#REF!, MATCH(D68,#REF!, 0), 5) ->  | G68: =IFERROR(INDEX(#REF!, MATCH(D68,#REF!, 0), 6),0) -> 0
C69: =#REF! ->  | F69: =INDEX(#REF!, MATCH(D69,#REF!, 0), 5) ->  | G69: =IFERROR(INDEX(#REF!, MATCH(D69,#REF!, 0), 6),0) -> 0
C70: =#REF! ->  | F70: =INDEX(#REF!, MATCH(D70,#REF!, 0), 5) ->  | G70: =IFERROR(INDEX(#REF!, MATCH(D70,#REF!, 0), 6),0) -> 0
C71: =#REF! ->  | F71: =INDEX(#REF!, MATCH(D71,#REF!, 0), 5) ->  | G71: =IFERROR(INDEX(#REF!, MATCH(D71,#REF!, 0), 6),0) -> 0
C72: =#REF! ->  | F72: =INDEX(#REF!, MATCH(D72,#REF!, 0), 5) ->  | G72: =IFERROR(INDEX(#REF!, MATCH(D72,#REF!, 0), 6),0) -> 0
C73: =#REF! ->  | F73: =INDEX(#REF!, MATCH(D73,#REF!, 0), 5) ->  | G73: =IFERROR(INDEX(#REF!, MATCH(D73,#REF!, 0), 6),0) -> 0
C74: =#REF! ->  | F74: =INDEX(#REF!, MATCH(D74,#REF!, 0), 5) ->  | G74: =IFERROR(INDEX(#REF!, MATCH(D74,#REF!, 0), 6),0) -> 0
C75: =#REF! ->  | F75: =INDEX(#REF!, MATCH(D75,#REF!, 0), 5) ->  | G75: =IFERROR(INDEX(#REF!, MATCH(D75,#REF!, 0), 6),0) -> 0
C76: =#REF! ->  | F76: =INDEX(#REF!, MATCH(D76,#REF!, 0), 5) ->  | G76: =IFERROR(INDEX(#REF!, MATCH(D76,#REF!, 0), 6),0) -> 0
C77: =#REF! ->  | F77: =INDEX(#REF!, MATCH(D77,#REF!, 0), 5) ->  | G77: =IFERROR(INDEX(#REF!, MATCH(D77,#REF!, 0), 6),0) -> 0
C78: =#REF! ->  | F78: =INDEX(#REF!, MATCH(D78,#REF!, 0), 5) ->  | G78: =IFERROR(INDEX(#REF!, MATCH(D78,#REF!, 0), 6),0) -> 0
C79: =#REF! ->  | F79: =INDEX(#REF!, MATCH(D79,#REF!, 0), 5) ->  | G79: =IFERROR(INDEX(#REF!, MATCH(D79,#REF!, 0), 6),0) -> 0
C80: =#REF! ->  | F80: =INDEX(#REF!, MATCH(D80,#REF!, 0), 5) ->  | G80: =IFERROR(INDEX(#REF!, MATCH(D80,#REF!, 0), 6),0) -> 0
C81: =#REF! ->  | F81: =INDEX(#REF!, MATCH(D81,#REF!, 0), 5) ->  | G81: =IFERROR(INDEX(#REF!, MATCH(D81,#REF!, 0), 6),0) -> 0
C82: =#REF! ->  | F82: =INDEX(#REF!, MATCH(D82,#REF!, 0), 5) ->  | G82: =IFERROR(INDEX(#REF!, MATCH(D82,#REF!, 0), 6),0) -> 0
C83: =#REF! ->  | F83: =INDEX(#REF!, MATCH(D83,#REF!, 0), 5) ->  | G83: =IFERROR(INDEX(#REF!, MATCH(D83,#REF!, 0), 6),0) -> 0
C84: =#REF! ->  | F84: =INDEX(#REF!, MATCH(D84,#REF!, 0), 5) ->  | G84: =IFERROR(INDEX(#REF!, MATCH(D84,#REF!, 0), 6),0) -> 0
C85: =#REF! ->  | F85: =INDEX(#REF!, MATCH(D85,#REF!, 0), 5) ->  | G85: =IFERROR(INDEX(#REF!, MATCH(D85,#REF!, 0), 6),0) -> 0
C86: =#REF! ->  | F86: =INDEX(#REF!, MATCH(D86,#REF!, 0), 5) ->  | G86: =IFERROR(INDEX(#REF!, MATCH(D86,#REF!, 0), 6),0) -> 0
C87: =#REF! ->  | F87: =INDEX(#REF!, MATCH(D87,#REF!, 0), 5) ->  | G87: =IFERROR(INDEX(#REF!, MATCH(D87,#REF!, 0), 6),0) -> 0
C88: =#REF! ->  | F88: =INDEX(#REF!, MATCH(D88,#REF!, 0), 5) ->  | G88: =IFERROR(INDEX(#REF!, MATCH(D88,#REF!, 0), 6),0) -> 0
C89: =#REF! ->  | F89: =INDEX(#REF!, MATCH(D89,#REF!, 0), 5) ->  | G89: =IFERROR(INDEX(#REF!, MATCH(D89,#REF!, 0), 6),0) -> 0
C90: =#REF! ->  | F90: =INDEX(#REF!, MATCH(D90,#REF!, 0), 5) ->  | G90: =IFERROR(INDEX(#REF!, MATCH(D90,#REF!, 0), 6),0) -> 0
C91: =#REF! ->  | F91: =INDEX(#REF!, MATCH(D91,#REF!, 0), 5) ->  | G91: =IFERROR(INDEX(#REF!, MATCH(D91,#REF!, 0), 6),0) -> 0
C92: =#REF! ->  | F92: =INDEX(#REF!, MATCH(D92,#REF!, 0), 5) ->  | G92: =IFERROR(INDEX(#REF!, MATCH(D92,#REF!, 0), 6),0) -> 0
C93: =#REF! ->  | F93: =INDEX(#REF!, MATCH(D93,#REF!, 0), 5) ->  | G93: =IFERROR(INDEX(#REF!, MATCH(D93,#REF!, 0), 6),0) -> 0
C94: =#REF! ->  | F94: =INDEX(#REF!, MATCH(D94,#REF!, 0), 5) ->  | G94: =IFERROR(INDEX(#REF!, MATCH(D94,#REF!, 0), 6),0) -> 0
C95: =#REF! ->  | F95: =INDEX(#REF!, MATCH(D95,#REF!, 0), 5) ->  | G95: =IFERROR(INDEX(#REF!, MATCH(D95,#REF!, 0), 6),0) -> 0
C96: =#REF! ->  | F96: =INDEX(#REF!, MATCH(D96,#REF!, 0), 5) ->  | G96: =IFERROR(INDEX(#REF!, MATCH(D96,#REF!, 0), 6),0) -> 0
C97: =#REF! ->  | F97: =INDEX(#REF!, MATCH(D97,#REF!, 0), 5) ->  | G97: =IFERROR(INDEX(#REF!, MATCH(D97,#REF!, 0), 6),0) -> 0
C98: =#REF! ->  | F98: =INDEX(#REF!, MATCH(D98,#REF!, 0), 5) ->  | G98: =IFERROR(INDEX(#REF!, MATCH(D98,#REF!, 0), 6),0) -> 0
C99: =#REF! ->  | F99: =INDEX(#REF!, MATCH(D99,#REF!, 0), 5) ->  | G99: =IFERROR(INDEX(#REF!, MATCH(D99,#REF!, 0), 6),0) -> 0
C100: =#REF! ->  | F100: =INDEX(#REF!, MATCH(D100,#REF!, 0), 5) ->  | G100: =IFERROR(INDEX(#REF!, MATCH(D100,#REF!, 0), 6),0) -> 0
C101: =#REF! ->  | F101: =INDEX(#REF!, MATCH(D101,#REF!, 0), 5) ->  | G101: =IFERROR(INDEX(#REF!, MATCH(D101,#REF!, 0), 6),0) -> 0
C102: =#REF! ->  | F102: =INDEX(#REF!, MATCH(D102,#REF!, 0), 5) ->  | G102: =IFERROR(INDEX(#REF!, MATCH(D102,#REF!, 0), 6),0) -> 0
C103: =#REF! ->  | F103: =INDEX(#REF!, MATCH(D103,#REF!, 0), 5) ->  | G103: =IFERROR(INDEX(#REF!, MATCH(D103,#REF!, 0), 6),0) -> 0
C104: =#REF! ->  | F104: =INDEX(#REF!, MATCH(D104,#REF!, 0), 5) ->  | G104: =IFERROR(INDEX(#REF!, MATCH(D104,#REF!, 0), 6),0) -> 0
C105: =#REF! ->  | F105: =INDEX(#REF!, MATCH(D105,#REF!, 0), 5) ->  | G105: =IFERROR(INDEX(#REF!, MATCH(D105,#REF!, 0), 6),0) -> 0
C106: =#REF! ->  | F106: =INDEX(#REF!, MATCH(D106,#REF!, 0), 5) ->  | G106: =IFERROR(INDEX(#REF!, MATCH(D106,#REF!, 0), 6),0) -> 0
C107: =#REF! ->  | F107: =INDEX(#REF!, MATCH(D107,#REF!, 0), 5) ->  | G107: =IFERROR(INDEX(#REF!, MATCH(D107,#REF!, 0), 6),0) -> 0
C108: =#REF! ->  | F108: =INDEX(#REF!, MATCH(D108,#REF!, 0), 5) ->  | G108: =IFERROR(INDEX(#REF!, MATCH(D108,#REF!, 0), 6),0) -> 0
C109: =#REF! ->  | F109: =INDEX(#REF!, MATCH(D109,#REF!, 0), 5) ->  | G109: =IFERROR(INDEX(#REF!, MATCH(D109,#REF!, 0), 6),0) -> 0
C110: =#REF! ->  | F110: =INDEX(#REF!, MATCH(D110,#REF!, 0), 5) ->  | G110: =IFERROR(INDEX(#REF!, MATCH(D110,#REF!, 0), 6),0) -> 0
C111: =#REF! ->  | F111: =INDEX(#REF!, MATCH(D111,#REF!, 0), 5) ->  | G111: =IFERROR(INDEX(#REF!, MATCH(D111,#REF!, 0), 6),0) -> 0
C112: =#REF! ->  | F112: =INDEX(#REF!, MATCH(D112,#REF!, 0), 5) ->  | G112: =IFERROR(INDEX(#REF!, MATCH(D112,#REF!, 0), 6),0) -> 0
C113: =#REF! ->  | F113: =INDEX(#REF!, MATCH(D113,#REF!, 0), 5) ->  | G113: =IFERROR(INDEX(#REF!, MATCH(D113,#REF!, 0), 6),0) -> 0
C114: =#REF! ->  | F114: =INDEX(#REF!, MATCH(D114,#REF!, 0), 5) ->  | G114: =IFERROR(INDEX(#REF!, MATCH(D114,#REF!, 0), 6),0) -> 0
C115: =#REF! ->  | F115: =INDEX(#REF!, MATCH(D115,#REF!, 0), 5) ->  | G115: =IFERROR(INDEX(#REF!, MATCH(D115,#REF!, 0), 6),0) -> 0
C116: =#REF! ->  | F116: =INDEX(#REF!, MATCH(D116,#REF!, 0), 5) ->  | G116: =IFERROR(INDEX(#REF!, MATCH(D116,#REF!, 0), 6),0) -> 0
C117: =#REF! ->  | F117: =INDEX(#REF!, MATCH(D117,#REF!, 0), 5) ->  | G117: =IFERROR(INDEX(#REF!, MATCH(D117,#REF!, 0), 6),0) -> 0
C118: =#REF! ->  | F118: =INDEX(#REF!, MATCH(D118,#REF!, 0), 5) ->  | G118: =IFERROR(INDEX(#REF!, MATCH(D118,#REF!, 0), 6),0) -> 0
C119: =#REF! ->  | F119: =INDEX(#REF!, MATCH(D119,#REF!, 0), 5) ->  | G119: =IFERROR(INDEX(#REF!, MATCH(D119,#REF!, 0), 6),0) -> 0
C120: =#REF! ->  | F120: =INDEX(#REF!, MATCH(D120,#REF!, 0), 5) ->  | G120: =IFERROR(INDEX(#REF!, MATCH(D120,#REF!, 0), 6),0) -> 0
C121: =#REF! ->  | F121: =INDEX(#REF!, MATCH(D121,#REF!, 0), 5) ->  | G121: =IFERROR(INDEX(#REF!, MATCH(D121,#REF!, 0), 6),0) -> 0
C122: =#REF! ->  | F122: =INDEX(#REF!, MATCH(D122,#REF!, 0), 5) ->  | G122: =IFERROR(INDEX(#REF!, MATCH(D122,#REF!, 0), 6),0) -> 0
C123: =#REF! ->  | F123: =INDEX(#REF!, MATCH(D123,#REF!, 0), 5) ->  | G123: =IFERROR(INDEX(#REF!, MATCH(D123,#REF!, 0), 6),0) -> 0
C124: =#REF! ->  | F124: =INDEX(#REF!, MATCH(D124,#REF!, 0), 5) ->  | G124: =IFERROR(INDEX(#REF!, MATCH(D124,#REF!, 0), 6),0) -> 0
C125: =#REF! ->  | F125: =INDEX(#REF!, MATCH(D125,#REF!, 0), 5) ->  | G125: =IFERROR(INDEX(#REF!, MATCH(D125,#REF!, 0), 6),0) -> 0
C126: =#REF! ->  | F126: =INDEX(#REF!, MATCH(D126,#REF!, 0), 5) ->  | G126: =IFERROR(INDEX(#REF!, MATCH(D126,#REF!, 0), 6),0) -> 0
C127: =#REF! ->  | F127: =INDEX(#REF!, MATCH(D127,#REF!, 0), 5) ->  | G127: =IFERROR(INDEX(#REF!, MATCH(D127,#REF!, 0), 6),0) -> 0

Sheet Calcs >>

Sheet Nuos
B1: NUOS Cost Inputs
C2: Inputs required for calculating the annuity revenue requirement
C5: ="Annual Network and Energy Cost" & " " &RegYear-1 -> Annual Network and Energy Cost 2024
E8: New
C9: Base energy charge | D9: $/kWh
C10: Base NUOS charge | D10: $/kWh
C11: Annual Service Hours | D11: h
C13: Annual kWh = Actual Wattage x Annual Service Hours (4,357) / 1,000
C15: Descr | D15: Rate | E15: Total | F15: Energy | G15: Network | H15: Spare | I15: Spare | J15: Spare | K15: Spare | L15: Spare | M15: Spare | N15: Spare | O15: Spare
C16: =Service!C8 & " " &Service!E8 &" "&Service!D8 -> NIGHTWATCH MINOR (F42) - FF1A 42 MF | D16: =Service!G8 -> FF1A | E16: 63.90774057
C17: =Service!C9 & " " &Service!E9 &" "&Service!D9 -> NIGHTWATCH MINOR (F2X14) - FF2A 28 MF | D17: =Service!G9 -> FF2A | E17: 41.67896124
C18: =Service!C10 & " " &Service!E10 &" "&Service!D10 -> NIGHTWATCH SMALL (MH150) - FH1A 150 MH | D18: =Service!G10 -> FH1A | E18: 233.4021829
C19: =Service!C11 & " " &Service!E11 &" "&Service!D11 -> NIGHTWATCH MEDIUM (MH250) - FH2A 250 MH | D19: =Service!G11 -> FH2A | E19: 372.3320537
C20: =Service!C12 & " " &Service!E12 &" "&Service!D12 -> NIGHTWATCH LARGE (MH400) - FH3A 400 MH | D20: =Service!G12 -> FH3A | E20: 590.4519509
C21: =Service!C13 & " " &Service!E13 &" "&Service!D13 -> NIGHTWATCH X-LARGE (MH1000) - FH4A 1000 MH | D21: =Service!G13 -> FH4A | E21: 1444.870656
C22: =Service!C14 & " " &Service!E14 &" "&Service!D14 -> NIGHTWATCH MINOR (L17) - FL1A 17 LED | D22: =Service!G14 -> FL1A | E22: 23.61807804
C23: =Service!C15 & " " &Service!E15 &" "&Service!D15 -> NIGHTWATCH MINOR (L18) - FL1B 18 LED | D23: =Service!G15 -> FL1B | E23: 30.56457158
C24: =Service!C16 & " " &Service!E16 &" "&Service!D16 -> NIGHTWATCH SMALL (L75+) - FL2A 75 LED | D24: =Service!G16 -> FL2A | E24: 109.7545979
C25: =Service!C17 & " " &Service!E17 &" "&Service!D17 -> NIGHTWATCH MEDIUM (L100+) - FL3A 100 LED | D25: =Service!G17 -> FL3A | E25: 147.265663
C26: =Service!C18 & " " &Service!E18 &" "&Service!D18 -> NIGHTWATCH MEDIUM (L150) - FL3B 150 LED | D26: =Service!G18 -> FL3B | E26: 219.5091959
C27: =Service!C19 & " " &Service!E19 &" "&Service!D19 -> NIGHTWATCH LARGE (L150+) - FL4A 150 LED | D27: =Service!G19 -> FL4A | E27: 219.5091959
C28: =Service!C20 & " " &Service!E20 &" "&Service!D20 -> NIGHTWATCH LARGE (L200) - FL4B 200 LED | D28: =Service!G20 -> FL4B | E28: 305.6457158
C29: =Service!C21 & " " &Service!E21 &" "&Service!D21 -> NIGHTWATCH X-LARGE (L300+) - FL5A 300 LED | D29: =Service!G21 -> FL5A | E29: 439.0183917
C30: =Service!C22 & " " &Service!E22 &" "&Service!D22 -> NIGHTWATCH MINOR (M80) - FM1A 80 MF | D30: =Service!G22 -> FM1A | E30: 133.372676
C31: =Service!C23 & " " &Service!E23 &" "&Service!D23 -> NIGHTWATCH SMALL (S150) - FS1A 150 HPS | D31: =Service!G23 -> FS1A | E31: 240.3486765
C32: =Service!C24 & " " &Service!E24 &" "&Service!D24 -> NIGHTWATCH MEDIUM (S250) - FS2A 250 HPS | D32: =Service!G24 -> FS2A | E32: 379.2785473
C33: =Service!C25 & " " &Service!E25 &" "&Service!D25 -> NIGHTWATCH LARGE (S400) - FS3A 400 HPS | D33: =Service!G25 -> FS3A | E33: 611.2914315
C34: =Service!C26 & " " &Service!E26 &" "&Service!D26 -> NIGHTWATCH MINOR (S100) - FS4A 100 HPS | D34: =Service!G26 -> FS4A | E34: 166.715845
C35: =Service!C27 & " " &Service!E27 &" "&Service!D27 -> NIGHTWATCH MINOR (S70) - FS5A 70 HPS | D35: =Service!G27 -> FS5A | E35: 119.4796889

Sheet Annuity
B1: Annuity Revenue Inputs
C2: Inputs required for calculating the annuity revenue requirement
C5: ="Capex " & "- nominal " & "2024" -> Capex - nominal 2024
C7: Index for de-escalation | E7: Name | F7: Reference
C8: Asset value | D8: Selection | E8: CPI | F8: =MATCH(E8,List_Escalation,0) -> 1
C9: Labour | D9: Selection | E9: LPI | F9: =MATCH(E9,List_Escalation,0) -> 2
C16: Real Escalation Index
C17: Capital | D17: Selection | E17: Real capex
C18: Labour | D18: Selection | E18: Real labour (capex)
C19: Opex | D19: Selection | E19: Real opex
E21: Useful life (years) | H21: Nominal ($ / Component) | K21: ="Real ($ / Component) " & "- nominal " & "2025" -> Real ($ / Component) - nominal 2025
C22: Service | D22: Rate Code | E22: Asset | F22: =I22 -> Labour | H22: asset value | I22: Labour | K22: Asset value | L22: Labour
B23: =IF(C23="Spare",TRUE,0) -> 0 | C23: NIGHTWATCH MINOR (F42) - FF1A | D23: FF1A | E23: 1 | F23: =E23 -> 1 | G23: $ / Component
B24: 0 | C24: NIGHTWATCH MINOR (F2X14) - FF2A | D24: FF2A | E24: 1 | F24: 1 | G24: $ / Component
B25: 0 | C25: NIGHTWATCH SMALL (MH150) - FH1A | D25: FH1A | E25: 1 | F25: 1 | G25: $ / Component
B26: 0 | C26: NIGHTWATCH MEDIUM (MH250) - FH2A | D26: FH2A | E26: 1 | F26: 1 | G26: $ / Component
B27: 0 | C27: NIGHTWATCH LARGE (MH400) - FH3A | D27: FH3A | E27: 1 | F27: 1 | G27: $ / Component
B28: 0 | C28: NIGHTWATCH X-LARGE (MH1000) - FH4A | D28: FH4A | E28: 1 | F28: 1 | G28: $ / Component
B29: 0 | C29: NIGHTWATCH MINOR (L17) - FL1A | D29: FL1A | E29: 1 | F29: 1 | G29: $ / Component
B30: 0 | C30: NIGHTWATCH MINOR (L18) - FL1B | D30: FL1B | E30: 1 | F30: 1 | G30: $ / Component
B31: 0 | C31: NIGHTWATCH SMALL (L75+) - FL2A | D31: FL2A | E31: 1 | F31: =E31 -> 1 | G31: $ / Component
B32: 0 | C32: NIGHTWATCH MEDIUM (L100+) - FL3A | D32: FL3A | E32: 1 | F32: 1 | G32: $ / Component
B33: 0 | C33: NIGHTWATCH MEDIUM (L150) - FL3B | D33: FL3B | E33: 1 | F33: 1 | G33: $ / Component
B34: =IF(C34="Spare",TRUE,0) -> 0 | C34: NIGHTWATCH LARGE (L150+) - FL4A | D34: FL4A | E34: 1 | F34: 1 | G34: $ / Component
B35: 0 | C35: NIGHTWATCH LARGE (L200) - FL4B | D35: FL4B | E35: 1 | F35: 1 | G35: $ / Component
B36: 0 | C36: NIGHTWATCH X-LARGE (L300+) - FL5A | D36: FL5A | E36: 1 | F36: 1 | G36: $ / Component
B37: 0 | C37: NIGHTWATCH MINOR (M80) - FM1A | D37: FM1A | E37: 1 | F37: 1 | G37: $ / Component
B38: 0 | C38: NIGHTWATCH SMALL (S150) - FS1A | D38: FS1A | E38: 1 | F38: =E38 -> 1 | G38: $ / Component
B39: 0 | C39: NIGHTWATCH MEDIUM (S250) - FS2A | D39: FS2A | E39: 1 | F39: 1 | G39: $ / Component
B40: 0 | C40: NIGHTWATCH LARGE (S400) - FS3A | D40: FS3A | E40: 1 | F40: 1 | G40: $ / Component
B41: 0 | C41: NIGHTWATCH MINOR (S100) - FS4A | D41: FS4A | E41: 1 | F41: 1 | G41: $ / Component
B42: 0 | C42: NIGHTWATCH MINOR (S70) - FS5A | D42: FS5A | E42: 1 | F42: 1 | G42: $ / Component
B43: TRUE | C43: Spare | G43: $ / Component | K43: =H43 -> 0 | L43: =I43 -> 0
B44: TRUE | C44: Spare | G44: $ / Component | K44: 0 | L44: 0
B45: =IF(C45="Spare",TRUE,0) -> TRUE | C45: Spare | G45: $ / Component | K45: 0 | L45: 0
B46: TRUE | C46: Spare | G46: $ / Component | K46: 0 | L46: 0
B47: TRUE | C47: Spare | G47: $ / Component | K47: 0 | L47: 0
B48: TRUE | C48: Spare | G48: $ / Component | K48: 0 | L48: 0
B49: TRUE | C49: Spare | G49: $ / Component | K49: 0 | L49: 0
B50: TRUE | C50: Spare | G50: $ / Component | K50: 0 | L50: 0
B51: TRUE | C51: Spare | G51: $ / Component | K51: 0 | L51: 0
B52: TRUE | C52: Spare | G52: $ / Component | K52: 0 | L52: 0
B53: TRUE | C53: Spare | G53: $ / Component | K53: 0 | L53: 0
B54: TRUE | C54: Spare | G54: $ / Component | K54: 0 | L54: 0
B55: TRUE | C55: Spare | G55: $ / Component | K55: 0 | L55: 0
B56: TRUE | C56: Spare | G56: $ / Component | K56: 0 | L56: 0
B57: TRUE | C57: Spare | G57: $ / Component | K57: 0 | L57: 0
B58: TRUE | C58: Spare | G58: $ / Component | K58: 0 | L58: 0
B59: TRUE | C59: Spare | G59: $ / Component | K59: 0 | L59: 0
B60: TRUE | C60: Spare | G60: $ / Component | K60: 0 | L60: 0
B61: TRUE | C61: Spare | G61: $ / Component | K61: 0 | L61: 0
B62: TRUE | C62: Spare | G62: $ / Component | K62: 0 | L62: 0
B63: TRUE | C63: Spare | G63: $ / Component | K63: 0 | L63: 0
B64: TRUE | C64: Spare | G64: $ / Component | K64: 0 | L64: 0
B65: TRUE | C65: Spare | G65: $ / Component | K65: 0 | L65: 0
B66: TRUE | C66: Spare | G66: $ / Component | K66: 0 | L66: 0
B67: TRUE | C67: Spare | G67: $ / Component | K67: 0 | L67: 0
B68: TRUE | C68: Spare | G68: $ / Component | K68: 0 | L68: 0
B69: TRUE | C69: Spare | G69: $ / Component | K69: 0 | L69: 0
B70: TRUE | C70: Spare | G70: $ / Component | K70: 0 | L70: 0
B71: TRUE | C71: Spare | G71: $ / Component | K71: 0 | L71: 0
B72: TRUE | C72: Spare | G72: $ / Component | K72: 0 | L72: 0
B73: TRUE | C73: Spare | G73: $ / Component | K73: 0 | L73: 0
B74: TRUE | C74: Spare | G74: $ / Component | K74: 0 | L74: 0
B75: TRUE | C75: Spare | G75: $ / Component | K75: 0 | L75: 0
B76: TRUE | C76: Spare | G76: $ / Component | K76: 0 | L76: 0
B77: TRUE | C77: Spare | G77: $ / Component | K77: 0 | L77: 0
B78: TRUE | C78: Spare | G78: $ / Component | K78: 0 | L78: 0
B79: TRUE | C79: Spare | G79: $ / Component | K79: 0 | L79: 0
B80: TRUE | C80: Spare | G80: $ / Component | K80: 0 | L80: 0
B81: TRUE | C81: Spare | G81: $ / Component | K81: 0 | L81: 0
B82: TRUE | C82: Spare | G82: $ / Component | K82: 0 | L82: 0
B83: TRUE | C83: Spare | G83: $ / Component | K83: 0 | L83: 0
B84: TRUE | C84: Spare | G84: $ / Component | K84: 0 | L84: 0
B85: TRUE | C85: Spare | G85: $ / Component | K85: 0 | L85: 0
B86: TRUE | C86: Spare | G86: $ / Component | K86: 0 | L86: 0
B87: TRUE | C87: Spare | G87: $ / Component | K87: 0 | L87: 0
B88: TRUE | C88: Spare | G88: $ / Component | K88: 0 | L88: 0
B89: TRUE | C89: Spare | G89: $ / Component | K89: 0 | L89: 0
B90: TRUE | C90: Spare | G90: $ / Component | K90: 0 | L90: 0
B91: TRUE | C91: Spare | G91: $ / Component | K91: 0 | L91: 0
B92: TRUE | C92: Spare | G92: $ / Component | K92: 0 | L92: 0
B93: TRUE | C93: Spare | G93: $ / Component | K93: 0 | L93: 0
B94: TRUE | C94: Spare | G94: $ / Component | K94: 0 | L94: 0
B95: TRUE | C95: Spare | G95: $ / Component | K95: 0 | L95: 0
B96: TRUE | C96: Spare | G96: $ / Component | K96: 0 | L96: 0
B97: TRUE | C97: Spare | G97: $ / Component | K97: 0 | L97: 0
B98: TRUE | C98: Spare | G98: $ / Component | K98: 0 | L98: 0
B99: TRUE | C99: Spare | G99: $ / Component | K99: 0 | L99: 0
B100: TRUE | C100: Spare | G100: $ / Component | K100: =H100 -> 0 | L100: =I100 -> 0
B101: TRUE | C101: Spare | G101: $ / Component | K101: 0 | L101: 0
B102: TRUE | C102: Spare | G102: $ / Component | K102: 0 | L102: 0
B103: TRUE | C103: Spare | G103: $ / Component | K103: 0 | L103: 0
B104: TRUE | C104: Spare | G104: $ / Component | K104: 0 | L104: 0
B105: =IF(C105="Spare",TRUE,0) -> TRUE | C105: Spare | G105: $ / Component | K105: 0 | L105: 0
B106: TRUE | C106: Spare | G106: $ / Component | K106: 0 | L106: 0
B107: TRUE | C107: Spare | G107: $ / Component | K107: 0 | L107: 0
B108: TRUE | C108: Spare | G108: $ / Component | K108: 0 | L108: 0
B109: TRUE | C109: Spare | G109: $ / Component | K109: 0 | L109: 0
B110: TRUE | C110: Spare | G110: $ / Component | K110: 0 | L110: 0
B111: TRUE | C111: Spare | G111: $ / Component | K111: 0 | L111: 0
B112: TRUE | C112: Spare | G112: $ / Component | K112: 0 | L112: 0
B113: TRUE | C113: Spare | G113: $ / Component | K113: 0 | L113: 0
B114: TRUE | C114: Spare | G114: $ / Component | K114: 0 | L114: 0
B115: TRUE | C115: Spare | G115: $ / Component | K115: 0 | L115: 0
B116: TRUE | C116: Spare | G116: $ / Component | K116: 0 | L116: 0
B117: TRUE | C117: Spare | G117: $ / Component | K117: 0 | L117: 0
B118: TRUE | C118: Spare | G118: $ / Component | K118: 0 | L118: 0
B119: TRUE | C119: Spare | G119: $ / Component | K119: 0 | L119: 0
B120: TRUE | C120: Spare | G120: $ / Component | K120: 0 | L120: 0
B121: TRUE | C121: Spare | G121: $ / Component | K121: 0 | L121: 0
B122: TRUE | C122: Spare | G122: $ / Component | K122: 0 | L122: 0
B123: TRUE | C123: Spare | G123: $ / Component | K123: 0 | L123: 0
B124: TRUE | C124: Spare | G124: $ / Component | K124: 0 | L124: 0
B125: TRUE | C125: Spare | G125: $ / Component | K125: 0 | L125: 0
B126: TRUE | C126: Spare | G126: $ / Component | K126: 0 | L126: 0
B127: TRUE | C127: Spare | G127: $ / Component | K127: 0 | L127: 0
B128: TRUE | C128: Spare | G128: $ / Component | K128: 0 | L128: 0
B129: TRUE | C129: Spare | G129: $ / Component | K129: 0 | L129: 0
B130: TRUE | C130: Spare | G130: $ / Component | K130: 0 | L130: 0
B131: TRUE | C131: Spare | G131: $ / Component | K131: 0 | L131: 0
B132: TRUE | C132: Spare | G132: $ / Component | K132: 0 | L132: 0
B133: TRUE | C133: Spare | G133: $ / Component | K133: 0 | L133: 0
B134: TRUE | C134: Spare | G134: $ / Component | K134: 0 | L134: 0
B135: TRUE | C135: Spare | G135: $ / Component | K135: 0 | L135: 0
B136: TRUE | C136: Spare | G136: $ / Component | K136: 0 | L136: 0
B137: TRUE | C137: Spare | G137: $ / Component | K137: 0 | L137: 0
B138: TRUE | C138: Spare | G138: $ / Component | K138: 0 | L138: 0
B139: TRUE | C139: Spare | G139: $ / Component | K139: 0 | L139: 0
XFD140: =#REF!*#REF! -> 
C141: ="Opex " & "- real " & RegYear-1 -> Opex - real 2024
C143: Operating Expenses
C145: Service | D145: Rate Code | F145: Total | G145: Overheads | H145: NUOS | I145: Spare | J145: Spare | K145: Spare | L145: Spare | M145: Spare | N145: Spare
B146: =IF(C146="Spare",TRUE,0) -> 0 | C146: =C23 -> NIGHTWATCH MINOR (F42) - FF1A | D146: FF1A | E146: $ p.a. / Component | F146: 341.3176646
B147: 0 | C147: NIGHTWATCH MINOR (F2X14) - FF2A | D147: FF2A | E147: $ p.a. / Component | F147: 319.0888853
B148: 0 | C148: NIGHTWATCH SMALL (MH150) - FH1A | D148: FH1A | E148: $ p.a. / Component | F148: 510.812107
B149: 0 | C149: NIGHTWATCH MEDIUM (MH250) - FH2A | D149: FH2A | E149: $ p.a. / Component | F149: 704.4501803
B150: 0 | C150: NIGHTWATCH LARGE (MH400) - FH3A | D150: FH3A | E150: $ p.a. / Component | F150: 1031.986482
B151: 0 | C151: NIGHTWATCH X-LARGE (MH1000) - FH4A | D151: FH4A | E151: $ p.a. / Component | F151: 1886.405188
B152: 0 | C152: NIGHTWATCH MINOR (L17) - FL1A | D152: FL1A | E152: $ p.a. / Component | F152: 301.0280021
B153: 0 | C153: NIGHTWATCH MINOR (L18) - FL1B | D153: FL1B | E153: $ p.a. / Component | F153: 307.9744956
B154: 0 | C154: NIGHTWATCH SMALL (L75+) - FL2A | D154: FL2A | E154: $ p.a. / Component | F154: 387.164522
C155: NIGHTWATCH MEDIUM (L100+) - FL3A | D155: FL3A | E155: $ p.a. / Component | F155: 479.3837896
C156: NIGHTWATCH MEDIUM (L150) - FL3B | D156: FL3B | E156: $ p.a. / Component | F156: 551.6273224
C157: NIGHTWATCH LARGE (L150+) - FL4A | D157: FL4A | E157: $ p.a. / Component | F157: 661.0437274
C158: NIGHTWATCH LARGE (L200) - FL4B | D158: FL4B | E158: $ p.a. / Component | F158: 747.1802473
C159: NIGHTWATCH X-LARGE (L300+) - FL5A | D159: FL5A | E159: $ p.a. / Component | F159: 880.5529232
B160: 0 | C160: NIGHTWATCH MINOR (M80) - FM1A | D160: FM1A | E160: $ p.a. / Component | F160: 410.7826
B161: 0 | C161: NIGHTWATCH SMALL (S150) - FS1A | D161: FS1A | E161: $ p.a. / Component | F161: 517.7586005
B162: 0 | C162: NIGHTWATCH MEDIUM (S250) - FS2A | D162: FS2A | E162: $ p.a. / Component | F162: 711.3966738
B163: 0 | C163: NIGHTWATCH LARGE (S400) - FS3A | D163: FS3A | E163: $ p.a. / Component | F163: 1052.825963
B164: 0 | C164: NIGHTWATCH MINOR (S100) - FS4A | D164: FS4A | E164: $ p.a. / Component | F164: 444.125769
B165: 0 | C165: NIGHTWATCH MINOR (S70) - FS5A | D165: FS5A | E165: $ p.a. / Component | F165: 396.8896129
B166: TRUE | C166: =C45 -> Spare | D166: $ p.a. / Component | F166: =SUM(G166:R166) -> 0
B167: TRUE | C167: Spare | D167: $ p.a. / Component | F167: 0
B168: TRUE | C168: Spare | D168: $ p.a. / Component | F168: 0
B169: TRUE | C169: Spare | D169: $ p.a. / Component | F169: 0
B170: TRUE | C170: Spare | D170: $ p.a. / Component | F170: 0
B171: TRUE | C171: Spare | D171: $ p.a. / Component | F171: 0
B172: TRUE | C172: Spare | D172: $ p.a. / Component | F172: 0
B173: TRUE | C173: Spare | D173: $ p.a. / Component | F173: 0
B174: TRUE | C174: Spare | D174: $ p.a. / Component | F174: 0
B175: TRUE | C175: Spare | D175: $ p.a. / Component | F175: 0
B176: =IF(C176="Spare",TRUE,0) -> TRUE | C176: Spare | D176: $ p.a. / Component | F176: =SUM(G176:R176) -> 0
B177: TRUE | C177: Spare | D177: $ p.a. / Component | F177: 0
B178: TRUE | C178: Spare | D178: $ p.a. / Component | F178: 0
B179: TRUE | C179: Spare | D179: $ p.a. / Component | F179: 0
B180: TRUE | C180: Spare | D180: $ p.a. / Component | F180: 0
B181: TRUE | C181: Spare | D181: $ p.a. / Component | F181: 0
B182: TRUE | C182: Spare | D182: $ p.a. / Component | F182: 0
B183: TRUE | C183: Spare | D183: $ p.a. / Component | F183: 0
B184: TRUE | C184: Spare | D184: $ p.a. / Component | F184: 0
B185: TRUE | C185: Spare | D185: $ p.a. / Component | F185: 0
B186: TRUE | C186: Spare | D186: $ p.a. / Component | F186: 0
B187: TRUE | C187: Spare | D187: $ p.a. / Component | F187: 0
B188: TRUE | C188: Spare | D188: $ p.a. / Component | F188: 0
B189: TRUE | C189: Spare | D189: $ p.a. / Component | F189: 0
B190: TRUE | C190: Spare | D190: $ p.a. / Component | F190: 0
B191: TRUE | C191: Spare | D191: $ p.a. / Component | F191: 0
B192: TRUE | C192: Spare | D192: $ p.a. / Component | F192: 0
B193: TRUE | C193: Spare | D193: $ p.a. / Component | F193: 0
B194: TRUE | C194: Spare | D194: $ p.a. / Component | F194: 0
B195: TRUE | C195: Spare | D195: $ p.a. / Component | F195: 0
B196: TRUE | C196: Spare | D196: $ p.a. / Component | F196: 0
B197: TRUE | C197: Spare | D197: $ p.a. / Component | F197: 0
B198: TRUE | C198: =C77 -> Spare | D198: $ p.a. / Component | F198: 0
B199: TRUE | C199: Spare | D199: $ p.a. / Component | F199: 0
B200: TRUE | C200: Spare | D200: $ p.a. / Component | F200: 0
B201: TRUE | C201: Spare | D201: $ p.a. / Component | F201: 0
B202: TRUE | C202: Spare | D202: $ p.a. / Component | F202: 0
B203: TRUE | C203: Spare | D203: $ p.a. / Component | F203: 0
B204: TRUE | C204: Spare | D204: $ p.a. / Component | F204: 0
B205: TRUE | C205: Spare | D205: $ p.a. / Component | F205: 0
B206: TRUE | C206: Spare | D206: $ p.a. / Component | F206: 0
B207: TRUE | C207: Spare | D207: $ p.a. / Component | F207: 0
B208: TRUE | C208: Spare | D208: $ p.a. / Component | F208: 0
B209: TRUE | C209: Spare | D209: $ p.a. / Component | F209: 0
B210: TRUE | C210: Spare | D210: $ p.a. / Component | F210: 0
B211: TRUE | C211: Spare | D211: $ p.a. / Component | F211: 0
B212: TRUE | C212: Spare | D212: $ p.a. / Component | F212: 0
... 48 more rows

Sheet CalcAnnual
C1: Calculations
K2: =REG_Timing!K2 -> 2025 | L2: =REG_Timing!L2 -> 2026 | M2: =REG_Timing!M2 -> 2027 | N2: =REG_Timing!N2 -> 2028 | O2: =REG_Timing!O2 -> 2029
C4: Timing
C6: Year | D6: # | K6: =REG_Timing!K6 -> 1 | L6: =REG_Timing!L6 -> 2 | M6: =REG_Timing!M6 -> 3 | N6: =REG_Timing!N6 -> 4 | O6: =REG_Timing!O6 -> 5
C8: =Global!C77 -> Pre-tax real WACC | D8: % | K8: =Global!F77 -> 0.03175725277 | L8: =Global!G77 -> 0.03232317444 | M8: =Global!H77 -> 0.03314405255 | N8: =Global!I77 -> 0.03399118945 | O8: =Global!J77 -> 0.03496930827
C10: Capex
C12: Capital
C14: Adjustment for volume growth | D14: % | E14: =Annuity!$E$12 -> 0
C15: Real escalation index | D15: % | E15: =Annuity!$E$17 -> Real capex | K15: =REG_Timing!K20 -> 1 | L15: =INDEX(REG_Timing!L18:L22,MATCH($E15,List_Escalation,0)) -> 1 | M15: =INDEX(REG_Timing!M18:M22,MATCH($E15,List_Escalation,0)) -> 1 | N15: =INDEX(REG_Timing!N18:N22,MATCH($E15,List_Escalation,0)) -> 1 | O15: =INDEX(REG_Timing!O18:O22,MATCH($E15,List_Escalation,0)) -> 1
E17: Asset Value | F17: Useful life
B18: =IF(C18="Spare",TRUE,0) -> 0 | C18: =Annuity!C23 -> NIGHTWATCH MINOR (F42) - FF1A | D18: $ / Component | F18: =Annuity!E23 -> 1
B19: 0 | C19: =Annuity!C24 -> NIGHTWATCH MINOR (F2X14) - FF2A | D19: $ / Component | F19: =Annuity!E24 -> 1
B20: 0 | C20: =Annuity!C25 -> NIGHTWATCH SMALL (MH150) - FH1A | D20: $ / Component | F20: =Annuity!E25 -> 1
B21: 0 | C21: =Annuity!C26 -> NIGHTWATCH MEDIUM (MH250) - FH2A | D21: $ / Component | F21: =Annuity!E26 -> 1
B22: 0 | C22: =Annuity!C27 -> NIGHTWATCH LARGE (MH400) - FH3A | D22: $ / Component | F22: =Annuity!E27 -> 1
B23: 0 | C23: =Annuity!C28 -> NIGHTWATCH X-LARGE (MH1000) - FH4A | D23: $ / Component | F23: =Annuity!E28 -> 1
B24: 0 | C24: =Annuity!C29 -> NIGHTWATCH MINOR (L17) - FL1A | D24: $ / Component | F24: =Annuity!E29 -> 1
B25: 0 | C25: =Annuity!C30 -> NIGHTWATCH MINOR (L18) - FL1B | D25: $ / Component | F25: =Annuity!E30 -> 1
B26: 0 | C26: =Annuity!C31 -> NIGHTWATCH SMALL (L75+) - FL2A | D26: $ / Component | F26: =Annuity!E31 -> 1
B27: 0 | C27: =Annuity!C32 -> NIGHTWATCH MEDIUM (L100+) - FL3A | D27: $ / Component | F27: =Annuity!E32 -> 1
B28: 0 | C28: =Annuity!C33 -> NIGHTWATCH MEDIUM (L150) - FL3B | D28: $ / Component | F28: =Annuity!E33 -> 1
B29: 0 | C29: =Annuity!C34 -> NIGHTWATCH LARGE (L150+) - FL4A | D29: $ / Component | F29: =Annuity!E34 -> 1
B30: 0 | C30: =Annuity!C35 -> NIGHTWATCH LARGE (L200) - FL4B | D30: $ / Component | F30: =Annuity!E35 -> 1
B31: 0 | C31: =Annuity!C36 -> NIGHTWATCH X-LARGE (L300+) - FL5A | D31: $ / Component | F31: =Annuity!E36 -> 1
B32: 0 | C32: =Annuity!C37 -> NIGHTWATCH MINOR (M80) - FM1A | D32: $ / Component | F32: =Annuity!E37 -> 1
B33: 0 | C33: =Annuity!C38 -> NIGHTWATCH SMALL (S150) - FS1A | D33: $ / Component | F33: =Annuity!E38 -> 1
B34: 0 | C34: =Annuity!C39 -> NIGHTWATCH MEDIUM (S250) - FS2A | D34: $ / Component | F34: =Annuity!E39 -> 1
B35: 0 | C35: =Annuity!C40 -> NIGHTWATCH LARGE (S400) - FS3A | D35: $ / Component | F35: =Annuity!E40 -> 1
B36: 0 | C36: =Annuity!C41 -> NIGHTWATCH MINOR (S100) - FS4A | D36: $ / Component | F36: =Annuity!E41 -> 1
B37: 0 | C37: =Annuity!C42 -> NIGHTWATCH MINOR (S70) - FS5A | D37: $ / Component | F37: =Annuity!E42 -> 1
B38: TRUE | C38: =Annuity!C50 -> Spare | D38: $ / Component | E38: =Annuity!K50*(1+$E$14) -> 0 | F38: =Annuity!E50 -> 0 | K38: =-IF($F38=0,0,PMT(K$8,$F38,$E38*K$15,0)) -> 0 | L38: 0 | M38: 0 | N38: 0 | O38: 0
B39: TRUE | C39: =Annuity!C51 -> Spare | D39: $ / Component | E39: =Annuity!K51*(1+$E$14) -> 0 | F39: =Annuity!E51 -> 0 | K39: 0 | L39: 0 | M39: 0 | N39: 0 | O39: 0
B40: TRUE | C40: =Annuity!C52 -> Spare | D40: $ / Component | E40: =Annuity!K52*(1+$E$14) -> 0 | F40: =Annuity!E52 -> 0 | K40: 0 | L40: 0 | M40: 0 | N40: 0 | O40: 0
B41: TRUE | C41: =Annuity!C53 -> Spare | D41: $ / Component | E41: =Annuity!K53*(1+$E$14) -> 0 | F41: =Annuity!E53 -> 0 | K41: 0 | L41: 0 | M41: 0 | N41: 0 | O41: 0
B42: TRUE | C42: =Annuity!C54 -> Spare | D42: $ / Component | E42: =Annuity!K54*(1+$E$14) -> 0 | F42: =Annuity!E54 -> 0 | K42: 0 | L42: 0 | M42: 0 | N42: 0 | O42: 0
B43: TRUE | C43: =Annuity!C55 -> Spare | D43: $ / Component | E43: =Annuity!K55*(1+$E$14) -> 0 | F43: =Annuity!E55 -> 0 | K43: 0 | L43: 0 | M43: 0 | N43: 0 | O43: 0
B44: TRUE | C44: =Annuity!C56 -> Spare | D44: $ / Component | E44: =Annuity!K56*(1+$E$14) -> 0 | F44: =Annuity!E56 -> 0 | K44: 0 | L44: 0 | M44: 0 | N44: 0 | O44: 0
B45: =IF(C45="Spare",TRUE,0) -> TRUE | C45: =Annuity!C57 -> Spare | D45: $ / Component | E45: =Annuity!K57*(1+$E$14) -> 0 | F45: =Annuity!E57 -> 0 | K45: =-IF($F45=0,0,PMT(K$8,$F45,$E45*K$15,0)) -> 0 | L45: 0 | M45: 0 | N45: 0 | O45: 0
B46: TRUE | C46: =Annuity!C58 -> Spare | D46: $ / Component | E46: =Annuity!K58*(1+$E$14) -> 0 | F46: =Annuity!E58 -> 0 | K46: 0 | L46: 0 | M46: 0 | N46: 0 | O46: 0
B47: TRUE | C47: =Annuity!C59 -> Spare | D47: $ / Component | E47: =Annuity!K59*(1+$E$14) -> 0 | F47: =Annuity!E59 -> 0 | K47: 0 | L47: 0 | M47: 0 | N47: 0 | O47: 0
B48: TRUE | C48: =Annuity!C60 -> Spare | D48: $ / Component | E48: =Annuity!K60*(1+$E$14) -> 0 | F48: =Annuity!E60 -> 0 | K48: 0 | L48: 0 | M48: 0 | N48: 0 | O48: 0
B49: TRUE | C49: =Annuity!C61 -> Spare | D49: $ / Component | E49: =Annuity!K61*(1+$E$14) -> 0 | F49: =Annuity!E61 -> 0 | K49: 0 | L49: 0 | M49: 0 | N49: 0 | O49: 0
B50: TRUE | C50: =Annuity!C62 -> Spare | D50: $ / Component | E50: =Annuity!K62*(1+$E$14) -> 0 | F50: =Annuity!E62 -> 0 | K50: 0 | L50: 0 | M50: 0 | N50: 0 | O50: 0
B51: TRUE | C51: =Annuity!C63 -> Spare | D51: $ / Component | E51: =Annuity!K63*(1+$E$14) -> 0 | F51: =Annuity!E63 -> 0 | K51: 0 | L51: 0 | M51: 0 | N51: 0 | O51: 0
B52: TRUE | C52: =Annuity!C64 -> Spare | D52: $ / Component | E52: =Annuity!K64*(1+$E$14) -> 0 | F52: =Annuity!E64 -> 0 | K52: 0 | L52: 0 | M52: 0 | N52: 0 | O52: 0
B53: TRUE | C53: =Annuity!C65 -> Spare | D53: $ / Component | E53: =Annuity!K65*(1+$E$14) -> 0 | F53: =Annuity!E65 -> 0 | K53: 0 | L53: 0 | M53: 0 | N53: 0 | O53: 0
B54: TRUE | C54: =Annuity!C66 -> Spare | D54: $ / Component | E54: =Annuity!K66*(1+$E$14) -> 0 | F54: =Annuity!E66 -> 0 | K54: 0 | L54: 0 | M54: 0 | N54: 0 | O54: 0
B55: TRUE | C55: =Annuity!C67 -> Spare | D55: $ / Component | E55: =Annuity!K67*(1+$E$14) -> 0 | F55: =Annuity!E67 -> 0 | K55: 0 | L55: 0 | M55: 0 | N55: 0 | O55: 0
B56: TRUE | C56: =Annuity!C68 -> Spare | D56: $ / Component | E56: =Annuity!K68*(1+$E$14) -> 0 | F56: =Annuity!E68 -> 0 | K56: 0 | L56: 0 | M56: 0 | N56: 0 | O56: 0
B57: TRUE | C57: =Annuity!C69 -> Spare | D57: $ / Component | E57: =Annuity!K69*(1+$E$14) -> 0 | F57: =Annuity!E69 -> 0 | K57: 0 | L57: 0 | M57: 0 | N57: 0 | O57: 0
B58: TRUE | C58: =Annuity!C70 -> Spare | D58: $ / Component | E58: =Annuity!K70*(1+$E$14) -> 0 | F58: =Annuity!E70 -> 0 | K58: 0 | L58: 0 | M58: 0 | N58: 0 | O58: 0
B59: TRUE | C59: =Annuity!C71 -> Spare | D59: $ / Component | E59: =Annuity!K71*(1+$E$14) -> 0 | F59: =Annuity!E71 -> 0 | K59: 0 | L59: 0 | M59: 0 | N59: 0 | O59: 0
B60: TRUE | C60: =Annuity!C72 -> Spare | D60: $ / Component | E60: =Annuity!K72*(1+$E$14) -> 0 | F60: =Annuity!E72 -> 0 | K60: 0 | L60: 0 | M60: 0 | N60: 0 | O60: 0
B61: TRUE | C61: =Annuity!C73 -> Spare | D61: $ / Component | E61: =Annuity!K73*(1+$E$14) -> 0 | F61: =Annuity!E73 -> 0 | K61: 0 | L61: 0 | M61: 0 | N61: 0 | O61: 0
B62: TRUE | C62: =Annuity!C74 -> Spare | D62: $ / Component | E62: =Annuity!K74*(1+$E$14) -> 0 | F62: =Annuity!E74 -> 0 | K62: 0 | L62: 0 | M62: 0 | N62: 0 | O62: 0
B63: TRUE | C63: =Annuity!C75 -> Spare | D63: $ / Component | E63: =Annuity!K75*(1+$E$14) -> 0 | F63: =Annuity!E75 -> 0 | K63: 0 | L63: 0 | M63: 0 | N63: 0 | O63: 0
B64: TRUE | C64: =Annuity!C76 -> Spare | D64: $ / Component | E64: =Annuity!K76*(1+$E$14) -> 0 | F64: =Annuity!E76 -> 0 | K64: 0 | L64: 0 | M64: 0 | N64: 0 | O64: 0
B65: TRUE | C65: =Annuity!C77 -> Spare | D65: $ / Component | E65: =Annuity!K77*(1+$E$14) -> 0 | F65: =Annuity!E77 -> 0 | K65: 0 | L65: 0 | M65: 0 | N65: 0 | O65: 0
B66: TRUE | C66: =Annuity!C78 -> Spare | D66: $ / Component | E66: =Annuity!K78*(1+$E$14) -> 0 | F66: =Annuity!E78 -> 0 | K66: 0 | L66: 0 | M66: 0 | N66: 0 | O66: 0
B67: TRUE | C67: =Annuity!C79 -> Spare | D67: $ / Component | E67: =Annuity!K79*(1+$E$14) -> 0 | F67: =Annuity!E79 -> 0 | K67: 0 | L67: 0 | M67: 0 | N67: 0 | O67: 0
B68: TRUE | C68: =Annuity!C80 -> Spare | D68: $ / Component | E68: =Annuity!K80*(1+$E$14) -> 0 | F68: =Annuity!E80 -> 0 | K68: 0 | L68: 0 | M68: 0 | N68: 0 | O68: 0
B69: TRUE | C69: =Annuity!C81 -> Spare | D69: $ / Component | E69: =Annuity!K81*(1+$E$14) -> 0 | F69: =Annuity!E81 -> 0 | K69: 0 | L69: 0 | M69: 0 | N69: 0 | O69: 0
B70: TRUE | C70: =Annuity!C82 -> Spare | D70: $ / Component | E70: =Annuity!K82*(1+$E$14) -> 0 | F70: =Annuity!E82 -> 0 | K70: 0 | L70: 0 | M70: 0 | N70: 0 | O70: 0
B71: TRUE | C71: =Annuity!C83 -> Spare | D71: $ / Component | E71: =Annuity!K83*(1+$E$14) -> 0 | F71: =Annuity!E83 -> 0 | K71: 0 | L71: 0 | M71: 0 | N71: 0 | O71: 0
B72: TRUE | C72: =Annuity!C84 -> Spare | D72: $ / Component | E72: =Annuity!K84*(1+$E$14) -> 0 | F72: =Annuity!E84 -> 0 | K72: 0 | L72: 0 | M72: 0 | N72: 0 | O72: 0
B73: TRUE | C73: =Annuity!C85 -> Spare | D73: $ / Component | E73: =Annuity!K85*(1+$E$14) -> 0 | F73: =Annuity!E85 -> 0 | K73: 0 | L73: 0 | M73: 0 | N73: 0 | O73: 0
B74: TRUE | C74: =Annuity!C86 -> Spare | D74: $ / Component | E74: =Annuity!K86*(1+$E$14) -> 0 | F74: =Annuity!E86 -> 0 | K74: 0 | L74: 0 | M74: 0 | N74: 0 | O74: 0
B75: TRUE | C75: =Annuity!C87 -> Spare | D75: $ / Component | E75: =Annuity!K87*(1+$E$14) -> 0 | F75: =Annuity!E87 -> 0 | K75: 0 | L75: 0 | M75: 0 | N75: 0 | O75: 0
B76: TRUE | C76: =Annuity!C88 -> Spare | D76: $ / Component | E76: =Annuity!K88*(1+$E$14) -> 0 | F76: =Annuity!E88 -> 0 | K76: 0 | L76: 0 | M76: 0 | N76: 0 | O76: 0
B77: TRUE | C77: =Annuity!C89 -> Spare | D77: $ / Component | E77: =Annuity!K89*(1+$E$14) -> 0 | F77: =Annuity!E89 -> 0 | K77: =-IF($F77=0,0,PMT(K$8,$F77,$E77*K$15,0)) -> 0 | L77: 0 | M77: 0 | N77: 0 | O77: 0
B78: TRUE | C78: =Annuity!C90 -> Spare | D78: $ / Component | E78: =Annuity!K90*(1+$E$14) -> 0 | F78: =Annuity!E90 -> 0 | K78: 0 | L78: 0 | M78: 0 | N78: 0 | O78: 0
B79: TRUE | C79: =Annuity!C91 -> Spare | D79: $ / Component | E79: =Annuity!K91*(1+$E$14) -> 0 | F79: =Annuity!E91 -> 0 | K79: 0 | L79: 0 | M79: 0 | N79: 0 | O79: 0
B80: TRUE | C80: =Annuity!C92 -> Spare | D80: $ / Component | E80: =Annuity!K92*(1+$E$14) -> 0 | F80: =Annuity!E92 -> 0 | K80: 0 | L80: 0 | M80: 0 | N80: 0 | O80: 0
B81: TRUE | C81: =Annuity!C93 -> Spare | D81: $ / Component | E81: =Annuity!K93*(1+$E$14) -> 0 | F81: =Annuity!E93 -> 0 | K81: 0 | L81: 0 | M81: 0 | N81: 0 | O81: 0
B82: TRUE | C82: =Annuity!C94 -> Spare | D82: $ / Component | E82: =Annuity!K94*(1+$E$14) -> 0 | F82: =Annuity!E94 -> 0 | K82: 0 | L82: 0 | M82: 0 | N82: 0 | O82: 0
B83: TRUE | C83: =Annuity!C95 -> Spare | D83: $ / Component | E83: =Annuity!K95*(1+$E$14) -> 0 | F83: =Annuity!E95 -> 0 | K83: 0 | L83: 0 | M83: 0 | N83: 0 | O83: 0
B84: TRUE | C84: =Annuity!C96 -> Spare | D84: $ / Component | E84: =Annuity!K96*(1+$E$14) -> 0 | F84: =Annuity!E96 -> 0 | K84: 0 | L84: 0 | M84: 0 | N84: 0 | O84: 0
B85: TRUE | C85: =Annuity!C97 -> Spare | D85: $ / Component | E85: =Annuity!K97*(1+$E$14) -> 0 | F85: =Annuity!E97 -> 0 | K85: 0 | L85: 0 | M85: 0 | N85: 0 | O85: 0
B86: TRUE | C86: =Annuity!C98 -> Spare | D86: $ / Component | E86: =Annuity!K98*(1+$E$14) -> 0 | F86: =Annuity!E98 -> 0 | K86: 0 | L86: 0 | M86: 0 | N86: 0 | O86: 0
B87: TRUE | C87: =Annuity!C99 -> Spare | D87: $ / Component | E87: =Annuity!K99*(1+$E$14) -> 0 | F87: =Annuity!E99 -> 0 | K87: 0 | L87: 0 | M87: 0 | N87: 0 | O87: 0
B88: TRUE | C88: =Annuity!C100 -> Spare | D88: $ / Component | E88: =Annuity!K100*(1+$E$14) -> 0 | F88: =Annuity!E100 -> 0 | K88: 0 | L88: 0 | M88: 0 | N88: 0 | O88: 0
B89: TRUE | C89: =Annuity!C101 -> Spare | D89: $ / Component | E89: =Annuity!K101*(1+$E$14) -> 0 | F89: =Annuity!E101 -> 0 | K89: 0 | L89: 0 | M89: 0 | N89: 0 | O89: 0
B90: TRUE | C90: =Annuity!C102 -> Spare | D90: $ / Component | E90: =Annuity!K102*(1+$E$14) -> 0 | F90: =Annuity!E102 -> 0 | K90: 0 | L90: 0 | M90: 0 | N90: 0 | O90: 0
B91: TRUE | C91: =Annuity!C103 -> Spare | D91: $ / Component | E91: =Annuity!K103*(1+$E$14) -> 0 | F91: =Annuity!E103 -> 0 | K91: 0 | L91: 0 | M91: 0 | N91: 0 | O91: 0
B92: TRUE | C92: =Annuity!C104 -> Spare | D92: $ / Component | E92: =Annuity!K104*(1+$E$14) -> 0 | F92: =Annuity!E104 -> 0 | K92: 0 | L92: 0 | M92: 0 | N92: 0 | O92: 0
B93: TRUE | C93: =Annuity!C105 -> Spare | D93: $ / Component | E93: =Annuity!K105*(1+$E$14) -> 0 | F93: =Annuity!E105 -> 0 | K93: 0 | L93: 0 | M93: 0 | N93: 0 | O93: 0
B94: TRUE | C94: =Annuity!C106 -> Spare | D94: $ / Component | E94: =Annuity!K106*(1+$E$14) -> 0 | F94: =Annuity!E106 -> 0 | K94: 0 | L94: 0 | M94: 0 | N94: 0 | O94: 0
B95: TRUE | C95: =Annuity!C107 -> Spare | D95: $ / Component | E95: =Annuity!K107*(1+$E$14) -> 0 | F95: =Annuity!E107 -> 0 | K95: 0 | L95: 0 | M95: 0 | N95: 0 | O95: 0
B96: TRUE | C96: =Annuity!C108 -> Spare | D96: $ / Component | E96: =Annuity!K108*(1+$E$14) -> 0 | F96: =Annuity!E108 -> 0 | K96: 0 | L96: 0 | M96: 0 | N96: 0 | O96: 0
B97: TRUE | C97: =Annuity!C109 -> Spare | D97: $ / Component | E97: =Annuity!K109*(1+$E$14) -> 0 | F97: =Annuity!E109 -> 0 | K97: 0 | L97: 0 | M97: 0 | N97: 0 | O97: 0
B98: TRUE | C98: =Annuity!C110 -> Spare | D98: $ / Component | E98: =Annuity!K110*(1+$E$14) -> 0 | F98: =Annuity!E110 -> 0 | K98: 0 | L98: 0 | M98: 0 | N98: 0 | O98: 0
B99: TRUE | C99: =Annuity!C111 -> Spare | D99: $ / Component | E99: =Annuity!K111*(1+$E$14) -> 0 | F99: =Annuity!E111 -> 0 | K99: 0 | L99: 0 | M99: 0 | N99: 0 | O99: 0
B100: TRUE | C100: =Annuity!C112 -> Spare | D100: $ / Component | E100: =Annuity!K112*(1+$E$14) -> 0 | F100: =Annuity!E112 -> 0 | K100: 0 | L100: 0 | M100: 0 | N100: 0 | O100: 0
B101: TRUE | C101: =Annuity!C113 -> Spare | D101: $ / Component | E101: =Annuity!K113*(1+$E$14) -> 0 | F101: =Annuity!E113 -> 0 | K101: 0 | L101: 0 | M101: 0 | N101: 0 | O101: 0
B102: TRUE | C102: =Annuity!C114 -> Spare | D102: $ / Component | E102: =Annuity!K114*(1+$E$14) -> 0 | F102: =Annuity!E114 -> 0 | K102: 0 | L102: 0 | M102: 0 | N102: 0 | O102: 0
B103: TRUE | C103: =Annuity!C115 -> Spare | D103: $ / Component | E103: =Annuity!K115*(1+$E$14) -> 0 | F103: =Annuity!E115 -> 0 | K103: 0 | L103: 0 | M103: 0 | N103: 0 | O103: 0
B104: TRUE | C104: =Annuity!C116 -> Spare | D104: $ / Component | E104: =Annuity!K116*(1+$E$14) -> 0 | F104: =Annuity!E116 -> 0 | K104: 0 | L104: 0 | M104: 0 | N104: 0 | O104: 0
B105: TRUE | C105: =Annuity!C117 -> Spare | D105: $ / Component | E105: =Annuity!K117*(1+$E$14) -> 0 | F105: =Annuity!E117 -> 0 | K105: 0 | L105: 0 | M105: 0 | N105: 0 | O105: 0
B106: TRUE | C106: =Annuity!C118 -> Spare | D106: $ / Component | E106: =Annuity!K118*(1+$E$14) -> 0 | F106: =Annuity!E118 -> 0 | K106: 0 | L106: 0 | M106: 0 | N106: 0 | O106: 0
B107: TRUE | C107: =Annuity!C119 -> Spare | D107: $ / Component | E107: =Annuity!K119*(1+$E$14) -> 0 | F107: =Annuity!E119 -> 0 | K107: 0 | L107: 0 | M107: 0 | N107: 0 | O107: 0
B108: TRUE | C108: =Annuity!C120 -> Spare | D108: $ / Component | E108: =Annuity!K120*(1+$E$14) -> 0 | F108: =Annuity!E120 -> 0 | K108: 0 | L108: 0 | M108: 0 | N108: 0 | O108: 0
B109: =IF(C109="Spare",TRUE,0) -> TRUE | C109: =Annuity!C121 -> Spare | D109: $ / Component | E109: =Annuity!K121*(1+$E$14) -> 0 | F109: =Annuity!E121 -> 0 | K109: =-IF($F109=0,0,PMT(K$8,$F109,$E109*K$15,0)) -> 0 | L109: 0 | M109: 0 | N109: 0 | O109: 0
B110: TRUE | C110: =Annuity!C122 -> Spare | D110: $ / Component | E110: =Annuity!K122*(1+$E$14) -> 0 | F110: =Annuity!E122 -> 0 | K110: 0 | L110: 0 | M110: 0 | N110: 0 | O110: 0
B111: TRUE | C111: =Annuity!C123 -> Spare | D111: $ / Component | E111: =Annuity!K123*(1+$E$14) -> 0 | F111: =Annuity!E123 -> 0 | K111: 0 | L111: 0 | M111: 0 | N111: 0 | O111: 0
B112: TRUE | C112: =Annuity!C124 -> Spare | D112: $ / Component | E112: =Annuity!K124*(1+$E$14) -> 0 | F112: =Annuity!E124 -> 0 | K112: 0 | L112: 0 | M112: 0 | N112: 0 | O112: 0
B113: TRUE | C113: =Annuity!C125 -> Spare | D113: $ / Component | E113: =Annuity!K125*(1+$E$14) -> 0 | F113: =Annuity!E125 -> 0 | K113: 0 | L113: 0 | M113: 0 | N113: 0 | O113: 0
B114: TRUE | C114: =Annuity!C126 -> Spare | D114: $ / Component | E114: =Annuity!K126*(1+$E$14) -> 0 | F114: =Annuity!E126 -> 0 | K114: 0 | L114: 0 | M114: 0 | N114: 0 | O114: 0
B115: TRUE | C115: =Annuity!C127 -> Spare | D115: $ / Component | E115: =Annuity!K127*(1+$E$14) -> 0 | F115: =Annuity!E127 -> 0 | K115: 0 | L115: 0 | M115: 0 | N115: 0 | O115: 0
B116: TRUE | C116: =Annuity!C128 -> Spare | D116: $ / Component | E116: =Annuity!K128*(1+$E$14) -> 0 | F116: =Annuity!E128 -> 0 | K116: 0 | L116: 0 | M116: 0 | N116: 0 | O116: 0
B117: TRUE | C117: =Annuity!C129 -> Spare | D117: $ / Component | E117: =Annuity!K129*(1+$E$14) -> 0 | F117: =Annuity!E129 -> 0 | K117: 0 | L117: 0 | M117: 0 | N117: 0 | O117: 0
B118: TRUE | C118: =Annuity!C130 -> Spare | D118: $ / Component | E118: =Annuity!K130*(1+$E$14) -> 0 | F118: =Annuity!E130 -> 0 | K118: 0 | L118: 0 | M118: 0 | N118: 0 | O118: 0
B119: TRUE | C119: =Annuity!C131 -> Spare | D119: $ / Component | E119: =Annuity!K131*(1+$E$14) -> 0 | F119: =Annuity!E131 -> 0 | K119: 0 | L119: 0 | M119: 0 | N119: 0 | O119: 0
B120: TRUE | C120: =Annuity!C132 -> Spare | D120: $ / Component | E120: =Annuity!K132*(1+$E$14) -> 0 | F120: =Annuity!E132 -> 0 | K120: 0 | L120: 0 | M120: 0 | N120: 0 | O120: 0
B121: TRUE | C121: =Annuity!C133 -> Spare | D121: $ / Component | E121: =Annuity!K133*(1+$E$14) -> 0 | F121: =Annuity!E133 -> 0 | K121: 0 | L121: 0 | M121: 0 | N121: 0 | O121: 0
B122: TRUE | C122: =Annuity!C134 -> Spare | D122: $ / Component | E122: =Annuity!K134*(1+$E$14) -> 0 | F122: =Annuity!E134 -> 0 | K122: 0 | L122: 0 | M122: 0 | N122: 0 | O122: 0
B123: TRUE | C123: =Annuity!C135 -> Spare | D123: $ / Component | E123: =Annuity!K135*(1+$E$14) -> 0 | F123: =Annuity!E135 -> 0 | K123: 0 | L123: 0 | M123: 0 | N123: 0 | O123: 0
B124: TRUE | C124: =Annuity!C136 -> Spare | D124: $ / Component | E124: =Annuity!K136*(1+$E$14) -> 0 | F124: =Annuity!E136 -> 0 | K124: 0 | L124: 0 | M124: 0 | N124: 0 | O124: 0
B125: TRUE | C125: =Annuity!C137 -> Spare | D125: $ / Component | E125: =Annuity!K137*(1+$E$14) -> 0 | F125: =Annuity!E137 -> 0 | K125: 0 | L125: 0 | M125: 0 | N125: 0 | O125: 0
B126: TRUE | C126: =Annuity!C138 -> Spare | D126: $ / Component | E126: =Annuity!K138*(1+$E$14) -> 0 | F126: =Annuity!E138 -> 0 | K126: 0 | L126: 0 | M126: 0 | N126: 0 | O126: 0
B127: TRUE | C127: =Annuity!C139 -> Spare | D127: $ / Component | E127: =Annuity!K139*(1+$E$14) -> 0 | F127: =Annuity!E139 -> 0 | K127: 0 | L127: 0 | M127: 0 | N127: 0 | O127: 0
B128: 0 | C128: =Annuity!C140 -> 0 | D128: $ / Component | E128: =Annuity!K140*(1+$E$14) -> 0 | F128: =Annuity!E140 -> 0 | K128: 0 | L128: 0 | M128: 0 | N128: 0 | O128: 0
B129: 0 | C129: =Annuity!C141 -> Opex - real 2024 | D129: $ / Component | E129: =Annuity!K141*(1+$E$14) -> 0 | F129: =Annuity!E141 -> 0 | K129: 0 | L129: 0 | M129: 0 | N129: 0 | O129: 0
C131: Labour
C133: Adjustment for volume growth | D133: % | E133: =Annuity!$E$13 -> 0
C134: Real escalation index | D134: % | E134: =Annuity!$E$18 -> Real labour (capex) | K134: =REG_Timing!K22 -> 1 | L134: =INDEX(REG_Timing!$L$18:$L$22,MATCH($E134,List_Escalation,0)) -> 1.002991533 | M134: =INDEX(REG_Timing!$M$18:$M$22,MATCH($E134,List_Escalation,0)) -> 1.004322356 | N134: =INDEX(REG_Timing!$N$18:$N$22,MATCH($E134,List_Escalation,0)) -> 1.005329878 | O134: =INDEX(REG_Timing!$O$18:$O$22,MATCH($E134,List_Escalation,0)) -> 1.006749659
E136: Cost | F136: Useful life
B137: =IF(C137="Spare",TRUE,0) -> 0 | C137: =Annuity!C23 -> NIGHTWATCH MINOR (F42) - FF1A | D137: $ / Component | F137: =Annuity!F23 -> 1
B138: 0 | C138: =Annuity!C24 -> NIGHTWATCH MINOR (F2X14) - FF2A | D138: $ / Component | F138: =Annuity!F24 -> 1
B139: 0 | C139: =Annuity!C25 -> NIGHTWATCH SMALL (MH150) - FH1A | D139: $ / Component | F139: =Annuity!F25 -> 1
B140: 0 | C140: =Annuity!C26 -> NIGHTWATCH MEDIUM (MH250) - FH2A | D140: $ / Component | F140: =Annuity!F26 -> 1
B141: 0 | C141: =Annuity!C27 -> NIGHTWATCH LARGE (MH400) - FH3A | D141: $ / Component | F141: =Annuity!F27 -> 1
B142: 0 | C142: =Annuity!C28 -> NIGHTWATCH X-LARGE (MH1000) - FH4A | D142: $ / Component | F142: =Annuity!F28 -> 1
B143: 0 | C143: =Annuity!C29 -> NIGHTWATCH MINOR (L17) - FL1A | D143: $ / Component | F143: =Annuity!F29 -> 1
B144: 0 | C144: =Annuity!C30 -> NIGHTWATCH MINOR (L18) - FL1B | D144: $ / Component | F144: =Annuity!F30 -> 1
B145: 0 | C145: =Annuity!C31 -> NIGHTWATCH SMALL (L75+) - FL2A | D145: $ / Component | F145: =Annuity!F31 -> 1
B146: 0 | C146: =Annuity!C32 -> NIGHTWATCH MEDIUM (L100+) - FL3A | D146: $ / Component | F146: =Annuity!F32 -> 1
B147: 0 | C147: =Annuity!C33 -> NIGHTWATCH MEDIUM (L150) - FL3B | D147: $ / Component | F147: =Annuity!F33 -> 1
B148: 0 | C148: =Annuity!C34 -> NIGHTWATCH LARGE (L150+) - FL4A | D148: $ / Component | F148: =Annuity!F34 -> 1
B149: 0 | C149: =Annuity!C35 -> NIGHTWATCH LARGE (L200) - FL4B | D149: $ / Component | F149: =Annuity!F35 -> 1
B150: 0 | C150: =Annuity!C36 -> NIGHTWATCH X-LARGE (L300+) - FL5A | D150: $ / Component | F150: =Annuity!F36 -> 1
B151: 0 | C151: =Annuity!C37 -> NIGHTWATCH MINOR (M80) - FM1A | D151: $ / Component | F151: =Annuity!F37 -> 1
B152: 0 | C152: =Annuity!C38 -> NIGHTWATCH SMALL (S150) - FS1A | D152: $ / Component | F152: =Annuity!F38 -> 1
B153: 0 | C153: =Annuity!C39 -> NIGHTWATCH MEDIUM (S250) - FS2A | D153: $ / Component | F153: =Annuity!F39 -> 1
B154: 0 | C154: =Annuity!C40 -> NIGHTWATCH LARGE (S400) - FS3A | D154: $ / Component | F154: =Annuity!F40 -> 1
B155: 0 | C155: =Annuity!C41 -> NIGHTWATCH MINOR (S100) - FS4A | D155: $ / Component | F155: =Annuity!F41 -> 1
B156: 0 | C156: =Annuity!C42 -> NIGHTWATCH MINOR (S70) - FS5A | D156: $ / Component | F156: =Annuity!F42 -> 1
B157: TRUE | C157: =Annuity!C48 -> Spare | D157: $ / Component | E157: =Annuity!L43*(1+$E$133) -> 0 | F157: =Annuity!F43 -> 0 | K157: =-IF($F38=0,0,PMT(K$8,$F38,$E157*K$134,0)) -> 0 | L157: 0 | M157: 0 | N157: 0 | O157: 0
B158: TRUE | C158: =Annuity!C49 -> Spare | D158: $ / Component | E158: =Annuity!L44*(1+$E$133) -> 0 | F158: =Annuity!F44 -> 0 | K158: 0 | L158: 0 | M158: 0 | N158: 0 | O158: 0
B159: TRUE | C159: =Annuity!C50 -> Spare | D159: $ / Component | E159: =Annuity!L45*(1+$E$133) -> 0 | F159: =Annuity!F45 -> 0 | K159: 0 | L159: 0 | M159: 0 | N159: 0 | O159: 0
B160: TRUE | C160: =Annuity!C51 -> Spare | D160: $ / Component | E160: =Annuity!L46*(1+$E$133) -> 0 | F160: =Annuity!F46 -> 0 | K160: 0 | L160: 0 | M160: 0 | N160: 0 | O160: 0
B161: TRUE | C161: =Annuity!C52 -> Spare | D161: $ / Component | E161: =Annuity!L47*(1+$E$133) -> 0 | F161: =Annuity!F47 -> 0 | K161: 0 | L161: 0 | M161: 0 | N161: 0 | O161: 0
B162: TRUE | C162: =Annuity!C53 -> Spare | D162: $ / Component | E162: =Annuity!L48*(1+$E$133) -> 0 | F162: =Annuity!F48 -> 0 | K162: 0 | L162: 0 | M162: 0 | N162: 0 | O162: 0
B163: TRUE | C163: =Annuity!C54 -> Spare | D163: $ / Component | E163: =Annuity!L49*(1+$E$133) -> 0 | F163: =Annuity!F49 -> 0 | K163: 0 | L163: 0 | M163: 0 | N163: 0 | O163: 0
B164: =IF(C164="Spare",TRUE,0) -> TRUE | C164: =Annuity!C55 -> Spare | D164: $ / Component | E164: =Annuity!L50*(1+$E$133) -> 0 | F164: =Annuity!F50 -> 0 | K164: 0 | L164: 0 | M164: 0 | N164: 0 | O164: 0
B165: TRUE | C165: =Annuity!C56 -> Spare | D165: $ / Component | E165: =Annuity!L51*(1+$E$133) -> 0 | F165: =Annuity!F51 -> 0 | K165: 0 | L165: 0 | M165: 0 | N165: 0 | O165: 0
B166: TRUE | C166: =Annuity!C57 -> Spare | D166: $ / Component | E166: =Annuity!L52*(1+$E$133) -> 0 | F166: =Annuity!F52 -> 0 | K166: 0 | L166: 0 | M166: 0 | N166: 0 | O166: 0
B167: TRUE | C167: =Annuity!C58 -> Spare | D167: $ / Component | E167: =Annuity!L53*(1+$E$133) -> 0 | F167: =Annuity!F53 -> 0 | K167: =-IF($F48=0,0,PMT(K$8,$F48,$E167*K$134,0)) -> 0 | L167: 0 | M167: 0 | N167: 0 | O167: 0
B168: TRUE | C168: =Annuity!C59 -> Spare | D168: $ / Component | E168: =Annuity!L54*(1+$E$133) -> 0 | F168: =Annuity!F54 -> 0 | K168: 0 | L168: 0 | M168: 0 | N168: 0 | O168: 0
B169: TRUE | C169: =Annuity!C60 -> Spare | D169: $ / Component | E169: =Annuity!L55*(1+$E$133) -> 0 | F169: =Annuity!F55 -> 0 | K169: 0 | L169: 0 | M169: 0 | N169: 0 | O169: 0
B170: TRUE | C170: =Annuity!C61 -> Spare | D170: $ / Component | E170: =Annuity!L56*(1+$E$133) -> 0 | F170: =Annuity!F56 -> 0 | K170: 0 | L170: 0 | M170: 0 | N170: 0 | O170: 0
B171: TRUE | C171: =Annuity!C62 -> Spare | D171: $ / Component | E171: =Annuity!L57*(1+$E$133) -> 0 | F171: =Annuity!F57 -> 0 | K171: 0 | L171: 0 | M171: 0 | N171: 0 | O171: 0
B172: TRUE | C172: =Annuity!C63 -> Spare | D172: $ / Component | E172: =Annuity!L58*(1+$E$133) -> 0 | F172: =Annuity!F58 -> 0 | K172: 0 | L172: 0 | M172: 0 | N172: 0 | O172: 0
B173: TRUE | C173: =Annuity!C64 -> Spare | D173: $ / Component | E173: =Annuity!L59*(1+$E$133) -> 0 | F173: =Annuity!F59 -> 0 | K173: 0 | L173: 0 | M173: 0 | N173: 0 | O173: 0
B174: TRUE | C174: =Annuity!C65 -> Spare | D174: $ / Component | E174: =Annuity!L60*(1+$E$133) -> 0 | F174: =Annuity!F60 -> 0 | K174: 0 | L174: 0 | M174: 0 | N174: 0 | O174: 0
B175: TRUE | C175: =Annuity!C66 -> Spare | D175: $ / Component | E175: =Annuity!L61*(1+$E$133) -> 0 | F175: =Annuity!F61 -> 0 | K175: 0 | L175: 0 | M175: 0 | N175: 0 | O175: 0
B176: TRUE | C176: =Annuity!C67 -> Spare | D176: $ / Component | E176: =Annuity!L62*(1+$E$133) -> 0 | F176: =Annuity!F62 -> 0 | K176: 0 | L176: 0 | M176: 0 | N176: 0 | O176: 0
B177: TRUE | C177: =Annuity!C68 -> Spare | D177: $ / Component | E177: =Annuity!L63*(1+$E$133) -> 0 | F177: =Annuity!F63 -> 0 | K177: =-IF($F58=0,0,PMT(K$8,$F58,$E177*K$134,0)) -> 0 | L177: 0 | M177: 0 | N177: 0 | O177: 0
B178: TRUE | C178: =Annuity!C69 -> Spare | D178: $ / Component | E178: =Annuity!L64*(1+$E$133) -> 0 | F178: =Annuity!F64 -> 0 | K178: 0 | L178: 0 | M178: 0 | N178: 0 | O178: 0
B179: TRUE | C179: =Annuity!C70 -> Spare | D179: $ / Component | E179: =Annuity!L65*(1+$E$133) -> 0 | F179: =Annuity!F65 -> 0 | K179: 0 | L179: 0 | M179: 0 | N179: 0 | O179: 0
B180: TRUE | C180: =Annuity!C71 -> Spare | D180: $ / Component | E180: =Annuity!L66*(1+$E$133) -> 0 | F180: =Annuity!F66 -> 0 | K180: 0 | L180: 0 | M180: 0 | N180: 0 | O180: 0
B181: TRUE | C181: =Annuity!C72 -> Spare | D181: $ / Component | E181: =Annuity!L67*(1+$E$133) -> 0 | F181: =Annuity!F67 -> 0 | K181: 0 | L181: 0 | M181: 0 | N181: 0 | O181: 0
B182: TRUE | C182: =Annuity!C73 -> Spare | D182: $ / Component | E182: =Annuity!L68*(1+$E$133) -> 0 | F182: =Annuity!F68 -> 0 | K182: 0 | L182: 0 | M182: 0 | N182: 0 | O182: 0
B183: TRUE | C183: =Annuity!C74 -> Spare | D183: $ / Component | E183: =Annuity!L69*(1+$E$133) -> 0 | F183: =Annuity!F69 -> 0 | K183: 0 | L183: 0 | M183: 0 | N183: 0 | O183: 0
B184: TRUE | C184: =Annuity!C75 -> Spare | D184: $ / Component | E184: =Annuity!L70*(1+$E$133) -> 0 | F184: =Annuity!F70 -> 0 | K184: 0 | L184: 0 | M184: 0 | N184: 0 | O184: 0
B185: TRUE | C185: =Annuity!C76 -> Spare | D185: $ / Component | E185: =Annuity!L71*(1+$E$133) -> 0 | F185: =Annuity!F71 -> 0 | K185: 0 | L185: 0 | M185: 0 | N185: 0 | O185: 0
B186: TRUE | C186: =Annuity!C77 -> Spare | D186: $ / Component | E186: =Annuity!L72*(1+$E$133) -> 0 | F186: =Annuity!F72 -> 0 | K186: 0 | L186: 0 | M186: 0 | N186: 0 | O186: 0
B187: TRUE | C187: =Annuity!C78 -> Spare | D187: $ / Component | E187: =Annuity!L73*(1+$E$133) -> 0 | F187: =Annuity!F73 -> 0 | K187: =-IF($F68=0,0,PMT(K$8,$F68,$E187*K$134,0)) -> 0 | L187: 0 | M187: 0 | N187: 0 | O187: 0
B188: TRUE | C188: =Annuity!C79 -> Spare | D188: $ / Component | E188: =Annuity!L74*(1+$E$133) -> 0 | F188: =Annuity!F74 -> 0 | K188: 0 | L188: 0 | M188: 0 | N188: 0 | O188: 0
B189: TRUE | C189: =Annuity!C80 -> Spare | D189: $ / Component | E189: =Annuity!L75*(1+$E$133) -> 0 | F189: =Annuity!F75 -> 0 | K189: 0 | L189: 0 | M189: 0 | N189: 0 | O189: 0
B190: TRUE | C190: =Annuity!C81 -> Spare | D190: $ / Component | E190: =Annuity!L76*(1+$E$133) -> 0 | F190: =Annuity!F76 -> 0 | K190: 0 | L190: 0 | M190: 0 | N190: 0 | O190: 0
B191: TRUE | C191: =Annuity!C82 -> Spare | D191: $ / Component | E191: =Annuity!L77*(1+$E$133) -> 0 | F191: =Annuity!F77 -> 0 | K191: 0 | L191: 0 | M191: 0 | N191: 0 | O191: 0
B192: TRUE | C192: =Annuity!C83 -> Spare | D192: $ / Component | E192: =Annuity!L78*(1+$E$133) -> 0 | F192: =Annuity!F78 -> 0 | K192: 0 | L192: 0 | M192: 0 | N192: 0 | O192: 0
B193: TRUE | C193: =Annuity!C84 -> Spare | D193: $ / Component | E193: =Annuity!L79*(1+$E$133) -> 0 | F193: =Annuity!F79 -> 0 | K193: 0 | L193: 0 | M193: 0 | N193: 0 | O193: 0
B194: TRUE | C194: =Annuity!C85 -> Spare | D194: $ / Component | E194: =Annuity!L80*(1+$E$133) -> 0 | F194: =Annuity!F80 -> 0 | K194: 0 | L194: 0 | M194: 0 | N194: 0 | O194: 0
B195: TRUE | C195: =Annuity!C86 -> Spare | D195: $ / Component | E195: =Annuity!L81*(1+$E$133) -> 0 | F195: =Annuity!F81 -> 0 | K195: 0 | L195: 0 | M195: 0 | N195: 0 | O195: 0
B196: TRUE | C196: =Annuity!C87 -> Spare | D196: $ / Component | E196: =Annuity!L82*(1+$E$133) -> 0 | F196: =Annuity!F82 -> 0 | K196: 0 | L196: 0 | M196: 0 | N196: 0 | O196: 0
B197: TRUE | C197: =Annuity!C88 -> Spare | D197: $ / Component | E197: =Annuity!L83*(1+$E$133) -> 0 | F197: =Annuity!F83 -> 0 | K197: =-IF($F78=0,0,PMT(K$8,$F78,$E197*K$134,0)) -> 0 | L197: 0 | M197: 0 | N197: 0 | O197: 0
B198: TRUE | C198: =Annuity!C89 -> Spare | D198: $ / Component | E198: =Annuity!L84*(1+$E$133) -> 0 | F198: =Annuity!F84 -> 0 | K198: 0 | L198: 0 | M198: 0 | N198: 0 | O198: 0
B199: TRUE | C199: =Annuity!C90 -> Spare | D199: $ / Component | E199: =Annuity!L85*(1+$E$133) -> 0 | F199: =Annuity!F85 -> 0 | K199: 0 | L199: 0 | M199: 0 | N199: 0 | O199: 0
B200: TRUE | C200: =Annuity!C91 -> Spare | D200: $ / Component | E200: =Annuity!L86*(1+$E$133) -> 0 | F200: =Annuity!F86 -> 0 | K200: 0 | L200: 0 | M200: 0 | N200: 0 | O200: 0
B201: TRUE | C201: =Annuity!C92 -> Spare | D201: $ / Component | E201: =Annuity!L87*(1+$E$133) -> 0 | F201: =Annuity!F87 -> 0 | K201: 0 | L201: 0 | M201: 0 | N201: 0 | O201: 0
B202: TRUE | C202: =Annuity!C93 -> Spare | D202: $ / Component | E202: =Annuity!L88*(1+$E$133) -> 0 | F202: =Annuity!F88 -> 0 | K202: 0 | L202: 0 | M202: 0 | N202: 0 | O202: 0
B203: TRUE | C203: =Annuity!C94 -> Spare | D203: $ / Component | E203: =Annuity!L89*(1+$E$133) -> 0 | F203: =Annuity!F89 -> 0 | K203: 0 | L203: 0 | M203: 0 | N203: 0 | O203: 0
B204: TRUE | C204: =Annuity!C95 -> Spare | D204: $ / Component | E204: =Annuity!L90*(1+$E$133) -> 0 | F204: =Annuity!F90 -> 0 | K204: 0 | L204: 0 | M204: 0 | N204: 0 | O204: 0
B205: TRUE | C205: =Annuity!C96 -> Spare | D205: $ / Component | E205: =Annuity!L91*(1+$E$133) -> 0 | F205: =Annuity!F91 -> 0 | K205: 0 | L205: 0 | M205: 0 | N205: 0 | O205: 0
B206: TRUE | C206: =Annuity!C97 -> Spare | D206: $ / Component | E206: =Annuity!L92*(1+$E$133) -> 0 | F206: =Annuity!F92 -> 0 | K206: 0 | L206: 0 | M206: 0 | N206: 0 | O206: 0
B207: TRUE | C207: =Annuity!C98 -> Spare | D207: $ / Component | E207: =Annuity!L93*(1+$E$133) -> 0 | F207: =Annuity!F93 -> 0 | K207: =-IF($F88=0,0,PMT(K$8,$F88,$E207*K$134,0)) -> 0 | L207: 0 | M207: 0 | N207: 0 | O207: 0
B208: TRUE | C208: =Annuity!C99 -> Spare | D208: $ / Component | E208: =Annuity!L94*(1+$E$133) -> 0 | F208: =Annuity!F94 -> 0 | K208: 0 | L208: 0 | M208: 0 | N208: 0 | O208: 0
B209: TRUE | C209: =Annuity!C100 -> Spare | D209: $ / Component | E209: =Annuity!L95*(1+$E$133) -> 0 | F209: =Annuity!F95 -> 0 | K209: 0 | L209: 0 | M209: 0 | N209: 0 | O209: 0
B210: TRUE | C210: =Annuity!C101 -> Spare | D210: $ / Component | E210: =Annuity!L96*(1+$E$133) -> 0 | F210: =Annuity!F96 -> 0 | K210: 0 | L210: 0 | M210: 0 | N210: 0 | O210: 0
... 152 more rows

Sheet CalcRecovery
C1: Capital recovery tariff charges
K2: 1 | L2: 2 | M2: 3 | N2: 4 | O2: 5 | P2: 6 | Q2: 7 | R2: 8 | S2: 9 | T2: 10 | U2: 11 | V2: 12 | W2: 13 | X2: 14 | Y2: 15 | Z2: 16 | AA2: 17 | AB2: 18 | AC2: 19 | AD2: 20 | AE2: 21 | AF2: 22 | AG2: 23 | AH2: 24 | AI2: 25
C4: Timing
C6: =Global!C77 -> Pre-tax real WACC | K6: =INDEX(Global!$F$77:$J$77,,MIN(K$2,RegDur)) -> 0.03175725277 | L6: =INDEX(Global!$F$77:$J$77,,MIN(L$2,RegDur)) -> 0.03232317444 | M6: =INDEX(Global!$F$77:$J$77,,MIN(M$2,RegDur)) -> 0.03314405255 | N6: =INDEX(Global!$F$77:$J$77,,MIN(N$2,RegDur)) -> 0.03399118945 | O6: =INDEX(Global!$F$77:$J$77,,MIN(O$2,RegDur)) -> 0.03496930827 | P6: =INDEX(Global!$F$77:$J$77,,MIN(P$2,RegDur)) -> 0.03496930827 | Q6: =INDEX(Global!$F$77:$J$77,,MIN(Q$2,RegDur)) -> 0.03496930827 | R6: =INDEX(Global!$F$77:$J$77,,MIN(R$2,RegDur)) -> 0.03496930827 | S6: =INDEX(Global!$F$77:$J$77,,MIN(S$2,RegDur)) -> 0.03496930827 | T6: =INDEX(Global!$F$77:$J$77,,MIN(T$2,RegDur)) -> 0.03496930827 | U6: =INDEX(Global!$F$77:$J$77,,MIN(U$2,RegDur)) -> 0.03496930827 | V6: =INDEX(Global!$F$77:$J$77,,MIN(V$2,RegDur)) -> 0.03496930827 | W6: =INDEX(Global!$F$77:$J$77,,MIN(W$2,RegDur)) -> 0.03496930827 | X6: =INDEX(Global!$F$77:$J$77,,MIN(X$2,RegDur)) -> 0.03496930827 | Y6: =INDEX(Global!$F$77:$J$77,,MIN(Y$2,RegDur)) -> 0.03496930827 | Z6: =INDEX(Global!$F$77:$J$77,,MIN(Z$2,RegDur)) -> 0.03496930827 | AA6: =INDEX(Global!$F$77:$J$77,,MIN(AA$2,RegDur)) -> 0.03496930827 | AB6: =INDEX(Global!$F$77:$J$77,,MIN(AB$2,RegDur)) -> 0.03496930827 | AC6: =INDEX(Global!$F$77:$J$77,,MIN(AC$2,RegDur)) -> 0.03496930827 | AD6: =INDEX(Global!$F$77:$J$77,,MIN(AD$2,RegDur)) -> 0.03496930827 | AE6: =INDEX(Global!$F$77:$J$77,,MIN(AE$2,RegDur)) -> 0.03496930827 | AF6: =INDEX(Global!$F$77:$J$77,,MIN(AF$2,RegDur)) -> 0.03496930827 | AG6: =INDEX(Global!$F$77:$J$77,,MIN(AG$2,RegDur)) -> 0.03496930827 | AH6: =INDEX(Global!$F$77:$J$77,,MIN(AH$2,RegDur)) -> 0.03496930827 | AI6: =INDEX(Global!$F$77:$J$77,,MIN(AI$2,RegDur)) -> 0.03496930827
C7: Discount index | J7: 1 | K7: =J7*(1-K6) -> 0.9682427472 | L7: =K7*(1-L6) -> 0.936946068 | M7: 0.9058918783 | N7: 0.8750995358 | O7: 0.8444979104 | P7: 0.8149664026 | Q7: 0.7864675913 | R7: 0.7589653636 | S7: 0.7324248699 | T7: 0.7068124788 | U7: 0.6820957353 | V7: 0.6582433193 | W7: 0.6352250057 | X7: 0.6130116267 | Y7: 0.5915750342 | Z7: 0.5708880644 | AA7: 0.5509245037 | AB7: 0.5316590549 | AC7: 0.5130673055 | AD7: 0.4951256967 | AE7: 0.4778114936 | AF7: 0.4611027562 | AG7: 0.4449783118 | AH7: 0.429417728 | AI7: 0.4144012871
C9: Real
C11: Annuities
B13: =IF(C13="Spare",TRUE,0) -> 0 | C13: =Annuity!C23 -> NIGHTWATCH MINOR (F42) - FF1A | D13: =Annuity!D23 -> FF1A | F13: $ / Component | K13: 174.0665521 | L13: 0 | M13: 0 | N13: 0 | O13: 0 | P13: 0 | Q13: 0 | R13: 0 | S13: 0 | T13: 0 | U13: 0 | V13: 0 | W13: 0 | X13: 0 | Y13: 0 | Z13: 0 | AA13: 0 | AB13: 0 | AC13: 0 | AD13: 0 | AE13: 0 | AF13: 0 | AG13: 0 | AH13: 0 | AI13: 0
B14: 0 | C14: =Annuity!C24 -> NIGHTWATCH MINOR (F2X14) - FF2A | D14: =Annuity!D24 -> FF2A | F14: $ / Component | K14: 253.0874271 | L14: 0 | M14: 0 | N14: 0 | O14: 0 | P14: 0 | Q14: 0 | R14: 0 | S14: 0 | T14: 0 | U14: 0 | V14: 0 | W14: 0 | X14: 0 | Y14: 0 | Z14: 0 | AA14: 0 | AB14: 0 | AC14: 0 | AD14: 0 | AE14: 0 | AF14: 0 | AG14: 0 | AH14: 0 | AI14: 0
B15: 0 | C15: =Annuity!C25 -> NIGHTWATCH SMALL (MH150) - FH1A | D15: =Annuity!D25 -> FH1A | F15: $ / Component | K15: 132.8007323 | L15: 0 | M15: 0 | N15: 0 | O15: 0 | P15: 0 | Q15: 0 | R15: 0 | S15: 0 | T15: 0 | U15: 0 | V15: 0 | W15: 0 | X15: 0 | Y15: 0 | Z15: 0 | AA15: 0 | AB15: 0 | AC15: 0 | AD15: 0 | AE15: 0 | AF15: 0 | AG15: 0 | AH15: 0 | AI15: 0
B16: 0 | C16: =Annuity!C26 -> NIGHTWATCH MEDIUM (MH250) - FH2A | D16: =Annuity!D26 -> FH2A | F16: $ / Component | K16: -65.482528 | L16: 0 | M16: 0 | N16: 0 | O16: 0 | P16: 0 | Q16: 0 | R16: 0 | S16: 0 | T16: 0 | U16: 0 | V16: 0 | W16: 0 | X16: 0 | Y16: 0 | Z16: 0 | AA16: 0 | AB16: 0 | AC16: 0 | AD16: 0 | AE16: 0 | AF16: 0 | AG16: 0 | AH16: 0 | AI16: 0
B17: 0 | C17: =Annuity!C27 -> NIGHTWATCH LARGE (MH400) - FH3A | D17: =Annuity!D27 -> FH3A | F17: $ / Component | K17: -61.26736263 | L17: 0 | M17: 0 | N17: 0 | O17: 0 | P17: 0 | Q17: 0 | R17: 0 | S17: 0 | T17: 0 | U17: 0 | V17: 0 | W17: 0 | X17: 0 | Y17: 0 | Z17: 0 | AA17: 0 | AB17: 0 | AC17: 0 | AD17: 0 | AE17: 0 | AF17: 0 | AG17: 0 | AH17: 0 | AI17: 0
B18: 0 | C18: =Annuity!C28 -> NIGHTWATCH X-LARGE (MH1000) - FH4A | D18: =Annuity!D28 -> FH4A | F18: $ / Component | K18: 283.6781314 | L18: 0 | M18: 0 | N18: 0 | O18: 0 | P18: 0 | Q18: 0 | R18: 0 | S18: 0 | T18: 0 | U18: 0 | V18: 0 | W18: 0 | X18: 0 | Y18: 0 | Z18: 0 | AA18: 0 | AB18: 0 | AC18: 0 | AD18: 0 | AE18: 0 | AF18: 0 | AG18: 0 | AH18: 0 | AI18: 0
B19: 0 | C19: =Annuity!C29 -> NIGHTWATCH MINOR (L17) - FL1A | D19: =Annuity!D29 -> FL1A | F19: $ / Component | K19: 168.4952066 | L19: 0 | M19: 0 | N19: 0 | O19: 0 | P19: 0 | Q19: 0 | R19: 0 | S19: 0 | T19: 0 | U19: 0 | V19: 0 | W19: 0 | X19: 0 | Y19: 0 | Z19: 0 | AA19: 0 | AB19: 0 | AC19: 0 | AD19: 0 | AE19: 0 | AF19: 0 | AG19: 0 | AH19: 0 | AI19: 0
B20: 0 | C20: =Annuity!C30 -> NIGHTWATCH MINOR (L18) - FL1B | D20: =Annuity!D30 -> FL1B | F20: $ / Component | K20: 1259.021352 | L20: 0 | M20: 0 | N20: 0 | O20: 0 | P20: 0 | Q20: 0 | R20: 0 | S20: 0 | T20: 0 | U20: 0 | V20: 0 | W20: 0 | X20: 0 | Y20: 0 | Z20: 0 | AA20: 0 | AB20: 0 | AC20: 0 | AD20: 0 | AE20: 0 | AF20: 0 | AG20: 0 | AH20: 0 | AI20: 0
B21: 0 | C21: =Annuity!C31 -> NIGHTWATCH SMALL (L75+) - FL2A | D21: =Annuity!D31 -> FL2A | F21: $ / Component | K21: 1688.680352 | L21: 0 | M21: 0 | N21: 0 | O21: 0 | P21: 0 | Q21: 0 | R21: 0 | S21: 0 | T21: 0 | U21: 0 | V21: 0 | W21: 0 | X21: 0 | Y21: 0 | Z21: 0 | AA21: 0 | AB21: 0 | AC21: 0 | AD21: 0 | AE21: 0 | AF21: 0 | AG21: 0 | AH21: 0 | AI21: 0
B22: 0 | C22: =Annuity!C32 -> NIGHTWATCH MEDIUM (L100+) - FL3A | D22: =Annuity!D32 -> FL3A | F22: $ / Component | K22: 1781.816858 | L22: 0 | M22: 0 | N22: 0 | O22: 0 | P22: 0 | Q22: 0 | R22: 0 | S22: 0 | T22: 0 | U22: 0 | V22: 0 | W22: 0 | X22: 0 | Y22: 0 | Z22: 0 | AA22: 0 | AB22: 0 | AC22: 0 | AD22: 0 | AE22: 0 | AF22: 0 | AG22: 0 | AH22: 0 | AI22: 0
B23: 0 | C23: =Annuity!C33 -> NIGHTWATCH MEDIUM (L150) - FL3B | D23: =Annuity!D33 -> FL3B | F23: $ / Component | K23: 1607.284801 | L23: 0 | M23: 0 | N23: 0 | O23: 0 | P23: 0 | Q23: 0 | R23: 0 | S23: 0 | T23: 0 | U23: 0 | V23: 0 | W23: 0 | X23: 0 | Y23: 0 | Z23: 0 | AA23: 0 | AB23: 0 | AC23: 0 | AD23: 0 | AE23: 0 | AF23: 0 | AG23: 0 | AH23: 0 | AI23: 0
B24: 0 | C24: =Annuity!C34 -> NIGHTWATCH LARGE (L150+) - FL4A | D24: =Annuity!D34 -> FL4A | F24: $ / Component | K24: 1789.297841 | L24: 0 | M24: 0 | N24: 0 | O24: 0 | P24: 0 | Q24: 0 | R24: 0 | S24: 0 | T24: 0 | U24: 0 | V24: 0 | W24: 0 | X24: 0 | Y24: 0 | Z24: 0 | AA24: 0 | AB24: 0 | AC24: 0 | AD24: 0 | AE24: 0 | AF24: 0 | AG24: 0 | AH24: 0 | AI24: 0
B25: 0 | C25: =Annuity!C35 -> NIGHTWATCH LARGE (L200) - FL4B | D25: =Annuity!D35 -> FL4B | F25: $ / Component | K25: -174.0639882 | L25: 0 | M25: 0 | N25: 0 | O25: 0 | P25: 0 | Q25: 0 | R25: 0 | S25: 0 | T25: 0 | U25: 0 | V25: 0 | W25: 0 | X25: 0 | Y25: 0 | Z25: 0 | AA25: 0 | AB25: 0 | AC25: 0 | AD25: 0 | AE25: 0 | AF25: 0 | AG25: 0 | AH25: 0 | AI25: 0
B26: 0 | C26: =Annuity!C36 -> NIGHTWATCH X-LARGE (L300+) - FL5A | D26: =Annuity!D36 -> FL5A | F26: $ / Component | K26: 290.0028034 | L26: 0 | M26: 0 | N26: 0 | O26: 0 | P26: 0 | Q26: 0 | R26: 0 | S26: 0 | T26: 0 | U26: 0 | V26: 0 | W26: 0 | X26: 0 | Y26: 0 | Z26: 0 | AA26: 0 | AB26: 0 | AC26: 0 | AD26: 0 | AE26: 0 | AF26: 0 | AG26: 0 | AH26: 0 | AI26: 0
B27: 0 | C27: =Annuity!C37 -> NIGHTWATCH MINOR (M80) - FM1A | D27: =Annuity!D37 -> FM1A | F27: $ / Component | K27: 84.76810554 | L27: 0 | M27: 0 | N27: 0 | O27: 0 | P27: 0 | Q27: 0 | R27: 0 | S27: 0 | T27: 0 | U27: 0 | V27: 0 | W27: 0 | X27: 0 | Y27: 0 | Z27: 0 | AA27: 0 | AB27: 0 | AC27: 0 | AD27: 0 | AE27: 0 | AF27: 0 | AG27: 0 | AH27: 0 | AI27: 0
B28: 0 | C28: =Annuity!C38 -> NIGHTWATCH SMALL (S150) - FS1A | D28: =Annuity!D38 -> FS1A | F28: $ / Component | K28: 95.55429546 | L28: 0 | M28: 0 | N28: 0 | O28: 0 | P28: 0 | Q28: 0 | R28: 0 | S28: 0 | T28: 0 | U28: 0 | V28: 0 | W28: 0 | X28: 0 | Y28: 0 | Z28: 0 | AA28: 0 | AB28: 0 | AC28: 0 | AD28: 0 | AE28: 0 | AF28: 0 | AG28: 0 | AH28: 0 | AI28: 0
B29: 0 | C29: =Annuity!C39 -> NIGHTWATCH MEDIUM (S250) - FS2A | D29: =Annuity!D39 -> FS2A | F29: $ / Component | K29: 415.2384874 | L29: 0 | M29: 0 | N29: 0 | O29: 0 | P29: 0 | Q29: 0 | R29: 0 | S29: 0 | T29: 0 | U29: 0 | V29: 0 | W29: 0 | X29: 0 | Y29: 0 | Z29: 0 | AA29: 0 | AB29: 0 | AC29: 0 | AD29: 0 | AE29: 0 | AF29: 0 | AG29: 0 | AH29: 0 | AI29: 0
B30: 0 | C30: =Annuity!C40 -> NIGHTWATCH LARGE (S400) - FS3A | D30: =Annuity!D40 -> FS3A | F30: $ / Component | K30: 1055.352294 | L30: 0 | M30: 0 | N30: 0 | O30: 0 | P30: 0 | Q30: 0 | R30: 0 | S30: 0 | T30: 0 | U30: 0 | V30: 0 | W30: 0 | X30: 0 | Y30: 0 | Z30: 0 | AA30: 0 | AB30: 0 | AC30: 0 | AD30: 0 | AE30: 0 | AF30: 0 | AG30: 0 | AH30: 0 | AI30: 0
B31: 0 | C31: =Annuity!C41 -> NIGHTWATCH MINOR (S100) - FS4A | D31: =Annuity!D41 -> FS4A | F31: $ / Component | K31: 277.3352792 | L31: 0 | M31: 0 | N31: 0 | O31: 0 | P31: 0 | Q31: 0 | R31: 0 | S31: 0 | T31: 0 | U31: 0 | V31: 0 | W31: 0 | X31: 0 | Y31: 0 | Z31: 0 | AA31: 0 | AB31: 0 | AC31: 0 | AD31: 0 | AE31: 0 | AF31: 0 | AG31: 0 | AH31: 0 | AI31: 0
B32: 0 | C32: =Annuity!C42 -> NIGHTWATCH MINOR (S70) - FS5A | D32: =Annuity!D42 -> FS5A | F32: $ / Component | K32: 156.8363496 | L32: 0 | M32: 0 | N32: 0 | O32: 0 | P32: 0 | Q32: 0 | R32: 0 | S32: 0 | T32: 0 | U32: 0 | V32: 0 | W32: 0 | X32: 0 | Y32: 0 | Z32: 0 | AA32: 0 | AB32: 0 | AC32: 0 | AD32: 0 | AE32: 0 | AF32: 0 | AG32: 0 | AH32: 0 | AI32: 0
B33: TRUE | C33: =Annuity!C97 -> Spare | F33: $ / Component | K33: =IF(K$2<=Annuity!$E97,INDEX(CalcAnnual!#REF!,,MIN(K$2,RegDur)),0) -> 0 | L33: =IF(L$2<=Annuity!$E97,INDEX(CalcAnnual!#REF!,,MIN(L$2,RegDur)),0) -> 0 | M33: =IF(M$2<=Annuity!$E97,INDEX(CalcAnnual!#REF!,,MIN(M$2,RegDur)),0) -> 0 | N33: =IF(N$2<=Annuity!$E97,INDEX(CalcAnnual!#REF!,,MIN(N$2,RegDur)),0) -> 0 | O33: =IF(O$2<=Annuity!$E97,INDEX(CalcAnnual!#REF!,,MIN(O$2,RegDur)),0) -> 0 | P33: =IF(P$2<=Annuity!$E97,INDEX(CalcAnnual!#REF!,,MIN(P$2,RegDur)),0) -> 0 | Q33: =IF(Q$2<=Annuity!$E97,INDEX(CalcAnnual!#REF!,,MIN(Q$2,RegDur)),0) -> 0 | R33: =IF(R$2<=Annuity!$E97,INDEX(CalcAnnual!#REF!,,MIN(R$2,RegDur)),0) -> 0 | S33: =IF(S$2<=Annuity!$E97,INDEX(CalcAnnual!#REF!,,MIN(S$2,RegDur)),0) -> 0 | T33: =IF(T$2<=Annuity!$E97,INDEX(CalcAnnual!#REF!,,MIN(T$2,RegDur)),0) -> 0 | U33: =IF(U$2<=Annuity!$E97,INDEX(CalcAnnual!#REF!,,MIN(U$2,RegDur)),0) -> 0 | V33: =IF(V$2<=Annuity!$E97,INDEX(CalcAnnual!#REF!,,MIN(V$2,RegDur)),0) -> 0 | W33: =IF(W$2<=Annuity!$E97,INDEX(CalcAnnual!#REF!,,MIN(W$2,RegDur)),0) -> 0 | X33: =IF(X$2<=Annuity!$E97,INDEX(CalcAnnual!#REF!,,MIN(X$2,RegDur)),0) -> 0 | Y33: =IF(Y$2<=Annuity!$E97,INDEX(CalcAnnual!#REF!,,MIN(Y$2,RegDur)),0) -> 0 | Z33: =IF(Z$2<=Annuity!$E97,INDEX(CalcAnnual!#REF!,,MIN(Z$2,RegDur)),0) -> 0 | AA33: =IF(AA$2<=Annuity!$E97,INDEX(CalcAnnual!#REF!,,MIN(AA$2,RegDur)),0) -> 0 | AB33: =IF(AB$2<=Annuity!$E97,INDEX(CalcAnnual!#REF!,,MIN(AB$2,RegDur)),0) -> 0 | AC33: =IF(AC$2<=Annuity!$E97,INDEX(CalcAnnual!#REF!,,MIN(AC$2,RegDur)),0) -> 0 | AD33: =IF(AD$2<=Annuity!$E97,INDEX(CalcAnnual!#REF!,,MIN(AD$2,RegDur)),0) -> 0 | AE33: =IF(AE$2<=Annuity!$E97,INDEX(CalcAnnual!#REF!,,MIN(AE$2,RegDur)),0) -> 0 | AF33: =IF(AF$2<=Annuity!$E97,INDEX(CalcAnnual!#REF!,,MIN(AF$2,RegDur)),0) -> 0 | AG33: =IF(AG$2<=Annuity!$E97,INDEX(CalcAnnual!#REF!,,MIN(AG$2,RegDur)),0) -> 0 | AH33: =IF(AH$2<=Annuity!$E97,INDEX(CalcAnnual!#REF!,,MIN(AH$2,RegDur)),0) -> 0 | AI33: =IF(AI$2<=Annuity!$E97,INDEX(CalcAnnual!#REF!,,MIN(AI$2,RegDur)),0) -> 0
B34: TRUE | C34: =Annuity!C98 -> Spare | F34: $ / Component | K34: =IF(K$2<=Annuity!$E98,INDEX(CalcAnnual!#REF!,,MIN(K$2,RegDur)),0) -> 0 | L34: =IF(L$2<=Annuity!$E98,INDEX(CalcAnnual!#REF!,,MIN(L$2,RegDur)),0) -> 0 | M34: =IF(M$2<=Annuity!$E98,INDEX(CalcAnnual!#REF!,,MIN(M$2,RegDur)),0) -> 0 | N34: =IF(N$2<=Annuity!$E98,INDEX(CalcAnnual!#REF!,,MIN(N$2,RegDur)),0) -> 0 | O34: =IF(O$2<=Annuity!$E98,INDEX(CalcAnnual!#REF!,,MIN(O$2,RegDur)),0) -> 0 | P34: =IF(P$2<=Annuity!$E98,INDEX(CalcAnnual!#REF!,,MIN(P$2,RegDur)),0) -> 0 | Q34: =IF(Q$2<=Annuity!$E98,INDEX(CalcAnnual!#REF!,,MIN(Q$2,RegDur)),0) -> 0 | R34: =IF(R$2<=Annuity!$E98,INDEX(CalcAnnual!#REF!,,MIN(R$2,RegDur)),0) -> 0 | S34: =IF(S$2<=Annuity!$E98,INDEX(CalcAnnual!#REF!,,MIN(S$2,RegDur)),0) -> 0 | T34: =IF(T$2<=Annuity!$E98,INDEX(CalcAnnual!#REF!,,MIN(T$2,RegDur)),0) -> 0 | U34: =IF(U$2<=Annuity!$E98,INDEX(CalcAnnual!#REF!,,MIN(U$2,RegDur)),0) -> 0 | V34: =IF(V$2<=Annuity!$E98,INDEX(CalcAnnual!#REF!,,MIN(V$2,RegDur)),0) -> 0 | W34: =IF(W$2<=Annuity!$E98,INDEX(CalcAnnual!#REF!,,MIN(W$2,RegDur)),0) -> 0 | X34: =IF(X$2<=Annuity!$E98,INDEX(CalcAnnual!#REF!,,MIN(X$2,RegDur)),0) -> 0 | Y34: =IF(Y$2<=Annuity!$E98,INDEX(CalcAnnual!#REF!,,MIN(Y$2,RegDur)),0) -> 0 | Z34: =IF(Z$2<=Annuity!$E98,INDEX(CalcAnnual!#REF!,,MIN(Z$2,RegDur)),0) -> 0 | AA34: =IF(AA$2<=Annuity!$E98,INDEX(CalcAnnual!#REF!,,MIN(AA$2,RegDur)),0) -> 0 | AB34: =IF(AB$2<=Annuity!$E98,INDEX(CalcAnnual!#REF!,,MIN(AB$2,RegDur)),0) -> 0 | AC34: =IF(AC$2<=Annuity!$E98,INDEX(CalcAnnual!#REF!,,MIN(AC$2,RegDur)),0) -> 0 | AD34: =IF(AD$2<=Annuity!$E98,INDEX(CalcAnnual!#REF!,,MIN(AD$2,RegDur)),0) -> 0 | AE34: =IF(AE$2<=Annuity!$E98,INDEX(CalcAnnual!#REF!,,MIN(AE$2,RegDur)),0) -> 0 | AF34: =IF(AF$2<=Annuity!$E98,INDEX(CalcAnnual!#REF!,,MIN(AF$2,RegDur)),0) -> 0 | AG34: =IF(AG$2<=Annuity!$E98,INDEX(CalcAnnual!#REF!,,MIN(AG$2,RegDur)),0) -> 0 | AH34: =IF(AH$2<=Annuity!$E98,INDEX(CalcAnnual!#REF!,,MIN(AH$2,RegDur)),0) -> 0 | AI34: =IF(AI$2<=Annuity!$E98,INDEX(CalcAnnual!#REF!,,MIN(AI$2,RegDur)),0) -> 0
B35: TRUE | C35: =Annuity!C99 -> Spare | F35: $ / Component | K35: =IF(K$2<=Annuity!$E99,INDEX(CalcAnnual!#REF!,,MIN(K$2,RegDur)),0) -> 0 | L35: =IF(L$2<=Annuity!$E99,INDEX(CalcAnnual!#REF!,,MIN(L$2,RegDur)),0) -> 0 | M35: =IF(M$2<=Annuity!$E99,INDEX(CalcAnnual!#REF!,,MIN(M$2,RegDur)),0) -> 0 | N35: =IF(N$2<=Annuity!$E99,INDEX(CalcAnnual!#REF!,,MIN(N$2,RegDur)),0) -> 0 | O35: =IF(O$2<=Annuity!$E99,INDEX(CalcAnnual!#REF!,,MIN(O$2,RegDur)),0) -> 0 | P35: =IF(P$2<=Annuity!$E99,INDEX(CalcAnnual!#REF!,,MIN(P$2,RegDur)),0) -> 0 | Q35: =IF(Q$2<=Annuity!$E99,INDEX(CalcAnnual!#REF!,,MIN(Q$2,RegDur)),0) -> 0 | R35: =IF(R$2<=Annuity!$E99,INDEX(CalcAnnual!#REF!,,MIN(R$2,RegDur)),0) -> 0 | S35: =IF(S$2<=Annuity!$E99,INDEX(CalcAnnual!#REF!,,MIN(S$2,RegDur)),0) -> 0 | T35: =IF(T$2<=Annuity!$E99,INDEX(CalcAnnual!#REF!,,MIN(T$2,RegDur)),0) -> 0 | U35: =IF(U$2<=Annuity!$E99,INDEX(CalcAnnual!#REF!,,MIN(U$2,RegDur)),0) -> 0 | V35: =IF(V$2<=Annuity!$E99,INDEX(CalcAnnual!#REF!,,MIN(V$2,RegDur)),0) -> 0 | W35: =IF(W$2<=Annuity!$E99,INDEX(CalcAnnual!#REF!,,MIN(W$2,RegDur)),0) -> 0 | X35: =IF(X$2<=Annuity!$E99,INDEX(CalcAnnual!#REF!,,MIN(X$2,RegDur)),0) -> 0 | Y35: =IF(Y$2<=Annuity!$E99,INDEX(CalcAnnual!#REF!,,MIN(Y$2,RegDur)),0) -> 0 | Z35: =IF(Z$2<=Annuity!$E99,INDEX(CalcAnnual!#REF!,,MIN(Z$2,RegDur)),0) -> 0 | AA35: =IF(AA$2<=Annuity!$E99,INDEX(CalcAnnual!#REF!,,MIN(AA$2,RegDur)),0) -> 0 | AB35: =IF(AB$2<=Annuity!$E99,INDEX(CalcAnnual!#REF!,,MIN(AB$2,RegDur)),0) -> 0 | AC35: =IF(AC$2<=Annuity!$E99,INDEX(CalcAnnual!#REF!,,MIN(AC$2,RegDur)),0) -> 0 | AD35: =IF(AD$2<=Annuity!$E99,INDEX(CalcAnnual!#REF!,,MIN(AD$2,RegDur)),0) -> 0 | AE35: =IF(AE$2<=Annuity!$E99,INDEX(CalcAnnual!#REF!,,MIN(AE$2,RegDur)),0) -> 0 | AF35: =IF(AF$2<=Annuity!$E99,INDEX(CalcAnnual!#REF!,,MIN(AF$2,RegDur)),0) -> 0 | AG35: =IF(AG$2<=Annuity!$E99,INDEX(CalcAnnual!#REF!,,MIN(AG$2,RegDur)),0) -> 0 | AH35: =IF(AH$2<=Annuity!$E99,INDEX(CalcAnnual!#REF!,,MIN(AH$2,RegDur)),0) -> 0 | AI35: =IF(AI$2<=Annuity!$E99,INDEX(CalcAnnual!#REF!,,MIN(AI$2,RegDur)),0) -> 0
B36: TRUE | C36: =Annuity!C100 -> Spare | F36: $ / Component | K36: =IF(K$2<=Annuity!$E100,INDEX(CalcAnnual!#REF!,,MIN(K$2,RegDur)),0) -> 0 | L36: =IF(L$2<=Annuity!$E100,INDEX(CalcAnnual!#REF!,,MIN(L$2,RegDur)),0) -> 0 | M36: =IF(M$2<=Annuity!$E100,INDEX(CalcAnnual!#REF!,,MIN(M$2,RegDur)),0) -> 0 | N36: =IF(N$2<=Annuity!$E100,INDEX(CalcAnnual!#REF!,,MIN(N$2,RegDur)),0) -> 0 | O36: =IF(O$2<=Annuity!$E100,INDEX(CalcAnnual!#REF!,,MIN(O$2,RegDur)),0) -> 0 | P36: =IF(P$2<=Annuity!$E100,INDEX(CalcAnnual!#REF!,,MIN(P$2,RegDur)),0) -> 0 | Q36: =IF(Q$2<=Annuity!$E100,INDEX(CalcAnnual!#REF!,,MIN(Q$2,RegDur)),0) -> 0 | R36: =IF(R$2<=Annuity!$E100,INDEX(CalcAnnual!#REF!,,MIN(R$2,RegDur)),0) -> 0 | S36: =IF(S$2<=Annuity!$E100,INDEX(CalcAnnual!#REF!,,MIN(S$2,RegDur)),0) -> 0 | T36: =IF(T$2<=Annuity!$E100,INDEX(CalcAnnual!#REF!,,MIN(T$2,RegDur)),0) -> 0 | U36: =IF(U$2<=Annuity!$E100,INDEX(CalcAnnual!#REF!,,MIN(U$2,RegDur)),0) -> 0 | V36: =IF(V$2<=Annuity!$E100,INDEX(CalcAnnual!#REF!,,MIN(V$2,RegDur)),0) -> 0 | W36: =IF(W$2<=Annuity!$E100,INDEX(CalcAnnual!#REF!,,MIN(W$2,RegDur)),0) -> 0 | X36: =IF(X$2<=Annuity!$E100,INDEX(CalcAnnual!#REF!,,MIN(X$2,RegDur)),0) -> 0 | Y36: =IF(Y$2<=Annuity!$E100,INDEX(CalcAnnual!#REF!,,MIN(Y$2,RegDur)),0) -> 0 | Z36: =IF(Z$2<=Annuity!$E100,INDEX(CalcAnnual!#REF!,,MIN(Z$2,RegDur)),0) -> 0 | AA36: =IF(AA$2<=Annuity!$E100,INDEX(CalcAnnual!#REF!,,MIN(AA$2,RegDur)),0) -> 0 | AB36: =IF(AB$2<=Annuity!$E100,INDEX(CalcAnnual!#REF!,,MIN(AB$2,RegDur)),0) -> 0 | AC36: =IF(AC$2<=Annuity!$E100,INDEX(CalcAnnual!#REF!,,MIN(AC$2,RegDur)),0) -> 0 | AD36: =IF(AD$2<=Annuity!$E100,INDEX(CalcAnnual!#REF!,,MIN(AD$2,RegDur)),0) -> 0 | AE36: =IF(AE$2<=Annuity!$E100,INDEX(CalcAnnual!#REF!,,MIN(AE$2,RegDur)),0) -> 0 | AF36: =IF(AF$2<=Annuity!$E100,INDEX(CalcAnnual!#REF!,,MIN(AF$2,RegDur)),0) -> 0 | AG36: =IF(AG$2<=Annuity!$E100,INDEX(CalcAnnual!#REF!,,MIN(AG$2,RegDur)),0) -> 0 | AH36: =IF(AH$2<=Annuity!$E100,INDEX(CalcAnnual!#REF!,,MIN(AH$2,RegDur)),0) -> 0 | AI36: =IF(AI$2<=Annuity!$E100,INDEX(CalcAnnual!#REF!,,MIN(AI$2,RegDur)),0) -> 0
B37: TRUE | C37: =Annuity!C101 -> Spare | F37: $ / Component | K37: =IF(K$2<=Annuity!$E101,INDEX(CalcAnnual!#REF!,,MIN(K$2,RegDur)),0) -> 0 | L37: =IF(L$2<=Annuity!$E101,INDEX(CalcAnnual!#REF!,,MIN(L$2,RegDur)),0) -> 0 | M37: =IF(M$2<=Annuity!$E101,INDEX(CalcAnnual!#REF!,,MIN(M$2,RegDur)),0) -> 0 | N37: =IF(N$2<=Annuity!$E101,INDEX(CalcAnnual!#REF!,,MIN(N$2,RegDur)),0) -> 0 | O37: =IF(O$2<=Annuity!$E101,INDEX(CalcAnnual!#REF!,,MIN(O$2,RegDur)),0) -> 0 | P37: =IF(P$2<=Annuity!$E101,INDEX(CalcAnnual!#REF!,,MIN(P$2,RegDur)),0) -> 0 | Q37: =IF(Q$2<=Annuity!$E101,INDEX(CalcAnnual!#REF!,,MIN(Q$2,RegDur)),0) -> 0 | R37: =IF(R$2<=Annuity!$E101,INDEX(CalcAnnual!#REF!,,MIN(R$2,RegDur)),0) -> 0 | S37: =IF(S$2<=Annuity!$E101,INDEX(CalcAnnual!#REF!,,MIN(S$2,RegDur)),0) -> 0 | T37: =IF(T$2<=Annuity!$E101,INDEX(CalcAnnual!#REF!,,MIN(T$2,RegDur)),0) -> 0 | U37: =IF(U$2<=Annuity!$E101,INDEX(CalcAnnual!#REF!,,MIN(U$2,RegDur)),0) -> 0 | V37: =IF(V$2<=Annuity!$E101,INDEX(CalcAnnual!#REF!,,MIN(V$2,RegDur)),0) -> 0 | W37: =IF(W$2<=Annuity!$E101,INDEX(CalcAnnual!#REF!,,MIN(W$2,RegDur)),0) -> 0 | X37: =IF(X$2<=Annuity!$E101,INDEX(CalcAnnual!#REF!,,MIN(X$2,RegDur)),0) -> 0 | Y37: =IF(Y$2<=Annuity!$E101,INDEX(CalcAnnual!#REF!,,MIN(Y$2,RegDur)),0) -> 0 | Z37: =IF(Z$2<=Annuity!$E101,INDEX(CalcAnnual!#REF!,,MIN(Z$2,RegDur)),0) -> 0 | AA37: =IF(AA$2<=Annuity!$E101,INDEX(CalcAnnual!#REF!,,MIN(AA$2,RegDur)),0) -> 0 | AB37: =IF(AB$2<=Annuity!$E101,INDEX(CalcAnnual!#REF!,,MIN(AB$2,RegDur)),0) -> 0 | AC37: =IF(AC$2<=Annuity!$E101,INDEX(CalcAnnual!#REF!,,MIN(AC$2,RegDur)),0) -> 0 | AD37: =IF(AD$2<=Annuity!$E101,INDEX(CalcAnnual!#REF!,,MIN(AD$2,RegDur)),0) -> 0 | AE37: =IF(AE$2<=Annuity!$E101,INDEX(CalcAnnual!#REF!,,MIN(AE$2,RegDur)),0) -> 0 | AF37: =IF(AF$2<=Annuity!$E101,INDEX(CalcAnnual!#REF!,,MIN(AF$2,RegDur)),0) -> 0 | AG37: =IF(AG$2<=Annuity!$E101,INDEX(CalcAnnual!#REF!,,MIN(AG$2,RegDur)),0) -> 0 | AH37: =IF(AH$2<=Annuity!$E101,INDEX(CalcAnnual!#REF!,,MIN(AH$2,RegDur)),0) -> 0 | AI37: =IF(AI$2<=Annuity!$E101,INDEX(CalcAnnual!#REF!,,MIN(AI$2,RegDur)),0) -> 0
B38: TRUE | C38: =Annuity!C102 -> Spare | F38: $ / Component | K38: =IF(K$2<=Annuity!$E102,INDEX(CalcAnnual!#REF!,,MIN(K$2,RegDur)),0) -> 0 | L38: =IF(L$2<=Annuity!$E102,INDEX(CalcAnnual!#REF!,,MIN(L$2,RegDur)),0) -> 0 | M38: =IF(M$2<=Annuity!$E102,INDEX(CalcAnnual!#REF!,,MIN(M$2,RegDur)),0) -> 0 | N38: =IF(N$2<=Annuity!$E102,INDEX(CalcAnnual!#REF!,,MIN(N$2,RegDur)),0) -> 0 | O38: =IF(O$2<=Annuity!$E102,INDEX(CalcAnnual!#REF!,,MIN(O$2,RegDur)),0) -> 0 | P38: =IF(P$2<=Annuity!$E102,INDEX(CalcAnnual!#REF!,,MIN(P$2,RegDur)),0) -> 0 | Q38: =IF(Q$2<=Annuity!$E102,INDEX(CalcAnnual!#REF!,,MIN(Q$2,RegDur)),0) -> 0 | R38: =IF(R$2<=Annuity!$E102,INDEX(CalcAnnual!#REF!,,MIN(R$2,RegDur)),0) -> 0 | S38: =IF(S$2<=Annuity!$E102,INDEX(CalcAnnual!#REF!,,MIN(S$2,RegDur)),0) -> 0 | T38: =IF(T$2<=Annuity!$E102,INDEX(CalcAnnual!#REF!,,MIN(T$2,RegDur)),0) -> 0 | U38: =IF(U$2<=Annuity!$E102,INDEX(CalcAnnual!#REF!,,MIN(U$2,RegDur)),0) -> 0 | V38: =IF(V$2<=Annuity!$E102,INDEX(CalcAnnual!#REF!,,MIN(V$2,RegDur)),0) -> 0 | W38: =IF(W$2<=Annuity!$E102,INDEX(CalcAnnual!#REF!,,MIN(W$2,RegDur)),0) -> 0 | X38: =IF(X$2<=Annuity!$E102,INDEX(CalcAnnual!#REF!,,MIN(X$2,RegDur)),0) -> 0 | Y38: =IF(Y$2<=Annuity!$E102,INDEX(CalcAnnual!#REF!,,MIN(Y$2,RegDur)),0) -> 0 | Z38: =IF(Z$2<=Annuity!$E102,INDEX(CalcAnnual!#REF!,,MIN(Z$2,RegDur)),0) -> 0 | AA38: =IF(AA$2<=Annuity!$E102,INDEX(CalcAnnual!#REF!,,MIN(AA$2,RegDur)),0) -> 0 | AB38: =IF(AB$2<=Annuity!$E102,INDEX(CalcAnnual!#REF!,,MIN(AB$2,RegDur)),0) -> 0 | AC38: =IF(AC$2<=Annuity!$E102,INDEX(CalcAnnual!#REF!,,MIN(AC$2,RegDur)),0) -> 0 | AD38: =IF(AD$2<=Annuity!$E102,INDEX(CalcAnnual!#REF!,,MIN(AD$2,RegDur)),0) -> 0 | AE38: =IF(AE$2<=Annuity!$E102,INDEX(CalcAnnual!#REF!,,MIN(AE$2,RegDur)),0) -> 0 | AF38: =IF(AF$2<=Annuity!$E102,INDEX(CalcAnnual!#REF!,,MIN(AF$2,RegDur)),0) -> 0 | AG38: =IF(AG$2<=Annuity!$E102,INDEX(CalcAnnual!#REF!,,MIN(AG$2,RegDur)),0) -> 0 | AH38: =IF(AH$2<=Annuity!$E102,INDEX(CalcAnnual!#REF!,,MIN(AH$2,RegDur)),0) -> 0 | AI38: =IF(AI$2<=Annuity!$E102,INDEX(CalcAnnual!#REF!,,MIN(AI$2,RegDur)),0) -> 0
B39: TRUE | C39: =Annuity!C103 -> Spare | F39: $ / Component | K39: =IF(K$2<=Annuity!$E103,INDEX(CalcAnnual!#REF!,,MIN(K$2,RegDur)),0) -> 0 | L39: =IF(L$2<=Annuity!$E103,INDEX(CalcAnnual!#REF!,,MIN(L$2,RegDur)),0) -> 0 | M39: =IF(M$2<=Annuity!$E103,INDEX(CalcAnnual!#REF!,,MIN(M$2,RegDur)),0) -> 0 | N39: =IF(N$2<=Annuity!$E103,INDEX(CalcAnnual!#REF!,,MIN(N$2,RegDur)),0) -> 0 | O39: =IF(O$2<=Annuity!$E103,INDEX(CalcAnnual!#REF!,,MIN(O$2,RegDur)),0) -> 0 | P39: =IF(P$2<=Annuity!$E103,INDEX(CalcAnnual!#REF!,,MIN(P$2,RegDur)),0) -> 0 | Q39: =IF(Q$2<=Annuity!$E103,INDEX(CalcAnnual!#REF!,,MIN(Q$2,RegDur)),0) -> 0 | R39: =IF(R$2<=Annuity!$E103,INDEX(CalcAnnual!#REF!,,MIN(R$2,RegDur)),0) -> 0 | S39: =IF(S$2<=Annuity!$E103,INDEX(CalcAnnual!#REF!,,MIN(S$2,RegDur)),0) -> 0 | T39: =IF(T$2<=Annuity!$E103,INDEX(CalcAnnual!#REF!,,MIN(T$2,RegDur)),0) -> 0 | U39: =IF(U$2<=Annuity!$E103,INDEX(CalcAnnual!#REF!,,MIN(U$2,RegDur)),0) -> 0 | V39: =IF(V$2<=Annuity!$E103,INDEX(CalcAnnual!#REF!,,MIN(V$2,RegDur)),0) -> 0 | W39: =IF(W$2<=Annuity!$E103,INDEX(CalcAnnual!#REF!,,MIN(W$2,RegDur)),0) -> 0 | X39: =IF(X$2<=Annuity!$E103,INDEX(CalcAnnual!#REF!,,MIN(X$2,RegDur)),0) -> 0 | Y39: =IF(Y$2<=Annuity!$E103,INDEX(CalcAnnual!#REF!,,MIN(Y$2,RegDur)),0) -> 0 | Z39: =IF(Z$2<=Annuity!$E103,INDEX(CalcAnnual!#REF!,,MIN(Z$2,RegDur)),0) -> 0 | AA39: =IF(AA$2<=Annuity!$E103,INDEX(CalcAnnual!#REF!,,MIN(AA$2,RegDur)),0) -> 0 | AB39: =IF(AB$2<=Annuity!$E103,INDEX(CalcAnnual!#REF!,,MIN(AB$2,RegDur)),0) -> 0 | AC39: =IF(AC$2<=Annuity!$E103,INDEX(CalcAnnual!#REF!,,MIN(AC$2,RegDur)),0) -> 0 | AD39: =IF(AD$2<=Annuity!$E103,INDEX(CalcAnnual!#REF!,,MIN(AD$2,RegDur)),0) -> 0 | AE39: =IF(AE$2<=Annuity!$E103,INDEX(CalcAnnual!#REF!,,MIN(AE$2,RegDur)),0) -> 0 | AF39: =IF(AF$2<=Annuity!$E103,INDEX(CalcAnnual!#REF!,,MIN(AF$2,RegDur)),0) -> 0 | AG39: =IF(AG$2<=Annuity!$E103,INDEX(CalcAnnual!#REF!,,MIN(AG$2,RegDur)),0) -> 0 | AH39: =IF(AH$2<=Annuity!$E103,INDEX(CalcAnnual!#REF!,,MIN(AH$2,RegDur)),0) -> 0 | AI39: =IF(AI$2<=Annuity!$E103,INDEX(CalcAnnual!#REF!,,MIN(AI$2,RegDur)),0) -> 0
B40: =IF(C40="Spare",TRUE,0) -> TRUE | C40: =Annuity!C104 -> Spare | F40: $ / Component | K40: =IF(K$2<=Annuity!$E104,INDEX(CalcAnnual!#REF!,,MIN(K$2,RegDur)),0) -> 0 | L40: =IF(L$2<=Annuity!$E104,INDEX(CalcAnnual!#REF!,,MIN(L$2,RegDur)),0) -> 0 | M40: =IF(M$2<=Annuity!$E104,INDEX(CalcAnnual!#REF!,,MIN(M$2,RegDur)),0) -> 0 | N40: =IF(N$2<=Annuity!$E104,INDEX(CalcAnnual!#REF!,,MIN(N$2,RegDur)),0) -> 0 | O40: =IF(O$2<=Annuity!$E104,INDEX(CalcAnnual!#REF!,,MIN(O$2,RegDur)),0) -> 0 | P40: =IF(P$2<=Annuity!$E104,INDEX(CalcAnnual!#REF!,,MIN(P$2,RegDur)),0) -> 0 | Q40: =IF(Q$2<=Annuity!$E104,INDEX(CalcAnnual!#REF!,,MIN(Q$2,RegDur)),0) -> 0 | R40: =IF(R$2<=Annuity!$E104,INDEX(CalcAnnual!#REF!,,MIN(R$2,RegDur)),0) -> 0 | S40: =IF(S$2<=Annuity!$E104,INDEX(CalcAnnual!#REF!,,MIN(S$2,RegDur)),0) -> 0 | T40: =IF(T$2<=Annuity!$E104,INDEX(CalcAnnual!#REF!,,MIN(T$2,RegDur)),0) -> 0 | U40: =IF(U$2<=Annuity!$E104,INDEX(CalcAnnual!#REF!,,MIN(U$2,RegDur)),0) -> 0 | V40: =IF(V$2<=Annuity!$E104,INDEX(CalcAnnual!#REF!,,MIN(V$2,RegDur)),0) -> 0 | W40: =IF(W$2<=Annuity!$E104,INDEX(CalcAnnual!#REF!,,MIN(W$2,RegDur)),0) -> 0 | X40: =IF(X$2<=Annuity!$E104,INDEX(CalcAnnual!#REF!,,MIN(X$2,RegDur)),0) -> 0 | Y40: =IF(Y$2<=Annuity!$E104,INDEX(CalcAnnual!#REF!,,MIN(Y$2,RegDur)),0) -> 0 | Z40: =IF(Z$2<=Annuity!$E104,INDEX(CalcAnnual!#REF!,,MIN(Z$2,RegDur)),0) -> 0 | AA40: =IF(AA$2<=Annuity!$E104,INDEX(CalcAnnual!#REF!,,MIN(AA$2,RegDur)),0) -> 0 | AB40: =IF(AB$2<=Annuity!$E104,INDEX(CalcAnnual!#REF!,,MIN(AB$2,RegDur)),0) -> 0 | AC40: =IF(AC$2<=Annuity!$E104,INDEX(CalcAnnual!#REF!,,MIN(AC$2,RegDur)),0) -> 0 | AD40: =IF(AD$2<=Annuity!$E104,INDEX(CalcAnnual!#REF!,,MIN(AD$2,RegDur)),0) -> 0 | AE40: =IF(AE$2<=Annuity!$E104,INDEX(CalcAnnual!#REF!,,MIN(AE$2,RegDur)),0) -> 0 | AF40: =IF(AF$2<=Annuity!$E104,INDEX(CalcAnnual!#REF!,,MIN(AF$2,RegDur)),0) -> 0 | AG40: =IF(AG$2<=Annuity!$E104,INDEX(CalcAnnual!#REF!,,MIN(AG$2,RegDur)),0) -> 0 | AH40: =IF(AH$2<=Annuity!$E104,INDEX(CalcAnnual!#REF!,,MIN(AH$2,RegDur)),0) -> 0 | AI40: =IF(AI$2<=Annuity!$E104,INDEX(CalcAnnual!#REF!,,MIN(AI$2,RegDur)),0) -> 0
B41: TRUE | C41: =Annuity!C105 -> Spare | F41: $ / Component | K41: =IF(K$2<=Annuity!$E105,INDEX(CalcAnnual!#REF!,,MIN(K$2,RegDur)),0) -> 0 | L41: =IF(L$2<=Annuity!$E105,INDEX(CalcAnnual!#REF!,,MIN(L$2,RegDur)),0) -> 0 | M41: =IF(M$2<=Annuity!$E105,INDEX(CalcAnnual!#REF!,,MIN(M$2,RegDur)),0) -> 0 | N41: =IF(N$2<=Annuity!$E105,INDEX(CalcAnnual!#REF!,,MIN(N$2,RegDur)),0) -> 0 | O41: =IF(O$2<=Annuity!$E105,INDEX(CalcAnnual!#REF!,,MIN(O$2,RegDur)),0) -> 0 | P41: =IF(P$2<=Annuity!$E105,INDEX(CalcAnnual!#REF!,,MIN(P$2,RegDur)),0) -> 0 | Q41: =IF(Q$2<=Annuity!$E105,INDEX(CalcAnnual!#REF!,,MIN(Q$2,RegDur)),0) -> 0 | R41: =IF(R$2<=Annuity!$E105,INDEX(CalcAnnual!#REF!,,MIN(R$2,RegDur)),0) -> 0 | S41: =IF(S$2<=Annuity!$E105,INDEX(CalcAnnual!#REF!,,MIN(S$2,RegDur)),0) -> 0 | T41: =IF(T$2<=Annuity!$E105,INDEX(CalcAnnual!#REF!,,MIN(T$2,RegDur)),0) -> 0 | U41: =IF(U$2<=Annuity!$E105,INDEX(CalcAnnual!#REF!,,MIN(U$2,RegDur)),0) -> 0 | V41: =IF(V$2<=Annuity!$E105,INDEX(CalcAnnual!#REF!,,MIN(V$2,RegDur)),0) -> 0 | W41: =IF(W$2<=Annuity!$E105,INDEX(CalcAnnual!#REF!,,MIN(W$2,RegDur)),0) -> 0 | X41: =IF(X$2<=Annuity!$E105,INDEX(CalcAnnual!#REF!,,MIN(X$2,RegDur)),0) -> 0 | Y41: =IF(Y$2<=Annuity!$E105,INDEX(CalcAnnual!#REF!,,MIN(Y$2,RegDur)),0) -> 0 | Z41: =IF(Z$2<=Annuity!$E105,INDEX(CalcAnnual!#REF!,,MIN(Z$2,RegDur)),0) -> 0 | AA41: =IF(AA$2<=Annuity!$E105,INDEX(CalcAnnual!#REF!,,MIN(AA$2,RegDur)),0) -> 0 | AB41: =IF(AB$2<=Annuity!$E105,INDEX(CalcAnnual!#REF!,,MIN(AB$2,RegDur)),0) -> 0 | AC41: =IF(AC$2<=Annuity!$E105,INDEX(CalcAnnual!#REF!,,MIN(AC$2,RegDur)),0) -> 0 | AD41: =IF(AD$2<=Annuity!$E105,INDEX(CalcAnnual!#REF!,,MIN(AD$2,RegDur)),0) -> 0 | AE41: =IF(AE$2<=Annuity!$E105,INDEX(CalcAnnual!#REF!,,MIN(AE$2,RegDur)),0) -> 0 | AF41: =IF(AF$2<=Annuity!$E105,INDEX(CalcAnnual!#REF!,,MIN(AF$2,RegDur)),0) -> 0 | AG41: =IF(AG$2<=Annuity!$E105,INDEX(CalcAnnual!#REF!,,MIN(AG$2,RegDur)),0) -> 0 | AH41: =IF(AH$2<=Annuity!$E105,INDEX(CalcAnnual!#REF!,,MIN(AH$2,RegDur)),0) -> 0 | AI41: =IF(AI$2<=Annuity!$E105,INDEX(CalcAnnual!#REF!,,MIN(AI$2,RegDur)),0) -> 0
B42: TRUE | C42: =Annuity!C106 -> Spare | F42: $ / Component | K42: =IF(K$2<=Annuity!$E106,INDEX(CalcAnnual!#REF!,,MIN(K$2,RegDur)),0) -> 0 | L42: =IF(L$2<=Annuity!$E106,INDEX(CalcAnnual!#REF!,,MIN(L$2,RegDur)),0) -> 0 | M42: =IF(M$2<=Annuity!$E106,INDEX(CalcAnnual!#REF!,,MIN(M$2,RegDur)),0) -> 0 | N42: =IF(N$2<=Annuity!$E106,INDEX(CalcAnnual!#REF!,,MIN(N$2,RegDur)),0) -> 0 | O42: =IF(O$2<=Annuity!$E106,INDEX(CalcAnnual!#REF!,,MIN(O$2,RegDur)),0) -> 0 | P42: =IF(P$2<=Annuity!$E106,INDEX(CalcAnnual!#REF!,,MIN(P$2,RegDur)),0) -> 0 | Q42: =IF(Q$2<=Annuity!$E106,INDEX(CalcAnnual!#REF!,,MIN(Q$2,RegDur)),0) -> 0 | R42: =IF(R$2<=Annuity!$E106,INDEX(CalcAnnual!#REF!,,MIN(R$2,RegDur)),0) -> 0 | S42: =IF(S$2<=Annuity!$E106,INDEX(CalcAnnual!#REF!,,MIN(S$2,RegDur)),0) -> 0 | T42: =IF(T$2<=Annuity!$E106,INDEX(CalcAnnual!#REF!,,MIN(T$2,RegDur)),0) -> 0 | U42: =IF(U$2<=Annuity!$E106,INDEX(CalcAnnual!#REF!,,MIN(U$2,RegDur)),0) -> 0 | V42: =IF(V$2<=Annuity!$E106,INDEX(CalcAnnual!#REF!,,MIN(V$2,RegDur)),0) -> 0 | W42: =IF(W$2<=Annuity!$E106,INDEX(CalcAnnual!#REF!,,MIN(W$2,RegDur)),0) -> 0 | X42: =IF(X$2<=Annuity!$E106,INDEX(CalcAnnual!#REF!,,MIN(X$2,RegDur)),0) -> 0 | Y42: =IF(Y$2<=Annuity!$E106,INDEX(CalcAnnual!#REF!,,MIN(Y$2,RegDur)),0) -> 0 | Z42: =IF(Z$2<=Annuity!$E106,INDEX(CalcAnnual!#REF!,,MIN(Z$2,RegDur)),0) -> 0 | AA42: =IF(AA$2<=Annuity!$E106,INDEX(CalcAnnual!#REF!,,MIN(AA$2,RegDur)),0) -> 0 | AB42: =IF(AB$2<=Annuity!$E106,INDEX(CalcAnnual!#REF!,,MIN(AB$2,RegDur)),0) -> 0 | AC42: =IF(AC$2<=Annuity!$E106,INDEX(CalcAnnual!#REF!,,MIN(AC$2,RegDur)),0) -> 0 | AD42: =IF(AD$2<=Annuity!$E106,INDEX(CalcAnnual!#REF!,,MIN(AD$2,RegDur)),0) -> 0 | AE42: =IF(AE$2<=Annuity!$E106,INDEX(CalcAnnual!#REF!,,MIN(AE$2,RegDur)),0) -> 0 | AF42: =IF(AF$2<=Annuity!$E106,INDEX(CalcAnnual!#REF!,,MIN(AF$2,RegDur)),0) -> 0 | AG42: =IF(AG$2<=Annuity!$E106,INDEX(CalcAnnual!#REF!,,MIN(AG$2,RegDur)),0) -> 0 | AH42: =IF(AH$2<=Annuity!$E106,INDEX(CalcAnnual!#REF!,,MIN(AH$2,RegDur)),0) -> 0 | AI42: =IF(AI$2<=Annuity!$E106,INDEX(CalcAnnual!#REF!,,MIN(AI$2,RegDur)),0) -> 0
B43: TRUE | C43: =Annuity!C107 -> Spare | F43: $ / Component | K43: =IF(K$2<=Annuity!$E107,INDEX(CalcAnnual!#REF!,,MIN(K$2,RegDur)),0) -> 0 | L43: =IF(L$2<=Annuity!$E107,INDEX(CalcAnnual!#REF!,,MIN(L$2,RegDur)),0) -> 0 | M43: =IF(M$2<=Annuity!$E107,INDEX(CalcAnnual!#REF!,,MIN(M$2,RegDur)),0) -> 0 | N43: =IF(N$2<=Annuity!$E107,INDEX(CalcAnnual!#REF!,,MIN(N$2,RegDur)),0) -> 0 | O43: =IF(O$2<=Annuity!$E107,INDEX(CalcAnnual!#REF!,,MIN(O$2,RegDur)),0) -> 0 | P43: =IF(P$2<=Annuity!$E107,INDEX(CalcAnnual!#REF!,,MIN(P$2,RegDur)),0) -> 0 | Q43: =IF(Q$2<=Annuity!$E107,INDEX(CalcAnnual!#REF!,,MIN(Q$2,RegDur)),0) -> 0 | R43: =IF(R$2<=Annuity!$E107,INDEX(CalcAnnual!#REF!,,MIN(R$2,RegDur)),0) -> 0 | S43: =IF(S$2<=Annuity!$E107,INDEX(CalcAnnual!#REF!,,MIN(S$2,RegDur)),0) -> 0 | T43: =IF(T$2<=Annuity!$E107,INDEX(CalcAnnual!#REF!,,MIN(T$2,RegDur)),0) -> 0 | U43: =IF(U$2<=Annuity!$E107,INDEX(CalcAnnual!#REF!,,MIN(U$2,RegDur)),0) -> 0 | V43: =IF(V$2<=Annuity!$E107,INDEX(CalcAnnual!#REF!,,MIN(V$2,RegDur)),0) -> 0 | W43: =IF(W$2<=Annuity!$E107,INDEX(CalcAnnual!#REF!,,MIN(W$2,RegDur)),0) -> 0 | X43: =IF(X$2<=Annuity!$E107,INDEX(CalcAnnual!#REF!,,MIN(X$2,RegDur)),0) -> 0 | Y43: =IF(Y$2<=Annuity!$E107,INDEX(CalcAnnual!#REF!,,MIN(Y$2,RegDur)),0) -> 0 | Z43: =IF(Z$2<=Annuity!$E107,INDEX(CalcAnnual!#REF!,,MIN(Z$2,RegDur)),0) -> 0 | AA43: =IF(AA$2<=Annuity!$E107,INDEX(CalcAnnual!#REF!,,MIN(AA$2,RegDur)),0) -> 0 | AB43: =IF(AB$2<=Annuity!$E107,INDEX(CalcAnnual!#REF!,,MIN(AB$2,RegDur)),0) -> 0 | AC43: =IF(AC$2<=Annuity!$E107,INDEX(CalcAnnual!#REF!,,MIN(AC$2,RegDur)),0) -> 0 | AD43: =IF(AD$2<=Annuity!$E107,INDEX(CalcAnnual!#REF!,,MIN(AD$2,RegDur)),0) -> 0 | AE43: =IF(AE$2<=Annuity!$E107,INDEX(CalcAnnual!#REF!,,MIN(AE$2,RegDur)),0) -> 0 | AF43: =IF(AF$2<=Annuity!$E107,INDEX(CalcAnnual!#REF!,,MIN(AF$2,RegDur)),0) -> 0 | AG43: =IF(AG$2<=Annuity!$E107,INDEX(CalcAnnual!#REF!,,MIN(AG$2,RegDur)),0) -> 0 | AH43: =IF(AH$2<=Annuity!$E107,INDEX(CalcAnnual!#REF!,,MIN(AH$2,RegDur)),0) -> 0 | AI43: =IF(AI$2<=Annuity!$E107,INDEX(CalcAnnual!#REF!,,MIN(AI$2,RegDur)),0) -> 0
B44: TRUE | C44: =Annuity!C108 -> Spare | F44: $ / Component | K44: =IF(K$2<=Annuity!$E108,INDEX(CalcAnnual!#REF!,,MIN(K$2,RegDur)),0) -> 0 | L44: =IF(L$2<=Annuity!$E108,INDEX(CalcAnnual!#REF!,,MIN(L$2,RegDur)),0) -> 0 | M44: =IF(M$2<=Annuity!$E108,INDEX(CalcAnnual!#REF!,,MIN(M$2,RegDur)),0) -> 0 | N44: =IF(N$2<=Annuity!$E108,INDEX(CalcAnnual!#REF!,,MIN(N$2,RegDur)),0) -> 0 | O44: =IF(O$2<=Annuity!$E108,INDEX(CalcAnnual!#REF!,,MIN(O$2,RegDur)),0) -> 0 | P44: =IF(P$2<=Annuity!$E108,INDEX(CalcAnnual!#REF!,,MIN(P$2,RegDur)),0) -> 0 | Q44: =IF(Q$2<=Annuity!$E108,INDEX(CalcAnnual!#REF!,,MIN(Q$2,RegDur)),0) -> 0 | R44: =IF(R$2<=Annuity!$E108,INDEX(CalcAnnual!#REF!,,MIN(R$2,RegDur)),0) -> 0 | S44: =IF(S$2<=Annuity!$E108,INDEX(CalcAnnual!#REF!,,MIN(S$2,RegDur)),0) -> 0 | T44: =IF(T$2<=Annuity!$E108,INDEX(CalcAnnual!#REF!,,MIN(T$2,RegDur)),0) -> 0 | U44: =IF(U$2<=Annuity!$E108,INDEX(CalcAnnual!#REF!,,MIN(U$2,RegDur)),0) -> 0 | V44: =IF(V$2<=Annuity!$E108,INDEX(CalcAnnual!#REF!,,MIN(V$2,RegDur)),0) -> 0 | W44: =IF(W$2<=Annuity!$E108,INDEX(CalcAnnual!#REF!,,MIN(W$2,RegDur)),0) -> 0 | X44: =IF(X$2<=Annuity!$E108,INDEX(CalcAnnual!#REF!,,MIN(X$2,RegDur)),0) -> 0 | Y44: =IF(Y$2<=Annuity!$E108,INDEX(CalcAnnual!#REF!,,MIN(Y$2,RegDur)),0) -> 0 | Z44: =IF(Z$2<=Annuity!$E108,INDEX(CalcAnnual!#REF!,,MIN(Z$2,RegDur)),0) -> 0 | AA44: =IF(AA$2<=Annuity!$E108,INDEX(CalcAnnual!#REF!,,MIN(AA$2,RegDur)),0) -> 0 | AB44: =IF(AB$2<=Annuity!$E108,INDEX(CalcAnnual!#REF!,,MIN(AB$2,RegDur)),0) -> 0 | AC44: =IF(AC$2<=Annuity!$E108,INDEX(CalcAnnual!#REF!,,MIN(AC$2,RegDur)),0) -> 0 | AD44: =IF(AD$2<=Annuity!$E108,INDEX(CalcAnnual!#REF!,,MIN(AD$2,RegDur)),0) -> 0 | AE44: =IF(AE$2<=Annuity!$E108,INDEX(CalcAnnual!#REF!,,MIN(AE$2,RegDur)),0) -> 0 | AF44: =IF(AF$2<=Annuity!$E108,INDEX(CalcAnnual!#REF!,,MIN(AF$2,RegDur)),0) -> 0 | AG44: =IF(AG$2<=Annuity!$E108,INDEX(CalcAnnual!#REF!,,MIN(AG$2,RegDur)),0) -> 0 | AH44: =IF(AH$2<=Annuity!$E108,INDEX(CalcAnnual!#REF!,,MIN(AH$2,RegDur)),0) -> 0 | AI44: =IF(AI$2<=Annuity!$E108,INDEX(CalcAnnual!#REF!,,MIN(AI$2,RegDur)),0) -> 0
B45: TRUE | C45: =Annuity!C109 -> Spare | F45: $ / Component | K45: =IF(K$2<=Annuity!$E109,INDEX(CalcAnnual!#REF!,,MIN(K$2,RegDur)),0) -> 0 | L45: =IF(L$2<=Annuity!$E109,INDEX(CalcAnnual!#REF!,,MIN(L$2,RegDur)),0) -> 0 | M45: =IF(M$2<=Annuity!$E109,INDEX(CalcAnnual!#REF!,,MIN(M$2,RegDur)),0) -> 0 | N45: =IF(N$2<=Annuity!$E109,INDEX(CalcAnnual!#REF!,,MIN(N$2,RegDur)),0) -> 0 | O45: =IF(O$2<=Annuity!$E109,INDEX(CalcAnnual!#REF!,,MIN(O$2,RegDur)),0) -> 0 | P45: =IF(P$2<=Annuity!$E109,INDEX(CalcAnnual!#REF!,,MIN(P$2,RegDur)),0) -> 0 | Q45: =IF(Q$2<=Annuity!$E109,INDEX(CalcAnnual!#REF!,,MIN(Q$2,RegDur)),0) -> 0 | R45: =IF(R$2<=Annuity!$E109,INDEX(CalcAnnual!#REF!,,MIN(R$2,RegDur)),0) -> 0 | S45: =IF(S$2<=Annuity!$E109,INDEX(CalcAnnual!#REF!,,MIN(S$2,RegDur)),0) -> 0 | T45: =IF(T$2<=Annuity!$E109,INDEX(CalcAnnual!#REF!,,MIN(T$2,RegDur)),0) -> 0 | U45: =IF(U$2<=Annuity!$E109,INDEX(CalcAnnual!#REF!,,MIN(U$2,RegDur)),0) -> 0 | V45: =IF(V$2<=Annuity!$E109,INDEX(CalcAnnual!#REF!,,MIN(V$2,RegDur)),0) -> 0 | W45: =IF(W$2<=Annuity!$E109,INDEX(CalcAnnual!#REF!,,MIN(W$2,RegDur)),0) -> 0 | X45: =IF(X$2<=Annuity!$E109,INDEX(CalcAnnual!#REF!,,MIN(X$2,RegDur)),0) -> 0 | Y45: =IF(Y$2<=Annuity!$E109,INDEX(CalcAnnual!#REF!,,MIN(Y$2,RegDur)),0) -> 0 | Z45: =IF(Z$2<=Annuity!$E109,INDEX(CalcAnnual!#REF!,,MIN(Z$2,RegDur)),0) -> 0 | AA45: =IF(AA$2<=Annuity!$E109,INDEX(CalcAnnual!#REF!,,MIN(AA$2,RegDur)),0) -> 0 | AB45: =IF(AB$2<=Annuity!$E109,INDEX(CalcAnnual!#REF!,,MIN(AB$2,RegDur)),0) -> 0 | AC45: =IF(AC$2<=Annuity!$E109,INDEX(CalcAnnual!#REF!,,MIN(AC$2,RegDur)),0) -> 0 | AD45: =IF(AD$2<=Annuity!$E109,INDEX(CalcAnnual!#REF!,,MIN(AD$2,RegDur)),0) -> 0 | AE45: =IF(AE$2<=Annuity!$E109,INDEX(CalcAnnual!#REF!,,MIN(AE$2,RegDur)),0) -> 0 | AF45: =IF(AF$2<=Annuity!$E109,INDEX(CalcAnnual!#REF!,,MIN(AF$2,RegDur)),0) -> 0 | AG45: =IF(AG$2<=Annuity!$E109,INDEX(CalcAnnual!#REF!,,MIN(AG$2,RegDur)),0) -> 0 | AH45: =IF(AH$2<=Annuity!$E109,INDEX(CalcAnnual!#REF!,,MIN(AH$2,RegDur)),0) -> 0 | AI45: =IF(AI$2<=Annuity!$E109,INDEX(CalcAnnual!#REF!,,MIN(AI$2,RegDur)),0) -> 0
B46: TRUE | C46: =Annuity!C110 -> Spare | F46: $ / Component | K46: =IF(K$2<=Annuity!$E110,INDEX(CalcAnnual!#REF!,,MIN(K$2,RegDur)),0) -> 0 | L46: =IF(L$2<=Annuity!$E110,INDEX(CalcAnnual!#REF!,,MIN(L$2,RegDur)),0) -> 0 | M46: =IF(M$2<=Annuity!$E110,INDEX(CalcAnnual!#REF!,,MIN(M$2,RegDur)),0) -> 0 | N46: =IF(N$2<=Annuity!$E110,INDEX(CalcAnnual!#REF!,,MIN(N$2,RegDur)),0) -> 0 | O46: =IF(O$2<=Annuity!$E110,INDEX(CalcAnnual!#REF!,,MIN(O$2,RegDur)),0) -> 0 | P46: =IF(P$2<=Annuity!$E110,INDEX(CalcAnnual!#REF!,,MIN(P$2,RegDur)),0) -> 0 | Q46: =IF(Q$2<=Annuity!$E110,INDEX(CalcAnnual!#REF!,,MIN(Q$2,RegDur)),0) -> 0 | R46: =IF(R$2<=Annuity!$E110,INDEX(CalcAnnual!#REF!,,MIN(R$2,RegDur)),0) -> 0 | S46: =IF(S$2<=Annuity!$E110,INDEX(CalcAnnual!#REF!,,MIN(S$2,RegDur)),0) -> 0 | T46: =IF(T$2<=Annuity!$E110,INDEX(CalcAnnual!#REF!,,MIN(T$2,RegDur)),0) -> 0 | U46: =IF(U$2<=Annuity!$E110,INDEX(CalcAnnual!#REF!,,MIN(U$2,RegDur)),0) -> 0 | V46: =IF(V$2<=Annuity!$E110,INDEX(CalcAnnual!#REF!,,MIN(V$2,RegDur)),0) -> 0 | W46: =IF(W$2<=Annuity!$E110,INDEX(CalcAnnual!#REF!,,MIN(W$2,RegDur)),0) -> 0 | X46: =IF(X$2<=Annuity!$E110,INDEX(CalcAnnual!#REF!,,MIN(X$2,RegDur)),0) -> 0 | Y46: =IF(Y$2<=Annuity!$E110,INDEX(CalcAnnual!#REF!,,MIN(Y$2,RegDur)),0) -> 0 | Z46: =IF(Z$2<=Annuity!$E110,INDEX(CalcAnnual!#REF!,,MIN(Z$2,RegDur)),0) -> 0 | AA46: =IF(AA$2<=Annuity!$E110,INDEX(CalcAnnual!#REF!,,MIN(AA$2,RegDur)),0) -> 0 | AB46: =IF(AB$2<=Annuity!$E110,INDEX(CalcAnnual!#REF!,,MIN(AB$2,RegDur)),0) -> 0 | AC46: =IF(AC$2<=Annuity!$E110,INDEX(CalcAnnual!#REF!,,MIN(AC$2,RegDur)),0) -> 0 | AD46: =IF(AD$2<=Annuity!$E110,INDEX(CalcAnnual!#REF!,,MIN(AD$2,RegDur)),0) -> 0 | AE46: =IF(AE$2<=Annuity!$E110,INDEX(CalcAnnual!#REF!,,MIN(AE$2,RegDur)),0) -> 0 | AF46: =IF(AF$2<=Annuity!$E110,INDEX(CalcAnnual!#REF!,,MIN(AF$2,RegDur)),0) -> 0 | AG46: =IF(AG$2<=Annuity!$E110,INDEX(CalcAnnual!#REF!,,MIN(AG$2,RegDur)),0) -> 0 | AH46: =IF(AH$2<=Annuity!$E110,INDEX(CalcAnnual!#REF!,,MIN(AH$2,RegDur)),0) -> 0 | AI46: =IF(AI$2<=Annuity!$E110,INDEX(CalcAnnual!#REF!,,MIN(AI$2,RegDur)),0) -> 0
B47: TRUE | C47: =Annuity!C111 -> Spare | F47: $ / Component | K47: =IF(K$2<=Annuity!$E111,INDEX(CalcAnnual!#REF!,,MIN(K$2,RegDur)),0) -> 0 | L47: =IF(L$2<=Annuity!$E111,INDEX(CalcAnnual!#REF!,,MIN(L$2,RegDur)),0) -> 0 | M47: =IF(M$2<=Annuity!$E111,INDEX(CalcAnnual!#REF!,,MIN(M$2,RegDur)),0) -> 0 | N47: =IF(N$2<=Annuity!$E111,INDEX(CalcAnnual!#REF!,,MIN(N$2,RegDur)),0) -> 0 | O47: =IF(O$2<=Annuity!$E111,INDEX(CalcAnnual!#REF!,,MIN(O$2,RegDur)),0) -> 0 | P47: =IF(P$2<=Annuity!$E111,INDEX(CalcAnnual!#REF!,,MIN(P$2,RegDur)),0) -> 0 | Q47: =IF(Q$2<=Annuity!$E111,INDEX(CalcAnnual!#REF!,,MIN(Q$2,RegDur)),0) -> 0 | R47: =IF(R$2<=Annuity!$E111,INDEX(CalcAnnual!#REF!,,MIN(R$2,RegDur)),0) -> 0 | S47: =IF(S$2<=Annuity!$E111,INDEX(CalcAnnual!#REF!,,MIN(S$2,RegDur)),0) -> 0 | T47: =IF(T$2<=Annuity!$E111,INDEX(CalcAnnual!#REF!,,MIN(T$2,RegDur)),0) -> 0 | U47: =IF(U$2<=Annuity!$E111,INDEX(CalcAnnual!#REF!,,MIN(U$2,RegDur)),0) -> 0 | V47: =IF(V$2<=Annuity!$E111,INDEX(CalcAnnual!#REF!,,MIN(V$2,RegDur)),0) -> 0 | W47: =IF(W$2<=Annuity!$E111,INDEX(CalcAnnual!#REF!,,MIN(W$2,RegDur)),0) -> 0 | X47: =IF(X$2<=Annuity!$E111,INDEX(CalcAnnual!#REF!,,MIN(X$2,RegDur)),0) -> 0 | Y47: =IF(Y$2<=Annuity!$E111,INDEX(CalcAnnual!#REF!,,MIN(Y$2,RegDur)),0) -> 0 | Z47: =IF(Z$2<=Annuity!$E111,INDEX(CalcAnnual!#REF!,,MIN(Z$2,RegDur)),0) -> 0 | AA47: =IF(AA$2<=Annuity!$E111,INDEX(CalcAnnual!#REF!,,MIN(AA$2,RegDur)),0) -> 0 | AB47: =IF(AB$2<=Annuity!$E111,INDEX(CalcAnnual!#REF!,,MIN(AB$2,RegDur)),0) -> 0 | AC47: =IF(AC$2<=Annuity!$E111,INDEX(CalcAnnual!#REF!,,MIN(AC$2,RegDur)),0) -> 0 | AD47: =IF(AD$2<=Annuity!$E111,INDEX(CalcAnnual!#REF!,,MIN(AD$2,RegDur)),0) -> 0 | AE47: =IF(AE$2<=Annuity!$E111,INDEX(CalcAnnual!#REF!,,MIN(AE$2,RegDur)),0) -> 0 | AF47: =IF(AF$2<=Annuity!$E111,INDEX(CalcAnnual!#REF!,,MIN(AF$2,RegDur)),0) -> 0 | AG47: =IF(AG$2<=Annuity!$E111,INDEX(CalcAnnual!#REF!,,MIN(AG$2,RegDur)),0) -> 0 | AH47: =IF(AH$2<=Annuity!$E111,INDEX(CalcAnnual!#REF!,,MIN(AH$2,RegDur)),0) -> 0 | AI47: =IF(AI$2<=Annuity!$E111,INDEX(CalcAnnual!#REF!,,MIN(AI$2,RegDur)),0) -> 0
B48: TRUE | C48: =Annuity!C112 -> Spare | F48: $ / Component | K48: =IF(K$2<=Annuity!$E112,INDEX(CalcAnnual!#REF!,,MIN(K$2,RegDur)),0) -> 0 | L48: =IF(L$2<=Annuity!$E112,INDEX(CalcAnnual!#REF!,,MIN(L$2,RegDur)),0) -> 0 | M48: =IF(M$2<=Annuity!$E112,INDEX(CalcAnnual!#REF!,,MIN(M$2,RegDur)),0) -> 0 | N48: =IF(N$2<=Annuity!$E112,INDEX(CalcAnnual!#REF!,,MIN(N$2,RegDur)),0) -> 0 | O48: =IF(O$2<=Annuity!$E112,INDEX(CalcAnnual!#REF!,,MIN(O$2,RegDur)),0) -> 0 | P48: =IF(P$2<=Annuity!$E112,INDEX(CalcAnnual!#REF!,,MIN(P$2,RegDur)),0) -> 0 | Q48: =IF(Q$2<=Annuity!$E112,INDEX(CalcAnnual!#REF!,,MIN(Q$2,RegDur)),0) -> 0 | R48: =IF(R$2<=Annuity!$E112,INDEX(CalcAnnual!#REF!,,MIN(R$2,RegDur)),0) -> 0 | S48: =IF(S$2<=Annuity!$E112,INDEX(CalcAnnual!#REF!,,MIN(S$2,RegDur)),0) -> 0 | T48: =IF(T$2<=Annuity!$E112,INDEX(CalcAnnual!#REF!,,MIN(T$2,RegDur)),0) -> 0 | U48: =IF(U$2<=Annuity!$E112,INDEX(CalcAnnual!#REF!,,MIN(U$2,RegDur)),0) -> 0 | V48: =IF(V$2<=Annuity!$E112,INDEX(CalcAnnual!#REF!,,MIN(V$2,RegDur)),0) -> 0 | W48: =IF(W$2<=Annuity!$E112,INDEX(CalcAnnual!#REF!,,MIN(W$2,RegDur)),0) -> 0 | X48: =IF(X$2<=Annuity!$E112,INDEX(CalcAnnual!#REF!,,MIN(X$2,RegDur)),0) -> 0 | Y48: =IF(Y$2<=Annuity!$E112,INDEX(CalcAnnual!#REF!,,MIN(Y$2,RegDur)),0) -> 0 | Z48: =IF(Z$2<=Annuity!$E112,INDEX(CalcAnnual!#REF!,,MIN(Z$2,RegDur)),0) -> 0 | AA48: =IF(AA$2<=Annuity!$E112,INDEX(CalcAnnual!#REF!,,MIN(AA$2,RegDur)),0) -> 0 | AB48: =IF(AB$2<=Annuity!$E112,INDEX(CalcAnnual!#REF!,,MIN(AB$2,RegDur)),0) -> 0 | AC48: =IF(AC$2<=Annuity!$E112,INDEX(CalcAnnual!#REF!,,MIN(AC$2,RegDur)),0) -> 0 | AD48: =IF(AD$2<=Annuity!$E112,INDEX(CalcAnnual!#REF!,,MIN(AD$2,RegDur)),0) -> 0 | AE48: =IF(AE$2<=Annuity!$E112,INDEX(CalcAnnual!#REF!,,MIN(AE$2,RegDur)),0) -> 0 | AF48: =IF(AF$2<=Annuity!$E112,INDEX(CalcAnnual!#REF!,,MIN(AF$2,RegDur)),0) -> 0 | AG48: =IF(AG$2<=Annuity!$E112,INDEX(CalcAnnual!#REF!,,MIN(AG$2,RegDur)),0) -> 0 | AH48: =IF(AH$2<=Annuity!$E112,INDEX(CalcAnnual!#REF!,,MIN(AH$2,RegDur)),0) -> 0 | AI48: =IF(AI$2<=Annuity!$E112,INDEX(CalcAnnual!#REF!,,MIN(AI$2,RegDur)),0) -> 0
B49: TRUE | C49: =Annuity!C113 -> Spare | F49: $ / Component | K49: =IF(K$2<=Annuity!$E113,INDEX(CalcAnnual!#REF!,,MIN(K$2,RegDur)),0) -> 0 | L49: =IF(L$2<=Annuity!$E113,INDEX(CalcAnnual!#REF!,,MIN(L$2,RegDur)),0) -> 0 | M49: =IF(M$2<=Annuity!$E113,INDEX(CalcAnnual!#REF!,,MIN(M$2,RegDur)),0) -> 0 | N49: =IF(N$2<=Annuity!$E113,INDEX(CalcAnnual!#REF!,,MIN(N$2,RegDur)),0) -> 0 | O49: =IF(O$2<=Annuity!$E113,INDEX(CalcAnnual!#REF!,,MIN(O$2,RegDur)),0) -> 0 | P49: =IF(P$2<=Annuity!$E113,INDEX(CalcAnnual!#REF!,,MIN(P$2,RegDur)),0) -> 0 | Q49: =IF(Q$2<=Annuity!$E113,INDEX(CalcAnnual!#REF!,,MIN(Q$2,RegDur)),0) -> 0 | R49: =IF(R$2<=Annuity!$E113,INDEX(CalcAnnual!#REF!,,MIN(R$2,RegDur)),0) -> 0 | S49: =IF(S$2<=Annuity!$E113,INDEX(CalcAnnual!#REF!,,MIN(S$2,RegDur)),0) -> 0 | T49: =IF(T$2<=Annuity!$E113,INDEX(CalcAnnual!#REF!,,MIN(T$2,RegDur)),0) -> 0 | U49: =IF(U$2<=Annuity!$E113,INDEX(CalcAnnual!#REF!,,MIN(U$2,RegDur)),0) -> 0 | V49: =IF(V$2<=Annuity!$E113,INDEX(CalcAnnual!#REF!,,MIN(V$2,RegDur)),0) -> 0 | W49: =IF(W$2<=Annuity!$E113,INDEX(CalcAnnual!#REF!,,MIN(W$2,RegDur)),0) -> 0 | X49: =IF(X$2<=Annuity!$E113,INDEX(CalcAnnual!#REF!,,MIN(X$2,RegDur)),0) -> 0 | Y49: =IF(Y$2<=Annuity!$E113,INDEX(CalcAnnual!#REF!,,MIN(Y$2,RegDur)),0) -> 0 | Z49: =IF(Z$2<=Annuity!$E113,INDEX(CalcAnnual!#REF!,,MIN(Z$2,RegDur)),0) -> 0 | AA49: =IF(AA$2<=Annuity!$E113,INDEX(CalcAnnual!#REF!,,MIN(AA$2,RegDur)),0) -> 0 | AB49: =IF(AB$2<=Annuity!$E113,INDEX(CalcAnnual!#REF!,,MIN(AB$2,RegDur)),0) -> 0 | AC49: =IF(AC$2<=Annuity!$E113,INDEX(CalcAnnual!#REF!,,MIN(AC$2,RegDur)),0) -> 0 | AD49: =IF(AD$2<=Annuity!$E113,INDEX(CalcAnnual!#REF!,,MIN(AD$2,RegDur)),0) -> 0 | AE49: =IF(AE$2<=Annuity!$E113,INDEX(CalcAnnual!#REF!,,MIN(AE$2,RegDur)),0) -> 0 | AF49: =IF(AF$2<=Annuity!$E113,INDEX(CalcAnnual!#REF!,,MIN(AF$2,RegDur)),0) -> 0 | AG49: =IF(AG$2<=Annuity!$E113,INDEX(CalcAnnual!#REF!,,MIN(AG$2,RegDur)),0) -> 0 | AH49: =IF(AH$2<=Annuity!$E113,INDEX(CalcAnnual!#REF!,,MIN(AH$2,RegDur)),0) -> 0 | AI49: =IF(AI$2<=Annuity!$E113,INDEX(CalcAnnual!#REF!,,MIN(AI$2,RegDur)),0) -> 0
B50: TRUE | C50: =Annuity!C114 -> Spare | F50: $ / Component | K50: =IF(K$2<=Annuity!$E114,INDEX(CalcAnnual!#REF!,,MIN(K$2,RegDur)),0) -> 0 | L50: =IF(L$2<=Annuity!$E114,INDEX(CalcAnnual!#REF!,,MIN(L$2,RegDur)),0) -> 0 | M50: =IF(M$2<=Annuity!$E114,INDEX(CalcAnnual!#REF!,,MIN(M$2,RegDur)),0) -> 0 | N50: =IF(N$2<=Annuity!$E114,INDEX(CalcAnnual!#REF!,,MIN(N$2,RegDur)),0) -> 0 | O50: =IF(O$2<=Annuity!$E114,INDEX(CalcAnnual!#REF!,,MIN(O$2,RegDur)),0) -> 0 | P50: =IF(P$2<=Annuity!$E114,INDEX(CalcAnnual!#REF!,,MIN(P$2,RegDur)),0) -> 0 | Q50: =IF(Q$2<=Annuity!$E114,INDEX(CalcAnnual!#REF!,,MIN(Q$2,RegDur)),0) -> 0 | R50: =IF(R$2<=Annuity!$E114,INDEX(CalcAnnual!#REF!,,MIN(R$2,RegDur)),0) -> 0 | S50: =IF(S$2<=Annuity!$E114,INDEX(CalcAnnual!#REF!,,MIN(S$2,RegDur)),0) -> 0 | T50: =IF(T$2<=Annuity!$E114,INDEX(CalcAnnual!#REF!,,MIN(T$2,RegDur)),0) -> 0 | U50: =IF(U$2<=Annuity!$E114,INDEX(CalcAnnual!#REF!,,MIN(U$2,RegDur)),0) -> 0 | V50: =IF(V$2<=Annuity!$E114,INDEX(CalcAnnual!#REF!,,MIN(V$2,RegDur)),0) -> 0 | W50: =IF(W$2<=Annuity!$E114,INDEX(CalcAnnual!#REF!,,MIN(W$2,RegDur)),0) -> 0 | X50: =IF(X$2<=Annuity!$E114,INDEX(CalcAnnual!#REF!,,MIN(X$2,RegDur)),0) -> 0 | Y50: =IF(Y$2<=Annuity!$E114,INDEX(CalcAnnual!#REF!,,MIN(Y$2,RegDur)),0) -> 0 | Z50: =IF(Z$2<=Annuity!$E114,INDEX(CalcAnnual!#REF!,,MIN(Z$2,RegDur)),0) -> 0 | AA50: =IF(AA$2<=Annuity!$E114,INDEX(CalcAnnual!#REF!,,MIN(AA$2,RegDur)),0) -> 0 | AB50: =IF(AB$2<=Annuity!$E114,INDEX(CalcAnnual!#REF!,,MIN(AB$2,RegDur)),0) -> 0 | AC50: =IF(AC$2<=Annuity!$E114,INDEX(CalcAnnual!#REF!,,MIN(AC$2,RegDur)),0) -> 0 | AD50: =IF(AD$2<=Annuity!$E114,INDEX(CalcAnnual!#REF!,,MIN(AD$2,RegDur)),0) -> 0 | AE50: =IF(AE$2<=Annuity!$E114,INDEX(CalcAnnual!#REF!,,MIN(AE$2,RegDur)),0) -> 0 | AF50: =IF(AF$2<=Annuity!$E114,INDEX(CalcAnnual!#REF!,,MIN(AF$2,RegDur)),0) -> 0 | AG50: =IF(AG$2<=Annuity!$E114,INDEX(CalcAnnual!#REF!,,MIN(AG$2,RegDur)),0) -> 0 | AH50: =IF(AH$2<=Annuity!$E114,INDEX(CalcAnnual!#REF!,,MIN(AH$2,RegDur)),0) -> 0 | AI50: =IF(AI$2<=Annuity!$E114,INDEX(CalcAnnual!#REF!,,MIN(AI$2,RegDur)),0) -> 0
B51: TRUE | C51: =Annuity!C115 -> Spare | F51: $ / Component | K51: =IF(K$2<=Annuity!$E115,INDEX(CalcAnnual!#REF!,,MIN(K$2,RegDur)),0) -> 0 | L51: =IF(L$2<=Annuity!$E115,INDEX(CalcAnnual!#REF!,,MIN(L$2,RegDur)),0) -> 0 | M51: =IF(M$2<=Annuity!$E115,INDEX(CalcAnnual!#REF!,,MIN(M$2,RegDur)),0) -> 0 | N51: =IF(N$2<=Annuity!$E115,INDEX(CalcAnnual!#REF!,,MIN(N$2,RegDur)),0) -> 0 | O51: =IF(O$2<=Annuity!$E115,INDEX(CalcAnnual!#REF!,,MIN(O$2,RegDur)),0) -> 0 | P51: =IF(P$2<=Annuity!$E115,INDEX(CalcAnnual!#REF!,,MIN(P$2,RegDur)),0) -> 0 | Q51: =IF(Q$2<=Annuity!$E115,INDEX(CalcAnnual!#REF!,,MIN(Q$2,RegDur)),0) -> 0 | R51: =IF(R$2<=Annuity!$E115,INDEX(CalcAnnual!#REF!,,MIN(R$2,RegDur)),0) -> 0 | S51: =IF(S$2<=Annuity!$E115,INDEX(CalcAnnual!#REF!,,MIN(S$2,RegDur)),0) -> 0 | T51: =IF(T$2<=Annuity!$E115,INDEX(CalcAnnual!#REF!,,MIN(T$2,RegDur)),0) -> 0 | U51: =IF(U$2<=Annuity!$E115,INDEX(CalcAnnual!#REF!,,MIN(U$2,RegDur)),0) -> 0 | V51: =IF(V$2<=Annuity!$E115,INDEX(CalcAnnual!#REF!,,MIN(V$2,RegDur)),0) -> 0 | W51: =IF(W$2<=Annuity!$E115,INDEX(CalcAnnual!#REF!,,MIN(W$2,RegDur)),0) -> 0 | X51: =IF(X$2<=Annuity!$E115,INDEX(CalcAnnual!#REF!,,MIN(X$2,RegDur)),0) -> 0 | Y51: =IF(Y$2<=Annuity!$E115,INDEX(CalcAnnual!#REF!,,MIN(Y$2,RegDur)),0) -> 0 | Z51: =IF(Z$2<=Annuity!$E115,INDEX(CalcAnnual!#REF!,,MIN(Z$2,RegDur)),0) -> 0 | AA51: =IF(AA$2<=Annuity!$E115,INDEX(CalcAnnual!#REF!,,MIN(AA$2,RegDur)),0) -> 0 | AB51: =IF(AB$2<=Annuity!$E115,INDEX(CalcAnnual!#REF!,,MIN(AB$2,RegDur)),0) -> 0 | AC51: =IF(AC$2<=Annuity!$E115,INDEX(CalcAnnual!#REF!,,MIN(AC$2,RegDur)),0) -> 0 | AD51: =IF(AD$2<=Annuity!$E115,INDEX(CalcAnnual!#REF!,,MIN(AD$2,RegDur)),0) -> 0 | AE51: =IF(AE$2<=Annuity!$E115,INDEX(CalcAnnual!#REF!,,MIN(AE$2,RegDur)),0) -> 0 | AF51: =IF(AF$2<=Annuity!$E115,INDEX(CalcAnnual!#REF!,,MIN(AF$2,RegDur)),0) -> 0 | AG51: =IF(AG$2<=Annuity!$E115,INDEX(CalcAnnual!#REF!,,MIN(AG$2,RegDur)),0) -> 0 | AH51: =IF(AH$2<=Annuity!$E115,INDEX(CalcAnnual!#REF!,,MIN(AH$2,RegDur)),0) -> 0 | AI51: =IF(AI$2<=Annuity!$E115,INDEX(CalcAnnual!#REF!,,MIN(AI$2,RegDur)),0) -> 0
B52: TRUE | C52: =Annuity!C116 -> Spare | F52: $ / Component | K52: =IF(K$2<=Annuity!$E116,INDEX(CalcAnnual!#REF!,,MIN(K$2,RegDur)),0) -> 0 | L52: =IF(L$2<=Annuity!$E116,INDEX(CalcAnnual!#REF!,,MIN(L$2,RegDur)),0) -> 0 | M52: =IF(M$2<=Annuity!$E116,INDEX(CalcAnnual!#REF!,,MIN(M$2,RegDur)),0) -> 0 | N52: =IF(N$2<=Annuity!$E116,INDEX(CalcAnnual!#REF!,,MIN(N$2,RegDur)),0) -> 0 | O52: =IF(O$2<=Annuity!$E116,INDEX(CalcAnnual!#REF!,,MIN(O$2,RegDur)),0) -> 0 | P52: =IF(P$2<=Annuity!$E116,INDEX(CalcAnnual!#REF!,,MIN(P$2,RegDur)),0) -> 0 | Q52: =IF(Q$2<=Annuity!$E116,INDEX(CalcAnnual!#REF!,,MIN(Q$2,RegDur)),0) -> 0 | R52: =IF(R$2<=Annuity!$E116,INDEX(CalcAnnual!#REF!,,MIN(R$2,RegDur)),0) -> 0 | S52: =IF(S$2<=Annuity!$E116,INDEX(CalcAnnual!#REF!,,MIN(S$2,RegDur)),0) -> 0 | T52: =IF(T$2<=Annuity!$E116,INDEX(CalcAnnual!#REF!,,MIN(T$2,RegDur)),0) -> 0 | U52: =IF(U$2<=Annuity!$E116,INDEX(CalcAnnual!#REF!,,MIN(U$2,RegDur)),0) -> 0 | V52: =IF(V$2<=Annuity!$E116,INDEX(CalcAnnual!#REF!,,MIN(V$2,RegDur)),0) -> 0 | W52: =IF(W$2<=Annuity!$E116,INDEX(CalcAnnual!#REF!,,MIN(W$2,RegDur)),0) -> 0 | X52: =IF(X$2<=Annuity!$E116,INDEX(CalcAnnual!#REF!,,MIN(X$2,RegDur)),0) -> 0 | Y52: =IF(Y$2<=Annuity!$E116,INDEX(CalcAnnual!#REF!,,MIN(Y$2,RegDur)),0) -> 0 | Z52: =IF(Z$2<=Annuity!$E116,INDEX(CalcAnnual!#REF!,,MIN(Z$2,RegDur)),0) -> 0 | AA52: =IF(AA$2<=Annuity!$E116,INDEX(CalcAnnual!#REF!,,MIN(AA$2,RegDur)),0) -> 0 | AB52: =IF(AB$2<=Annuity!$E116,INDEX(CalcAnnual!#REF!,,MIN(AB$2,RegDur)),0) -> 0 | AC52: =IF(AC$2<=Annuity!$E116,INDEX(CalcAnnual!#REF!,,MIN(AC$2,RegDur)),0) -> 0 | AD52: =IF(AD$2<=Annuity!$E116,INDEX(CalcAnnual!#REF!,,MIN(AD$2,RegDur)),0) -> 0 | AE52: =IF(AE$2<=Annuity!$E116,INDEX(CalcAnnual!#REF!,,MIN(AE$2,RegDur)),0) -> 0 | AF52: =IF(AF$2<=Annuity!$E116,INDEX(CalcAnnual!#REF!,,MIN(AF$2,RegDur)),0) -> 0 | AG52: =IF(AG$2<=Annuity!$E116,INDEX(CalcAnnual!#REF!,,MIN(AG$2,RegDur)),0) -> 0 | AH52: =IF(AH$2<=Annuity!$E116,INDEX(CalcAnnual!#REF!,,MIN(AH$2,RegDur)),0) -> 0 | AI52: =IF(AI$2<=Annuity!$E116,INDEX(CalcAnnual!#REF!,,MIN(AI$2,RegDur)),0) -> 0
B53: TRUE | C53: =Annuity!C117 -> Spare | F53: $ / Component | K53: =IF(K$2<=Annuity!$E117,INDEX(CalcAnnual!#REF!,,MIN(K$2,RegDur)),0) -> 0 | L53: =IF(L$2<=Annuity!$E117,INDEX(CalcAnnual!#REF!,,MIN(L$2,RegDur)),0) -> 0 | M53: =IF(M$2<=Annuity!$E117,INDEX(CalcAnnual!#REF!,,MIN(M$2,RegDur)),0) -> 0 | N53: =IF(N$2<=Annuity!$E117,INDEX(CalcAnnual!#REF!,,MIN(N$2,RegDur)),0) -> 0 | O53: =IF(O$2<=Annuity!$E117,INDEX(CalcAnnual!#REF!,,MIN(O$2,RegDur)),0) -> 0 | P53: =IF(P$2<=Annuity!$E117,INDEX(CalcAnnual!#REF!,,MIN(P$2,RegDur)),0) -> 0 | Q53: =IF(Q$2<=Annuity!$E117,INDEX(CalcAnnual!#REF!,,MIN(Q$2,RegDur)),0) -> 0 | R53: =IF(R$2<=Annuity!$E117,INDEX(CalcAnnual!#REF!,,MIN(R$2,RegDur)),0) -> 0 | S53: =IF(S$2<=Annuity!$E117,INDEX(CalcAnnual!#REF!,,MIN(S$2,RegDur)),0) -> 0 | T53: =IF(T$2<=Annuity!$E117,INDEX(CalcAnnual!#REF!,,MIN(T$2,RegDur)),0) -> 0 | U53: =IF(U$2<=Annuity!$E117,INDEX(CalcAnnual!#REF!,,MIN(U$2,RegDur)),0) -> 0 | V53: =IF(V$2<=Annuity!$E117,INDEX(CalcAnnual!#REF!,,MIN(V$2,RegDur)),0) -> 0 | W53: =IF(W$2<=Annuity!$E117,INDEX(CalcAnnual!#REF!,,MIN(W$2,RegDur)),0) -> 0 | X53: =IF(X$2<=Annuity!$E117,INDEX(CalcAnnual!#REF!,,MIN(X$2,RegDur)),0) -> 0 | Y53: =IF(Y$2<=Annuity!$E117,INDEX(CalcAnnual!#REF!,,MIN(Y$2,RegDur)),0) -> 0 | Z53: =IF(Z$2<=Annuity!$E117,INDEX(CalcAnnual!#REF!,,MIN(Z$2,RegDur)),0) -> 0 | AA53: =IF(AA$2<=Annuity!$E117,INDEX(CalcAnnual!#REF!,,MIN(AA$2,RegDur)),0) -> 0 | AB53: =IF(AB$2<=Annuity!$E117,INDEX(CalcAnnual!#REF!,,MIN(AB$2,RegDur)),0) -> 0 | AC53: =IF(AC$2<=Annuity!$E117,INDEX(CalcAnnual!#REF!,,MIN(AC$2,RegDur)),0) -> 0 | AD53: =IF(AD$2<=Annuity!$E117,INDEX(CalcAnnual!#REF!,,MIN(AD$2,RegDur)),0) -> 0 | AE53: =IF(AE$2<=Annuity!$E117,INDEX(CalcAnnual!#REF!,,MIN(AE$2,RegDur)),0) -> 0 | AF53: =IF(AF$2<=Annuity!$E117,INDEX(CalcAnnual!#REF!,,MIN(AF$2,RegDur)),0) -> 0 | AG53: =IF(AG$2<=Annuity!$E117,INDEX(CalcAnnual!#REF!,,MIN(AG$2,RegDur)),0) -> 0 | AH53: =IF(AH$2<=Annuity!$E117,INDEX(CalcAnnual!#REF!,,MIN(AH$2,RegDur)),0) -> 0 | AI53: =IF(AI$2<=Annuity!$E117,INDEX(CalcAnnual!#REF!,,MIN(AI$2,RegDur)),0) -> 0
B54: TRUE | C54: =Annuity!C118 -> Spare | F54: $ / Component | K54: =IF(K$2<=Annuity!$E118,INDEX(CalcAnnual!#REF!,,MIN(K$2,RegDur)),0) -> 0 | L54: =IF(L$2<=Annuity!$E118,INDEX(CalcAnnual!#REF!,,MIN(L$2,RegDur)),0) -> 0 | M54: =IF(M$2<=Annuity!$E118,INDEX(CalcAnnual!#REF!,,MIN(M$2,RegDur)),0) -> 0 | N54: =IF(N$2<=Annuity!$E118,INDEX(CalcAnnual!#REF!,,MIN(N$2,RegDur)),0) -> 0 | O54: =IF(O$2<=Annuity!$E118,INDEX(CalcAnnual!#REF!,,MIN(O$2,RegDur)),0) -> 0 | P54: =IF(P$2<=Annuity!$E118,INDEX(CalcAnnual!#REF!,,MIN(P$2,RegDur)),0) -> 0 | Q54: =IF(Q$2<=Annuity!$E118,INDEX(CalcAnnual!#REF!,,MIN(Q$2,RegDur)),0) -> 0 | R54: =IF(R$2<=Annuity!$E118,INDEX(CalcAnnual!#REF!,,MIN(R$2,RegDur)),0) -> 0 | S54: =IF(S$2<=Annuity!$E118,INDEX(CalcAnnual!#REF!,,MIN(S$2,RegDur)),0) -> 0 | T54: =IF(T$2<=Annuity!$E118,INDEX(CalcAnnual!#REF!,,MIN(T$2,RegDur)),0) -> 0 | U54: =IF(U$2<=Annuity!$E118,INDEX(CalcAnnual!#REF!,,MIN(U$2,RegDur)),0) -> 0 | V54: =IF(V$2<=Annuity!$E118,INDEX(CalcAnnual!#REF!,,MIN(V$2,RegDur)),0) -> 0 | W54: =IF(W$2<=Annuity!$E118,INDEX(CalcAnnual!#REF!,,MIN(W$2,RegDur)),0) -> 0 | X54: =IF(X$2<=Annuity!$E118,INDEX(CalcAnnual!#REF!,,MIN(X$2,RegDur)),0) -> 0 | Y54: =IF(Y$2<=Annuity!$E118,INDEX(CalcAnnual!#REF!,,MIN(Y$2,RegDur)),0) -> 0 | Z54: =IF(Z$2<=Annuity!$E118,INDEX(CalcAnnual!#REF!,,MIN(Z$2,RegDur)),0) -> 0 | AA54: =IF(AA$2<=Annuity!$E118,INDEX(CalcAnnual!#REF!,,MIN(AA$2,RegDur)),0) -> 0 | AB54: =IF(AB$2<=Annuity!$E118,INDEX(CalcAnnual!#REF!,,MIN(AB$2,RegDur)),0) -> 0 | AC54: =IF(AC$2<=Annuity!$E118,INDEX(CalcAnnual!#REF!,,MIN(AC$2,RegDur)),0) -> 0 | AD54: =IF(AD$2<=Annuity!$E118,INDEX(CalcAnnual!#REF!,,MIN(AD$2,RegDur)),0) -> 0 | AE54: =IF(AE$2<=Annuity!$E118,INDEX(CalcAnnual!#REF!,,MIN(AE$2,RegDur)),0) -> 0 | AF54: =IF(AF$2<=Annuity!$E118,INDEX(CalcAnnual!#REF!,,MIN(AF$2,RegDur)),0) -> 0 | AG54: =IF(AG$2<=Annuity!$E118,INDEX(CalcAnnual!#REF!,,MIN(AG$2,RegDur)),0) -> 0 | AH54: =IF(AH$2<=Annuity!$E118,INDEX(CalcAnnual!#REF!,,MIN(AH$2,RegDur)),0) -> 0 | AI54: =IF(AI$2<=Annuity!$E118,INDEX(CalcAnnual!#REF!,,MIN(AI$2,RegDur)),0) -> 0
B55: TRUE | C55: =Annuity!C119 -> Spare | F55: $ / Component | K55: =IF(K$2<=Annuity!$E119,INDEX(CalcAnnual!#REF!,,MIN(K$2,RegDur)),0) -> 0 | L55: =IF(L$2<=Annuity!$E119,INDEX(CalcAnnual!#REF!,,MIN(L$2,RegDur)),0) -> 0 | M55: =IF(M$2<=Annuity!$E119,INDEX(CalcAnnual!#REF!,,MIN(M$2,RegDur)),0) -> 0 | N55: =IF(N$2<=Annuity!$E119,INDEX(CalcAnnual!#REF!,,MIN(N$2,RegDur)),0) -> 0 | O55: =IF(O$2<=Annuity!$E119,INDEX(CalcAnnual!#REF!,,MIN(O$2,RegDur)),0) -> 0 | P55: =IF(P$2<=Annuity!$E119,INDEX(CalcAnnual!#REF!,,MIN(P$2,RegDur)),0) -> 0 | Q55: =IF(Q$2<=Annuity!$E119,INDEX(CalcAnnual!#REF!,,MIN(Q$2,RegDur)),0) -> 0 | R55: =IF(R$2<=Annuity!$E119,INDEX(CalcAnnual!#REF!,,MIN(R$2,RegDur)),0) -> 0 | S55: =IF(S$2<=Annuity!$E119,INDEX(CalcAnnual!#REF!,,MIN(S$2,RegDur)),0) -> 0 | T55: =IF(T$2<=Annuity!$E119,INDEX(CalcAnnual!#REF!,,MIN(T$2,RegDur)),0) -> 0 | U55: =IF(U$2<=Annuity!$E119,INDEX(CalcAnnual!#REF!,,MIN(U$2,RegDur)),0) -> 0 | V55: =IF(V$2<=Annuity!$E119,INDEX(CalcAnnual!#REF!,,MIN(V$2,RegDur)),0) -> 0 | W55: =IF(W$2<=Annuity!$E119,INDEX(CalcAnnual!#REF!,,MIN(W$2,RegDur)),0) -> 0 | X55: =IF(X$2<=Annuity!$E119,INDEX(CalcAnnual!#REF!,,MIN(X$2,RegDur)),0) -> 0 | Y55: =IF(Y$2<=Annuity!$E119,INDEX(CalcAnnual!#REF!,,MIN(Y$2,RegDur)),0) -> 0 | Z55: =IF(Z$2<=Annuity!$E119,INDEX(CalcAnnual!#REF!,,MIN(Z$2,RegDur)),0) -> 0 | AA55: =IF(AA$2<=Annuity!$E119,INDEX(CalcAnnual!#REF!,,MIN(AA$2,RegDur)),0) -> 0 | AB55: =IF(AB$2<=Annuity!$E119,INDEX(CalcAnnual!#REF!,,MIN(AB$2,RegDur)),0) -> 0 | AC55: =IF(AC$2<=Annuity!$E119,INDEX(CalcAnnual!#REF!,,MIN(AC$2,RegDur)),0) -> 0 | AD55: =IF(AD$2<=Annuity!$E119,INDEX(CalcAnnual!#REF!,,MIN(AD$2,RegDur)),0) -> 0 | AE55: =IF(AE$2<=Annuity!$E119,INDEX(CalcAnnual!#REF!,,MIN(AE$2,RegDur)),0) -> 0 | AF55: =IF(AF$2<=Annuity!$E119,INDEX(CalcAnnual!#REF!,,MIN(AF$2,RegDur)),0) -> 0 | AG55: =IF(AG$2<=Annuity!$E119,INDEX(CalcAnnual!#REF!,,MIN(AG$2,RegDur)),0) -> 0 | AH55: =IF(AH$2<=Annuity!$E119,INDEX(CalcAnnual!#REF!,,MIN(AH$2,RegDur)),0) -> 0 | AI55: =IF(AI$2<=Annuity!$E119,INDEX(CalcAnnual!#REF!,,MIN(AI$2,RegDur)),0) -> 0
B56: TRUE | C56: =Annuity!C120 -> Spare | F56: $ / Component | K56: =IF(K$2<=Annuity!$E120,INDEX(CalcAnnual!#REF!,,MIN(K$2,RegDur)),0) -> 0 | L56: =IF(L$2<=Annuity!$E120,INDEX(CalcAnnual!#REF!,,MIN(L$2,RegDur)),0) -> 0 | M56: =IF(M$2<=Annuity!$E120,INDEX(CalcAnnual!#REF!,,MIN(M$2,RegDur)),0) -> 0 | N56: =IF(N$2<=Annuity!$E120,INDEX(CalcAnnual!#REF!,,MIN(N$2,RegDur)),0) -> 0 | O56: =IF(O$2<=Annuity!$E120,INDEX(CalcAnnual!#REF!,,MIN(O$2,RegDur)),0) -> 0 | P56: =IF(P$2<=Annuity!$E120,INDEX(CalcAnnual!#REF!,,MIN(P$2,RegDur)),0) -> 0 | Q56: =IF(Q$2<=Annuity!$E120,INDEX(CalcAnnual!#REF!,,MIN(Q$2,RegDur)),0) -> 0 | R56: =IF(R$2<=Annuity!$E120,INDEX(CalcAnnual!#REF!,,MIN(R$2,RegDur)),0) -> 0 | S56: =IF(S$2<=Annuity!$E120,INDEX(CalcAnnual!#REF!,,MIN(S$2,RegDur)),0) -> 0 | T56: =IF(T$2<=Annuity!$E120,INDEX(CalcAnnual!#REF!,,MIN(T$2,RegDur)),0) -> 0 | U56: =IF(U$2<=Annuity!$E120,INDEX(CalcAnnual!#REF!,,MIN(U$2,RegDur)),0) -> 0 | V56: =IF(V$2<=Annuity!$E120,INDEX(CalcAnnual!#REF!,,MIN(V$2,RegDur)),0) -> 0 | W56: =IF(W$2<=Annuity!$E120,INDEX(CalcAnnual!#REF!,,MIN(W$2,RegDur)),0) -> 0 | X56: =IF(X$2<=Annuity!$E120,INDEX(CalcAnnual!#REF!,,MIN(X$2,RegDur)),0) -> 0 | Y56: =IF(Y$2<=Annuity!$E120,INDEX(CalcAnnual!#REF!,,MIN(Y$2,RegDur)),0) -> 0 | Z56: =IF(Z$2<=Annuity!$E120,INDEX(CalcAnnual!#REF!,,MIN(Z$2,RegDur)),0) -> 0 | AA56: =IF(AA$2<=Annuity!$E120,INDEX(CalcAnnual!#REF!,,MIN(AA$2,RegDur)),0) -> 0 | AB56: =IF(AB$2<=Annuity!$E120,INDEX(CalcAnnual!#REF!,,MIN(AB$2,RegDur)),0) -> 0 | AC56: =IF(AC$2<=Annuity!$E120,INDEX(CalcAnnual!#REF!,,MIN(AC$2,RegDur)),0) -> 0 | AD56: =IF(AD$2<=Annuity!$E120,INDEX(CalcAnnual!#REF!,,MIN(AD$2,RegDur)),0) -> 0 | AE56: =IF(AE$2<=Annuity!$E120,INDEX(CalcAnnual!#REF!,,MIN(AE$2,RegDur)),0) -> 0 | AF56: =IF(AF$2<=Annuity!$E120,INDEX(CalcAnnual!#REF!,,MIN(AF$2,RegDur)),0) -> 0 | AG56: =IF(AG$2<=Annuity!$E120,INDEX(CalcAnnual!#REF!,,MIN(AG$2,RegDur)),0) -> 0 | AH56: =IF(AH$2<=Annuity!$E120,INDEX(CalcAnnual!#REF!,,MIN(AH$2,RegDur)),0) -> 0 | AI56: =IF(AI$2<=Annuity!$E120,INDEX(CalcAnnual!#REF!,,MIN(AI$2,RegDur)),0) -> 0
B57: TRUE | C57: =Annuity!C121 -> Spare | F57: $ / Component | K57: =IF(K$2<=Annuity!$E121,INDEX(CalcAnnual!#REF!,,MIN(K$2,RegDur)),0) -> 0 | L57: =IF(L$2<=Annuity!$E121,INDEX(CalcAnnual!#REF!,,MIN(L$2,RegDur)),0) -> 0 | M57: =IF(M$2<=Annuity!$E121,INDEX(CalcAnnual!#REF!,,MIN(M$2,RegDur)),0) -> 0 | N57: =IF(N$2<=Annuity!$E121,INDEX(CalcAnnual!#REF!,,MIN(N$2,RegDur)),0) -> 0 | O57: =IF(O$2<=Annuity!$E121,INDEX(CalcAnnual!#REF!,,MIN(O$2,RegDur)),0) -> 0 | P57: =IF(P$2<=Annuity!$E121,INDEX(CalcAnnual!#REF!,,MIN(P$2,RegDur)),0) -> 0 | Q57: =IF(Q$2<=Annuity!$E121,INDEX(CalcAnnual!#REF!,,MIN(Q$2,RegDur)),0) -> 0 | R57: =IF(R$2<=Annuity!$E121,INDEX(CalcAnnual!#REF!,,MIN(R$2,RegDur)),0) -> 0 | S57: =IF(S$2<=Annuity!$E121,INDEX(CalcAnnual!#REF!,,MIN(S$2,RegDur)),0) -> 0 | T57: =IF(T$2<=Annuity!$E121,INDEX(CalcAnnual!#REF!,,MIN(T$2,RegDur)),0) -> 0 | U57: =IF(U$2<=Annuity!$E121,INDEX(CalcAnnual!#REF!,,MIN(U$2,RegDur)),0) -> 0 | V57: =IF(V$2<=Annuity!$E121,INDEX(CalcAnnual!#REF!,,MIN(V$2,RegDur)),0) -> 0 | W57: =IF(W$2<=Annuity!$E121,INDEX(CalcAnnual!#REF!,,MIN(W$2,RegDur)),0) -> 0 | X57: =IF(X$2<=Annuity!$E121,INDEX(CalcAnnual!#REF!,,MIN(X$2,RegDur)),0) -> 0 | Y57: =IF(Y$2<=Annuity!$E121,INDEX(CalcAnnual!#REF!,,MIN(Y$2,RegDur)),0) -> 0 | Z57: =IF(Z$2<=Annuity!$E121,INDEX(CalcAnnual!#REF!,,MIN(Z$2,RegDur)),0) -> 0 | AA57: =IF(AA$2<=Annuity!$E121,INDEX(CalcAnnual!#REF!,,MIN(AA$2,RegDur)),0) -> 0 | AB57: =IF(AB$2<=Annuity!$E121,INDEX(CalcAnnual!#REF!,,MIN(AB$2,RegDur)),0) -> 0 | AC57: =IF(AC$2<=Annuity!$E121,INDEX(CalcAnnual!#REF!,,MIN(AC$2,RegDur)),0) -> 0 | AD57: =IF(AD$2<=Annuity!$E121,INDEX(CalcAnnual!#REF!,,MIN(AD$2,RegDur)),0) -> 0 | AE57: =IF(AE$2<=Annuity!$E121,INDEX(CalcAnnual!#REF!,,MIN(AE$2,RegDur)),0) -> 0 | AF57: =IF(AF$2<=Annuity!$E121,INDEX(CalcAnnual!#REF!,,MIN(AF$2,RegDur)),0) -> 0 | AG57: =IF(AG$2<=Annuity!$E121,INDEX(CalcAnnual!#REF!,,MIN(AG$2,RegDur)),0) -> 0 | AH57: =IF(AH$2<=Annuity!$E121,INDEX(CalcAnnual!#REF!,,MIN(AH$2,RegDur)),0) -> 0 | AI57: =IF(AI$2<=Annuity!$E121,INDEX(CalcAnnual!#REF!,,MIN(AI$2,RegDur)),0) -> 0
B58: TRUE | C58: =Annuity!C122 -> Spare | F58: $ / Component | K58: =IF(K$2<=Annuity!$E122,INDEX(CalcAnnual!#REF!,,MIN(K$2,RegDur)),0) -> 0 | L58: =IF(L$2<=Annuity!$E122,INDEX(CalcAnnual!#REF!,,MIN(L$2,RegDur)),0) -> 0 | M58: =IF(M$2<=Annuity!$E122,INDEX(CalcAnnual!#REF!,,MIN(M$2,RegDur)),0) -> 0 | N58: =IF(N$2<=Annuity!$E122,INDEX(CalcAnnual!#REF!,,MIN(N$2,RegDur)),0) -> 0 | O58: =IF(O$2<=Annuity!$E122,INDEX(CalcAnnual!#REF!,,MIN(O$2,RegDur)),0) -> 0 | P58: =IF(P$2<=Annuity!$E122,INDEX(CalcAnnual!#REF!,,MIN(P$2,RegDur)),0) -> 0 | Q58: =IF(Q$2<=Annuity!$E122,INDEX(CalcAnnual!#REF!,,MIN(Q$2,RegDur)),0) -> 0 | R58: =IF(R$2<=Annuity!$E122,INDEX(CalcAnnual!#REF!,,MIN(R$2,RegDur)),0) -> 0 | S58: =IF(S$2<=Annuity!$E122,INDEX(CalcAnnual!#REF!,,MIN(S$2,RegDur)),0) -> 0 | T58: =IF(T$2<=Annuity!$E122,INDEX(CalcAnnual!#REF!,,MIN(T$2,RegDur)),0) -> 0 | U58: =IF(U$2<=Annuity!$E122,INDEX(CalcAnnual!#REF!,,MIN(U$2,RegDur)),0) -> 0 | V58: =IF(V$2<=Annuity!$E122,INDEX(CalcAnnual!#REF!,,MIN(V$2,RegDur)),0) -> 0 | W58: =IF(W$2<=Annuity!$E122,INDEX(CalcAnnual!#REF!,,MIN(W$2,RegDur)),0) -> 0 | X58: =IF(X$2<=Annuity!$E122,INDEX(CalcAnnual!#REF!,,MIN(X$2,RegDur)),0) -> 0 | Y58: =IF(Y$2<=Annuity!$E122,INDEX(CalcAnnual!#REF!,,MIN(Y$2,RegDur)),0) -> 0 | Z58: =IF(Z$2<=Annuity!$E122,INDEX(CalcAnnual!#REF!,,MIN(Z$2,RegDur)),0) -> 0 | AA58: =IF(AA$2<=Annuity!$E122,INDEX(CalcAnnual!#REF!,,MIN(AA$2,RegDur)),0) -> 0 | AB58: =IF(AB$2<=Annuity!$E122,INDEX(CalcAnnual!#REF!,,MIN(AB$2,RegDur)),0) -> 0 | AC58: =IF(AC$2<=Annuity!$E122,INDEX(CalcAnnual!#REF!,,MIN(AC$2,RegDur)),0) -> 0 | AD58: =IF(AD$2<=Annuity!$E122,INDEX(CalcAnnual!#REF!,,MIN(AD$2,RegDur)),0) -> 0 | AE58: =IF(AE$2<=Annuity!$E122,INDEX(CalcAnnual!#REF!,,MIN(AE$2,RegDur)),0) -> 0 | AF58: =IF(AF$2<=Annuity!$E122,INDEX(CalcAnnual!#REF!,,MIN(AF$2,RegDur)),0) -> 0 | AG58: =IF(AG$2<=Annuity!$E122,INDEX(CalcAnnual!#REF!,,MIN(AG$2,RegDur)),0) -> 0 | AH58: =IF(AH$2<=Annuity!$E122,INDEX(CalcAnnual!#REF!,,MIN(AH$2,RegDur)),0) -> 0 | AI58: =IF(AI$2<=Annuity!$E122,INDEX(CalcAnnual!#REF!,,MIN(AI$2,RegDur)),0) -> 0
B59: TRUE | C59: =Annuity!C123 -> Spare | F59: $ / Component | K59: =IF(K$2<=Annuity!$E123,INDEX(CalcAnnual!#REF!,,MIN(K$2,RegDur)),0) -> 0 | L59: =IF(L$2<=Annuity!$E123,INDEX(CalcAnnual!#REF!,,MIN(L$2,RegDur)),0) -> 0 | M59: =IF(M$2<=Annuity!$E123,INDEX(CalcAnnual!#REF!,,MIN(M$2,RegDur)),0) -> 0 | N59: =IF(N$2<=Annuity!$E123,INDEX(CalcAnnual!#REF!,,MIN(N$2,RegDur)),0) -> 0 | O59: =IF(O$2<=Annuity!$E123,INDEX(CalcAnnual!#REF!,,MIN(O$2,RegDur)),0) -> 0 | P59: =IF(P$2<=Annuity!$E123,INDEX(CalcAnnual!#REF!,,MIN(P$2,RegDur)),0) -> 0 | Q59: =IF(Q$2<=Annuity!$E123,INDEX(CalcAnnual!#REF!,,MIN(Q$2,RegDur)),0) -> 0 | R59: =IF(R$2<=Annuity!$E123,INDEX(CalcAnnual!#REF!,,MIN(R$2,RegDur)),0) -> 0 | S59: =IF(S$2<=Annuity!$E123,INDEX(CalcAnnual!#REF!,,MIN(S$2,RegDur)),0) -> 0 | T59: =IF(T$2<=Annuity!$E123,INDEX(CalcAnnual!#REF!,,MIN(T$2,RegDur)),0) -> 0 | U59: =IF(U$2<=Annuity!$E123,INDEX(CalcAnnual!#REF!,,MIN(U$2,RegDur)),0) -> 0 | V59: =IF(V$2<=Annuity!$E123,INDEX(CalcAnnual!#REF!,,MIN(V$2,RegDur)),0) -> 0 | W59: =IF(W$2<=Annuity!$E123,INDEX(CalcAnnual!#REF!,,MIN(W$2,RegDur)),0) -> 0 | X59: =IF(X$2<=Annuity!$E123,INDEX(CalcAnnual!#REF!,,MIN(X$2,RegDur)),0) -> 0 | Y59: =IF(Y$2<=Annuity!$E123,INDEX(CalcAnnual!#REF!,,MIN(Y$2,RegDur)),0) -> 0 | Z59: =IF(Z$2<=Annuity!$E123,INDEX(CalcAnnual!#REF!,,MIN(Z$2,RegDur)),0) -> 0 | AA59: =IF(AA$2<=Annuity!$E123,INDEX(CalcAnnual!#REF!,,MIN(AA$2,RegDur)),0) -> 0 | AB59: =IF(AB$2<=Annuity!$E123,INDEX(CalcAnnual!#REF!,,MIN(AB$2,RegDur)),0) -> 0 | AC59: =IF(AC$2<=Annuity!$E123,INDEX(CalcAnnual!#REF!,,MIN(AC$2,RegDur)),0) -> 0 | AD59: =IF(AD$2<=Annuity!$E123,INDEX(CalcAnnual!#REF!,,MIN(AD$2,RegDur)),0) -> 0 | AE59: =IF(AE$2<=Annuity!$E123,INDEX(CalcAnnual!#REF!,,MIN(AE$2,RegDur)),0) -> 0 | AF59: =IF(AF$2<=Annuity!$E123,INDEX(CalcAnnual!#REF!,,MIN(AF$2,RegDur)),0) -> 0 | AG59: =IF(AG$2<=Annuity!$E123,INDEX(CalcAnnual!#REF!,,MIN(AG$2,RegDur)),0) -> 0 | AH59: =IF(AH$2<=Annuity!$E123,INDEX(CalcAnnual!#REF!,,MIN(AH$2,RegDur)),0) -> 0 | AI59: =IF(AI$2<=Annuity!$E123,INDEX(CalcAnnual!#REF!,,MIN(AI$2,RegDur)),0) -> 0
B60: TRUE | C60: =Annuity!C124 -> Spare | F60: $ / Component | K60: =IF(K$2<=Annuity!$E124,INDEX(CalcAnnual!#REF!,,MIN(K$2,RegDur)),0) -> 0 | L60: =IF(L$2<=Annuity!$E124,INDEX(CalcAnnual!#REF!,,MIN(L$2,RegDur)),0) -> 0 | M60: =IF(M$2<=Annuity!$E124,INDEX(CalcAnnual!#REF!,,MIN(M$2,RegDur)),0) -> 0 | N60: =IF(N$2<=Annuity!$E124,INDEX(CalcAnnual!#REF!,,MIN(N$2,RegDur)),0) -> 0 | O60: =IF(O$2<=Annuity!$E124,INDEX(CalcAnnual!#REF!,,MIN(O$2,RegDur)),0) -> 0 | P60: =IF(P$2<=Annuity!$E124,INDEX(CalcAnnual!#REF!,,MIN(P$2,RegDur)),0) -> 0 | Q60: =IF(Q$2<=Annuity!$E124,INDEX(CalcAnnual!#REF!,,MIN(Q$2,RegDur)),0) -> 0 | R60: =IF(R$2<=Annuity!$E124,INDEX(CalcAnnual!#REF!,,MIN(R$2,RegDur)),0) -> 0 | S60: =IF(S$2<=Annuity!$E124,INDEX(CalcAnnual!#REF!,,MIN(S$2,RegDur)),0) -> 0 | T60: =IF(T$2<=Annuity!$E124,INDEX(CalcAnnual!#REF!,,MIN(T$2,RegDur)),0) -> 0 | U60: =IF(U$2<=Annuity!$E124,INDEX(CalcAnnual!#REF!,,MIN(U$2,RegDur)),0) -> 0 | V60: =IF(V$2<=Annuity!$E124,INDEX(CalcAnnual!#REF!,,MIN(V$2,RegDur)),0) -> 0 | W60: =IF(W$2<=Annuity!$E124,INDEX(CalcAnnual!#REF!,,MIN(W$2,RegDur)),0) -> 0 | X60: =IF(X$2<=Annuity!$E124,INDEX(CalcAnnual!#REF!,,MIN(X$2,RegDur)),0) -> 0 | Y60: =IF(Y$2<=Annuity!$E124,INDEX(CalcAnnual!#REF!,,MIN(Y$2,RegDur)),0) -> 0 | Z60: =IF(Z$2<=Annuity!$E124,INDEX(CalcAnnual!#REF!,,MIN(Z$2,RegDur)),0) -> 0 | AA60: =IF(AA$2<=Annuity!$E124,INDEX(CalcAnnual!#REF!,,MIN(AA$2,RegDur)),0) -> 0 | AB60: =IF(AB$2<=Annuity!$E124,INDEX(CalcAnnual!#REF!,,MIN(AB$2,RegDur)),0) -> 0 | AC60: =IF(AC$2<=Annuity!$E124,INDEX(CalcAnnual!#REF!,,MIN(AC$2,RegDur)),0) -> 0 | AD60: =IF(AD$2<=Annuity!$E124,INDEX(CalcAnnual!#REF!,,MIN(AD$2,RegDur)),0) -> 0 | AE60: =IF(AE$2<=Annuity!$E124,INDEX(CalcAnnual!#REF!,,MIN(AE$2,RegDur)),0) -> 0 | AF60: =IF(AF$2<=Annuity!$E124,INDEX(CalcAnnual!#REF!,,MIN(AF$2,RegDur)),0) -> 0 | AG60: =IF(AG$2<=Annuity!$E124,INDEX(CalcAnnual!#REF!,,MIN(AG$2,RegDur)),0) -> 0 | AH60: =IF(AH$2<=Annuity!$E124,INDEX(CalcAnnual!#REF!,,MIN(AH$2,RegDur)),0) -> 0 | AI60: =IF(AI$2<=Annuity!$E124,INDEX(CalcAnnual!#REF!,,MIN(AI$2,RegDur)),0) -> 0
B61: TRUE | C61: =Annuity!C125 -> Spare | F61: $ / Component | K61: =IF(K$2<=Annuity!$E125,INDEX(CalcAnnual!#REF!,,MIN(K$2,RegDur)),0) -> 0 | L61: =IF(L$2<=Annuity!$E125,INDEX(CalcAnnual!#REF!,,MIN(L$2,RegDur)),0) -> 0 | M61: =IF(M$2<=Annuity!$E125,INDEX(CalcAnnual!#REF!,,MIN(M$2,RegDur)),0) -> 0 | N61: =IF(N$2<=Annuity!$E125,INDEX(CalcAnnual!#REF!,,MIN(N$2,RegDur)),0) -> 0 | O61: =IF(O$2<=Annuity!$E125,INDEX(CalcAnnual!#REF!,,MIN(O$2,RegDur)),0) -> 0 | P61: =IF(P$2<=Annuity!$E125,INDEX(CalcAnnual!#REF!,,MIN(P$2,RegDur)),0) -> 0 | Q61: =IF(Q$2<=Annuity!$E125,INDEX(CalcAnnual!#REF!,,MIN(Q$2,RegDur)),0) -> 0 | R61: =IF(R$2<=Annuity!$E125,INDEX(CalcAnnual!#REF!,,MIN(R$2,RegDur)),0) -> 0 | S61: =IF(S$2<=Annuity!$E125,INDEX(CalcAnnual!#REF!,,MIN(S$2,RegDur)),0) -> 0 | T61: =IF(T$2<=Annuity!$E125,INDEX(CalcAnnual!#REF!,,MIN(T$2,RegDur)),0) -> 0 | U61: =IF(U$2<=Annuity!$E125,INDEX(CalcAnnual!#REF!,,MIN(U$2,RegDur)),0) -> 0 | V61: =IF(V$2<=Annuity!$E125,INDEX(CalcAnnual!#REF!,,MIN(V$2,RegDur)),0) -> 0 | W61: =IF(W$2<=Annuity!$E125,INDEX(CalcAnnual!#REF!,,MIN(W$2,RegDur)),0) -> 0 | X61: =IF(X$2<=Annuity!$E125,INDEX(CalcAnnual!#REF!,,MIN(X$2,RegDur)),0) -> 0 | Y61: =IF(Y$2<=Annuity!$E125,INDEX(CalcAnnual!#REF!,,MIN(Y$2,RegDur)),0) -> 0 | Z61: =IF(Z$2<=Annuity!$E125,INDEX(CalcAnnual!#REF!,,MIN(Z$2,RegDur)),0) -> 0 | AA61: =IF(AA$2<=Annuity!$E125,INDEX(CalcAnnual!#REF!,,MIN(AA$2,RegDur)),0) -> 0 | AB61: =IF(AB$2<=Annuity!$E125,INDEX(CalcAnnual!#REF!,,MIN(AB$2,RegDur)),0) -> 0 | AC61: =IF(AC$2<=Annuity!$E125,INDEX(CalcAnnual!#REF!,,MIN(AC$2,RegDur)),0) -> 0 | AD61: =IF(AD$2<=Annuity!$E125,INDEX(CalcAnnual!#REF!,,MIN(AD$2,RegDur)),0) -> 0 | AE61: =IF(AE$2<=Annuity!$E125,INDEX(CalcAnnual!#REF!,,MIN(AE$2,RegDur)),0) -> 0 | AF61: =IF(AF$2<=Annuity!$E125,INDEX(CalcAnnual!#REF!,,MIN(AF$2,RegDur)),0) -> 0 | AG61: =IF(AG$2<=Annuity!$E125,INDEX(CalcAnnual!#REF!,,MIN(AG$2,RegDur)),0) -> 0 | AH61: =IF(AH$2<=Annuity!$E125,INDEX(CalcAnnual!#REF!,,MIN(AH$2,RegDur)),0) -> 0 | AI61: =IF(AI$2<=Annuity!$E125,INDEX(CalcAnnual!#REF!,,MIN(AI$2,RegDur)),0) -> 0
B62: TRUE | C62: =Annuity!C126 -> Spare | F62: $ / Component | K62: =IF(K$2<=Annuity!$E126,INDEX(CalcAnnual!#REF!,,MIN(K$2,RegDur)),0) -> 0 | L62: =IF(L$2<=Annuity!$E126,INDEX(CalcAnnual!#REF!,,MIN(L$2,RegDur)),0) -> 0 | M62: =IF(M$2<=Annuity!$E126,INDEX(CalcAnnual!#REF!,,MIN(M$2,RegDur)),0) -> 0 | N62: =IF(N$2<=Annuity!$E126,INDEX(CalcAnnual!#REF!,,MIN(N$2,RegDur)),0) -> 0 | O62: =IF(O$2<=Annuity!$E126,INDEX(CalcAnnual!#REF!,,MIN(O$2,RegDur)),0) -> 0 | P62: =IF(P$2<=Annuity!$E126,INDEX(CalcAnnual!#REF!,,MIN(P$2,RegDur)),0) -> 0 | Q62: =IF(Q$2<=Annuity!$E126,INDEX(CalcAnnual!#REF!,,MIN(Q$2,RegDur)),0) -> 0 | R62: =IF(R$2<=Annuity!$E126,INDEX(CalcAnnual!#REF!,,MIN(R$2,RegDur)),0) -> 0 | S62: =IF(S$2<=Annuity!$E126,INDEX(CalcAnnual!#REF!,,MIN(S$2,RegDur)),0) -> 0 | T62: =IF(T$2<=Annuity!$E126,INDEX(CalcAnnual!#REF!,,MIN(T$2,RegDur)),0) -> 0 | U62: =IF(U$2<=Annuity!$E126,INDEX(CalcAnnual!#REF!,,MIN(U$2,RegDur)),0) -> 0 | V62: =IF(V$2<=Annuity!$E126,INDEX(CalcAnnual!#REF!,,MIN(V$2,RegDur)),0) -> 0 | W62: =IF(W$2<=Annuity!$E126,INDEX(CalcAnnual!#REF!,,MIN(W$2,RegDur)),0) -> 0 | X62: =IF(X$2<=Annuity!$E126,INDEX(CalcAnnual!#REF!,,MIN(X$2,RegDur)),0) -> 0 | Y62: =IF(Y$2<=Annuity!$E126,INDEX(CalcAnnual!#REF!,,MIN(Y$2,RegDur)),0) -> 0 | Z62: =IF(Z$2<=Annuity!$E126,INDEX(CalcAnnual!#REF!,,MIN(Z$2,RegDur)),0) -> 0 | AA62: =IF(AA$2<=Annuity!$E126,INDEX(CalcAnnual!#REF!,,MIN(AA$2,RegDur)),0) -> 0 | AB62: =IF(AB$2<=Annuity!$E126,INDEX(CalcAnnual!#REF!,,MIN(AB$2,RegDur)),0) -> 0 | AC62: =IF(AC$2<=Annuity!$E126,INDEX(CalcAnnual!#REF!,,MIN(AC$2,RegDur)),0) -> 0 | AD62: =IF(AD$2<=Annuity!$E126,INDEX(CalcAnnual!#REF!,,MIN(AD$2,RegDur)),0) -> 0 | AE62: =IF(AE$2<=Annuity!$E126,INDEX(CalcAnnual!#REF!,,MIN(AE$2,RegDur)),0) -> 0 | AF62: =IF(AF$2<=Annuity!$E126,INDEX(CalcAnnual!#REF!,,MIN(AF$2,RegDur)),0) -> 0 | AG62: =IF(AG$2<=Annuity!$E126,INDEX(CalcAnnual!#REF!,,MIN(AG$2,RegDur)),0) -> 0 | AH62: =IF(AH$2<=Annuity!$E126,INDEX(CalcAnnual!#REF!,,MIN(AH$2,RegDur)),0) -> 0 | AI62: =IF(AI$2<=Annuity!$E126,INDEX(CalcAnnual!#REF!,,MIN(AI$2,RegDur)),0) -> 0
B63: TRUE | C63: =Annuity!C127 -> Spare | F63: $ / Component | K63: =IF(K$2<=Annuity!$E127,INDEX(CalcAnnual!#REF!,,MIN(K$2,RegDur)),0) -> 0 | L63: =IF(L$2<=Annuity!$E127,INDEX(CalcAnnual!#REF!,,MIN(L$2,RegDur)),0) -> 0 | M63: =IF(M$2<=Annuity!$E127,INDEX(CalcAnnual!#REF!,,MIN(M$2,RegDur)),0) -> 0 | N63: =IF(N$2<=Annuity!$E127,INDEX(CalcAnnual!#REF!,,MIN(N$2,RegDur)),0) -> 0 | O63: =IF(O$2<=Annuity!$E127,INDEX(CalcAnnual!#REF!,,MIN(O$2,RegDur)),0) -> 0 | P63: =IF(P$2<=Annuity!$E127,INDEX(CalcAnnual!#REF!,,MIN(P$2,RegDur)),0) -> 0 | Q63: =IF(Q$2<=Annuity!$E127,INDEX(CalcAnnual!#REF!,,MIN(Q$2,RegDur)),0) -> 0 | R63: =IF(R$2<=Annuity!$E127,INDEX(CalcAnnual!#REF!,,MIN(R$2,RegDur)),0) -> 0 | S63: =IF(S$2<=Annuity!$E127,INDEX(CalcAnnual!#REF!,,MIN(S$2,RegDur)),0) -> 0 | T63: =IF(T$2<=Annuity!$E127,INDEX(CalcAnnual!#REF!,,MIN(T$2,RegDur)),0) -> 0 | U63: =IF(U$2<=Annuity!$E127,INDEX(CalcAnnual!#REF!,,MIN(U$2,RegDur)),0) -> 0 | V63: =IF(V$2<=Annuity!$E127,INDEX(CalcAnnual!#REF!,,MIN(V$2,RegDur)),0) -> 0 | W63: =IF(W$2<=Annuity!$E127,INDEX(CalcAnnual!#REF!,,MIN(W$2,RegDur)),0) -> 0 | X63: =IF(X$2<=Annuity!$E127,INDEX(CalcAnnual!#REF!,,MIN(X$2,RegDur)),0) -> 0 | Y63: =IF(Y$2<=Annuity!$E127,INDEX(CalcAnnual!#REF!,,MIN(Y$2,RegDur)),0) -> 0 | Z63: =IF(Z$2<=Annuity!$E127,INDEX(CalcAnnual!#REF!,,MIN(Z$2,RegDur)),0) -> 0 | AA63: =IF(AA$2<=Annuity!$E127,INDEX(CalcAnnual!#REF!,,MIN(AA$2,RegDur)),0) -> 0 | AB63: =IF(AB$2<=Annuity!$E127,INDEX(CalcAnnual!#REF!,,MIN(AB$2,RegDur)),0) -> 0 | AC63: =IF(AC$2<=Annuity!$E127,INDEX(CalcAnnual!#REF!,,MIN(AC$2,RegDur)),0) -> 0 | AD63: =IF(AD$2<=Annuity!$E127,INDEX(CalcAnnual!#REF!,,MIN(AD$2,RegDur)),0) -> 0 | AE63: =IF(AE$2<=Annuity!$E127,INDEX(CalcAnnual!#REF!,,MIN(AE$2,RegDur)),0) -> 0 | AF63: =IF(AF$2<=Annuity!$E127,INDEX(CalcAnnual!#REF!,,MIN(AF$2,RegDur)),0) -> 0 | AG63: =IF(AG$2<=Annuity!$E127,INDEX(CalcAnnual!#REF!,,MIN(AG$2,RegDur)),0) -> 0 | AH63: =IF(AH$2<=Annuity!$E127,INDEX(CalcAnnual!#REF!,,MIN(AH$2,RegDur)),0) -> 0 | AI63: =IF(AI$2<=Annuity!$E127,INDEX(CalcAnnual!#REF!,,MIN(AI$2,RegDur)),0) -> 0
B64: TRUE | C64: =Annuity!C128 -> Spare | F64: $ / Component | K64: =IF(K$2<=Annuity!$E128,INDEX(CalcAnnual!#REF!,,MIN(K$2,RegDur)),0) -> 0 | L64: =IF(L$2<=Annuity!$E128,INDEX(CalcAnnual!#REF!,,MIN(L$2,RegDur)),0) -> 0 | M64: =IF(M$2<=Annuity!$E128,INDEX(CalcAnnual!#REF!,,MIN(M$2,RegDur)),0) -> 0 | N64: =IF(N$2<=Annuity!$E128,INDEX(CalcAnnual!#REF!,,MIN(N$2,RegDur)),0) -> 0 | O64: =IF(O$2<=Annuity!$E128,INDEX(CalcAnnual!#REF!,,MIN(O$2,RegDur)),0) -> 0 | P64: =IF(P$2<=Annuity!$E128,INDEX(CalcAnnual!#REF!,,MIN(P$2,RegDur)),0) -> 0 | Q64: =IF(Q$2<=Annuity!$E128,INDEX(CalcAnnual!#REF!,,MIN(Q$2,RegDur)),0) -> 0 | R64: =IF(R$2<=Annuity!$E128,INDEX(CalcAnnual!#REF!,,MIN(R$2,RegDur)),0) -> 0 | S64: =IF(S$2<=Annuity!$E128,INDEX(CalcAnnual!#REF!,,MIN(S$2,RegDur)),0) -> 0 | T64: =IF(T$2<=Annuity!$E128,INDEX(CalcAnnual!#REF!,,MIN(T$2,RegDur)),0) -> 0 | U64: =IF(U$2<=Annuity!$E128,INDEX(CalcAnnual!#REF!,,MIN(U$2,RegDur)),0) -> 0 | V64: =IF(V$2<=Annuity!$E128,INDEX(CalcAnnual!#REF!,,MIN(V$2,RegDur)),0) -> 0 | W64: =IF(W$2<=Annuity!$E128,INDEX(CalcAnnual!#REF!,,MIN(W$2,RegDur)),0) -> 0 | X64: =IF(X$2<=Annuity!$E128,INDEX(CalcAnnual!#REF!,,MIN(X$2,RegDur)),0) -> 0 | Y64: =IF(Y$2<=Annuity!$E128,INDEX(CalcAnnual!#REF!,,MIN(Y$2,RegDur)),0) -> 0 | Z64: =IF(Z$2<=Annuity!$E128,INDEX(CalcAnnual!#REF!,,MIN(Z$2,RegDur)),0) -> 0 | AA64: =IF(AA$2<=Annuity!$E128,INDEX(CalcAnnual!#REF!,,MIN(AA$2,RegDur)),0) -> 0 | AB64: =IF(AB$2<=Annuity!$E128,INDEX(CalcAnnual!#REF!,,MIN(AB$2,RegDur)),0) -> 0 | AC64: =IF(AC$2<=Annuity!$E128,INDEX(CalcAnnual!#REF!,,MIN(AC$2,RegDur)),0) -> 0 | AD64: =IF(AD$2<=Annuity!$E128,INDEX(CalcAnnual!#REF!,,MIN(AD$2,RegDur)),0) -> 0 | AE64: =IF(AE$2<=Annuity!$E128,INDEX(CalcAnnual!#REF!,,MIN(AE$2,RegDur)),0) -> 0 | AF64: =IF(AF$2<=Annuity!$E128,INDEX(CalcAnnual!#REF!,,MIN(AF$2,RegDur)),0) -> 0 | AG64: =IF(AG$2<=Annuity!$E128,INDEX(CalcAnnual!#REF!,,MIN(AG$2,RegDur)),0) -> 0 | AH64: =IF(AH$2<=Annuity!$E128,INDEX(CalcAnnual!#REF!,,MIN(AH$2,RegDur)),0) -> 0 | AI64: =IF(AI$2<=Annuity!$E128,INDEX(CalcAnnual!#REF!,,MIN(AI$2,RegDur)),0) -> 0
B65: TRUE | C65: =Annuity!C129 -> Spare | F65: $ / Component | K65: =IF(K$2<=Annuity!$E129,INDEX(CalcAnnual!#REF!,,MIN(K$2,RegDur)),0) -> 0 | L65: =IF(L$2<=Annuity!$E129,INDEX(CalcAnnual!#REF!,,MIN(L$2,RegDur)),0) -> 0 | M65: =IF(M$2<=Annuity!$E129,INDEX(CalcAnnual!#REF!,,MIN(M$2,RegDur)),0) -> 0 | N65: =IF(N$2<=Annuity!$E129,INDEX(CalcAnnual!#REF!,,MIN(N$2,RegDur)),0) -> 0 | O65: =IF(O$2<=Annuity!$E129,INDEX(CalcAnnual!#REF!,,MIN(O$2,RegDur)),0) -> 0 | P65: =IF(P$2<=Annuity!$E129,INDEX(CalcAnnual!#REF!,,MIN(P$2,RegDur)),0) -> 0 | Q65: =IF(Q$2<=Annuity!$E129,INDEX(CalcAnnual!#REF!,,MIN(Q$2,RegDur)),0) -> 0 | R65: =IF(R$2<=Annuity!$E129,INDEX(CalcAnnual!#REF!,,MIN(R$2,RegDur)),0) -> 0 | S65: =IF(S$2<=Annuity!$E129,INDEX(CalcAnnual!#REF!,,MIN(S$2,RegDur)),0) -> 0 | T65: =IF(T$2<=Annuity!$E129,INDEX(CalcAnnual!#REF!,,MIN(T$2,RegDur)),0) -> 0 | U65: =IF(U$2<=Annuity!$E129,INDEX(CalcAnnual!#REF!,,MIN(U$2,RegDur)),0) -> 0 | V65: =IF(V$2<=Annuity!$E129,INDEX(CalcAnnual!#REF!,,MIN(V$2,RegDur)),0) -> 0 | W65: =IF(W$2<=Annuity!$E129,INDEX(CalcAnnual!#REF!,,MIN(W$2,RegDur)),0) -> 0 | X65: =IF(X$2<=Annuity!$E129,INDEX(CalcAnnual!#REF!,,MIN(X$2,RegDur)),0) -> 0 | Y65: =IF(Y$2<=Annuity!$E129,INDEX(CalcAnnual!#REF!,,MIN(Y$2,RegDur)),0) -> 0 | Z65: =IF(Z$2<=Annuity!$E129,INDEX(CalcAnnual!#REF!,,MIN(Z$2,RegDur)),0) -> 0 | AA65: =IF(AA$2<=Annuity!$E129,INDEX(CalcAnnual!#REF!,,MIN(AA$2,RegDur)),0) -> 0 | AB65: =IF(AB$2<=Annuity!$E129,INDEX(CalcAnnual!#REF!,,MIN(AB$2,RegDur)),0) -> 0 | AC65: =IF(AC$2<=Annuity!$E129,INDEX(CalcAnnual!#REF!,,MIN(AC$2,RegDur)),0) -> 0 | AD65: =IF(AD$2<=Annuity!$E129,INDEX(CalcAnnual!#REF!,,MIN(AD$2,RegDur)),0) -> 0 | AE65: =IF(AE$2<=Annuity!$E129,INDEX(CalcAnnual!#REF!,,MIN(AE$2,RegDur)),0) -> 0 | AF65: =IF(AF$2<=Annuity!$E129,INDEX(CalcAnnual!#REF!,,MIN(AF$2,RegDur)),0) -> 0 | AG65: =IF(AG$2<=Annuity!$E129,INDEX(CalcAnnual!#REF!,,MIN(AG$2,RegDur)),0) -> 0 | AH65: =IF(AH$2<=Annuity!$E129,INDEX(CalcAnnual!#REF!,,MIN(AH$2,RegDur)),0) -> 0 | AI65: =IF(AI$2<=Annuity!$E129,INDEX(CalcAnnual!#REF!,,MIN(AI$2,RegDur)),0) -> 0
B66: TRUE | C66: =Annuity!C130 -> Spare | F66: $ / Component | K66: =IF(K$2<=Annuity!$E130,INDEX(CalcAnnual!#REF!,,MIN(K$2,RegDur)),0) -> 0 | L66: =IF(L$2<=Annuity!$E130,INDEX(CalcAnnual!#REF!,,MIN(L$2,RegDur)),0) -> 0 | M66: =IF(M$2<=Annuity!$E130,INDEX(CalcAnnual!#REF!,,MIN(M$2,RegDur)),0) -> 0 | N66: =IF(N$2<=Annuity!$E130,INDEX(CalcAnnual!#REF!,,MIN(N$2,RegDur)),0) -> 0 | O66: =IF(O$2<=Annuity!$E130,INDEX(CalcAnnual!#REF!,,MIN(O$2,RegDur)),0) -> 0 | P66: =IF(P$2<=Annuity!$E130,INDEX(CalcAnnual!#REF!,,MIN(P$2,RegDur)),0) -> 0 | Q66: =IF(Q$2<=Annuity!$E130,INDEX(CalcAnnual!#REF!,,MIN(Q$2,RegDur)),0) -> 0 | R66: =IF(R$2<=Annuity!$E130,INDEX(CalcAnnual!#REF!,,MIN(R$2,RegDur)),0) -> 0 | S66: =IF(S$2<=Annuity!$E130,INDEX(CalcAnnual!#REF!,,MIN(S$2,RegDur)),0) -> 0 | T66: =IF(T$2<=Annuity!$E130,INDEX(CalcAnnual!#REF!,,MIN(T$2,RegDur)),0) -> 0 | U66: =IF(U$2<=Annuity!$E130,INDEX(CalcAnnual!#REF!,,MIN(U$2,RegDur)),0) -> 0 | V66: =IF(V$2<=Annuity!$E130,INDEX(CalcAnnual!#REF!,,MIN(V$2,RegDur)),0) -> 0 | W66: =IF(W$2<=Annuity!$E130,INDEX(CalcAnnual!#REF!,,MIN(W$2,RegDur)),0) -> 0 | X66: =IF(X$2<=Annuity!$E130,INDEX(CalcAnnual!#REF!,,MIN(X$2,RegDur)),0) -> 0 | Y66: =IF(Y$2<=Annuity!$E130,INDEX(CalcAnnual!#REF!,,MIN(Y$2,RegDur)),0) -> 0 | Z66: =IF(Z$2<=Annuity!$E130,INDEX(CalcAnnual!#REF!,,MIN(Z$2,RegDur)),0) -> 0 | AA66: =IF(AA$2<=Annuity!$E130,INDEX(CalcAnnual!#REF!,,MIN(AA$2,RegDur)),0) -> 0 | AB66: =IF(AB$2<=Annuity!$E130,INDEX(CalcAnnual!#REF!,,MIN(AB$2,RegDur)),0) -> 0 | AC66: =IF(AC$2<=Annuity!$E130,INDEX(CalcAnnual!#REF!,,MIN(AC$2,RegDur)),0) -> 0 | AD66: =IF(AD$2<=Annuity!$E130,INDEX(CalcAnnual!#REF!,,MIN(AD$2,RegDur)),0) -> 0 | AE66: =IF(AE$2<=Annuity!$E130,INDEX(CalcAnnual!#REF!,,MIN(AE$2,RegDur)),0) -> 0 | AF66: =IF(AF$2<=Annuity!$E130,INDEX(CalcAnnual!#REF!,,MIN(AF$2,RegDur)),0) -> 0 | AG66: =IF(AG$2<=Annuity!$E130,INDEX(CalcAnnual!#REF!,,MIN(AG$2,RegDur)),0) -> 0 | AH66: =IF(AH$2<=Annuity!$E130,INDEX(CalcAnnual!#REF!,,MIN(AH$2,RegDur)),0) -> 0 | AI66: =IF(AI$2<=Annuity!$E130,INDEX(CalcAnnual!#REF!,,MIN(AI$2,RegDur)),0) -> 0
B67: TRUE | C67: =Annuity!C131 -> Spare | F67: $ / Component | K67: =IF(K$2<=Annuity!$E131,INDEX(CalcAnnual!#REF!,,MIN(K$2,RegDur)),0) -> 0 | L67: =IF(L$2<=Annuity!$E131,INDEX(CalcAnnual!#REF!,,MIN(L$2,RegDur)),0) -> 0 | M67: =IF(M$2<=Annuity!$E131,INDEX(CalcAnnual!#REF!,,MIN(M$2,RegDur)),0) -> 0 | N67: =IF(N$2<=Annuity!$E131,INDEX(CalcAnnual!#REF!,,MIN(N$2,RegDur)),0) -> 0 | O67: =IF(O$2<=Annuity!$E131,INDEX(CalcAnnual!#REF!,,MIN(O$2,RegDur)),0) -> 0 | P67: =IF(P$2<=Annuity!$E131,INDEX(CalcAnnual!#REF!,,MIN(P$2,RegDur)),0) -> 0 | Q67: =IF(Q$2<=Annuity!$E131,INDEX(CalcAnnual!#REF!,,MIN(Q$2,RegDur)),0) -> 0 | R67: =IF(R$2<=Annuity!$E131,INDEX(CalcAnnual!#REF!,,MIN(R$2,RegDur)),0) -> 0 | S67: =IF(S$2<=Annuity!$E131,INDEX(CalcAnnual!#REF!,,MIN(S$2,RegDur)),0) -> 0 | T67: =IF(T$2<=Annuity!$E131,INDEX(CalcAnnual!#REF!,,MIN(T$2,RegDur)),0) -> 0 | U67: =IF(U$2<=Annuity!$E131,INDEX(CalcAnnual!#REF!,,MIN(U$2,RegDur)),0) -> 0 | V67: =IF(V$2<=Annuity!$E131,INDEX(CalcAnnual!#REF!,,MIN(V$2,RegDur)),0) -> 0 | W67: =IF(W$2<=Annuity!$E131,INDEX(CalcAnnual!#REF!,,MIN(W$2,RegDur)),0) -> 0 | X67: =IF(X$2<=Annuity!$E131,INDEX(CalcAnnual!#REF!,,MIN(X$2,RegDur)),0) -> 0 | Y67: =IF(Y$2<=Annuity!$E131,INDEX(CalcAnnual!#REF!,,MIN(Y$2,RegDur)),0) -> 0 | Z67: =IF(Z$2<=Annuity!$E131,INDEX(CalcAnnual!#REF!,,MIN(Z$2,RegDur)),0) -> 0 | AA67: =IF(AA$2<=Annuity!$E131,INDEX(CalcAnnual!#REF!,,MIN(AA$2,RegDur)),0) -> 0 | AB67: =IF(AB$2<=Annuity!$E131,INDEX(CalcAnnual!#REF!,,MIN(AB$2,RegDur)),0) -> 0 | AC67: =IF(AC$2<=Annuity!$E131,INDEX(CalcAnnual!#REF!,,MIN(AC$2,RegDur)),0) -> 0 | AD67: =IF(AD$2<=Annuity!$E131,INDEX(CalcAnnual!#REF!,,MIN(AD$2,RegDur)),0) -> 0 | AE67: =IF(AE$2<=Annuity!$E131,INDEX(CalcAnnual!#REF!,,MIN(AE$2,RegDur)),0) -> 0 | AF67: =IF(AF$2<=Annuity!$E131,INDEX(CalcAnnual!#REF!,,MIN(AF$2,RegDur)),0) -> 0 | AG67: =IF(AG$2<=Annuity!$E131,INDEX(CalcAnnual!#REF!,,MIN(AG$2,RegDur)),0) -> 0 | AH67: =IF(AH$2<=Annuity!$E131,INDEX(CalcAnnual!#REF!,,MIN(AH$2,RegDur)),0) -> 0 | AI67: =IF(AI$2<=Annuity!$E131,INDEX(CalcAnnual!#REF!,,MIN(AI$2,RegDur)),0) -> 0
B68: TRUE | C68: =Annuity!C132 -> Spare | F68: $ / Component | K68: =IF(K$2<=Annuity!$E132,INDEX(CalcAnnual!#REF!,,MIN(K$2,RegDur)),0) -> 0 | L68: =IF(L$2<=Annuity!$E132,INDEX(CalcAnnual!#REF!,,MIN(L$2,RegDur)),0) -> 0 | M68: =IF(M$2<=Annuity!$E132,INDEX(CalcAnnual!#REF!,,MIN(M$2,RegDur)),0) -> 0 | N68: =IF(N$2<=Annuity!$E132,INDEX(CalcAnnual!#REF!,,MIN(N$2,RegDur)),0) -> 0 | O68: =IF(O$2<=Annuity!$E132,INDEX(CalcAnnual!#REF!,,MIN(O$2,RegDur)),0) -> 0 | P68: =IF(P$2<=Annuity!$E132,INDEX(CalcAnnual!#REF!,,MIN(P$2,RegDur)),0) -> 0 | Q68: =IF(Q$2<=Annuity!$E132,INDEX(CalcAnnual!#REF!,,MIN(Q$2,RegDur)),0) -> 0 | R68: =IF(R$2<=Annuity!$E132,INDEX(CalcAnnual!#REF!,,MIN(R$2,RegDur)),0) -> 0 | S68: =IF(S$2<=Annuity!$E132,INDEX(CalcAnnual!#REF!,,MIN(S$2,RegDur)),0) -> 0 | T68: =IF(T$2<=Annuity!$E132,INDEX(CalcAnnual!#REF!,,MIN(T$2,RegDur)),0) -> 0 | U68: =IF(U$2<=Annuity!$E132,INDEX(CalcAnnual!#REF!,,MIN(U$2,RegDur)),0) -> 0 | V68: =IF(V$2<=Annuity!$E132,INDEX(CalcAnnual!#REF!,,MIN(V$2,RegDur)),0) -> 0 | W68: =IF(W$2<=Annuity!$E132,INDEX(CalcAnnual!#REF!,,MIN(W$2,RegDur)),0) -> 0 | X68: =IF(X$2<=Annuity!$E132,INDEX(CalcAnnual!#REF!,,MIN(X$2,RegDur)),0) -> 0 | Y68: =IF(Y$2<=Annuity!$E132,INDEX(CalcAnnual!#REF!,,MIN(Y$2,RegDur)),0) -> 0 | Z68: =IF(Z$2<=Annuity!$E132,INDEX(CalcAnnual!#REF!,,MIN(Z$2,RegDur)),0) -> 0 | AA68: =IF(AA$2<=Annuity!$E132,INDEX(CalcAnnual!#REF!,,MIN(AA$2,RegDur)),0) -> 0 | AB68: =IF(AB$2<=Annuity!$E132,INDEX(CalcAnnual!#REF!,,MIN(AB$2,RegDur)),0) -> 0 | AC68: =IF(AC$2<=Annuity!$E132,INDEX(CalcAnnual!#REF!,,MIN(AC$2,RegDur)),0) -> 0 | AD68: =IF(AD$2<=Annuity!$E132,INDEX(CalcAnnual!#REF!,,MIN(AD$2,RegDur)),0) -> 0 | AE68: =IF(AE$2<=Annuity!$E132,INDEX(CalcAnnual!#REF!,,MIN(AE$2,RegDur)),0) -> 0 | AF68: =IF(AF$2<=Annuity!$E132,INDEX(CalcAnnual!#REF!,,MIN(AF$2,RegDur)),0) -> 0 | AG68: =IF(AG$2<=Annuity!$E132,INDEX(CalcAnnual!#REF!,,MIN(AG$2,RegDur)),0) -> 0 | AH68: =IF(AH$2<=Annuity!$E132,INDEX(CalcAnnual!#REF!,,MIN(AH$2,RegDur)),0) -> 0 | AI68: =IF(AI$2<=Annuity!$E132,INDEX(CalcAnnual!#REF!,,MIN(AI$2,RegDur)),0) -> 0
B69: TRUE | C69: =Annuity!C133 -> Spare | F69: $ / Component | K69: =IF(K$2<=Annuity!$E133,INDEX(CalcAnnual!#REF!,,MIN(K$2,RegDur)),0) -> 0 | L69: =IF(L$2<=Annuity!$E133,INDEX(CalcAnnual!#REF!,,MIN(L$2,RegDur)),0) -> 0 | M69: =IF(M$2<=Annuity!$E133,INDEX(CalcAnnual!#REF!,,MIN(M$2,RegDur)),0) -> 0 | N69: =IF(N$2<=Annuity!$E133,INDEX(CalcAnnual!#REF!,,MIN(N$2,RegDur)),0) -> 0 | O69: =IF(O$2<=Annuity!$E133,INDEX(CalcAnnual!#REF!,,MIN(O$2,RegDur)),0) -> 0 | P69: =IF(P$2<=Annuity!$E133,INDEX(CalcAnnual!#REF!,,MIN(P$2,RegDur)),0) -> 0 | Q69: =IF(Q$2<=Annuity!$E133,INDEX(CalcAnnual!#REF!,,MIN(Q$2,RegDur)),0) -> 0 | R69: =IF(R$2<=Annuity!$E133,INDEX(CalcAnnual!#REF!,,MIN(R$2,RegDur)),0) -> 0 | S69: =IF(S$2<=Annuity!$E133,INDEX(CalcAnnual!#REF!,,MIN(S$2,RegDur)),0) -> 0 | T69: =IF(T$2<=Annuity!$E133,INDEX(CalcAnnual!#REF!,,MIN(T$2,RegDur)),0) -> 0 | U69: =IF(U$2<=Annuity!$E133,INDEX(CalcAnnual!#REF!,,MIN(U$2,RegDur)),0) -> 0 | V69: =IF(V$2<=Annuity!$E133,INDEX(CalcAnnual!#REF!,,MIN(V$2,RegDur)),0) -> 0 | W69: =IF(W$2<=Annuity!$E133,INDEX(CalcAnnual!#REF!,,MIN(W$2,RegDur)),0) -> 0 | X69: =IF(X$2<=Annuity!$E133,INDEX(CalcAnnual!#REF!,,MIN(X$2,RegDur)),0) -> 0 | Y69: =IF(Y$2<=Annuity!$E133,INDEX(CalcAnnual!#REF!,,MIN(Y$2,RegDur)),0) -> 0 | Z69: =IF(Z$2<=Annuity!$E133,INDEX(CalcAnnual!#REF!,,MIN(Z$2,RegDur)),0) -> 0 | AA69: =IF(AA$2<=Annuity!$E133,INDEX(CalcAnnual!#REF!,,MIN(AA$2,RegDur)),0) -> 0 | AB69: =IF(AB$2<=Annuity!$E133,INDEX(CalcAnnual!#REF!,,MIN(AB$2,RegDur)),0) -> 0 | AC69: =IF(AC$2<=Annuity!$E133,INDEX(CalcAnnual!#REF!,,MIN(AC$2,RegDur)),0) -> 0 | AD69: =IF(AD$2<=Annuity!$E133,INDEX(CalcAnnual!#REF!,,MIN(AD$2,RegDur)),0) -> 0 | AE69: =IF(AE$2<=Annuity!$E133,INDEX(CalcAnnual!#REF!,,MIN(AE$2,RegDur)),0) -> 0 | AF69: =IF(AF$2<=Annuity!$E133,INDEX(CalcAnnual!#REF!,,MIN(AF$2,RegDur)),0) -> 0 | AG69: =IF(AG$2<=Annuity!$E133,INDEX(CalcAnnual!#REF!,,MIN(AG$2,RegDur)),0) -> 0 | AH69: =IF(AH$2<=Annuity!$E133,INDEX(CalcAnnual!#REF!,,MIN(AH$2,RegDur)),0) -> 0 | AI69: =IF(AI$2<=Annuity!$E133,INDEX(CalcAnnual!#REF!,,MIN(AI$2,RegDur)),0) -> 0
B70: TRUE | C70: =Annuity!C134 -> Spare | F70: $ / Component | K70: =IF(K$2<=Annuity!$E134,INDEX(CalcAnnual!#REF!,,MIN(K$2,RegDur)),0) -> 0 | L70: =IF(L$2<=Annuity!$E134,INDEX(CalcAnnual!#REF!,,MIN(L$2,RegDur)),0) -> 0 | M70: =IF(M$2<=Annuity!$E134,INDEX(CalcAnnual!#REF!,,MIN(M$2,RegDur)),0) -> 0 | N70: =IF(N$2<=Annuity!$E134,INDEX(CalcAnnual!#REF!,,MIN(N$2,RegDur)),0) -> 0 | O70: =IF(O$2<=Annuity!$E134,INDEX(CalcAnnual!#REF!,,MIN(O$2,RegDur)),0) -> 0 | P70: =IF(P$2<=Annuity!$E134,INDEX(CalcAnnual!#REF!,,MIN(P$2,RegDur)),0) -> 0 | Q70: =IF(Q$2<=Annuity!$E134,INDEX(CalcAnnual!#REF!,,MIN(Q$2,RegDur)),0) -> 0 | R70: =IF(R$2<=Annuity!$E134,INDEX(CalcAnnual!#REF!,,MIN(R$2,RegDur)),0) -> 0 | S70: =IF(S$2<=Annuity!$E134,INDEX(CalcAnnual!#REF!,,MIN(S$2,RegDur)),0) -> 0 | T70: =IF(T$2<=Annuity!$E134,INDEX(CalcAnnual!#REF!,,MIN(T$2,RegDur)),0) -> 0 | U70: =IF(U$2<=Annuity!$E134,INDEX(CalcAnnual!#REF!,,MIN(U$2,RegDur)),0) -> 0 | V70: =IF(V$2<=Annuity!$E134,INDEX(CalcAnnual!#REF!,,MIN(V$2,RegDur)),0) -> 0 | W70: =IF(W$2<=Annuity!$E134,INDEX(CalcAnnual!#REF!,,MIN(W$2,RegDur)),0) -> 0 | X70: =IF(X$2<=Annuity!$E134,INDEX(CalcAnnual!#REF!,,MIN(X$2,RegDur)),0) -> 0 | Y70: =IF(Y$2<=Annuity!$E134,INDEX(CalcAnnual!#REF!,,MIN(Y$2,RegDur)),0) -> 0 | Z70: =IF(Z$2<=Annuity!$E134,INDEX(CalcAnnual!#REF!,,MIN(Z$2,RegDur)),0) -> 0 | AA70: =IF(AA$2<=Annuity!$E134,INDEX(CalcAnnual!#REF!,,MIN(AA$2,RegDur)),0) -> 0 | AB70: =IF(AB$2<=Annuity!$E134,INDEX(CalcAnnual!#REF!,,MIN(AB$2,RegDur)),0) -> 0 | AC70: =IF(AC$2<=Annuity!$E134,INDEX(CalcAnnual!#REF!,,MIN(AC$2,RegDur)),0) -> 0 | AD70: =IF(AD$2<=Annuity!$E134,INDEX(CalcAnnual!#REF!,,MIN(AD$2,RegDur)),0) -> 0 | AE70: =IF(AE$2<=Annuity!$E134,INDEX(CalcAnnual!#REF!,,MIN(AE$2,RegDur)),0) -> 0 | AF70: =IF(AF$2<=Annuity!$E134,INDEX(CalcAnnual!#REF!,,MIN(AF$2,RegDur)),0) -> 0 | AG70: =IF(AG$2<=Annuity!$E134,INDEX(CalcAnnual!#REF!,,MIN(AG$2,RegDur)),0) -> 0 | AH70: =IF(AH$2<=Annuity!$E134,INDEX(CalcAnnual!#REF!,,MIN(AH$2,RegDur)),0) -> 0 | AI70: =IF(AI$2<=Annuity!$E134,INDEX(CalcAnnual!#REF!,,MIN(AI$2,RegDur)),0) -> 0
B71: TRUE | C71: =Annuity!C135 -> Spare | F71: $ / Component | K71: =IF(K$2<=Annuity!$E135,INDEX(CalcAnnual!#REF!,,MIN(K$2,RegDur)),0) -> 0 | L71: =IF(L$2<=Annuity!$E135,INDEX(CalcAnnual!#REF!,,MIN(L$2,RegDur)),0) -> 0 | M71: =IF(M$2<=Annuity!$E135,INDEX(CalcAnnual!#REF!,,MIN(M$2,RegDur)),0) -> 0 | N71: =IF(N$2<=Annuity!$E135,INDEX(CalcAnnual!#REF!,,MIN(N$2,RegDur)),0) -> 0 | O71: =IF(O$2<=Annuity!$E135,INDEX(CalcAnnual!#REF!,,MIN(O$2,RegDur)),0) -> 0 | P71: =IF(P$2<=Annuity!$E135,INDEX(CalcAnnual!#REF!,,MIN(P$2,RegDur)),0) -> 0 | Q71: =IF(Q$2<=Annuity!$E135,INDEX(CalcAnnual!#REF!,,MIN(Q$2,RegDur)),0) -> 0 | R71: =IF(R$2<=Annuity!$E135,INDEX(CalcAnnual!#REF!,,MIN(R$2,RegDur)),0) -> 0 | S71: =IF(S$2<=Annuity!$E135,INDEX(CalcAnnual!#REF!,,MIN(S$2,RegDur)),0) -> 0 | T71: =IF(T$2<=Annuity!$E135,INDEX(CalcAnnual!#REF!,,MIN(T$2,RegDur)),0) -> 0 | U71: =IF(U$2<=Annuity!$E135,INDEX(CalcAnnual!#REF!,,MIN(U$2,RegDur)),0) -> 0 | V71: =IF(V$2<=Annuity!$E135,INDEX(CalcAnnual!#REF!,,MIN(V$2,RegDur)),0) -> 0 | W71: =IF(W$2<=Annuity!$E135,INDEX(CalcAnnual!#REF!,,MIN(W$2,RegDur)),0) -> 0 | X71: =IF(X$2<=Annuity!$E135,INDEX(CalcAnnual!#REF!,,MIN(X$2,RegDur)),0) -> 0 | Y71: =IF(Y$2<=Annuity!$E135,INDEX(CalcAnnual!#REF!,,MIN(Y$2,RegDur)),0) -> 0 | Z71: =IF(Z$2<=Annuity!$E135,INDEX(CalcAnnual!#REF!,,MIN(Z$2,RegDur)),0) -> 0 | AA71: =IF(AA$2<=Annuity!$E135,INDEX(CalcAnnual!#REF!,,MIN(AA$2,RegDur)),0) -> 0 | AB71: =IF(AB$2<=Annuity!$E135,INDEX(CalcAnnual!#REF!,,MIN(AB$2,RegDur)),0) -> 0 | AC71: =IF(AC$2<=Annuity!$E135,INDEX(CalcAnnual!#REF!,,MIN(AC$2,RegDur)),0) -> 0 | AD71: =IF(AD$2<=Annuity!$E135,INDEX(CalcAnnual!#REF!,,MIN(AD$2,RegDur)),0) -> 0 | AE71: =IF(AE$2<=Annuity!$E135,INDEX(CalcAnnual!#REF!,,MIN(AE$2,RegDur)),0) -> 0 | AF71: =IF(AF$2<=Annuity!$E135,INDEX(CalcAnnual!#REF!,,MIN(AF$2,RegDur)),0) -> 0 | AG71: =IF(AG$2<=Annuity!$E135,INDEX(CalcAnnual!#REF!,,MIN(AG$2,RegDur)),0) -> 0 | AH71: =IF(AH$2<=Annuity!$E135,INDEX(CalcAnnual!#REF!,,MIN(AH$2,RegDur)),0) -> 0 | AI71: =IF(AI$2<=Annuity!$E135,INDEX(CalcAnnual!#REF!,,MIN(AI$2,RegDur)),0) -> 0
B72: TRUE | C72: =Annuity!C136 -> Spare | F72: $ / Component | K72: =IF(K$2<=Annuity!$E136,INDEX(CalcAnnual!#REF!,,MIN(K$2,RegDur)),0) -> 0 | L72: =IF(L$2<=Annuity!$E136,INDEX(CalcAnnual!#REF!,,MIN(L$2,RegDur)),0) -> 0 | M72: =IF(M$2<=Annuity!$E136,INDEX(CalcAnnual!#REF!,,MIN(M$2,RegDur)),0) -> 0 | N72: =IF(N$2<=Annuity!$E136,INDEX(CalcAnnual!#REF!,,MIN(N$2,RegDur)),0) -> 0 | O72: =IF(O$2<=Annuity!$E136,INDEX(CalcAnnual!#REF!,,MIN(O$2,RegDur)),0) -> 0 | P72: =IF(P$2<=Annuity!$E136,INDEX(CalcAnnual!#REF!,,MIN(P$2,RegDur)),0) -> 0 | Q72: =IF(Q$2<=Annuity!$E136,INDEX(CalcAnnual!#REF!,,MIN(Q$2,RegDur)),0) -> 0 | R72: =IF(R$2<=Annuity!$E136,INDEX(CalcAnnual!#REF!,,MIN(R$2,RegDur)),0) -> 0 | S72: =IF(S$2<=Annuity!$E136,INDEX(CalcAnnual!#REF!,,MIN(S$2,RegDur)),0) -> 0 | T72: =IF(T$2<=Annuity!$E136,INDEX(CalcAnnual!#REF!,,MIN(T$2,RegDur)),0) -> 0 | U72: =IF(U$2<=Annuity!$E136,INDEX(CalcAnnual!#REF!,,MIN(U$2,RegDur)),0) -> 0 | V72: =IF(V$2<=Annuity!$E136,INDEX(CalcAnnual!#REF!,,MIN(V$2,RegDur)),0) -> 0 | W72: =IF(W$2<=Annuity!$E136,INDEX(CalcAnnual!#REF!,,MIN(W$2,RegDur)),0) -> 0 | X72: =IF(X$2<=Annuity!$E136,INDEX(CalcAnnual!#REF!,,MIN(X$2,RegDur)),0) -> 0 | Y72: =IF(Y$2<=Annuity!$E136,INDEX(CalcAnnual!#REF!,,MIN(Y$2,RegDur)),0) -> 0 | Z72: =IF(Z$2<=Annuity!$E136,INDEX(CalcAnnual!#REF!,,MIN(Z$2,RegDur)),0) -> 0 | AA72: =IF(AA$2<=Annuity!$E136,INDEX(CalcAnnual!#REF!,,MIN(AA$2,RegDur)),0) -> 0 | AB72: =IF(AB$2<=Annuity!$E136,INDEX(CalcAnnual!#REF!,,MIN(AB$2,RegDur)),0) -> 0 | AC72: =IF(AC$2<=Annuity!$E136,INDEX(CalcAnnual!#REF!,,MIN(AC$2,RegDur)),0) -> 0 | AD72: =IF(AD$2<=Annuity!$E136,INDEX(CalcAnnual!#REF!,,MIN(AD$2,RegDur)),0) -> 0 | AE72: =IF(AE$2<=Annuity!$E136,INDEX(CalcAnnual!#REF!,,MIN(AE$2,RegDur)),0) -> 0 | AF72: =IF(AF$2<=Annuity!$E136,INDEX(CalcAnnual!#REF!,,MIN(AF$2,RegDur)),0) -> 0 | AG72: =IF(AG$2<=Annuity!$E136,INDEX(CalcAnnual!#REF!,,MIN(AG$2,RegDur)),0) -> 0 | AH72: =IF(AH$2<=Annuity!$E136,INDEX(CalcAnnual!#REF!,,MIN(AH$2,RegDur)),0) -> 0 | AI72: =IF(AI$2<=Annuity!$E136,INDEX(CalcAnnual!#REF!,,MIN(AI$2,RegDur)),0) -> 0
B73: TRUE | C73: =Annuity!C137 -> Spare | F73: $ / Component | K73: =IF(K$2<=Annuity!$E137,INDEX(CalcAnnual!#REF!,,MIN(K$2,RegDur)),0) -> 0 | L73: =IF(L$2<=Annuity!$E137,INDEX(CalcAnnual!#REF!,,MIN(L$2,RegDur)),0) -> 0 | M73: =IF(M$2<=Annuity!$E137,INDEX(CalcAnnual!#REF!,,MIN(M$2,RegDur)),0) -> 0 | N73: =IF(N$2<=Annuity!$E137,INDEX(CalcAnnual!#REF!,,MIN(N$2,RegDur)),0) -> 0 | O73: =IF(O$2<=Annuity!$E137,INDEX(CalcAnnual!#REF!,,MIN(O$2,RegDur)),0) -> 0 | P73: =IF(P$2<=Annuity!$E137,INDEX(CalcAnnual!#REF!,,MIN(P$2,RegDur)),0) -> 0 | Q73: =IF(Q$2<=Annuity!$E137,INDEX(CalcAnnual!#REF!,,MIN(Q$2,RegDur)),0) -> 0 | R73: =IF(R$2<=Annuity!$E137,INDEX(CalcAnnual!#REF!,,MIN(R$2,RegDur)),0) -> 0 | S73: =IF(S$2<=Annuity!$E137,INDEX(CalcAnnual!#REF!,,MIN(S$2,RegDur)),0) -> 0 | T73: =IF(T$2<=Annuity!$E137,INDEX(CalcAnnual!#REF!,,MIN(T$2,RegDur)),0) -> 0 | U73: =IF(U$2<=Annuity!$E137,INDEX(CalcAnnual!#REF!,,MIN(U$2,RegDur)),0) -> 0 | V73: =IF(V$2<=Annuity!$E137,INDEX(CalcAnnual!#REF!,,MIN(V$2,RegDur)),0) -> 0 | W73: =IF(W$2<=Annuity!$E137,INDEX(CalcAnnual!#REF!,,MIN(W$2,RegDur)),0) -> 0 | X73: =IF(X$2<=Annuity!$E137,INDEX(CalcAnnual!#REF!,,MIN(X$2,RegDur)),0) -> 0 | Y73: =IF(Y$2<=Annuity!$E137,INDEX(CalcAnnual!#REF!,,MIN(Y$2,RegDur)),0) -> 0 | Z73: =IF(Z$2<=Annuity!$E137,INDEX(CalcAnnual!#REF!,,MIN(Z$2,RegDur)),0) -> 0 | AA73: =IF(AA$2<=Annuity!$E137,INDEX(CalcAnnual!#REF!,,MIN(AA$2,RegDur)),0) -> 0 | AB73: =IF(AB$2<=Annuity!$E137,INDEX(CalcAnnual!#REF!,,MIN(AB$2,RegDur)),0) -> 0 | AC73: =IF(AC$2<=Annuity!$E137,INDEX(CalcAnnual!#REF!,,MIN(AC$2,RegDur)),0) -> 0 | AD73: =IF(AD$2<=Annuity!$E137,INDEX(CalcAnnual!#REF!,,MIN(AD$2,RegDur)),0) -> 0 | AE73: =IF(AE$2<=Annuity!$E137,INDEX(CalcAnnual!#REF!,,MIN(AE$2,RegDur)),0) -> 0 | AF73: =IF(AF$2<=Annuity!$E137,INDEX(CalcAnnual!#REF!,,MIN(AF$2,RegDur)),0) -> 0 | AG73: =IF(AG$2<=Annuity!$E137,INDEX(CalcAnnual!#REF!,,MIN(AG$2,RegDur)),0) -> 0 | AH73: =IF(AH$2<=Annuity!$E137,INDEX(CalcAnnual!#REF!,,MIN(AH$2,RegDur)),0) -> 0 | AI73: =IF(AI$2<=Annuity!$E137,INDEX(CalcAnnual!#REF!,,MIN(AI$2,RegDur)),0) -> 0
B74: TRUE | C74: =Annuity!C138 -> Spare | F74: $ / Component | K74: =IF(K$2<=Annuity!$E138,INDEX(CalcAnnual!#REF!,,MIN(K$2,RegDur)),0) -> 0 | L74: =IF(L$2<=Annuity!$E138,INDEX(CalcAnnual!#REF!,,MIN(L$2,RegDur)),0) -> 0 | M74: =IF(M$2<=Annuity!$E138,INDEX(CalcAnnual!#REF!,,MIN(M$2,RegDur)),0) -> 0 | N74: =IF(N$2<=Annuity!$E138,INDEX(CalcAnnual!#REF!,,MIN(N$2,RegDur)),0) -> 0 | O74: =IF(O$2<=Annuity!$E138,INDEX(CalcAnnual!#REF!,,MIN(O$2,RegDur)),0) -> 0 | P74: =IF(P$2<=Annuity!$E138,INDEX(CalcAnnual!#REF!,,MIN(P$2,RegDur)),0) -> 0 | Q74: =IF(Q$2<=Annuity!$E138,INDEX(CalcAnnual!#REF!,,MIN(Q$2,RegDur)),0) -> 0 | R74: =IF(R$2<=Annuity!$E138,INDEX(CalcAnnual!#REF!,,MIN(R$2,RegDur)),0) -> 0 | S74: =IF(S$2<=Annuity!$E138,INDEX(CalcAnnual!#REF!,,MIN(S$2,RegDur)),0) -> 0 | T74: =IF(T$2<=Annuity!$E138,INDEX(CalcAnnual!#REF!,,MIN(T$2,RegDur)),0) -> 0 | U74: =IF(U$2<=Annuity!$E138,INDEX(CalcAnnual!#REF!,,MIN(U$2,RegDur)),0) -> 0 | V74: =IF(V$2<=Annuity!$E138,INDEX(CalcAnnual!#REF!,,MIN(V$2,RegDur)),0) -> 0 | W74: =IF(W$2<=Annuity!$E138,INDEX(CalcAnnual!#REF!,,MIN(W$2,RegDur)),0) -> 0 | X74: =IF(X$2<=Annuity!$E138,INDEX(CalcAnnual!#REF!,,MIN(X$2,RegDur)),0) -> 0 | Y74: =IF(Y$2<=Annuity!$E138,INDEX(CalcAnnual!#REF!,,MIN(Y$2,RegDur)),0) -> 0 | Z74: =IF(Z$2<=Annuity!$E138,INDEX(CalcAnnual!#REF!,,MIN(Z$2,RegDur)),0) -> 0 | AA74: =IF(AA$2<=Annuity!$E138,INDEX(CalcAnnual!#REF!,,MIN(AA$2,RegDur)),0) -> 0 | AB74: =IF(AB$2<=Annuity!$E138,INDEX(CalcAnnual!#REF!,,MIN(AB$2,RegDur)),0) -> 0 | AC74: =IF(AC$2<=Annuity!$E138,INDEX(CalcAnnual!#REF!,,MIN(AC$2,RegDur)),0) -> 0 | AD74: =IF(AD$2<=Annuity!$E138,INDEX(CalcAnnual!#REF!,,MIN(AD$2,RegDur)),0) -> 0 | AE74: =IF(AE$2<=Annuity!$E138,INDEX(CalcAnnual!#REF!,,MIN(AE$2,RegDur)),0) -> 0 | AF74: =IF(AF$2<=Annuity!$E138,INDEX(CalcAnnual!#REF!,,MIN(AF$2,RegDur)),0) -> 0 | AG74: =IF(AG$2<=Annuity!$E138,INDEX(CalcAnnual!#REF!,,MIN(AG$2,RegDur)),0) -> 0 | AH74: =IF(AH$2<=Annuity!$E138,INDEX(CalcAnnual!#REF!,,MIN(AH$2,RegDur)),0) -> 0 | AI74: =IF(AI$2<=Annuity!$E138,INDEX(CalcAnnual!#REF!,,MIN(AI$2,RegDur)),0) -> 0
B75: TRUE | C75: =Annuity!C139 -> Spare | F75: $ / Component | K75: =IF(K$2<=Annuity!$E139,INDEX(CalcAnnual!#REF!,,MIN(K$2,RegDur)),0) -> 0 | L75: =IF(L$2<=Annuity!$E139,INDEX(CalcAnnual!#REF!,,MIN(L$2,RegDur)),0) -> 0 | M75: =IF(M$2<=Annuity!$E139,INDEX(CalcAnnual!#REF!,,MIN(M$2,RegDur)),0) -> 0 | N75: =IF(N$2<=Annuity!$E139,INDEX(CalcAnnual!#REF!,,MIN(N$2,RegDur)),0) -> 0 | O75: =IF(O$2<=Annuity!$E139,INDEX(CalcAnnual!#REF!,,MIN(O$2,RegDur)),0) -> 0 | P75: =IF(P$2<=Annuity!$E139,INDEX(CalcAnnual!#REF!,,MIN(P$2,RegDur)),0) -> 0 | Q75: =IF(Q$2<=Annuity!$E139,INDEX(CalcAnnual!#REF!,,MIN(Q$2,RegDur)),0) -> 0 | R75: =IF(R$2<=Annuity!$E139,INDEX(CalcAnnual!#REF!,,MIN(R$2,RegDur)),0) -> 0 | S75: =IF(S$2<=Annuity!$E139,INDEX(CalcAnnual!#REF!,,MIN(S$2,RegDur)),0) -> 0 | T75: =IF(T$2<=Annuity!$E139,INDEX(CalcAnnual!#REF!,,MIN(T$2,RegDur)),0) -> 0 | U75: =IF(U$2<=Annuity!$E139,INDEX(CalcAnnual!#REF!,,MIN(U$2,RegDur)),0) -> 0 | V75: =IF(V$2<=Annuity!$E139,INDEX(CalcAnnual!#REF!,,MIN(V$2,RegDur)),0) -> 0 | W75: =IF(W$2<=Annuity!$E139,INDEX(CalcAnnual!#REF!,,MIN(W$2,RegDur)),0) -> 0 | X75: =IF(X$2<=Annuity!$E139,INDEX(CalcAnnual!#REF!,,MIN(X$2,RegDur)),0) -> 0 | Y75: =IF(Y$2<=Annuity!$E139,INDEX(CalcAnnual!#REF!,,MIN(Y$2,RegDur)),0) -> 0 | Z75: =IF(Z$2<=Annuity!$E139,INDEX(CalcAnnual!#REF!,,MIN(Z$2,RegDur)),0) -> 0 | AA75: =IF(AA$2<=Annuity!$E139,INDEX(CalcAnnual!#REF!,,MIN(AA$2,RegDur)),0) -> 0 | AB75: =IF(AB$2<=Annuity!$E139,INDEX(CalcAnnual!#REF!,,MIN(AB$2,RegDur)),0) -> 0 | AC75: =IF(AC$2<=Annuity!$E139,INDEX(CalcAnnual!#REF!,,MIN(AC$2,RegDur)),0) -> 0 | AD75: =IF(AD$2<=Annuity!$E139,INDEX(CalcAnnual!#REF!,,MIN(AD$2,RegDur)),0) -> 0 | AE75: =IF(AE$2<=Annuity!$E139,INDEX(CalcAnnual!#REF!,,MIN(AE$2,RegDur)),0) -> 0 | AF75: =IF(AF$2<=Annuity!$E139,INDEX(CalcAnnual!#REF!,,MIN(AF$2,RegDur)),0) -> 0 | AG75: =IF(AG$2<=Annuity!$E139,INDEX(CalcAnnual!#REF!,,MIN(AG$2,RegDur)),0) -> 0 | AH75: =IF(AH$2<=Annuity!$E139,INDEX(CalcAnnual!#REF!,,MIN(AH$2,RegDur)),0) -> 0 | AI75: =IF(AI$2<=Annuity!$E139,INDEX(CalcAnnual!#REF!,,MIN(AI$2,RegDur)),0) -> 0
C77: NPV of future annuities
B79: =IF(C79="Spare",TRUE,0) -> 0 | C79: =Annuity!C146 -> NIGHTWATCH MINOR (F42) - FF1A | D79: =Annuity!D146 -> FF1A | F79: $ / Component | K79: 0 | L79: 0 | M79: 0 | N79: 0 | O79: 0 | P79: 0 | Q79: 0 | R79: 0 | S79: 0 | T79: 0 | U79: 0 | V79: 0 | W79: 0 | X79: 0 | Y79: 0 | Z79: 0 | AA79: 0 | AB79: 0 | AC79: 0 | AD79: 0 | AE79: 0 | AF79: 0 | AG79: 0 | AH79: 0 | AI79: 0
B80: 0 | C80: =Annuity!C147 -> NIGHTWATCH MINOR (F2X14) - FF2A | D80: =Annuity!D147 -> FF2A | F80: $ / Component | K80: 0 | L80: 0 | M80: 0 | N80: 0 | O80: 0 | P80: 0 | Q80: 0 | R80: 0 | S80: 0 | T80: 0 | U80: 0 | V80: 0 | W80: 0 | X80: 0 | Y80: 0 | Z80: 0 | AA80: 0 | AB80: 0 | AC80: 0 | AD80: 0 | AE80: 0 | AF80: 0 | AG80: 0 | AH80: 0 | AI80: 0
B81: 0 | C81: =Annuity!C148 -> NIGHTWATCH SMALL (MH150) - FH1A | D81: =Annuity!D148 -> FH1A | F81: $ / Component | K81: 0 | L81: 0 | M81: 0 | N81: 0 | O81: 0 | P81: 0 | Q81: 0 | R81: 0 | S81: 0 | T81: 0 | U81: 0 | V81: 0 | W81: 0 | X81: 0 | Y81: 0 | Z81: 0 | AA81: 0 | AB81: 0 | AC81: 0 | AD81: 0 | AE81: 0 | AF81: 0 | AG81: 0 | AH81: 0 | AI81: 0
B82: 0 | C82: =Annuity!C149 -> NIGHTWATCH MEDIUM (MH250) - FH2A | D82: =Annuity!D149 -> FH2A | F82: $ / Component | K82: 0 | L82: 0 | M82: 0 | N82: 0 | O82: 0 | P82: 0 | Q82: 0 | R82: 0 | S82: 0 | T82: 0 | U82: 0 | V82: 0 | W82: 0 | X82: 0 | Y82: 0 | Z82: 0 | AA82: 0 | AB82: 0 | AC82: 0 | AD82: 0 | AE82: 0 | AF82: 0 | AG82: 0 | AH82: 0 | AI82: 0
B83: 0 | C83: =Annuity!C150 -> NIGHTWATCH LARGE (MH400) - FH3A | D83: =Annuity!D150 -> FH3A | F83: $ / Component | K83: 0 | L83: 0 | M83: 0 | N83: 0 | O83: 0 | P83: 0 | Q83: 0 | R83: 0 | S83: 0 | T83: 0 | U83: 0 | V83: 0 | W83: 0 | X83: 0 | Y83: 0 | Z83: 0 | AA83: 0 | AB83: 0 | AC83: 0 | AD83: 0 | AE83: 0 | AF83: 0 | AG83: 0 | AH83: 0 | AI83: 0
B84: 0 | C84: =Annuity!C151 -> NIGHTWATCH X-LARGE (MH1000) - FH4A | D84: =Annuity!D151 -> FH4A | F84: $ / Component | K84: 0 | L84: 0 | M84: 0 | N84: 0 | O84: 0 | P84: 0 | Q84: 0 | R84: 0 | S84: 0 | T84: 0 | U84: 0 | V84: 0 | W84: 0 | X84: 0 | Y84: 0 | Z84: 0 | AA84: 0 | AB84: 0 | AC84: 0 | AD84: 0 | AE84: 0 | AF84: 0 | AG84: 0 | AH84: 0 | AI84: 0
B85: 0 | C85: =Annuity!C152 -> NIGHTWATCH MINOR (L17) - FL1A | D85: =Annuity!D152 -> FL1A | F85: $ / Component | K85: 0 | L85: 0 | M85: 0 | N85: 0 | O85: 0 | P85: 0 | Q85: 0 | R85: 0 | S85: 0 | T85: 0 | U85: 0 | V85: 0 | W85: 0 | X85: 0 | Y85: 0 | Z85: 0 | AA85: 0 | AB85: 0 | AC85: 0 | AD85: 0 | AE85: 0 | AF85: 0 | AG85: 0 | AH85: 0 | AI85: 0
B86: 0 | C86: =Annuity!C153 -> NIGHTWATCH MINOR (L18) - FL1B | D86: =Annuity!D153 -> FL1B | F86: $ / Component | K86: 0 | L86: 0 | M86: 0 | N86: 0 | O86: 0 | P86: 0 | Q86: 0 | R86: 0 | S86: 0 | T86: 0 | U86: 0 | V86: 0 | W86: 0 | X86: 0 | Y86: 0 | Z86: 0 | AA86: 0 | AB86: 0 | AC86: 0 | AD86: 0 | AE86: 0 | AF86: 0 | AG86: 0 | AH86: 0 | AI86: 0
B87: 0 | C87: =Annuity!C154 -> NIGHTWATCH SMALL (L75+) - FL2A | D87: =Annuity!D154 -> FL2A | F87: $ / Component | K87: 0 | L87: 0 | M87: 0 | N87: 0 | O87: 0 | P87: 0 | Q87: 0 | R87: 0 | S87: 0 | T87: 0 | U87: 0 | V87: 0 | W87: 0 | X87: 0 | Y87: 0 | Z87: 0 | AA87: 0 | AB87: 0 | AC87: 0 | AD87: 0 | AE87: 0 | AF87: 0 | AG87: 0 | AH87: 0 | AI87: 0
B88: 0 | C88: =Annuity!C155 -> NIGHTWATCH MEDIUM (L100+) - FL3A | D88: =Annuity!D155 -> FL3A | F88: $ / Component | K88: 0 | L88: 0 | M88: 0 | N88: 0 | O88: 0 | P88: 0 | Q88: 0 | R88: 0 | S88: 0 | T88: 0 | U88: 0 | V88: 0 | W88: 0 | X88: 0 | Y88: 0 | Z88: 0 | AA88: 0 | AB88: 0 | AC88: 0 | AD88: 0 | AE88: 0 | AF88: 0 | AG88: 0 | AH88: 0 | AI88: 0
B89: 0 | C89: =Annuity!C156 -> NIGHTWATCH MEDIUM (L150) - FL3B | D89: =Annuity!D156 -> FL3B | F89: $ / Component | K89: 0 | L89: 0 | M89: 0 | N89: 0 | O89: 0 | P89: 0 | Q89: 0 | R89: 0 | S89: 0 | T89: 0 | U89: 0 | V89: 0 | W89: 0 | X89: 0 | Y89: 0 | Z89: 0 | AA89: 0 | AB89: 0 | AC89: 0 | AD89: 0 | AE89: 0 | AF89: 0 | AG89: 0 | AH89: 0 | AI89: 0
B90: 0 | C90: =Annuity!C157 -> NIGHTWATCH LARGE (L150+) - FL4A | D90: =Annuity!D157 -> FL4A | F90: $ / Component | K90: 0 | L90: 0 | M90: 0 | N90: 0 | O90: 0 | P90: 0 | Q90: 0 | R90: 0 | S90: 0 | T90: 0 | U90: 0 | V90: 0 | W90: 0 | X90: 0 | Y90: 0 | Z90: 0 | AA90: 0 | AB90: 0 | AC90: 0 | AD90: 0 | AE90: 0 | AF90: 0 | AG90: 0 | AH90: 0 | AI90: 0
B91: 0 | C91: =Annuity!C158 -> NIGHTWATCH LARGE (L200) - FL4B | D91: =Annuity!D158 -> FL4B | F91: $ / Component | K91: 0 | L91: 0 | M91: 0 | N91: 0 | O91: 0 | P91: 0 | Q91: 0 | R91: 0 | S91: 0 | T91: 0 | U91: 0 | V91: 0 | W91: 0 | X91: 0 | Y91: 0 | Z91: 0 | AA91: 0 | AB91: 0 | AC91: 0 | AD91: 0 | AE91: 0 | AF91: 0 | AG91: 0 | AH91: 0 | AI91: 0
B92: 0 | C92: =Annuity!C159 -> NIGHTWATCH X-LARGE (L300+) - FL5A | D92: =Annuity!D159 -> FL5A | F92: $ / Component | K92: 0 | L92: 0 | M92: 0 | N92: 0 | O92: 0 | P92: 0 | Q92: 0 | R92: 0 | S92: 0 | T92: 0 | U92: 0 | V92: 0 | W92: 0 | X92: 0 | Y92: 0 | Z92: 0 | AA92: 0 | AB92: 0 | AC92: 0 | AD92: 0 | AE92: 0 | AF92: 0 | AG92: 0 | AH92: 0 | AI92: 0
B93: 0 | C93: =Annuity!C160 -> NIGHTWATCH MINOR (M80) - FM1A | D93: =Annuity!D160 -> FM1A | F93: $ / Component | K93: 0 | L93: 0 | M93: 0 | N93: 0 | O93: 0 | P93: 0 | Q93: 0 | R93: 0 | S93: 0 | T93: 0 | U93: 0 | V93: 0 | W93: 0 | X93: 0 | Y93: 0 | Z93: 0 | AA93: 0 | AB93: 0 | AC93: 0 | AD93: 0 | AE93: 0 | AF93: 0 | AG93: 0 | AH93: 0 | AI93: 0
B94: 0 | C94: =Annuity!C161 -> NIGHTWATCH SMALL (S150) - FS1A | D94: =Annuity!D161 -> FS1A | F94: $ / Component | K94: 0 | L94: 0 | M94: 0 | N94: 0 | O94: 0 | P94: 0 | Q94: 0 | R94: 0 | S94: 0 | T94: 0 | U94: 0 | V94: 0 | W94: 0 | X94: 0 | Y94: 0 | Z94: 0 | AA94: 0 | AB94: 0 | AC94: 0 | AD94: 0 | AE94: 0 | AF94: 0 | AG94: 0 | AH94: 0 | AI94: 0
B95: 0 | C95: =Annuity!C162 -> NIGHTWATCH MEDIUM (S250) - FS2A | D95: =Annuity!D162 -> FS2A | F95: $ / Component | K95: 0 | L95: 0 | M95: 0 | N95: 0 | O95: 0 | P95: 0 | Q95: 0 | R95: 0 | S95: 0 | T95: 0 | U95: 0 | V95: 0 | W95: 0 | X95: 0 | Y95: 0 | Z95: 0 | AA95: 0 | AB95: 0 | AC95: 0 | AD95: 0 | AE95: 0 | AF95: 0 | AG95: 0 | AH95: 0 | AI95: 0
B96: 0 | C96: =Annuity!C163 -> NIGHTWATCH LARGE (S400) - FS3A | D96: =Annuity!D163 -> FS3A | F96: $ / Component | K96: 0 | L96: 0 | M96: 0 | N96: 0 | O96: 0 | P96: 0 | Q96: 0 | R96: 0 | S96: 0 | T96: 0 | U96: 0 | V96: 0 | W96: 0 | X96: 0 | Y96: 0 | Z96: 0 | AA96: 0 | AB96: 0 | AC96: 0 | AD96: 0 | AE96: 0 | AF96: 0 | AG96: 0 | AH96: 0 | AI96: 0
B97: 0 | C97: =Annuity!C164 -> NIGHTWATCH MINOR (S100) - FS4A | D97: =Annuity!D164 -> FS4A | F97: $ / Component | K97: 0 | L97: 0 | M97: 0 | N97: 0 | O97: 0 | P97: 0 | Q97: 0 | R97: 0 | S97: 0 | T97: 0 | U97: 0 | V97: 0 | W97: 0 | X97: 0 | Y97: 0 | Z97: 0 | AA97: 0 | AB97: 0 | AC97: 0 | AD97: 0 | AE97: 0 | AF97: 0 | AG97: 0 | AH97: 0 | AI97: 0
B98: 0 | C98: =Annuity!C165 -> NIGHTWATCH MINOR (S70) - FS5A | D98: =Annuity!D165 -> FS5A | F98: $ / Component | K98: 0 | L98: 0 | M98: 0 | N98: 0 | O98: 0 | P98: 0 | Q98: 0 | R98: 0 | S98: 0 | T98: 0 | U98: 0 | V98: 0 | W98: 0 | X98: 0 | Y98: 0 | Z98: 0 | AA98: 0 | AB98: 0 | AC98: 0 | AD98: 0 | AE98: 0 | AF98: 0 | AG98: 0 | AH98: 0 | AI98: 0
B99: TRUE | C99: =Annuity!C166 -> Spare | D99: =Annuity!D166 -> $ p.a. / Component | F99: $ / Component | K99: =SUMPRODUCT(L37:$BH37,L$7:$BH$7) -> 0 | L99: =SUMPRODUCT(M37:$BH37,M$7:$BH$7) -> 0 | M99: =SUMPRODUCT(N37:$BH37,N$7:$BH$7) -> 0 | N99: =SUMPRODUCT(O37:$BH37,O$7:$BH$7) -> 0 | O99: =SUMPRODUCT(P37:$BH37,P$7:$BH$7) -> 0 | P99: =SUMPRODUCT(Q37:$BH37,Q$7:$BH$7) -> 0 | Q99: =SUMPRODUCT(R37:$BH37,R$7:$BH$7) -> 0 | R99: =SUMPRODUCT(S37:$BH37,S$7:$BH$7) -> 0 | S99: =SUMPRODUCT(T37:$BH37,T$7:$BH$7) -> 0 | T99: =SUMPRODUCT(U37:$BH37,U$7:$BH$7) -> 0 | U99: =SUMPRODUCT(V37:$BH37,V$7:$BH$7) -> 0 | V99: =SUMPRODUCT(W37:$BH37,W$7:$BH$7) -> 0 | W99: =SUMPRODUCT(X37:$BH37,X$7:$BH$7) -> 0 | X99: =SUMPRODUCT(Y37:$BH37,Y$7:$BH$7) -> 0 | Y99: =SUMPRODUCT(Z37:$BH37,Z$7:$BH$7) -> 0 | Z99: =SUMPRODUCT(AA37:$BH37,AA$7:$BH$7) -> 0 | AA99: =SUMPRODUCT(AB37:$BH37,AB$7:$BH$7) -> 0 | AB99: =SUMPRODUCT(AC37:$BH37,AC$7:$BH$7) -> 0 | AC99: =SUMPRODUCT(AD37:$BH37,AD$7:$BH$7) -> 0 | AD99: =SUMPRODUCT(AE37:$BH37,AE$7:$BH$7) -> 0 | AE99: =SUMPRODUCT(AF37:$BH37,AF$7:$BH$7) -> 0 | AF99: =SUMPRODUCT(AG37:$BH37,AG$7:$BH$7) -> 0 | AG99: =SUMPRODUCT(AH37:$BH37,AH$7:$BH$7) -> 0 | AH99: =SUMPRODUCT(AI37:$BH37,AI$7:$BH$7) -> 0 | AI99: =SUMPRODUCT(AJ37:$BH37,AJ$7:$BH$7) -> 0
B100: TRUE | C100: =Annuity!C167 -> Spare | D100: =Annuity!D167 -> $ p.a. / Component | F100: $ / Component | K100: =SUMPRODUCT(L38:$BH38,L$7:$BH$7) -> 0 | L100: =SUMPRODUCT(M38:$BH38,M$7:$BH$7) -> 0 | M100: =SUMPRODUCT(N38:$BH38,N$7:$BH$7) -> 0 | N100: =SUMPRODUCT(O38:$BH38,O$7:$BH$7) -> 0 | O100: =SUMPRODUCT(P38:$BH38,P$7:$BH$7) -> 0 | P100: =SUMPRODUCT(Q38:$BH38,Q$7:$BH$7) -> 0 | Q100: =SUMPRODUCT(R38:$BH38,R$7:$BH$7) -> 0 | R100: =SUMPRODUCT(S38:$BH38,S$7:$BH$7) -> 0 | S100: =SUMPRODUCT(T38:$BH38,T$7:$BH$7) -> 0 | T100: =SUMPRODUCT(U38:$BH38,U$7:$BH$7) -> 0 | U100: =SUMPRODUCT(V38:$BH38,V$7:$BH$7) -> 0 | V100: =SUMPRODUCT(W38:$BH38,W$7:$BH$7) -> 0 | W100: =SUMPRODUCT(X38:$BH38,X$7:$BH$7) -> 0 | X100: =SUMPRODUCT(Y38:$BH38,Y$7:$BH$7) -> 0 | Y100: =SUMPRODUCT(Z38:$BH38,Z$7:$BH$7) -> 0 | Z100: =SUMPRODUCT(AA38:$BH38,AA$7:$BH$7) -> 0 | AA100: =SUMPRODUCT(AB38:$BH38,AB$7:$BH$7) -> 0 | AB100: =SUMPRODUCT(AC38:$BH38,AC$7:$BH$7) -> 0 | AC100: =SUMPRODUCT(AD38:$BH38,AD$7:$BH$7) -> 0 | AD100: =SUMPRODUCT(AE38:$BH38,AE$7:$BH$7) -> 0 | AE100: =SUMPRODUCT(AF38:$BH38,AF$7:$BH$7) -> 0 | AF100: =SUMPRODUCT(AG38:$BH38,AG$7:$BH$7) -> 0 | AG100: =SUMPRODUCT(AH38:$BH38,AH$7:$BH$7) -> 0 | AH100: =SUMPRODUCT(AI38:$BH38,AI$7:$BH$7) -> 0 | AI100: =SUMPRODUCT(AJ38:$BH38,AJ$7:$BH$7) -> 0
B101: TRUE | C101: =Annuity!C168 -> Spare | D101: =Annuity!D168 -> $ p.a. / Component | F101: $ / Component | K101: =SUMPRODUCT(L39:$BH39,L$7:$BH$7) -> 0 | L101: =SUMPRODUCT(M39:$BH39,M$7:$BH$7) -> 0 | M101: =SUMPRODUCT(N39:$BH39,N$7:$BH$7) -> 0 | N101: =SUMPRODUCT(O39:$BH39,O$7:$BH$7) -> 0 | O101: =SUMPRODUCT(P39:$BH39,P$7:$BH$7) -> 0 | P101: =SUMPRODUCT(Q39:$BH39,Q$7:$BH$7) -> 0 | Q101: =SUMPRODUCT(R39:$BH39,R$7:$BH$7) -> 0 | R101: =SUMPRODUCT(S39:$BH39,S$7:$BH$7) -> 0 | S101: =SUMPRODUCT(T39:$BH39,T$7:$BH$7) -> 0 | T101: =SUMPRODUCT(U39:$BH39,U$7:$BH$7) -> 0 | U101: =SUMPRODUCT(V39:$BH39,V$7:$BH$7) -> 0 | V101: =SUMPRODUCT(W39:$BH39,W$7:$BH$7) -> 0 | W101: =SUMPRODUCT(X39:$BH39,X$7:$BH$7) -> 0 | X101: =SUMPRODUCT(Y39:$BH39,Y$7:$BH$7) -> 0 | Y101: =SUMPRODUCT(Z39:$BH39,Z$7:$BH$7) -> 0 | Z101: =SUMPRODUCT(AA39:$BH39,AA$7:$BH$7) -> 0 | AA101: =SUMPRODUCT(AB39:$BH39,AB$7:$BH$7) -> 0 | AB101: =SUMPRODUCT(AC39:$BH39,AC$7:$BH$7) -> 0 | AC101: =SUMPRODUCT(AD39:$BH39,AD$7:$BH$7) -> 0 | AD101: =SUMPRODUCT(AE39:$BH39,AE$7:$BH$7) -> 0 | AE101: =SUMPRODUCT(AF39:$BH39,AF$7:$BH$7) -> 0 | AF101: =SUMPRODUCT(AG39:$BH39,AG$7:$BH$7) -> 0 | AG101: =SUMPRODUCT(AH39:$BH39,AH$7:$BH$7) -> 0 | AH101: =SUMPRODUCT(AI39:$BH39,AI$7:$BH$7) -> 0 | AI101: =SUMPRODUCT(AJ39:$BH39,AJ$7:$BH$7) -> 0
B102: =IF(C102="Spare",TRUE,0) -> TRUE | C102: =Annuity!C169 -> Spare | D102: =Annuity!D169 -> $ p.a. / Component | F102: $ / Component | K102: =SUMPRODUCT(L40:$BH40,L$7:$BH$7) -> 0 | L102: =SUMPRODUCT(M40:$BH40,M$7:$BH$7) -> 0 | M102: =SUMPRODUCT(N40:$BH40,N$7:$BH$7) -> 0 | N102: =SUMPRODUCT(O40:$BH40,O$7:$BH$7) -> 0 | O102: =SUMPRODUCT(P40:$BH40,P$7:$BH$7) -> 0 | P102: =SUMPRODUCT(Q40:$BH40,Q$7:$BH$7) -> 0 | Q102: =SUMPRODUCT(R40:$BH40,R$7:$BH$7) -> 0 | R102: =SUMPRODUCT(S40:$BH40,S$7:$BH$7) -> 0 | S102: =SUMPRODUCT(T40:$BH40,T$7:$BH$7) -> 0 | T102: =SUMPRODUCT(U40:$BH40,U$7:$BH$7) -> 0 | U102: =SUMPRODUCT(V40:$BH40,V$7:$BH$7) -> 0 | V102: =SUMPRODUCT(W40:$BH40,W$7:$BH$7) -> 0 | W102: =SUMPRODUCT(X40:$BH40,X$7:$BH$7) -> 0 | X102: =SUMPRODUCT(Y40:$BH40,Y$7:$BH$7) -> 0 | Y102: =SUMPRODUCT(Z40:$BH40,Z$7:$BH$7) -> 0 | Z102: =SUMPRODUCT(AA40:$BH40,AA$7:$BH$7) -> 0 | AA102: =SUMPRODUCT(AB40:$BH40,AB$7:$BH$7) -> 0 | AB102: =SUMPRODUCT(AC40:$BH40,AC$7:$BH$7) -> 0 | AC102: =SUMPRODUCT(AD40:$BH40,AD$7:$BH$7) -> 0 | AD102: =SUMPRODUCT(AE40:$BH40,AE$7:$BH$7) -> 0 | AE102: =SUMPRODUCT(AF40:$BH40,AF$7:$BH$7) -> 0 | AF102: =SUMPRODUCT(AG40:$BH40,AG$7:$BH$7) -> 0 | AG102: =SUMPRODUCT(AH40:$BH40,AH$7:$BH$7) -> 0 | AH102: =SUMPRODUCT(AI40:$BH40,AI$7:$BH$7) -> 0 | AI102: =SUMPRODUCT(AJ40:$BH40,AJ$7:$BH$7) -> 0
B103: TRUE | C103: =Annuity!C170 -> Spare | D103: =Annuity!D170 -> $ p.a. / Component | F103: $ / Component | K103: =SUMPRODUCT(L41:$BH41,L$7:$BH$7) -> 0 | L103: =SUMPRODUCT(M41:$BH41,M$7:$BH$7) -> 0 | M103: =SUMPRODUCT(N41:$BH41,N$7:$BH$7) -> 0 | N103: =SUMPRODUCT(O41:$BH41,O$7:$BH$7) -> 0 | O103: =SUMPRODUCT(P41:$BH41,P$7:$BH$7) -> 0 | P103: =SUMPRODUCT(Q41:$BH41,Q$7:$BH$7) -> 0 | Q103: =SUMPRODUCT(R41:$BH41,R$7:$BH$7) -> 0 | R103: =SUMPRODUCT(S41:$BH41,S$7:$BH$7) -> 0 | S103: =SUMPRODUCT(T41:$BH41,T$7:$BH$7) -> 0 | T103: =SUMPRODUCT(U41:$BH41,U$7:$BH$7) -> 0 | U103: =SUMPRODUCT(V41:$BH41,V$7:$BH$7) -> 0 | V103: =SUMPRODUCT(W41:$BH41,W$7:$BH$7) -> 0 | W103: =SUMPRODUCT(X41:$BH41,X$7:$BH$7) -> 0 | X103: =SUMPRODUCT(Y41:$BH41,Y$7:$BH$7) -> 0 | Y103: =SUMPRODUCT(Z41:$BH41,Z$7:$BH$7) -> 0 | Z103: =SUMPRODUCT(AA41:$BH41,AA$7:$BH$7) -> 0 | AA103: =SUMPRODUCT(AB41:$BH41,AB$7:$BH$7) -> 0 | AB103: =SUMPRODUCT(AC41:$BH41,AC$7:$BH$7) -> 0 | AC103: =SUMPRODUCT(AD41:$BH41,AD$7:$BH$7) -> 0 | AD103: =SUMPRODUCT(AE41:$BH41,AE$7:$BH$7) -> 0 | AE103: =SUMPRODUCT(AF41:$BH41,AF$7:$BH$7) -> 0 | AF103: =SUMPRODUCT(AG41:$BH41,AG$7:$BH$7) -> 0 | AG103: =SUMPRODUCT(AH41:$BH41,AH$7:$BH$7) -> 0 | AH103: =SUMPRODUCT(AI41:$BH41,AI$7:$BH$7) -> 0 | AI103: =SUMPRODUCT(AJ41:$BH41,AJ$7:$BH$7) -> 0
B104: TRUE | C104: =Annuity!C171 -> Spare | D104: =Annuity!D171 -> $ p.a. / Component | F104: $ / Component | K104: =SUMPRODUCT(L42:$BH42,L$7:$BH$7) -> 0 | L104: =SUMPRODUCT(M42:$BH42,M$7:$BH$7) -> 0 | M104: =SUMPRODUCT(N42:$BH42,N$7:$BH$7) -> 0 | N104: =SUMPRODUCT(O42:$BH42,O$7:$BH$7) -> 0 | O104: =SUMPRODUCT(P42:$BH42,P$7:$BH$7) -> 0 | P104: =SUMPRODUCT(Q42:$BH42,Q$7:$BH$7) -> 0 | Q104: =SUMPRODUCT(R42:$BH42,R$7:$BH$7) -> 0 | R104: =SUMPRODUCT(S42:$BH42,S$7:$BH$7) -> 0 | S104: =SUMPRODUCT(T42:$BH42,T$7:$BH$7) -> 0 | T104: =SUMPRODUCT(U42:$BH42,U$7:$BH$7) -> 0 | U104: =SUMPRODUCT(V42:$BH42,V$7:$BH$7) -> 0 | V104: =SUMPRODUCT(W42:$BH42,W$7:$BH$7) -> 0 | W104: =SUMPRODUCT(X42:$BH42,X$7:$BH$7) -> 0 | X104: =SUMPRODUCT(Y42:$BH42,Y$7:$BH$7) -> 0 | Y104: =SUMPRODUCT(Z42:$BH42,Z$7:$BH$7) -> 0 | Z104: =SUMPRODUCT(AA42:$BH42,AA$7:$BH$7) -> 0 | AA104: =SUMPRODUCT(AB42:$BH42,AB$7:$BH$7) -> 0 | AB104: =SUMPRODUCT(AC42:$BH42,AC$7:$BH$7) -> 0 | AC104: =SUMPRODUCT(AD42:$BH42,AD$7:$BH$7) -> 0 | AD104: =SUMPRODUCT(AE42:$BH42,AE$7:$BH$7) -> 0 | AE104: =SUMPRODUCT(AF42:$BH42,AF$7:$BH$7) -> 0 | AF104: =SUMPRODUCT(AG42:$BH42,AG$7:$BH$7) -> 0 | AG104: =SUMPRODUCT(AH42:$BH42,AH$7:$BH$7) -> 0 | AH104: =SUMPRODUCT(AI42:$BH42,AI$7:$BH$7) -> 0 | AI104: =SUMPRODUCT(AJ42:$BH42,AJ$7:$BH$7) -> 0
B105: TRUE | C105: =Annuity!C172 -> Spare | D105: =Annuity!D172 -> $ p.a. / Component | F105: $ / Component | K105: =SUMPRODUCT(L43:$BH43,L$7:$BH$7) -> 0 | L105: =SUMPRODUCT(M43:$BH43,M$7:$BH$7) -> 0 | M105: =SUMPRODUCT(N43:$BH43,N$7:$BH$7) -> 0 | N105: =SUMPRODUCT(O43:$BH43,O$7:$BH$7) -> 0 | O105: =SUMPRODUCT(P43:$BH43,P$7:$BH$7) -> 0 | P105: =SUMPRODUCT(Q43:$BH43,Q$7:$BH$7) -> 0 | Q105: =SUMPRODUCT(R43:$BH43,R$7:$BH$7) -> 0 | R105: =SUMPRODUCT(S43:$BH43,S$7:$BH$7) -> 0 | S105: =SUMPRODUCT(T43:$BH43,T$7:$BH$7) -> 0 | T105: =SUMPRODUCT(U43:$BH43,U$7:$BH$7) -> 0 | U105: =SUMPRODUCT(V43:$BH43,V$7:$BH$7) -> 0 | V105: =SUMPRODUCT(W43:$BH43,W$7:$BH$7) -> 0 | W105: =SUMPRODUCT(X43:$BH43,X$7:$BH$7) -> 0 | X105: =SUMPRODUCT(Y43:$BH43,Y$7:$BH$7) -> 0 | Y105: =SUMPRODUCT(Z43:$BH43,Z$7:$BH$7) -> 0 | Z105: =SUMPRODUCT(AA43:$BH43,AA$7:$BH$7) -> 0 | AA105: =SUMPRODUCT(AB43:$BH43,AB$7:$BH$7) -> 0 | AB105: =SUMPRODUCT(AC43:$BH43,AC$7:$BH$7) -> 0 | AC105: =SUMPRODUCT(AD43:$BH43,AD$7:$BH$7) -> 0 | AD105: =SUMPRODUCT(AE43:$BH43,AE$7:$BH$7) -> 0 | AE105: =SUMPRODUCT(AF43:$BH43,AF$7:$BH$7) -> 0 | AF105: =SUMPRODUCT(AG43:$BH43,AG$7:$BH$7) -> 0 | AG105: =SUMPRODUCT(AH43:$BH43,AH$7:$BH$7) -> 0 | AH105: =SUMPRODUCT(AI43:$BH43,AI$7:$BH$7) -> 0 | AI105: =SUMPRODUCT(AJ43:$BH43,AJ$7:$BH$7) -> 0
B106: TRUE | C106: =Annuity!C173 -> Spare | D106: =Annuity!D173 -> $ p.a. / Component | F106: $ / Component | K106: =SUMPRODUCT(L44:$BH44,L$7:$BH$7) -> 0 | L106: =SUMPRODUCT(M44:$BH44,M$7:$BH$7) -> 0 | M106: =SUMPRODUCT(N44:$BH44,N$7:$BH$7) -> 0 | N106: =SUMPRODUCT(O44:$BH44,O$7:$BH$7) -> 0 | O106: =SUMPRODUCT(P44:$BH44,P$7:$BH$7) -> 0 | P106: =SUMPRODUCT(Q44:$BH44,Q$7:$BH$7) -> 0 | Q106: =SUMPRODUCT(R44:$BH44,R$7:$BH$7) -> 0 | R106: =SUMPRODUCT(S44:$BH44,S$7:$BH$7) -> 0 | S106: =SUMPRODUCT(T44:$BH44,T$7:$BH$7) -> 0 | T106: =SUMPRODUCT(U44:$BH44,U$7:$BH$7) -> 0 | U106: =SUMPRODUCT(V44:$BH44,V$7:$BH$7) -> 0 | V106: =SUMPRODUCT(W44:$BH44,W$7:$BH$7) -> 0 | W106: =SUMPRODUCT(X44:$BH44,X$7:$BH$7) -> 0 | X106: =SUMPRODUCT(Y44:$BH44,Y$7:$BH$7) -> 0 | Y106: =SUMPRODUCT(Z44:$BH44,Z$7:$BH$7) -> 0 | Z106: =SUMPRODUCT(AA44:$BH44,AA$7:$BH$7) -> 0 | AA106: =SUMPRODUCT(AB44:$BH44,AB$7:$BH$7) -> 0 | AB106: =SUMPRODUCT(AC44:$BH44,AC$7:$BH$7) -> 0 | AC106: =SUMPRODUCT(AD44:$BH44,AD$7:$BH$7) -> 0 | AD106: =SUMPRODUCT(AE44:$BH44,AE$7:$BH$7) -> 0 | AE106: =SUMPRODUCT(AF44:$BH44,AF$7:$BH$7) -> 0 | AF106: =SUMPRODUCT(AG44:$BH44,AG$7:$BH$7) -> 0 | AG106: =SUMPRODUCT(AH44:$BH44,AH$7:$BH$7) -> 0 | AH106: =SUMPRODUCT(AI44:$BH44,AI$7:$BH$7) -> 0 | AI106: =SUMPRODUCT(AJ44:$BH44,AJ$7:$BH$7) -> 0
B107: TRUE | C107: =Annuity!C174 -> Spare | D107: =Annuity!D174 -> $ p.a. / Component | F107: $ / Component | K107: =SUMPRODUCT(L45:$BH45,L$7:$BH$7) -> 0 | L107: =SUMPRODUCT(M45:$BH45,M$7:$BH$7) -> 0 | M107: =SUMPRODUCT(N45:$BH45,N$7:$BH$7) -> 0 | N107: =SUMPRODUCT(O45:$BH45,O$7:$BH$7) -> 0 | O107: =SUMPRODUCT(P45:$BH45,P$7:$BH$7) -> 0 | P107: =SUMPRODUCT(Q45:$BH45,Q$7:$BH$7) -> 0 | Q107: =SUMPRODUCT(R45:$BH45,R$7:$BH$7) -> 0 | R107: =SUMPRODUCT(S45:$BH45,S$7:$BH$7) -> 0 | S107: =SUMPRODUCT(T45:$BH45,T$7:$BH$7) -> 0 | T107: =SUMPRODUCT(U45:$BH45,U$7:$BH$7) -> 0 | U107: =SUMPRODUCT(V45:$BH45,V$7:$BH$7) -> 0 | V107: =SUMPRODUCT(W45:$BH45,W$7:$BH$7) -> 0 | W107: =SUMPRODUCT(X45:$BH45,X$7:$BH$7) -> 0 | X107: =SUMPRODUCT(Y45:$BH45,Y$7:$BH$7) -> 0 | Y107: =SUMPRODUCT(Z45:$BH45,Z$7:$BH$7) -> 0 | Z107: =SUMPRODUCT(AA45:$BH45,AA$7:$BH$7) -> 0 | AA107: =SUMPRODUCT(AB45:$BH45,AB$7:$BH$7) -> 0 | AB107: =SUMPRODUCT(AC45:$BH45,AC$7:$BH$7) -> 0 | AC107: =SUMPRODUCT(AD45:$BH45,AD$7:$BH$7) -> 0 | AD107: =SUMPRODUCT(AE45:$BH45,AE$7:$BH$7) -> 0 | AE107: =SUMPRODUCT(AF45:$BH45,AF$7:$BH$7) -> 0 | AF107: =SUMPRODUCT(AG45:$BH45,AG$7:$BH$7) -> 0 | AG107: =SUMPRODUCT(AH45:$BH45,AH$7:$BH$7) -> 0 | AH107: =SUMPRODUCT(AI45:$BH45,AI$7:$BH$7) -> 0 | AI107: =SUMPRODUCT(AJ45:$BH45,AJ$7:$BH$7) -> 0
B108: TRUE | C108: =Annuity!C175 -> Spare | D108: =Annuity!D175 -> $ p.a. / Component | F108: $ / Component | K108: =SUMPRODUCT(L46:$BH46,L$7:$BH$7) -> 0 | L108: =SUMPRODUCT(M46:$BH46,M$7:$BH$7) -> 0 | M108: =SUMPRODUCT(N46:$BH46,N$7:$BH$7) -> 0 | N108: =SUMPRODUCT(O46:$BH46,O$7:$BH$7) -> 0 | O108: =SUMPRODUCT(P46:$BH46,P$7:$BH$7) -> 0 | P108: =SUMPRODUCT(Q46:$BH46,Q$7:$BH$7) -> 0 | Q108: =SUMPRODUCT(R46:$BH46,R$7:$BH$7) -> 0 | R108: =SUMPRODUCT(S46:$BH46,S$7:$BH$7) -> 0 | S108: =SUMPRODUCT(T46:$BH46,T$7:$BH$7) -> 0 | T108: =SUMPRODUCT(U46:$BH46,U$7:$BH$7) -> 0 | U108: =SUMPRODUCT(V46:$BH46,V$7:$BH$7) -> 0 | V108: =SUMPRODUCT(W46:$BH46,W$7:$BH$7) -> 0 | W108: =SUMPRODUCT(X46:$BH46,X$7:$BH$7) -> 0 | X108: =SUMPRODUCT(Y46:$BH46,Y$7:$BH$7) -> 0 | Y108: =SUMPRODUCT(Z46:$BH46,Z$7:$BH$7) -> 0 | Z108: =SUMPRODUCT(AA46:$BH46,AA$7:$BH$7) -> 0 | AA108: =SUMPRODUCT(AB46:$BH46,AB$7:$BH$7) -> 0 | AB108: =SUMPRODUCT(AC46:$BH46,AC$7:$BH$7) -> 0 | AC108: =SUMPRODUCT(AD46:$BH46,AD$7:$BH$7) -> 0 | AD108: =SUMPRODUCT(AE46:$BH46,AE$7:$BH$7) -> 0 | AE108: =SUMPRODUCT(AF46:$BH46,AF$7:$BH$7) -> 0 | AF108: =SUMPRODUCT(AG46:$BH46,AG$7:$BH$7) -> 0 | AG108: =SUMPRODUCT(AH46:$BH46,AH$7:$BH$7) -> 0 | AH108: =SUMPRODUCT(AI46:$BH46,AI$7:$BH$7) -> 0 | AI108: =SUMPRODUCT(AJ46:$BH46,AJ$7:$BH$7) -> 0
B109: TRUE | C109: =Annuity!C176 -> Spare | D109: =Annuity!D176 -> $ p.a. / Component | F109: $ / Component | K109: =SUMPRODUCT(L47:$BH47,L$7:$BH$7) -> 0 | L109: =SUMPRODUCT(M47:$BH47,M$7:$BH$7) -> 0 | M109: =SUMPRODUCT(N47:$BH47,N$7:$BH$7) -> 0 | N109: =SUMPRODUCT(O47:$BH47,O$7:$BH$7) -> 0 | O109: =SUMPRODUCT(P47:$BH47,P$7:$BH$7) -> 0 | P109: =SUMPRODUCT(Q47:$BH47,Q$7:$BH$7) -> 0 | Q109: =SUMPRODUCT(R47:$BH47,R$7:$BH$7) -> 0 | R109: =SUMPRODUCT(S47:$BH47,S$7:$BH$7) -> 0 | S109: =SUMPRODUCT(T47:$BH47,T$7:$BH$7) -> 0 | T109: =SUMPRODUCT(U47:$BH47,U$7:$BH$7) -> 0 | U109: =SUMPRODUCT(V47:$BH47,V$7:$BH$7) -> 0 | V109: =SUMPRODUCT(W47:$BH47,W$7:$BH$7) -> 0 | W109: =SUMPRODUCT(X47:$BH47,X$7:$BH$7) -> 0 | X109: =SUMPRODUCT(Y47:$BH47,Y$7:$BH$7) -> 0 | Y109: =SUMPRODUCT(Z47:$BH47,Z$7:$BH$7) -> 0 | Z109: =SUMPRODUCT(AA47:$BH47,AA$7:$BH$7) -> 0 | AA109: =SUMPRODUCT(AB47:$BH47,AB$7:$BH$7) -> 0 | AB109: =SUMPRODUCT(AC47:$BH47,AC$7:$BH$7) -> 0 | AC109: =SUMPRODUCT(AD47:$BH47,AD$7:$BH$7) -> 0 | AD109: =SUMPRODUCT(AE47:$BH47,AE$7:$BH$7) -> 0 | AE109: =SUMPRODUCT(AF47:$BH47,AF$7:$BH$7) -> 0 | AF109: =SUMPRODUCT(AG47:$BH47,AG$7:$BH$7) -> 0 | AG109: =SUMPRODUCT(AH47:$BH47,AH$7:$BH$7) -> 0 | AH109: =SUMPRODUCT(AI47:$BH47,AI$7:$BH$7) -> 0 | AI109: =SUMPRODUCT(AJ47:$BH47,AJ$7:$BH$7) -> 0
B110: TRUE | C110: =Annuity!C177 -> Spare | D110: =Annuity!D177 -> $ p.a. / Component | F110: $ / Component | K110: =SUMPRODUCT(L48:$BH48,L$7:$BH$7) -> 0 | L110: =SUMPRODUCT(M48:$BH48,M$7:$BH$7) -> 0 | M110: =SUMPRODUCT(N48:$BH48,N$7:$BH$7) -> 0 | N110: =SUMPRODUCT(O48:$BH48,O$7:$BH$7) -> 0 | O110: =SUMPRODUCT(P48:$BH48,P$7:$BH$7) -> 0 | P110: =SUMPRODUCT(Q48:$BH48,Q$7:$BH$7) -> 0 | Q110: =SUMPRODUCT(R48:$BH48,R$7:$BH$7) -> 0 | R110: =SUMPRODUCT(S48:$BH48,S$7:$BH$7) -> 0 | S110: =SUMPRODUCT(T48:$BH48,T$7:$BH$7) -> 0 | T110: =SUMPRODUCT(U48:$BH48,U$7:$BH$7) -> 0 | U110: =SUMPRODUCT(V48:$BH48,V$7:$BH$7) -> 0 | V110: =SUMPRODUCT(W48:$BH48,W$7:$BH$7) -> 0 | W110: =SUMPRODUCT(X48:$BH48,X$7:$BH$7) -> 0 | X110: =SUMPRODUCT(Y48:$BH48,Y$7:$BH$7) -> 0 | Y110: =SUMPRODUCT(Z48:$BH48,Z$7:$BH$7) -> 0 | Z110: =SUMPRODUCT(AA48:$BH48,AA$7:$BH$7) -> 0 | AA110: =SUMPRODUCT(AB48:$BH48,AB$7:$BH$7) -> 0 | AB110: =SUMPRODUCT(AC48:$BH48,AC$7:$BH$7) -> 0 | AC110: =SUMPRODUCT(AD48:$BH48,AD$7:$BH$7) -> 0 | AD110: =SUMPRODUCT(AE48:$BH48,AE$7:$BH$7) -> 0 | AE110: =SUMPRODUCT(AF48:$BH48,AF$7:$BH$7) -> 0 | AF110: =SUMPRODUCT(AG48:$BH48,AG$7:$BH$7) -> 0 | AG110: =SUMPRODUCT(AH48:$BH48,AH$7:$BH$7) -> 0 | AH110: =SUMPRODUCT(AI48:$BH48,AI$7:$BH$7) -> 0 | AI110: =SUMPRODUCT(AJ48:$BH48,AJ$7:$BH$7) -> 0
B111: TRUE | C111: =Annuity!C178 -> Spare | D111: =Annuity!D178 -> $ p.a. / Component | F111: $ / Component | K111: =SUMPRODUCT(L49:$BH49,L$7:$BH$7) -> 0 | L111: =SUMPRODUCT(M49:$BH49,M$7:$BH$7) -> 0 | M111: =SUMPRODUCT(N49:$BH49,N$7:$BH$7) -> 0 | N111: =SUMPRODUCT(O49:$BH49,O$7:$BH$7) -> 0 | O111: =SUMPRODUCT(P49:$BH49,P$7:$BH$7) -> 0 | P111: =SUMPRODUCT(Q49:$BH49,Q$7:$BH$7) -> 0 | Q111: =SUMPRODUCT(R49:$BH49,R$7:$BH$7) -> 0 | R111: =SUMPRODUCT(S49:$BH49,S$7:$BH$7) -> 0 | S111: =SUMPRODUCT(T49:$BH49,T$7:$BH$7) -> 0 | T111: =SUMPRODUCT(U49:$BH49,U$7:$BH$7) -> 0 | U111: =SUMPRODUCT(V49:$BH49,V$7:$BH$7) -> 0 | V111: =SUMPRODUCT(W49:$BH49,W$7:$BH$7) -> 0 | W111: =SUMPRODUCT(X49:$BH49,X$7:$BH$7) -> 0 | X111: =SUMPRODUCT(Y49:$BH49,Y$7:$BH$7) -> 0 | Y111: =SUMPRODUCT(Z49:$BH49,Z$7:$BH$7) -> 0 | Z111: =SUMPRODUCT(AA49:$BH49,AA$7:$BH$7) -> 0 | AA111: =SUMPRODUCT(AB49:$BH49,AB$7:$BH$7) -> 0 | AB111: =SUMPRODUCT(AC49:$BH49,AC$7:$BH$7) -> 0 | AC111: =SUMPRODUCT(AD49:$BH49,AD$7:$BH$7) -> 0 | AD111: =SUMPRODUCT(AE49:$BH49,AE$7:$BH$7) -> 0 | AE111: =SUMPRODUCT(AF49:$BH49,AF$7:$BH$7) -> 0 | AF111: =SUMPRODUCT(AG49:$BH49,AG$7:$BH$7) -> 0 | AG111: =SUMPRODUCT(AH49:$BH49,AH$7:$BH$7) -> 0 | AH111: =SUMPRODUCT(AI49:$BH49,AI$7:$BH$7) -> 0 | AI111: =SUMPRODUCT(AJ49:$BH49,AJ$7:$BH$7) -> 0
B112: TRUE | C112: =Annuity!C179 -> Spare | D112: =Annuity!D179 -> $ p.a. / Component | F112: $ / Component | K112: =SUMPRODUCT(L50:$BH50,L$7:$BH$7) -> 0 | L112: =SUMPRODUCT(M50:$BH50,M$7:$BH$7) -> 0 | M112: =SUMPRODUCT(N50:$BH50,N$7:$BH$7) -> 0 | N112: =SUMPRODUCT(O50:$BH50,O$7:$BH$7) -> 0 | O112: =SUMPRODUCT(P50:$BH50,P$7:$BH$7) -> 0 | P112: =SUMPRODUCT(Q50:$BH50,Q$7:$BH$7) -> 0 | Q112: =SUMPRODUCT(R50:$BH50,R$7:$BH$7) -> 0 | R112: =SUMPRODUCT(S50:$BH50,S$7:$BH$7) -> 0 | S112: =SUMPRODUCT(T50:$BH50,T$7:$BH$7) -> 0 | T112: =SUMPRODUCT(U50:$BH50,U$7:$BH$7) -> 0 | U112: =SUMPRODUCT(V50:$BH50,V$7:$BH$7) -> 0 | V112: =SUMPRODUCT(W50:$BH50,W$7:$BH$7) -> 0 | W112: =SUMPRODUCT(X50:$BH50,X$7:$BH$7) -> 0 | X112: =SUMPRODUCT(Y50:$BH50,Y$7:$BH$7) -> 0 | Y112: =SUMPRODUCT(Z50:$BH50,Z$7:$BH$7) -> 0 | Z112: =SUMPRODUCT(AA50:$BH50,AA$7:$BH$7) -> 0 | AA112: =SUMPRODUCT(AB50:$BH50,AB$7:$BH$7) -> 0 | AB112: =SUMPRODUCT(AC50:$BH50,AC$7:$BH$7) -> 0 | AC112: =SUMPRODUCT(AD50:$BH50,AD$7:$BH$7) -> 0 | AD112: =SUMPRODUCT(AE50:$BH50,AE$7:$BH$7) -> 0 | AE112: =SUMPRODUCT(AF50:$BH50,AF$7:$BH$7) -> 0 | AF112: =SUMPRODUCT(AG50:$BH50,AG$7:$BH$7) -> 0 | AG112: =SUMPRODUCT(AH50:$BH50,AH$7:$BH$7) -> 0 | AH112: =SUMPRODUCT(AI50:$BH50,AI$7:$BH$7) -> 0 | AI112: =SUMPRODUCT(AJ50:$BH50,AJ$7:$BH$7) -> 0
B113: TRUE | C113: =Annuity!C180 -> Spare | D113: =Annuity!D180 -> $ p.a. / Component | F113: $ / Component | K113: =SUMPRODUCT(L51:$BH51,L$7:$BH$7) -> 0 | L113: =SUMPRODUCT(M51:$BH51,M$7:$BH$7) -> 0 | M113: =SUMPRODUCT(N51:$BH51,N$7:$BH$7) -> 0 | N113: =SUMPRODUCT(O51:$BH51,O$7:$BH$7) -> 0 | O113: =SUMPRODUCT(P51:$BH51,P$7:$BH$7) -> 0 | P113: =SUMPRODUCT(Q51:$BH51,Q$7:$BH$7) -> 0 | Q113: =SUMPRODUCT(R51:$BH51,R$7:$BH$7) -> 0 | R113: =SUMPRODUCT(S51:$BH51,S$7:$BH$7) -> 0 | S113: =SUMPRODUCT(T51:$BH51,T$7:$BH$7) -> 0 | T113: =SUMPRODUCT(U51:$BH51,U$7:$BH$7) -> 0 | U113: =SUMPRODUCT(V51:$BH51,V$7:$BH$7) -> 0 | V113: =SUMPRODUCT(W51:$BH51,W$7:$BH$7) -> 0 | W113: =SUMPRODUCT(X51:$BH51,X$7:$BH$7) -> 0 | X113: =SUMPRODUCT(Y51:$BH51,Y$7:$BH$7) -> 0 | Y113: =SUMPRODUCT(Z51:$BH51,Z$7:$BH$7) -> 0 | Z113: =SUMPRODUCT(AA51:$BH51,AA$7:$BH$7) -> 0 | AA113: =SUMPRODUCT(AB51:$BH51,AB$7:$BH$7) -> 0 | AB113: =SUMPRODUCT(AC51:$BH51,AC$7:$BH$7) -> 0 | AC113: =SUMPRODUCT(AD51:$BH51,AD$7:$BH$7) -> 0 | AD113: =SUMPRODUCT(AE51:$BH51,AE$7:$BH$7) -> 0 | AE113: =SUMPRODUCT(AF51:$BH51,AF$7:$BH$7) -> 0 | AF113: =SUMPRODUCT(AG51:$BH51,AG$7:$BH$7) -> 0 | AG113: =SUMPRODUCT(AH51:$BH51,AH$7:$BH$7) -> 0 | AH113: =SUMPRODUCT(AI51:$BH51,AI$7:$BH$7) -> 0 | AI113: =SUMPRODUCT(AJ51:$BH51,AJ$7:$BH$7) -> 0
B114: TRUE | C114: =Annuity!C181 -> Spare | D114: =Annuity!D181 -> $ p.a. / Component | F114: $ / Component | K114: =SUMPRODUCT(L52:$BH52,L$7:$BH$7) -> 0 | L114: =SUMPRODUCT(M52:$BH52,M$7:$BH$7) -> 0 | M114: =SUMPRODUCT(N52:$BH52,N$7:$BH$7) -> 0 | N114: =SUMPRODUCT(O52:$BH52,O$7:$BH$7) -> 0 | O114: =SUMPRODUCT(P52:$BH52,P$7:$BH$7) -> 0 | P114: =SUMPRODUCT(Q52:$BH52,Q$7:$BH$7) -> 0 | Q114: =SUMPRODUCT(R52:$BH52,R$7:$BH$7) -> 0 | R114: =SUMPRODUCT(S52:$BH52,S$7:$BH$7) -> 0 | S114: =SUMPRODUCT(T52:$BH52,T$7:$BH$7) -> 0 | T114: =SUMPRODUCT(U52:$BH52,U$7:$BH$7) -> 0 | U114: =SUMPRODUCT(V52:$BH52,V$7:$BH$7) -> 0 | V114: =SUMPRODUCT(W52:$BH52,W$7:$BH$7) -> 0 | W114: =SUMPRODUCT(X52:$BH52,X$7:$BH$7) -> 0 | X114: =SUMPRODUCT(Y52:$BH52,Y$7:$BH$7) -> 0 | Y114: =SUMPRODUCT(Z52:$BH52,Z$7:$BH$7) -> 0 | Z114: =SUMPRODUCT(AA52:$BH52,AA$7:$BH$7) -> 0 | AA114: =SUMPRODUCT(AB52:$BH52,AB$7:$BH$7) -> 0 | AB114: =SUMPRODUCT(AC52:$BH52,AC$7:$BH$7) -> 0 | AC114: =SUMPRODUCT(AD52:$BH52,AD$7:$BH$7) -> 0 | AD114: =SUMPRODUCT(AE52:$BH52,AE$7:$BH$7) -> 0 | AE114: =SUMPRODUCT(AF52:$BH52,AF$7:$BH$7) -> 0 | AF114: =SUMPRODUCT(AG52:$BH52,AG$7:$BH$7) -> 0 | AG114: =SUMPRODUCT(AH52:$BH52,AH$7:$BH$7) -> 0 | AH114: =SUMPRODUCT(AI52:$BH52,AI$7:$BH$7) -> 0 | AI114: =SUMPRODUCT(AJ52:$BH52,AJ$7:$BH$7) -> 0
B115: TRUE | C115: =Annuity!C182 -> Spare | D115: =Annuity!D182 -> $ p.a. / Component | F115: $ / Component | K115: =SUMPRODUCT(L53:$BH53,L$7:$BH$7) -> 0 | L115: =SUMPRODUCT(M53:$BH53,M$7:$BH$7) -> 0 | M115: =SUMPRODUCT(N53:$BH53,N$7:$BH$7) -> 0 | N115: =SUMPRODUCT(O53:$BH53,O$7:$BH$7) -> 0 | O115: =SUMPRODUCT(P53:$BH53,P$7:$BH$7) -> 0 | P115: =SUMPRODUCT(Q53:$BH53,Q$7:$BH$7) -> 0 | Q115: =SUMPRODUCT(R53:$BH53,R$7:$BH$7) -> 0 | R115: =SUMPRODUCT(S53:$BH53,S$7:$BH$7) -> 0 | S115: =SUMPRODUCT(T53:$BH53,T$7:$BH$7) -> 0 | T115: =SUMPRODUCT(U53:$BH53,U$7:$BH$7) -> 0 | U115: =SUMPRODUCT(V53:$BH53,V$7:$BH$7) -> 0 | V115: =SUMPRODUCT(W53:$BH53,W$7:$BH$7) -> 0 | W115: =SUMPRODUCT(X53:$BH53,X$7:$BH$7) -> 0 | X115: =SUMPRODUCT(Y53:$BH53,Y$7:$BH$7) -> 0 | Y115: =SUMPRODUCT(Z53:$BH53,Z$7:$BH$7) -> 0 | Z115: =SUMPRODUCT(AA53:$BH53,AA$7:$BH$7) -> 0 | AA115: =SUMPRODUCT(AB53:$BH53,AB$7:$BH$7) -> 0 | AB115: =SUMPRODUCT(AC53:$BH53,AC$7:$BH$7) -> 0 | AC115: =SUMPRODUCT(AD53:$BH53,AD$7:$BH$7) -> 0 | AD115: =SUMPRODUCT(AE53:$BH53,AE$7:$BH$7) -> 0 | AE115: =SUMPRODUCT(AF53:$BH53,AF$7:$BH$7) -> 0 | AF115: =SUMPRODUCT(AG53:$BH53,AG$7:$BH$7) -> 0 | AG115: =SUMPRODUCT(AH53:$BH53,AH$7:$BH$7) -> 0 | AH115: =SUMPRODUCT(AI53:$BH53,AI$7:$BH$7) -> 0 | AI115: =SUMPRODUCT(AJ53:$BH53,AJ$7:$BH$7) -> 0
B116: TRUE | C116: =Annuity!C183 -> Spare | D116: =Annuity!D183 -> $ p.a. / Component | F116: $ / Component | K116: =SUMPRODUCT(L54:$BH54,L$7:$BH$7) -> 0 | L116: =SUMPRODUCT(M54:$BH54,M$7:$BH$7) -> 0 | M116: =SUMPRODUCT(N54:$BH54,N$7:$BH$7) -> 0 | N116: =SUMPRODUCT(O54:$BH54,O$7:$BH$7) -> 0 | O116: =SUMPRODUCT(P54:$BH54,P$7:$BH$7) -> 0 | P116: =SUMPRODUCT(Q54:$BH54,Q$7:$BH$7) -> 0 | Q116: =SUMPRODUCT(R54:$BH54,R$7:$BH$7) -> 0 | R116: =SUMPRODUCT(S54:$BH54,S$7:$BH$7) -> 0 | S116: =SUMPRODUCT(T54:$BH54,T$7:$BH$7) -> 0 | T116: =SUMPRODUCT(U54:$BH54,U$7:$BH$7) -> 0 | U116: =SUMPRODUCT(V54:$BH54,V$7:$BH$7) -> 0 | V116: =SUMPRODUCT(W54:$BH54,W$7:$BH$7) -> 0 | W116: =SUMPRODUCT(X54:$BH54,X$7:$BH$7) -> 0 | X116: =SUMPRODUCT(Y54:$BH54,Y$7:$BH$7) -> 0 | Y116: =SUMPRODUCT(Z54:$BH54,Z$7:$BH$7) -> 0 | Z116: =SUMPRODUCT(AA54:$BH54,AA$7:$BH$7) -> 0 | AA116: =SUMPRODUCT(AB54:$BH54,AB$7:$BH$7) -> 0 | AB116: =SUMPRODUCT(AC54:$BH54,AC$7:$BH$7) -> 0 | AC116: =SUMPRODUCT(AD54:$BH54,AD$7:$BH$7) -> 0 | AD116: =SUMPRODUCT(AE54:$BH54,AE$7:$BH$7) -> 0 | AE116: =SUMPRODUCT(AF54:$BH54,AF$7:$BH$7) -> 0 | AF116: =SUMPRODUCT(AG54:$BH54,AG$7:$BH$7) -> 0 | AG116: =SUMPRODUCT(AH54:$BH54,AH$7:$BH$7) -> 0 | AH116: =SUMPRODUCT(AI54:$BH54,AI$7:$BH$7) -> 0 | AI116: =SUMPRODUCT(AJ54:$BH54,AJ$7:$BH$7) -> 0
B117: TRUE | C117: =Annuity!C184 -> Spare | D117: =Annuity!D184 -> $ p.a. / Component | F117: $ / Component | K117: =SUMPRODUCT(L55:$BH55,L$7:$BH$7) -> 0 | L117: =SUMPRODUCT(M55:$BH55,M$7:$BH$7) -> 0 | M117: =SUMPRODUCT(N55:$BH55,N$7:$BH$7) -> 0 | N117: =SUMPRODUCT(O55:$BH55,O$7:$BH$7) -> 0 | O117: =SUMPRODUCT(P55:$BH55,P$7:$BH$7) -> 0 | P117: =SUMPRODUCT(Q55:$BH55,Q$7:$BH$7) -> 0 | Q117: =SUMPRODUCT(R55:$BH55,R$7:$BH$7) -> 0 | R117: =SUMPRODUCT(S55:$BH55,S$7:$BH$7) -> 0 | S117: =SUMPRODUCT(T55:$BH55,T$7:$BH$7) -> 0 | T117: =SUMPRODUCT(U55:$BH55,U$7:$BH$7) -> 0 | U117: =SUMPRODUCT(V55:$BH55,V$7:$BH$7) -> 0 | V117: =SUMPRODUCT(W55:$BH55,W$7:$BH$7) -> 0 | W117: =SUMPRODUCT(X55:$BH55,X$7:$BH$7) -> 0 | X117: =SUMPRODUCT(Y55:$BH55,Y$7:$BH$7) -> 0 | Y117: =SUMPRODUCT(Z55:$BH55,Z$7:$BH$7) -> 0 | Z117: =SUMPRODUCT(AA55:$BH55,AA$7:$BH$7) -> 0 | AA117: =SUMPRODUCT(AB55:$BH55,AB$7:$BH$7) -> 0 | AB117: =SUMPRODUCT(AC55:$BH55,AC$7:$BH$7) -> 0 | AC117: =SUMPRODUCT(AD55:$BH55,AD$7:$BH$7) -> 0 | AD117: =SUMPRODUCT(AE55:$BH55,AE$7:$BH$7) -> 0 | AE117: =SUMPRODUCT(AF55:$BH55,AF$7:$BH$7) -> 0 | AF117: =SUMPRODUCT(AG55:$BH55,AG$7:$BH$7) -> 0 | AG117: =SUMPRODUCT(AH55:$BH55,AH$7:$BH$7) -> 0 | AH117: =SUMPRODUCT(AI55:$BH55,AI$7:$BH$7) -> 0 | AI117: =SUMPRODUCT(AJ55:$BH55,AJ$7:$BH$7) -> 0
B118: TRUE | C118: =Annuity!C185 -> Spare | D118: =Annuity!D185 -> $ p.a. / Component | F118: $ / Component | K118: =SUMPRODUCT(L56:$BH56,L$7:$BH$7) -> 0 | L118: =SUMPRODUCT(M56:$BH56,M$7:$BH$7) -> 0 | M118: =SUMPRODUCT(N56:$BH56,N$7:$BH$7) -> 0 | N118: =SUMPRODUCT(O56:$BH56,O$7:$BH$7) -> 0 | O118: =SUMPRODUCT(P56:$BH56,P$7:$BH$7) -> 0 | P118: =SUMPRODUCT(Q56:$BH56,Q$7:$BH$7) -> 0 | Q118: =SUMPRODUCT(R56:$BH56,R$7:$BH$7) -> 0 | R118: =SUMPRODUCT(S56:$BH56,S$7:$BH$7) -> 0 | S118: =SUMPRODUCT(T56:$BH56,T$7:$BH$7) -> 0 | T118: =SUMPRODUCT(U56:$BH56,U$7:$BH$7) -> 0 | U118: =SUMPRODUCT(V56:$BH56,V$7:$BH$7) -> 0 | V118: =SUMPRODUCT(W56:$BH56,W$7:$BH$7) -> 0 | W118: =SUMPRODUCT(X56:$BH56,X$7:$BH$7) -> 0 | X118: =SUMPRODUCT(Y56:$BH56,Y$7:$BH$7) -> 0 | Y118: =SUMPRODUCT(Z56:$BH56,Z$7:$BH$7) -> 0 | Z118: =SUMPRODUCT(AA56:$BH56,AA$7:$BH$7) -> 0 | AA118: =SUMPRODUCT(AB56:$BH56,AB$7:$BH$7) -> 0 | AB118: =SUMPRODUCT(AC56:$BH56,AC$7:$BH$7) -> 0 | AC118: =SUMPRODUCT(AD56:$BH56,AD$7:$BH$7) -> 0 | AD118: =SUMPRODUCT(AE56:$BH56,AE$7:$BH$7) -> 0 | AE118: =SUMPRODUCT(AF56:$BH56,AF$7:$BH$7) -> 0 | AF118: =SUMPRODUCT(AG56:$BH56,AG$7:$BH$7) -> 0 | AG118: =SUMPRODUCT(AH56:$BH56,AH$7:$BH$7) -> 0 | AH118: =SUMPRODUCT(AI56:$BH56,AI$7:$BH$7) -> 0 | AI118: =SUMPRODUCT(AJ56:$BH56,AJ$7:$BH$7) -> 0
B119: TRUE | C119: =Annuity!C186 -> Spare | D119: =Annuity!D186 -> $ p.a. / Component | F119: $ / Component | K119: =SUMPRODUCT(L57:$BH57,L$7:$BH$7) -> 0 | L119: =SUMPRODUCT(M57:$BH57,M$7:$BH$7) -> 0 | M119: =SUMPRODUCT(N57:$BH57,N$7:$BH$7) -> 0 | N119: =SUMPRODUCT(O57:$BH57,O$7:$BH$7) -> 0 | O119: =SUMPRODUCT(P57:$BH57,P$7:$BH$7) -> 0 | P119: =SUMPRODUCT(Q57:$BH57,Q$7:$BH$7) -> 0 | Q119: =SUMPRODUCT(R57:$BH57,R$7:$BH$7) -> 0 | R119: =SUMPRODUCT(S57:$BH57,S$7:$BH$7) -> 0 | S119: =SUMPRODUCT(T57:$BH57,T$7:$BH$7) -> 0 | T119: =SUMPRODUCT(U57:$BH57,U$7:$BH$7) -> 0 | U119: =SUMPRODUCT(V57:$BH57,V$7:$BH$7) -> 0 | V119: =SUMPRODUCT(W57:$BH57,W$7:$BH$7) -> 0 | W119: =SUMPRODUCT(X57:$BH57,X$7:$BH$7) -> 0 | X119: =SUMPRODUCT(Y57:$BH57,Y$7:$BH$7) -> 0 | Y119: =SUMPRODUCT(Z57:$BH57,Z$7:$BH$7) -> 0 | Z119: =SUMPRODUCT(AA57:$BH57,AA$7:$BH$7) -> 0 | AA119: =SUMPRODUCT(AB57:$BH57,AB$7:$BH$7) -> 0 | AB119: =SUMPRODUCT(AC57:$BH57,AC$7:$BH$7) -> 0 | AC119: =SUMPRODUCT(AD57:$BH57,AD$7:$BH$7) -> 0 | AD119: =SUMPRODUCT(AE57:$BH57,AE$7:$BH$7) -> 0 | AE119: =SUMPRODUCT(AF57:$BH57,AF$7:$BH$7) -> 0 | AF119: =SUMPRODUCT(AG57:$BH57,AG$7:$BH$7) -> 0 | AG119: =SUMPRODUCT(AH57:$BH57,AH$7:$BH$7) -> 0 | AH119: =SUMPRODUCT(AI57:$BH57,AI$7:$BH$7) -> 0 | AI119: =SUMPRODUCT(AJ57:$BH57,AJ$7:$BH$7) -> 0
B120: TRUE | C120: =Annuity!C187 -> Spare | D120: =Annuity!D187 -> $ p.a. / Component | F120: $ / Component | K120: =SUMPRODUCT(L58:$BH58,L$7:$BH$7) -> 0 | L120: =SUMPRODUCT(M58:$BH58,M$7:$BH$7) -> 0 | M120: =SUMPRODUCT(N58:$BH58,N$7:$BH$7) -> 0 | N120: =SUMPRODUCT(O58:$BH58,O$7:$BH$7) -> 0 | O120: =SUMPRODUCT(P58:$BH58,P$7:$BH$7) -> 0 | P120: =SUMPRODUCT(Q58:$BH58,Q$7:$BH$7) -> 0 | Q120: =SUMPRODUCT(R58:$BH58,R$7:$BH$7) -> 0 | R120: =SUMPRODUCT(S58:$BH58,S$7:$BH$7) -> 0 | S120: =SUMPRODUCT(T58:$BH58,T$7:$BH$7) -> 0 | T120: =SUMPRODUCT(U58:$BH58,U$7:$BH$7) -> 0 | U120: =SUMPRODUCT(V58:$BH58,V$7:$BH$7) -> 0 | V120: =SUMPRODUCT(W58:$BH58,W$7:$BH$7) -> 0 | W120: =SUMPRODUCT(X58:$BH58,X$7:$BH$7) -> 0 | X120: =SUMPRODUCT(Y58:$BH58,Y$7:$BH$7) -> 0 | Y120: =SUMPRODUCT(Z58:$BH58,Z$7:$BH$7) -> 0 | Z120: =SUMPRODUCT(AA58:$BH58,AA$7:$BH$7) -> 0 | AA120: =SUMPRODUCT(AB58:$BH58,AB$7:$BH$7) -> 0 | AB120: =SUMPRODUCT(AC58:$BH58,AC$7:$BH$7) -> 0 | AC120: =SUMPRODUCT(AD58:$BH58,AD$7:$BH$7) -> 0 | AD120: =SUMPRODUCT(AE58:$BH58,AE$7:$BH$7) -> 0 | AE120: =SUMPRODUCT(AF58:$BH58,AF$7:$BH$7) -> 0 | AF120: =SUMPRODUCT(AG58:$BH58,AG$7:$BH$7) -> 0 | AG120: =SUMPRODUCT(AH58:$BH58,AH$7:$BH$7) -> 0 | AH120: =SUMPRODUCT(AI58:$BH58,AI$7:$BH$7) -> 0 | AI120: =SUMPRODUCT(AJ58:$BH58,AJ$7:$BH$7) -> 0
B121: TRUE | C121: =Annuity!C188 -> Spare | D121: =Annuity!D188 -> $ p.a. / Component | F121: $ / Component | K121: =SUMPRODUCT(L59:$BH59,L$7:$BH$7) -> 0 | L121: =SUMPRODUCT(M59:$BH59,M$7:$BH$7) -> 0 | M121: =SUMPRODUCT(N59:$BH59,N$7:$BH$7) -> 0 | N121: =SUMPRODUCT(O59:$BH59,O$7:$BH$7) -> 0 | O121: =SUMPRODUCT(P59:$BH59,P$7:$BH$7) -> 0 | P121: =SUMPRODUCT(Q59:$BH59,Q$7:$BH$7) -> 0 | Q121: =SUMPRODUCT(R59:$BH59,R$7:$BH$7) -> 0 | R121: =SUMPRODUCT(S59:$BH59,S$7:$BH$7) -> 0 | S121: =SUMPRODUCT(T59:$BH59,T$7:$BH$7) -> 0 | T121: =SUMPRODUCT(U59:$BH59,U$7:$BH$7) -> 0 | U121: =SUMPRODUCT(V59:$BH59,V$7:$BH$7) -> 0 | V121: =SUMPRODUCT(W59:$BH59,W$7:$BH$7) -> 0 | W121: =SUMPRODUCT(X59:$BH59,X$7:$BH$7) -> 0 | X121: =SUMPRODUCT(Y59:$BH59,Y$7:$BH$7) -> 0 | Y121: =SUMPRODUCT(Z59:$BH59,Z$7:$BH$7) -> 0 | Z121: =SUMPRODUCT(AA59:$BH59,AA$7:$BH$7) -> 0 | AA121: =SUMPRODUCT(AB59:$BH59,AB$7:$BH$7) -> 0 | AB121: =SUMPRODUCT(AC59:$BH59,AC$7:$BH$7) -> 0 | AC121: =SUMPRODUCT(AD59:$BH59,AD$7:$BH$7) -> 0 | AD121: =SUMPRODUCT(AE59:$BH59,AE$7:$BH$7) -> 0 | AE121: =SUMPRODUCT(AF59:$BH59,AF$7:$BH$7) -> 0 | AF121: =SUMPRODUCT(AG59:$BH59,AG$7:$BH$7) -> 0 | AG121: =SUMPRODUCT(AH59:$BH59,AH$7:$BH$7) -> 0 | AH121: =SUMPRODUCT(AI59:$BH59,AI$7:$BH$7) -> 0 | AI121: =SUMPRODUCT(AJ59:$BH59,AJ$7:$BH$7) -> 0
B122: TRUE | C122: =Annuity!C189 -> Spare | D122: =Annuity!D189 -> $ p.a. / Component | F122: $ / Component | K122: =SUMPRODUCT(L60:$BH60,L$7:$BH$7) -> 0 | L122: =SUMPRODUCT(M60:$BH60,M$7:$BH$7) -> 0 | M122: =SUMPRODUCT(N60:$BH60,N$7:$BH$7) -> 0 | N122: =SUMPRODUCT(O60:$BH60,O$7:$BH$7) -> 0 | O122: =SUMPRODUCT(P60:$BH60,P$7:$BH$7) -> 0 | P122: =SUMPRODUCT(Q60:$BH60,Q$7:$BH$7) -> 0 | Q122: =SUMPRODUCT(R60:$BH60,R$7:$BH$7) -> 0 | R122: =SUMPRODUCT(S60:$BH60,S$7:$BH$7) -> 0 | S122: =SUMPRODUCT(T60:$BH60,T$7:$BH$7) -> 0 | T122: =SUMPRODUCT(U60:$BH60,U$7:$BH$7) -> 0 | U122: =SUMPRODUCT(V60:$BH60,V$7:$BH$7) -> 0 | V122: =SUMPRODUCT(W60:$BH60,W$7:$BH$7) -> 0 | W122: =SUMPRODUCT(X60:$BH60,X$7:$BH$7) -> 0 | X122: =SUMPRODUCT(Y60:$BH60,Y$7:$BH$7) -> 0 | Y122: =SUMPRODUCT(Z60:$BH60,Z$7:$BH$7) -> 0 | Z122: =SUMPRODUCT(AA60:$BH60,AA$7:$BH$7) -> 0 | AA122: =SUMPRODUCT(AB60:$BH60,AB$7:$BH$7) -> 0 | AB122: =SUMPRODUCT(AC60:$BH60,AC$7:$BH$7) -> 0 | AC122: =SUMPRODUCT(AD60:$BH60,AD$7:$BH$7) -> 0 | AD122: =SUMPRODUCT(AE60:$BH60,AE$7:$BH$7) -> 0 | AE122: =SUMPRODUCT(AF60:$BH60,AF$7:$BH$7) -> 0 | AF122: =SUMPRODUCT(AG60:$BH60,AG$7:$BH$7) -> 0 | AG122: =SUMPRODUCT(AH60:$BH60,AH$7:$BH$7) -> 0 | AH122: =SUMPRODUCT(AI60:$BH60,AI$7:$BH$7) -> 0 | AI122: =SUMPRODUCT(AJ60:$BH60,AJ$7:$BH$7) -> 0
B123: TRUE | C123: =Annuity!C190 -> Spare | D123: =Annuity!D190 -> $ p.a. / Component | F123: $ / Component | K123: =SUMPRODUCT(L61:$BH61,L$7:$BH$7) -> 0 | L123: =SUMPRODUCT(M61:$BH61,M$7:$BH$7) -> 0 | M123: =SUMPRODUCT(N61:$BH61,N$7:$BH$7) -> 0 | N123: =SUMPRODUCT(O61:$BH61,O$7:$BH$7) -> 0 | O123: =SUMPRODUCT(P61:$BH61,P$7:$BH$7) -> 0 | P123: =SUMPRODUCT(Q61:$BH61,Q$7:$BH$7) -> 0 | Q123: =SUMPRODUCT(R61:$BH61,R$7:$BH$7) -> 0 | R123: =SUMPRODUCT(S61:$BH61,S$7:$BH$7) -> 0 | S123: =SUMPRODUCT(T61:$BH61,T$7:$BH$7) -> 0 | T123: =SUMPRODUCT(U61:$BH61,U$7:$BH$7) -> 0 | U123: =SUMPRODUCT(V61:$BH61,V$7:$BH$7) -> 0 | V123: =SUMPRODUCT(W61:$BH61,W$7:$BH$7) -> 0 | W123: =SUMPRODUCT(X61:$BH61,X$7:$BH$7) -> 0 | X123: =SUMPRODUCT(Y61:$BH61,Y$7:$BH$7) -> 0 | Y123: =SUMPRODUCT(Z61:$BH61,Z$7:$BH$7) -> 0 | Z123: =SUMPRODUCT(AA61:$BH61,AA$7:$BH$7) -> 0 | AA123: =SUMPRODUCT(AB61:$BH61,AB$7:$BH$7) -> 0 | AB123: =SUMPRODUCT(AC61:$BH61,AC$7:$BH$7) -> 0 | AC123: =SUMPRODUCT(AD61:$BH61,AD$7:$BH$7) -> 0 | AD123: =SUMPRODUCT(AE61:$BH61,AE$7:$BH$7) -> 0 | AE123: =SUMPRODUCT(AF61:$BH61,AF$7:$BH$7) -> 0 | AF123: =SUMPRODUCT(AG61:$BH61,AG$7:$BH$7) -> 0 | AG123: =SUMPRODUCT(AH61:$BH61,AH$7:$BH$7) -> 0 | AH123: =SUMPRODUCT(AI61:$BH61,AI$7:$BH$7) -> 0 | AI123: =SUMPRODUCT(AJ61:$BH61,AJ$7:$BH$7) -> 0
B124: TRUE | C124: =Annuity!C191 -> Spare | D124: =Annuity!D191 -> $ p.a. / Component | F124: $ / Component | K124: =SUMPRODUCT(L62:$BH62,L$7:$BH$7) -> 0 | L124: =SUMPRODUCT(M62:$BH62,M$7:$BH$7) -> 0 | M124: =SUMPRODUCT(N62:$BH62,N$7:$BH$7) -> 0 | N124: =SUMPRODUCT(O62:$BH62,O$7:$BH$7) -> 0 | O124: =SUMPRODUCT(P62:$BH62,P$7:$BH$7) -> 0 | P124: =SUMPRODUCT(Q62:$BH62,Q$7:$BH$7) -> 0 | Q124: =SUMPRODUCT(R62:$BH62,R$7:$BH$7) -> 0 | R124: =SUMPRODUCT(S62:$BH62,S$7:$BH$7) -> 0 | S124: =SUMPRODUCT(T62:$BH62,T$7:$BH$7) -> 0 | T124: =SUMPRODUCT(U62:$BH62,U$7:$BH$7) -> 0 | U124: =SUMPRODUCT(V62:$BH62,V$7:$BH$7) -> 0 | V124: =SUMPRODUCT(W62:$BH62,W$7:$BH$7) -> 0 | W124: =SUMPRODUCT(X62:$BH62,X$7:$BH$7) -> 0 | X124: =SUMPRODUCT(Y62:$BH62,Y$7:$BH$7) -> 0 | Y124: =SUMPRODUCT(Z62:$BH62,Z$7:$BH$7) -> 0 | Z124: =SUMPRODUCT(AA62:$BH62,AA$7:$BH$7) -> 0 | AA124: =SUMPRODUCT(AB62:$BH62,AB$7:$BH$7) -> 0 | AB124: =SUMPRODUCT(AC62:$BH62,AC$7:$BH$7) -> 0 | AC124: =SUMPRODUCT(AD62:$BH62,AD$7:$BH$7) -> 0 | AD124: =SUMPRODUCT(AE62:$BH62,AE$7:$BH$7) -> 0 | AE124: =SUMPRODUCT(AF62:$BH62,AF$7:$BH$7) -> 0 | AF124: =SUMPRODUCT(AG62:$BH62,AG$7:$BH$7) -> 0 | AG124: =SUMPRODUCT(AH62:$BH62,AH$7:$BH$7) -> 0 | AH124: =SUMPRODUCT(AI62:$BH62,AI$7:$BH$7) -> 0 | AI124: =SUMPRODUCT(AJ62:$BH62,AJ$7:$BH$7) -> 0
B125: TRUE | C125: =Annuity!C192 -> Spare | D125: =Annuity!D192 -> $ p.a. / Component | F125: $ / Component | K125: =SUMPRODUCT(L63:$BH63,L$7:$BH$7) -> 0 | L125: =SUMPRODUCT(M63:$BH63,M$7:$BH$7) -> 0 | M125: =SUMPRODUCT(N63:$BH63,N$7:$BH$7) -> 0 | N125: =SUMPRODUCT(O63:$BH63,O$7:$BH$7) -> 0 | O125: =SUMPRODUCT(P63:$BH63,P$7:$BH$7) -> 0 | P125: =SUMPRODUCT(Q63:$BH63,Q$7:$BH$7) -> 0 | Q125: =SUMPRODUCT(R63:$BH63,R$7:$BH$7) -> 0 | R125: =SUMPRODUCT(S63:$BH63,S$7:$BH$7) -> 0 | S125: =SUMPRODUCT(T63:$BH63,T$7:$BH$7) -> 0 | T125: =SUMPRODUCT(U63:$BH63,U$7:$BH$7) -> 0 | U125: =SUMPRODUCT(V63:$BH63,V$7:$BH$7) -> 0 | V125: =SUMPRODUCT(W63:$BH63,W$7:$BH$7) -> 0 | W125: =SUMPRODUCT(X63:$BH63,X$7:$BH$7) -> 0 | X125: =SUMPRODUCT(Y63:$BH63,Y$7:$BH$7) -> 0 | Y125: =SUMPRODUCT(Z63:$BH63,Z$7:$BH$7) -> 0 | Z125: =SUMPRODUCT(AA63:$BH63,AA$7:$BH$7) -> 0 | AA125: =SUMPRODUCT(AB63:$BH63,AB$7:$BH$7) -> 0 | AB125: =SUMPRODUCT(AC63:$BH63,AC$7:$BH$7) -> 0 | AC125: =SUMPRODUCT(AD63:$BH63,AD$7:$BH$7) -> 0 | AD125: =SUMPRODUCT(AE63:$BH63,AE$7:$BH$7) -> 0 | AE125: =SUMPRODUCT(AF63:$BH63,AF$7:$BH$7) -> 0 | AF125: =SUMPRODUCT(AG63:$BH63,AG$7:$BH$7) -> 0 | AG125: =SUMPRODUCT(AH63:$BH63,AH$7:$BH$7) -> 0 | AH125: =SUMPRODUCT(AI63:$BH63,AI$7:$BH$7) -> 0 | AI125: =SUMPRODUCT(AJ63:$BH63,AJ$7:$BH$7) -> 0
B126: TRUE | C126: =Annuity!C193 -> Spare | D126: =Annuity!D193 -> $ p.a. / Component | F126: $ / Component | K126: =SUMPRODUCT(L64:$BH64,L$7:$BH$7) -> 0 | L126: =SUMPRODUCT(M64:$BH64,M$7:$BH$7) -> 0 | M126: =SUMPRODUCT(N64:$BH64,N$7:$BH$7) -> 0 | N126: =SUMPRODUCT(O64:$BH64,O$7:$BH$7) -> 0 | O126: =SUMPRODUCT(P64:$BH64,P$7:$BH$7) -> 0 | P126: =SUMPRODUCT(Q64:$BH64,Q$7:$BH$7) -> 0 | Q126: =SUMPRODUCT(R64:$BH64,R$7:$BH$7) -> 0 | R126: =SUMPRODUCT(S64:$BH64,S$7:$BH$7) -> 0 | S126: =SUMPRODUCT(T64:$BH64,T$7:$BH$7) -> 0 | T126: =SUMPRODUCT(U64:$BH64,U$7:$BH$7) -> 0 | U126: =SUMPRODUCT(V64:$BH64,V$7:$BH$7) -> 0 | V126: =SUMPRODUCT(W64:$BH64,W$7:$BH$7) -> 0 | W126: =SUMPRODUCT(X64:$BH64,X$7:$BH$7) -> 0 | X126: =SUMPRODUCT(Y64:$BH64,Y$7:$BH$7) -> 0 | Y126: =SUMPRODUCT(Z64:$BH64,Z$7:$BH$7) -> 0 | Z126: =SUMPRODUCT(AA64:$BH64,AA$7:$BH$7) -> 0 | AA126: =SUMPRODUCT(AB64:$BH64,AB$7:$BH$7) -> 0 | AB126: =SUMPRODUCT(AC64:$BH64,AC$7:$BH$7) -> 0 | AC126: =SUMPRODUCT(AD64:$BH64,AD$7:$BH$7) -> 0 | AD126: =SUMPRODUCT(AE64:$BH64,AE$7:$BH$7) -> 0 | AE126: =SUMPRODUCT(AF64:$BH64,AF$7:$BH$7) -> 0 | AF126: =SUMPRODUCT(AG64:$BH64,AG$7:$BH$7) -> 0 | AG126: =SUMPRODUCT(AH64:$BH64,AH$7:$BH$7) -> 0 | AH126: =SUMPRODUCT(AI64:$BH64,AI$7:$BH$7) -> 0 | AI126: =SUMPRODUCT(AJ64:$BH64,AJ$7:$BH$7) -> 0
B127: TRUE | C127: =Annuity!C194 -> Spare | D127: =Annuity!D194 -> $ p.a. / Component | F127: $ / Component | K127: =SUMPRODUCT(L65:$BH65,L$7:$BH$7) -> 0 | L127: =SUMPRODUCT(M65:$BH65,M$7:$BH$7) -> 0 | M127: =SUMPRODUCT(N65:$BH65,N$7:$BH$7) -> 0 | N127: =SUMPRODUCT(O65:$BH65,O$7:$BH$7) -> 0 | O127: =SUMPRODUCT(P65:$BH65,P$7:$BH$7) -> 0 | P127: =SUMPRODUCT(Q65:$BH65,Q$7:$BH$7) -> 0 | Q127: =SUMPRODUCT(R65:$BH65,R$7:$BH$7) -> 0 | R127: =SUMPRODUCT(S65:$BH65,S$7:$BH$7) -> 0 | S127: =SUMPRODUCT(T65:$BH65,T$7:$BH$7) -> 0 | T127: =SUMPRODUCT(U65:$BH65,U$7:$BH$7) -> 0 | U127: =SUMPRODUCT(V65:$BH65,V$7:$BH$7) -> 0 | V127: =SUMPRODUCT(W65:$BH65,W$7:$BH$7) -> 0 | W127: =SUMPRODUCT(X65:$BH65,X$7:$BH$7) -> 0 | X127: =SUMPRODUCT(Y65:$BH65,Y$7:$BH$7) -> 0 | Y127: =SUMPRODUCT(Z65:$BH65,Z$7:$BH$7) -> 0 | Z127: =SUMPRODUCT(AA65:$BH65,AA$7:$BH$7) -> 0 | AA127: =SUMPRODUCT(AB65:$BH65,AB$7:$BH$7) -> 0 | AB127: =SUMPRODUCT(AC65:$BH65,AC$7:$BH$7) -> 0 | AC127: =SUMPRODUCT(AD65:$BH65,AD$7:$BH$7) -> 0 | AD127: =SUMPRODUCT(AE65:$BH65,AE$7:$BH$7) -> 0 | AE127: =SUMPRODUCT(AF65:$BH65,AF$7:$BH$7) -> 0 | AF127: =SUMPRODUCT(AG65:$BH65,AG$7:$BH$7) -> 0 | AG127: =SUMPRODUCT(AH65:$BH65,AH$7:$BH$7) -> 0 | AH127: =SUMPRODUCT(AI65:$BH65,AI$7:$BH$7) -> 0 | AI127: =SUMPRODUCT(AJ65:$BH65,AJ$7:$BH$7) -> 0
B128: TRUE | C128: =Annuity!C195 -> Spare | D128: =Annuity!D195 -> $ p.a. / Component | F128: $ / Component | K128: =SUMPRODUCT(L66:$BH66,L$7:$BH$7) -> 0 | L128: =SUMPRODUCT(M66:$BH66,M$7:$BH$7) -> 0 | M128: =SUMPRODUCT(N66:$BH66,N$7:$BH$7) -> 0 | N128: =SUMPRODUCT(O66:$BH66,O$7:$BH$7) -> 0 | O128: =SUMPRODUCT(P66:$BH66,P$7:$BH$7) -> 0 | P128: =SUMPRODUCT(Q66:$BH66,Q$7:$BH$7) -> 0 | Q128: =SUMPRODUCT(R66:$BH66,R$7:$BH$7) -> 0 | R128: =SUMPRODUCT(S66:$BH66,S$7:$BH$7) -> 0 | S128: =SUMPRODUCT(T66:$BH66,T$7:$BH$7) -> 0 | T128: =SUMPRODUCT(U66:$BH66,U$7:$BH$7) -> 0 | U128: =SUMPRODUCT(V66:$BH66,V$7:$BH$7) -> 0 | V128: =SUMPRODUCT(W66:$BH66,W$7:$BH$7) -> 0 | W128: =SUMPRODUCT(X66:$BH66,X$7:$BH$7) -> 0 | X128: =SUMPRODUCT(Y66:$BH66,Y$7:$BH$7) -> 0 | Y128: =SUMPRODUCT(Z66:$BH66,Z$7:$BH$7) -> 0 | Z128: =SUMPRODUCT(AA66:$BH66,AA$7:$BH$7) -> 0 | AA128: =SUMPRODUCT(AB66:$BH66,AB$7:$BH$7) -> 0 | AB128: =SUMPRODUCT(AC66:$BH66,AC$7:$BH$7) -> 0 | AC128: =SUMPRODUCT(AD66:$BH66,AD$7:$BH$7) -> 0 | AD128: =SUMPRODUCT(AE66:$BH66,AE$7:$BH$7) -> 0 | AE128: =SUMPRODUCT(AF66:$BH66,AF$7:$BH$7) -> 0 | AF128: =SUMPRODUCT(AG66:$BH66,AG$7:$BH$7) -> 0 | AG128: =SUMPRODUCT(AH66:$BH66,AH$7:$BH$7) -> 0 | AH128: =SUMPRODUCT(AI66:$BH66,AI$7:$BH$7) -> 0 | AI128: =SUMPRODUCT(AJ66:$BH66,AJ$7:$BH$7) -> 0
B129: TRUE | C129: =Annuity!C196 -> Spare | D129: =Annuity!D196 -> $ p.a. / Component | F129: $ / Component | K129: =SUMPRODUCT(L67:$BH67,L$7:$BH$7) -> 0 | L129: =SUMPRODUCT(M67:$BH67,M$7:$BH$7) -> 0 | M129: =SUMPRODUCT(N67:$BH67,N$7:$BH$7) -> 0 | N129: =SUMPRODUCT(O67:$BH67,O$7:$BH$7) -> 0 | O129: =SUMPRODUCT(P67:$BH67,P$7:$BH$7) -> 0 | P129: =SUMPRODUCT(Q67:$BH67,Q$7:$BH$7) -> 0 | Q129: =SUMPRODUCT(R67:$BH67,R$7:$BH$7) -> 0 | R129: =SUMPRODUCT(S67:$BH67,S$7:$BH$7) -> 0 | S129: =SUMPRODUCT(T67:$BH67,T$7:$BH$7) -> 0 | T129: =SUMPRODUCT(U67:$BH67,U$7:$BH$7) -> 0 | U129: =SUMPRODUCT(V67:$BH67,V$7:$BH$7) -> 0 | V129: =SUMPRODUCT(W67:$BH67,W$7:$BH$7) -> 0 | W129: =SUMPRODUCT(X67:$BH67,X$7:$BH$7) -> 0 | X129: =SUMPRODUCT(Y67:$BH67,Y$7:$BH$7) -> 0 | Y129: =SUMPRODUCT(Z67:$BH67,Z$7:$BH$7) -> 0 | Z129: =SUMPRODUCT(AA67:$BH67,AA$7:$BH$7) -> 0 | AA129: =SUMPRODUCT(AB67:$BH67,AB$7:$BH$7) -> 0 | AB129: =SUMPRODUCT(AC67:$BH67,AC$7:$BH$7) -> 0 | AC129: =SUMPRODUCT(AD67:$BH67,AD$7:$BH$7) -> 0 | AD129: =SUMPRODUCT(AE67:$BH67,AE$7:$BH$7) -> 0 | AE129: =SUMPRODUCT(AF67:$BH67,AF$7:$BH$7) -> 0 | AF129: =SUMPRODUCT(AG67:$BH67,AG$7:$BH$7) -> 0 | AG129: =SUMPRODUCT(AH67:$BH67,AH$7:$BH$7) -> 0 | AH129: =SUMPRODUCT(AI67:$BH67,AI$7:$BH$7) -> 0 | AI129: =SUMPRODUCT(AJ67:$BH67,AJ$7:$BH$7) -> 0
B130: TRUE | C130: =Annuity!C197 -> Spare | D130: =Annuity!D197 -> $ p.a. / Component | F130: $ / Component | K130: =SUMPRODUCT(L68:$BH68,L$7:$BH$7) -> 0 | L130: =SUMPRODUCT(M68:$BH68,M$7:$BH$7) -> 0 | M130: =SUMPRODUCT(N68:$BH68,N$7:$BH$7) -> 0 | N130: =SUMPRODUCT(O68:$BH68,O$7:$BH$7) -> 0 | O130: =SUMPRODUCT(P68:$BH68,P$7:$BH$7) -> 0 | P130: =SUMPRODUCT(Q68:$BH68,Q$7:$BH$7) -> 0 | Q130: =SUMPRODUCT(R68:$BH68,R$7:$BH$7) -> 0 | R130: =SUMPRODUCT(S68:$BH68,S$7:$BH$7) -> 0 | S130: =SUMPRODUCT(T68:$BH68,T$7:$BH$7) -> 0 | T130: =SUMPRODUCT(U68:$BH68,U$7:$BH$7) -> 0 | U130: =SUMPRODUCT(V68:$BH68,V$7:$BH$7) -> 0 | V130: =SUMPRODUCT(W68:$BH68,W$7:$BH$7) -> 0 | W130: =SUMPRODUCT(X68:$BH68,X$7:$BH$7) -> 0 | X130: =SUMPRODUCT(Y68:$BH68,Y$7:$BH$7) -> 0 | Y130: =SUMPRODUCT(Z68:$BH68,Z$7:$BH$7) -> 0 | Z130: =SUMPRODUCT(AA68:$BH68,AA$7:$BH$7) -> 0 | AA130: =SUMPRODUCT(AB68:$BH68,AB$7:$BH$7) -> 0 | AB130: =SUMPRODUCT(AC68:$BH68,AC$7:$BH$7) -> 0 | AC130: =SUMPRODUCT(AD68:$BH68,AD$7:$BH$7) -> 0 | AD130: =SUMPRODUCT(AE68:$BH68,AE$7:$BH$7) -> 0 | AE130: =SUMPRODUCT(AF68:$BH68,AF$7:$BH$7) -> 0 | AF130: =SUMPRODUCT(AG68:$BH68,AG$7:$BH$7) -> 0 | AG130: =SUMPRODUCT(AH68:$BH68,AH$7:$BH$7) -> 0 | AH130: =SUMPRODUCT(AI68:$BH68,AI$7:$BH$7) -> 0 | AI130: =SUMPRODUCT(AJ68:$BH68,AJ$7:$BH$7) -> 0
B131: TRUE | C131: =Annuity!C198 -> Spare | D131: =Annuity!D198 -> $ p.a. / Component | F131: $ / Component | K131: =SUMPRODUCT(L69:$BH69,L$7:$BH$7) -> 0 | L131: =SUMPRODUCT(M69:$BH69,M$7:$BH$7) -> 0 | M131: =SUMPRODUCT(N69:$BH69,N$7:$BH$7) -> 0 | N131: =SUMPRODUCT(O69:$BH69,O$7:$BH$7) -> 0 | O131: =SUMPRODUCT(P69:$BH69,P$7:$BH$7) -> 0 | P131: =SUMPRODUCT(Q69:$BH69,Q$7:$BH$7) -> 0 | Q131: =SUMPRODUCT(R69:$BH69,R$7:$BH$7) -> 0 | R131: =SUMPRODUCT(S69:$BH69,S$7:$BH$7) -> 0 | S131: =SUMPRODUCT(T69:$BH69,T$7:$BH$7) -> 0 | T131: =SUMPRODUCT(U69:$BH69,U$7:$BH$7) -> 0 | U131: =SUMPRODUCT(V69:$BH69,V$7:$BH$7) -> 0 | V131: =SUMPRODUCT(W69:$BH69,W$7:$BH$7) -> 0 | W131: =SUMPRODUCT(X69:$BH69,X$7:$BH$7) -> 0 | X131: =SUMPRODUCT(Y69:$BH69,Y$7:$BH$7) -> 0 | Y131: =SUMPRODUCT(Z69:$BH69,Z$7:$BH$7) -> 0 | Z131: =SUMPRODUCT(AA69:$BH69,AA$7:$BH$7) -> 0 | AA131: =SUMPRODUCT(AB69:$BH69,AB$7:$BH$7) -> 0 | AB131: =SUMPRODUCT(AC69:$BH69,AC$7:$BH$7) -> 0 | AC131: =SUMPRODUCT(AD69:$BH69,AD$7:$BH$7) -> 0 | AD131: =SUMPRODUCT(AE69:$BH69,AE$7:$BH$7) -> 0 | AE131: =SUMPRODUCT(AF69:$BH69,AF$7:$BH$7) -> 0 | AF131: =SUMPRODUCT(AG69:$BH69,AG$7:$BH$7) -> 0 | AG131: =SUMPRODUCT(AH69:$BH69,AH$7:$BH$7) -> 0 | AH131: =SUMPRODUCT(AI69:$BH69,AI$7:$BH$7) -> 0 | AI131: =SUMPRODUCT(AJ69:$BH69,AJ$7:$BH$7) -> 0
B132: TRUE | C132: =Annuity!C199 -> Spare | D132: =Annuity!D199 -> $ p.a. / Component | F132: $ / Component | K132: =SUMPRODUCT(L70:$BH70,L$7:$BH$7) -> 0 | L132: =SUMPRODUCT(M70:$BH70,M$7:$BH$7) -> 0 | M132: =SUMPRODUCT(N70:$BH70,N$7:$BH$7) -> 0 | N132: =SUMPRODUCT(O70:$BH70,O$7:$BH$7) -> 0 | O132: =SUMPRODUCT(P70:$BH70,P$7:$BH$7) -> 0 | P132: =SUMPRODUCT(Q70:$BH70,Q$7:$BH$7) -> 0 | Q132: =SUMPRODUCT(R70:$BH70,R$7:$BH$7) -> 0 | R132: =SUMPRODUCT(S70:$BH70,S$7:$BH$7) -> 0 | S132: =SUMPRODUCT(T70:$BH70,T$7:$BH$7) -> 0 | T132: =SUMPRODUCT(U70:$BH70,U$7:$BH$7) -> 0 | U132: =SUMPRODUCT(V70:$BH70,V$7:$BH$7) -> 0 | V132: =SUMPRODUCT(W70:$BH70,W$7:$BH$7) -> 0 | W132: =SUMPRODUCT(X70:$BH70,X$7:$BH$7) -> 0 | X132: =SUMPRODUCT(Y70:$BH70,Y$7:$BH$7) -> 0 | Y132: =SUMPRODUCT(Z70:$BH70,Z$7:$BH$7) -> 0 | Z132: =SUMPRODUCT(AA70:$BH70,AA$7:$BH$7) -> 0 | AA132: =SUMPRODUCT(AB70:$BH70,AB$7:$BH$7) -> 0 | AB132: =SUMPRODUCT(AC70:$BH70,AC$7:$BH$7) -> 0 | AC132: =SUMPRODUCT(AD70:$BH70,AD$7:$BH$7) -> 0 | AD132: =SUMPRODUCT(AE70:$BH70,AE$7:$BH$7) -> 0 | AE132: =SUMPRODUCT(AF70:$BH70,AF$7:$BH$7) -> 0 | AF132: =SUMPRODUCT(AG70:$BH70,AG$7:$BH$7) -> 0 | AG132: =SUMPRODUCT(AH70:$BH70,AH$7:$BH$7) -> 0 | AH132: =SUMPRODUCT(AI70:$BH70,AI$7:$BH$7) -> 0 | AI132: =SUMPRODUCT(AJ70:$BH70,AJ$7:$BH$7) -> 0
B133: TRUE | C133: =Annuity!C200 -> Spare | D133: =Annuity!D200 -> $ p.a. / Component | F133: $ / Component | K133: =SUMPRODUCT(L71:$BH71,L$7:$BH$7) -> 0 | L133: =SUMPRODUCT(M71:$BH71,M$7:$BH$7) -> 0 | M133: =SUMPRODUCT(N71:$BH71,N$7:$BH$7) -> 0 | N133: =SUMPRODUCT(O71:$BH71,O$7:$BH$7) -> 0 | O133: =SUMPRODUCT(P71:$BH71,P$7:$BH$7) -> 0 | P133: =SUMPRODUCT(Q71:$BH71,Q$7:$BH$7) -> 0 | Q133: =SUMPRODUCT(R71:$BH71,R$7:$BH$7) -> 0 | R133: =SUMPRODUCT(S71:$BH71,S$7:$BH$7) -> 0 | S133: =SUMPRODUCT(T71:$BH71,T$7:$BH$7) -> 0 | T133: =SUMPRODUCT(U71:$BH71,U$7:$BH$7) -> 0 | U133: =SUMPRODUCT(V71:$BH71,V$7:$BH$7) -> 0 | V133: =SUMPRODUCT(W71:$BH71,W$7:$BH$7) -> 0 | W133: =SUMPRODUCT(X71:$BH71,X$7:$BH$7) -> 0 | X133: =SUMPRODUCT(Y71:$BH71,Y$7:$BH$7) -> 0 | Y133: =SUMPRODUCT(Z71:$BH71,Z$7:$BH$7) -> 0 | Z133: =SUMPRODUCT(AA71:$BH71,AA$7:$BH$7) -> 0 | AA133: =SUMPRODUCT(AB71:$BH71,AB$7:$BH$7) -> 0 | AB133: =SUMPRODUCT(AC71:$BH71,AC$7:$BH$7) -> 0 | AC133: =SUMPRODUCT(AD71:$BH71,AD$7:$BH$7) -> 0 | AD133: =SUMPRODUCT(AE71:$BH71,AE$7:$BH$7) -> 0 | AE133: =SUMPRODUCT(AF71:$BH71,AF$7:$BH$7) -> 0 | AF133: =SUMPRODUCT(AG71:$BH71,AG$7:$BH$7) -> 0 | AG133: =SUMPRODUCT(AH71:$BH71,AH$7:$BH$7) -> 0 | AH133: =SUMPRODUCT(AI71:$BH71,AI$7:$BH$7) -> 0 | AI133: =SUMPRODUCT(AJ71:$BH71,AJ$7:$BH$7) -> 0
B134: TRUE | C134: =Annuity!C201 -> Spare | D134: =Annuity!D201 -> $ p.a. / Component | F134: $ / Component | K134: =SUMPRODUCT(L72:$BH72,L$7:$BH$7) -> 0 | L134: =SUMPRODUCT(M72:$BH72,M$7:$BH$7) -> 0 | M134: =SUMPRODUCT(N72:$BH72,N$7:$BH$7) -> 0 | N134: =SUMPRODUCT(O72:$BH72,O$7:$BH$7) -> 0 | O134: =SUMPRODUCT(P72:$BH72,P$7:$BH$7) -> 0 | P134: =SUMPRODUCT(Q72:$BH72,Q$7:$BH$7) -> 0 | Q134: =SUMPRODUCT(R72:$BH72,R$7:$BH$7) -> 0 | R134: =SUMPRODUCT(S72:$BH72,S$7:$BH$7) -> 0 | S134: =SUMPRODUCT(T72:$BH72,T$7:$BH$7) -> 0 | T134: =SUMPRODUCT(U72:$BH72,U$7:$BH$7) -> 0 | U134: =SUMPRODUCT(V72:$BH72,V$7:$BH$7) -> 0 | V134: =SUMPRODUCT(W72:$BH72,W$7:$BH$7) -> 0 | W134: =SUMPRODUCT(X72:$BH72,X$7:$BH$7) -> 0 | X134: =SUMPRODUCT(Y72:$BH72,Y$7:$BH$7) -> 0 | Y134: =SUMPRODUCT(Z72:$BH72,Z$7:$BH$7) -> 0 | Z134: =SUMPRODUCT(AA72:$BH72,AA$7:$BH$7) -> 0 | AA134: =SUMPRODUCT(AB72:$BH72,AB$7:$BH$7) -> 0 | AB134: =SUMPRODUCT(AC72:$BH72,AC$7:$BH$7) -> 0 | AC134: =SUMPRODUCT(AD72:$BH72,AD$7:$BH$7) -> 0 | AD134: =SUMPRODUCT(AE72:$BH72,AE$7:$BH$7) -> 0 | AE134: =SUMPRODUCT(AF72:$BH72,AF$7:$BH$7) -> 0 | AF134: =SUMPRODUCT(AG72:$BH72,AG$7:$BH$7) -> 0 | AG134: =SUMPRODUCT(AH72:$BH72,AH$7:$BH$7) -> 0 | AH134: =SUMPRODUCT(AI72:$BH72,AI$7:$BH$7) -> 0 | AI134: =SUMPRODUCT(AJ72:$BH72,AJ$7:$BH$7) -> 0
B135: TRUE | C135: =Annuity!C202 -> Spare | D135: =Annuity!D202 -> $ p.a. / Component | F135: $ / Component | K135: =SUMPRODUCT(L73:$BH73,L$7:$BH$7) -> 0 | L135: =SUMPRODUCT(M73:$BH73,M$7:$BH$7) -> 0 | M135: =SUMPRODUCT(N73:$BH73,N$7:$BH$7) -> 0 | N135: =SUMPRODUCT(O73:$BH73,O$7:$BH$7) -> 0 | O135: =SUMPRODUCT(P73:$BH73,P$7:$BH$7) -> 0 | P135: =SUMPRODUCT(Q73:$BH73,Q$7:$BH$7) -> 0 | Q135: =SUMPRODUCT(R73:$BH73,R$7:$BH$7) -> 0 | R135: =SUMPRODUCT(S73:$BH73,S$7:$BH$7) -> 0 | S135: =SUMPRODUCT(T73:$BH73,T$7:$BH$7) -> 0 | T135: =SUMPRODUCT(U73:$BH73,U$7:$BH$7) -> 0 | U135: =SUMPRODUCT(V73:$BH73,V$7:$BH$7) -> 0 | V135: =SUMPRODUCT(W73:$BH73,W$7:$BH$7) -> 0 | W135: =SUMPRODUCT(X73:$BH73,X$7:$BH$7) -> 0 | X135: =SUMPRODUCT(Y73:$BH73,Y$7:$BH$7) -> 0 | Y135: =SUMPRODUCT(Z73:$BH73,Z$7:$BH$7) -> 0 | Z135: =SUMPRODUCT(AA73:$BH73,AA$7:$BH$7) -> 0 | AA135: =SUMPRODUCT(AB73:$BH73,AB$7:$BH$7) -> 0 | AB135: =SUMPRODUCT(AC73:$BH73,AC$7:$BH$7) -> 0 | AC135: =SUMPRODUCT(AD73:$BH73,AD$7:$BH$7) -> 0 | AD135: =SUMPRODUCT(AE73:$BH73,AE$7:$BH$7) -> 0 | AE135: =SUMPRODUCT(AF73:$BH73,AF$7:$BH$7) -> 0 | AF135: =SUMPRODUCT(AG73:$BH73,AG$7:$BH$7) -> 0 | AG135: =SUMPRODUCT(AH73:$BH73,AH$7:$BH$7) -> 0 | AH135: =SUMPRODUCT(AI73:$BH73,AI$7:$BH$7) -> 0 | AI135: =SUMPRODUCT(AJ73:$BH73,AJ$7:$BH$7) -> 0
B136: TRUE | C136: =Annuity!C203 -> Spare | D136: =Annuity!D203 -> $ p.a. / Component | F136: $ / Component | K136: =SUMPRODUCT(L74:$BH74,L$7:$BH$7) -> 0 | L136: =SUMPRODUCT(M74:$BH74,M$7:$BH$7) -> 0 | M136: =SUMPRODUCT(N74:$BH74,N$7:$BH$7) -> 0 | N136: =SUMPRODUCT(O74:$BH74,O$7:$BH$7) -> 0 | O136: =SUMPRODUCT(P74:$BH74,P$7:$BH$7) -> 0 | P136: =SUMPRODUCT(Q74:$BH74,Q$7:$BH$7) -> 0 | Q136: =SUMPRODUCT(R74:$BH74,R$7:$BH$7) -> 0 | R136: =SUMPRODUCT(S74:$BH74,S$7:$BH$7) -> 0 | S136: =SUMPRODUCT(T74:$BH74,T$7:$BH$7) -> 0 | T136: =SUMPRODUCT(U74:$BH74,U$7:$BH$7) -> 0 | U136: =SUMPRODUCT(V74:$BH74,V$7:$BH$7) -> 0 | V136: =SUMPRODUCT(W74:$BH74,W$7:$BH$7) -> 0 | W136: =SUMPRODUCT(X74:$BH74,X$7:$BH$7) -> 0 | X136: =SUMPRODUCT(Y74:$BH74,Y$7:$BH$7) -> 0 | Y136: =SUMPRODUCT(Z74:$BH74,Z$7:$BH$7) -> 0 | Z136: =SUMPRODUCT(AA74:$BH74,AA$7:$BH$7) -> 0 | AA136: =SUMPRODUCT(AB74:$BH74,AB$7:$BH$7) -> 0 | AB136: =SUMPRODUCT(AC74:$BH74,AC$7:$BH$7) -> 0 | AC136: =SUMPRODUCT(AD74:$BH74,AD$7:$BH$7) -> 0 | AD136: =SUMPRODUCT(AE74:$BH74,AE$7:$BH$7) -> 0 | AE136: =SUMPRODUCT(AF74:$BH74,AF$7:$BH$7) -> 0 | AF136: =SUMPRODUCT(AG74:$BH74,AG$7:$BH$7) -> 0 | AG136: =SUMPRODUCT(AH74:$BH74,AH$7:$BH$7) -> 0 | AH136: =SUMPRODUCT(AI74:$BH74,AI$7:$BH$7) -> 0 | AI136: =SUMPRODUCT(AJ74:$BH74,AJ$7:$BH$7) -> 0
B137: TRUE | C137: =Annuity!C204 -> Spare | D137: =Annuity!D204 -> $ p.a. / Component | F137: $ / Component | K137: =SUMPRODUCT(L75:$BH75,L$7:$BH$7) -> 0 | L137: =SUMPRODUCT(M75:$BH75,M$7:$BH$7) -> 0 | M137: =SUMPRODUCT(N75:$BH75,N$7:$BH$7) -> 0 | N137: =SUMPRODUCT(O75:$BH75,O$7:$BH$7) -> 0 | O137: =SUMPRODUCT(P75:$BH75,P$7:$BH$7) -> 0 | P137: =SUMPRODUCT(Q75:$BH75,Q$7:$BH$7) -> 0 | Q137: =SUMPRODUCT(R75:$BH75,R$7:$BH$7) -> 0 | R137: =SUMPRODUCT(S75:$BH75,S$7:$BH$7) -> 0 | S137: =SUMPRODUCT(T75:$BH75,T$7:$BH$7) -> 0 | T137: =SUMPRODUCT(U75:$BH75,U$7:$BH$7) -> 0 | U137: =SUMPRODUCT(V75:$BH75,V$7:$BH$7) -> 0 | V137: =SUMPRODUCT(W75:$BH75,W$7:$BH$7) -> 0 | W137: =SUMPRODUCT(X75:$BH75,X$7:$BH$7) -> 0 | X137: =SUMPRODUCT(Y75:$BH75,Y$7:$BH$7) -> 0 | Y137: =SUMPRODUCT(Z75:$BH75,Z$7:$BH$7) -> 0 | Z137: =SUMPRODUCT(AA75:$BH75,AA$7:$BH$7) -> 0 | AA137: =SUMPRODUCT(AB75:$BH75,AB$7:$BH$7) -> 0 | AB137: =SUMPRODUCT(AC75:$BH75,AC$7:$BH$7) -> 0 | AC137: =SUMPRODUCT(AD75:$BH75,AD$7:$BH$7) -> 0 | AD137: =SUMPRODUCT(AE75:$BH75,AE$7:$BH$7) -> 0 | AE137: =SUMPRODUCT(AF75:$BH75,AF$7:$BH$7) -> 0 | AF137: =SUMPRODUCT(AG75:$BH75,AG$7:$BH$7) -> 0 | AG137: =SUMPRODUCT(AH75:$BH75,AH$7:$BH$7) -> 0 | AH137: =SUMPRODUCT(AI75:$BH75,AI$7:$BH$7) -> 0 | AI137: =SUMPRODUCT(AJ75:$BH75,AJ$7:$BH$7) -> 0

Sheet Tax Recovery Rate (hidden)
C1: Tariff Charge 4
K2: 1 | L2: 2 | M2: 3 | N2: 4 | O2: 5 | P2: 6 | Q2: 7 | R2: 8 | S2: 9 | T2: 10 | U2: 11 | V2: 12 | W2: 13 | X2: 14 | Y2: 15 | Z2: 16 | AA2: 17 | AB2: 18 | AC2: 19 | AD2: 20 | AE2: 21 | AF2: 22 | AG2: 23 | AH2: 24 | AI2: 25 | AJ2: 26 | AK2: 27 | AL2: 28 | AM2: 29 | AN2: 30 | AO2: 31 | AP2: 32 | AQ2: 33 | AR2: 34 | AS2: 35 | AT2: 36 | AU2: 37 | AV2: 38 | AW2: 39 | AX2: 40 | AY2: 41 | AZ2: 42 | BA2: 43 | BB2: 44 | BC2: 45 | BD2: 46 | BE2: 47 | BF2: 48 | BG2: 49 | BH2: 50
C4: Tax Recovery on Customer Contributions
C6: =Global!C72 -> Nominal vanilla WACC | K6: =INDEX(Global!$F$72:$J$72,,MIN(K2,RegDur)) -> 0.05844362232 | L6: =INDEX(Global!$F$72:$J$72,,MIN(L2,RegDur)) -> 0.05902538856 | M6: =INDEX(Global!$F$72:$J$72,,MIN(M2,RegDur)) -> 0.05986924946 | N6: =INDEX(Global!$F$72:$J$72,,MIN(N2,RegDur)) -> 0.06074010434 | O6: =INDEX(Global!$F$72:$J$72,,MIN(O2,RegDur)) -> 0.06174560835 | P6: =INDEX(Global!$F$72:$J$72,,MIN(P2,RegDur)) -> 0.06174560835 | Q6: =INDEX(Global!$F$72:$J$72,,MIN(Q2,RegDur)) -> 0.06174560835 | R6: =INDEX(Global!$F$72:$J$72,,MIN(R2,RegDur)) -> 0.06174560835 | S6: =INDEX(Global!$F$72:$J$72,,MIN(S2,RegDur)) -> 0.06174560835 | T6: =INDEX(Global!$F$72:$J$72,,MIN(T2,RegDur)) -> 0.06174560835 | U6: =INDEX(Global!$F$72:$J$72,,MIN(U2,RegDur)) -> 0.06174560835 | V6: =INDEX(Global!$F$72:$J$72,,MIN(V2,RegDur)) -> 0.06174560835 | W6: =INDEX(Global!$F$72:$J$72,,MIN(W2,RegDur)) -> 0.06174560835 | X6: =INDEX(Global!$F$72:$J$72,,MIN(X2,RegDur)) -> 0.06174560835 | Y6: =INDEX(Global!$F$72:$J$72,,MIN(Y2,RegDur)) -> 0.06174560835 | Z6: =INDEX(Global!$F$72:$J$72,,MIN(Z2,RegDur)) -> 0.06174560835 | AA6: =INDEX(Global!$F$72:$J$72,,MIN(AA2,RegDur)) -> 0.06174560835 | AB6: =INDEX(Global!$F$72:$J$72,,MIN(AB2,RegDur)) -> 0.06174560835 | AC6: =INDEX(Global!$F$72:$J$72,,MIN(AC2,RegDur)) -> 0.06174560835 | AD6: =INDEX(Global!$F$72:$J$72,,MIN(AD2,RegDur)) -> 0.06174560835 | AE6: =INDEX(Global!$F$72:$J$72,,MIN(AE2,RegDur)) -> 0.06174560835 | AF6: =INDEX(Global!$F$72:$J$72,,MIN(AF2,RegDur)) -> 0.06174560835 | AG6: =INDEX(Global!$F$72:$J$72,,MIN(AG2,RegDur)) -> 0.06174560835 | AH6: =INDEX(Global!$F$72:$J$72,,MIN(AH2,RegDur)) -> 0.06174560835 | AI6: =INDEX(Global!$F$72:$J$72,,MIN(AI2,RegDur)) -> 0.06174560835 | AJ6: =INDEX(Global!$F$72:$J$72,,MIN(AJ2,RegDur)) -> 0.06174560835 | AK6: =INDEX(Global!$F$72:$J$72,,MIN(AK2,RegDur)) -> 0.06174560835 | AL6: =INDEX(Global!$F$72:$J$72,,MIN(AL2,RegDur)) -> 0.06174560835 | AM6: =INDEX(Global!$F$72:$J$72,,MIN(AM2,RegDur)) -> 0.06174560835 | AN6: =INDEX(Global!$F$72:$J$72,,MIN(AN2,RegDur)) -> 0.06174560835 | AO6: =INDEX(Global!$F$72:$J$72,,MIN(AO2,RegDur)) -> 0.06174560835 | AP6: =INDEX(Global!$F$72:$J$72,,MIN(AP2,RegDur)) -> 0.06174560835 | AQ6: =INDEX(Global!$F$72:$J$72,,MIN(AQ2,RegDur)) -> 0.06174560835 | AR6: =INDEX(Global!$F$72:$J$72,,MIN(AR2,RegDur)) -> 0.06174560835 | AS6: =INDEX(Global!$F$72:$J$72,,MIN(AS2,RegDur)) -> 0.06174560835 | AT6: =INDEX(Global!$F$72:$J$72,,MIN(AT2,RegDur)) -> 0.06174560835 | AU6: =INDEX(Global!$F$72:$J$72,,MIN(AU2,RegDur)) -> 0.06174560835 | AV6: =INDEX(Global!$F$72:$J$72,,MIN(AV2,RegDur)) -> 0.06174560835 | AW6: =INDEX(Global!$F$72:$J$72,,MIN(AW2,RegDur)) -> 0.06174560835 | AX6: =INDEX(Global!$F$72:$J$72,,MIN(AX2,RegDur)) -> 0.06174560835 | AY6: =INDEX(Global!$F$72:$J$72,,MIN(AY2,RegDur)) -> 0.06174560835 | AZ6: =INDEX(Global!$F$72:$J$72,,MIN(AZ2,RegDur)) -> 0.06174560835 | BA6: =INDEX(Global!$F$72:$J$72,,MIN(BA2,RegDur)) -> 0.06174560835 | BB6: =INDEX(Global!$F$72:$J$72,,MIN(BB2,RegDur)) -> 0.06174560835 | BC6: =INDEX(Global!$F$72:$J$72,,MIN(BC2,RegDur)) -> 0.06174560835 | BD6: =INDEX(Global!$F$72:$J$72,,MIN(BD2,RegDur)) -> 0.06174560835 | BE6: =INDEX(Global!$F$72:$J$72,,MIN(BE2,RegDur)) -> 0.06174560835 | BF6: =INDEX(Global!$F$72:$J$72,,MIN(BF2,RegDur)) -> 0.06174560835 | BG6: =INDEX(Global!$F$72:$J$72,,MIN(BG2,RegDur)) -> 0.06174560835 | BH6: =INDEX(Global!$F$72:$J$72,,MIN(BH2,RegDur)) -> 0.06174560835
C7: Discount factor | J7: 1 | K7: =J7*(1+K6) -> 1.058443622 | L7: =K7*(1+L6) -> 1.120918668 | M7: 1.188027228 | N7: 1.260188126 | O7: 1.337999208 | P7: 1.420614783 | Q7: 1.508331507 | R7: 1.601464354 | S7: 1.700347744 | T7: 1.80533675 | U7: 1.916808366 | V7: 2.035162865 | W7: 2.160825234 | X7: 2.294246703 | Y7: 2.435906361 | Z7: 2.586312881 | AA7: 2.746006343 | AB7: 2.915560175 | AC7: 3.095583212 | AD7: 3.286721881 | AE7: 3.489662523 | AF7: 3.705133858 | AG7: 3.933909602 | AH7: 4.176811244 | AI7: 4.434710995 | AJ7: 4.708534923 | AK7: 4.999266276 | AL7: 5.307949014 | AM7: 5.635691555 | AN7: 5.983670758 | AO7: 6.353136149 | AP7: 6.745414406 | AQ7: 7.161914122 | AR7: 7.604130866 | AS7: 8.073652553 | AT7: 8.572165141 | AU7: 9.101458693 | AV7: 9.663433796 | AW7: 10.26010839 | AX7: 10.89362503 | AY7: 11.56625853 | AZ7: 12.2804242 | BA7: 13.03868647 | BB7: 13.84376809 | BC7: 14.69855998 | BD7: 15.6061315 | BE7: 16.56974159 | BF7: 17.59285036 | BG7: 18.67913161 | BH7: 19.83248596
C9: Tax recovery
C11: Remaining life flag | D11: [1,0] | E11: 0 | K11: =IF($E11>=K$2,1,0) -> 0 | L11: =IF($E11>=L$2,1,0) -> 0 | M11: 0 | N11: 0 | O11: 0 | P11: 0 | Q11: 0 | R11: 0 | S11: 0 | T11: 0 | U11: 0 | V11: 0 | W11: 0 | X11: 0 | Y11: 0 | Z11: 0 | AA11: 0 | AB11: 0 | AC11: 0 | AD11: 0 | AE11: 0 | AF11: 0 | AG11: 0 | AH11: 0 | AI11: 0 | AJ11: 0 | AK11: 0 | AL11: 0 | AM11: 0 | AN11: 0 | AO11: 0 | AP11: 0 | AQ11: 0 | AR11: 0 | AS11: 0 | AT11: 0 | AU11: 0 | AV11: 0 | AW11: 0 | AX11: 0 | AY11: 0 | AZ11: 0 | BA11: 0 | BB11: 0 | BC11: 0 | BD11: 0 | BE11: 0 | BF11: 0 | BG11: 0 | BH11: 0
C12: Remaining periods | D12: # | K12: =SUM(K11:$BH11)*K11 -> 0 | L12: =SUM(L11:$BH11)*L11 -> 0 | M12: =SUM(M11:$BH11)*M11 -> 0 | N12: =SUM(N11:$BH11)*N11 -> 0 | O12: =SUM(O11:$BH11)*O11 -> 0 | P12: =SUM(P11:$BH11)*P11 -> 0 | Q12: =SUM(Q11:$BH11)*Q11 -> 0 | R12: =SUM(R11:$BH11)*R11 -> 0 | S12: =SUM(S11:$BH11)*S11 -> 0 | T12: =SUM(T11:$BH11)*T11 -> 0 | U12: =SUM(U11:$BH11)*U11 -> 0 | V12: =SUM(V11:$BH11)*V11 -> 0 | W12: =SUM(W11:$BH11)*W11 -> 0 | X12: =SUM(X11:$BH11)*X11 -> 0 | Y12: =SUM(Y11:$BH11)*Y11 -> 0 | Z12: =SUM(Z11:$BH11)*Z11 -> 0 | AA12: =SUM(AA11:$BH11)*AA11 -> 0 | AB12: =SUM(AB11:$BH11)*AB11 -> 0 | AC12: =SUM(AC11:$BH11)*AC11 -> 0 | AD12: =SUM(AD11:$BH11)*AD11 -> 0 | AE12: =SUM(AE11:$BH11)*AE11 -> 0 | AF12: =SUM(AF11:$BH11)*AF11 -> 0 | AG12: =SUM(AG11:$BH11)*AG11 -> 0 | AH12: =SUM(AH11:$BH11)*AH11 -> 0 | AI12: =SUM(AI11:$BH11)*AI11 -> 0 | AJ12: =SUM(AJ11:$BH11)*AJ11 -> 0 | AK12: =SUM(AK11:$BH11)*AK11 -> 0 | AL12: =SUM(AL11:$BH11)*AL11 -> 0 | AM12: =SUM(AM11:$BH11)*AM11 -> 0 | AN12: =SUM(AN11:$BH11)*AN11 -> 0 | AO12: =SUM(AO11:$BH11)*AO11 -> 0 | AP12: =SUM(AP11:$BH11)*AP11 -> 0 | AQ12: =SUM(AQ11:$BH11)*AQ11 -> 0 | AR12: =SUM(AR11:$BH11)*AR11 -> 0 | AS12: =SUM(AS11:$BH11)*AS11 -> 0 | AT12: =SUM(AT11:$BH11)*AT11 -> 0 | AU12: =SUM(AU11:$BH11)*AU11 -> 0 | AV12: =SUM(AV11:$BH11)*AV11 -> 0 | AW12: =SUM(AW11:$BH11)*AW11 -> 0 | AX12: =SUM(AX11:$BH11)*AX11 -> 0 | AY12: =SUM(AY11:$BH11)*AY11 -> 0 | AZ12: =SUM(AZ11:$BH11)*AZ11 -> 0 | BA12: =SUM(BA11:$BH11)*BA11 -> 0 | BB12: =SUM(BB11:$BH11)*BB11 -> 0 | BC12: =SUM(BC11:$BH11)*BC11 -> 0 | BD12: =SUM(BD11:$BH11)*BD11 -> 0 | BE12: =SUM(BE11:$BH11)*BE11 -> 0 | BF12: =SUM(BF11:$BH11)*BF11 -> 0 | BG12: =SUM(BG11:$BH11)*BG11 -> 0 | BH12: =SUM(BH11:$BH11)*BH11 -> 0
C13: Depreciation rate | D13: % p.a. | E13: =IF(E11=0,0,1/E11) -> 0
C14: Tax rate | D14: % | E14: =Global!F99 -> 0.3
C16: Present value of tax shield | D16: % p.a. | E16: =E13*E14 -> 0 | J16: =SUM(K16:BH16) -> 0 | K16: =IF(K$2>$E$11,0,$E$16/K7) -> 0 | L16: 0 | M16: 0 | N16: 0 | O16: 0 | P16: 0 | Q16: 0 | R16: 0 | S16: 0 | T16: 0 | U16: 0 | V16: 0 | W16: 0 | X16: 0 | Y16: 0 | Z16: 0 | AA16: 0 | AB16: 0 | AC16: 0 | AD16: 0 | AE16: 0 | AF16: 0 | AG16: 0 | AH16: 0 | AI16: 0 | AJ16: 0 | AK16: 0 | AL16: 0 | AM16: 0 | AN16: 0 | AO16: 0 | AP16: 0 | AQ16: =IF(AQ$2>$E$11,0,$E$16/AQ7) -> 0 | AR16: 0 | AS16: 0 | AT16: 0 | AU16: 0 | AV16: 0 | AW16: 0 | AX16: 0 | AY16: 0 | AZ16: 0 | BA16: 0 | BB16: 0 | BC16: 0 | BD16: 0 | BE16: 0 | BF16: 0 | BG16: 0 | BH16: 0
C18: Recoverable tax losses
C19: Opening balance | D19: % | E19: Interest Rate | K19: =J21 -> 0.3 | L19: =K21 -> 0.3 | M19: 0.3 | N19: 0.3 | O19: 0.3 | P19: 0.3 | Q19: 0.3 | R19: 0.3 | S19: 0.3 | T19: 0.3 | U19: 0.3 | V19: 0.3 | W19: 0.3 | X19: 0.3 | Y19: 0.3 | Z19: 0.3 | AA19: 0.3 | AB19: 0.3 | AC19: 0.3 | AD19: 0.3 | AE19: 0.3 | AF19: 0.3 | AG19: 0.3 | AH19: 0.3 | AI19: 0.3 | AJ19: 0.3 | AK19: 0.3 | AL19: 0.3 | AM19: 0.3 | AN19: 0.3 | AO19: 0.3 | AP19: 0.3 | AQ19: 0.3 | AR19: 0.3 | AS19: 0.3 | AT19: 0.3 | AU19: 0.3 | AV19: 0.3 | AW19: 0.3 | AX19: 0.3 | AY19: 0.3 | AZ19: 0.3 | BA19: 0.3 | BB19: 0.3 | BC19: 0.3 | BD19: 0.3 | BE19: 0.3 | BF19: 0.3 | BG19: 0.3 | BH19: 0.3
C20: Recovered | D20: % | E20: =INDEX(Global!F77:J77,,MATCH(Global!F8,List_RegYear,0)) -> 0.03175725277 | J20: =SUM(K20:BH20) -> 0 | K20: =IF(K11=0,0,PPMT($E$20,K12,K12,K$19)) -> 0 | L20: =IF(L11=0,0,PPMT($E$20,L12,L12,L$19)) -> 0 | M20: 0 | N20: 0 | O20: 0 | P20: 0 | Q20: 0 | R20: 0 | S20: 0 | T20: 0 | U20: 0 | V20: 0 | W20: 0 | X20: 0 | Y20: 0 | Z20: 0 | AA20: 0 | AB20: 0 | AC20: 0 | AD20: 0 | AE20: 0 | AF20: 0 | AG20: 0 | AH20: 0 | AI20: 0 | AJ20: 0 | AK20: 0 | AL20: 0 | AM20: 0 | AN20: 0 | AO20: 0 | AP20: 0 | AQ20: 0 | AR20: 0 | AS20: 0 | AT20: 0 | AU20: 0 | AV20: 0 | AW20: 0 | AX20: 0 | AY20: 0 | AZ20: 0 | BA20: 0 | BB20: 0 | BC20: 0 | BD20: 0 | BE20: 0 | BF20: 0 | BG20: 0 | BH20: 0
C21: Closing balance | D21: % | J21: =E14-J16 -> 0.3 | K21: =SUM(K19:K20) -> 0.3 | L21: =SUM(L19:L20) -> 0.3 | M21: 0.3 | N21: 0.3 | O21: 0.3 | P21: 0.3 | Q21: 0.3 | R21: 0.3 | S21: 0.3 | T21: 0.3 | U21: 0.3 | V21: 0.3 | W21: 0.3 | X21: 0.3 | Y21: 0.3 | Z21: 0.3 | AA21: 0.3 | AB21: 0.3 | AC21: 0.3 | AD21: 0.3 | AE21: 0.3 | AF21: 0.3 | AG21: 0.3 | AH21: 0.3 | AI21: 0.3 | AJ21: 0.3 | AK21: 0.3 | AL21: 0.3 | AM21: 0.3 | AN21: 0.3 | AO21: 0.3 | AP21: 0.3 | AQ21: 0.3 | AR21: 0.3 | AS21: 0.3 | AT21: 0.3 | AU21: 0.3 | AV21: 0.3 | AW21: 0.3 | AX21: 0.3 | AY21: 0.3 | AZ21: 0.3 | BA21: 0.3 | BB21: 0.3 | BC21: 0.3 | BD21: 0.3 | BE21: 0.3 | BF21: 0.3 | BG21: 0.3 | BH21: 0.3
C22: Check | D22: Ok/Fail | J22: =IF(E11=0,0,ROUND(SUM(J20:J21),Rounding)) -> 0
C24: Annuity | D24: % | K24: =-K20*(1+$E$20)^K2 -> 0 | L24: 0 | M24: 0 | N24: 0 | O24: 0 | P24: 0 | Q24: 0 | R24: 0 | S24: 0 | T24: 0 | U24: 0 | V24: 0 | W24: 0 | X24: 0 | Y24: 0 | Z24: 0 | AA24: 0 | AB24: 0 | AC24: 0 | AD24: 0 | AE24: 0 | AF24: 0 | AG24: 0 | AH24: 0 | AI24: 0 | AJ24: 0 | AK24: 0 | AL24: 0 | AM24: 0 | AN24: 0 | AO24: 0 | AP24: 0 | AQ24: =-AQ20*(1+$E$20)^AQ2 -> 0 | AR24: 0 | AS24: 0 | AT24: 0 | AU24: 0 | AV24: 0 | AW24: 0 | AX24: 0 | AY24: 0 | AZ24: 0 | BA24: 0 | BB24: 0 | BC24: 0 | BD24: 0 | BE24: 0 | BF24: 0 | BG24: 0 | BH24: 0
C25: Check | D25: Ok/Fail | J25: =ROUND(MAX(K24:BH24)-MIN(IF(K24:BH24<>0,K24:BH24)),Rounding) -> 0
C27: Data table of results
C28: Asset remaining life | D28: Annuity (% p.a.)
C29: Annuity | D29: =K24 -> 0
C30: 1 | D30: 0.01709102779
C31: 2 | D31: 0.01281754869
C32: 3 | D32: 0.0113994433
C33: 4 | D33: 0.01069477609
C34: 5 | D34: 0.01027615106
C35: 6 | D35: 0.009994112263
C36: 7 | D36: 0.009788004002
C37: 8 | D37: 0.009628605455
C38: 9 | D38: 0.009500114399
C39: 10 | D39: 0.00939323916
C40: 11 | D40: 0.009302157268
C41: 12 | D41: 0.009223032465
C42: 13 | D42: 0.009153232217
C43: 14 | D43: 0.009090888038
C44: 15 | D44: 0.009034635384
C45: 16 | D45: 0.008983453041
C46: 17 | D46: 0.008936560285
C47: 18 | D47: 0.008893348941
C48: 19 | D48: 0.008853337267
C49: 20 | D49: 0.008816137903
C50: 21 | D50: 0.008781435127
C51: 22 | D51: 0.008748968395
C52: 23 | D52: 0.008718520252
C53: 24 | D53: 0.008689907294
C54: 25 | D54: 0.008662973332
C55: 26 | D55: 0.008637584156
C56: 27 | D56: 0.008613623473
C57: 28 | D57: 0.008590989719
C58: 29 | D58: 0.008569593553
C59: 30 | D59: 0.008549355839
C60: 31 | D60: 0.008530206034
C61: 32 | D61: 0.008512080874
C62: 33 | D62: 0.008494923307
C63: 34 | D63: 0.008478681606
C64: 35 | D64: 0.008463308644
C65: 36 | D65: 0.008448761285
C66: 37 | D66: 0.008434999874
C67: 38 | D67: 0.008421987808
C68: 39 | D68: 0.008409691178
C69: 40 | D69: 0.008398078453
C70: 41 | D70: 0.008387120223
C71: 42 | D71: 0.008376788966
C72: 43 | D72: 0.00836705886
C73: 44 | D73: 0.008357905609
C74: 45 | D74: 0.008349306299
C75: 46 | D75: 0.008341239267
C76: 47 | D76: 0.008333683993
C77: 48 | D77: 0.008326620998
C78: 49 | D78: 0.008320031759
C79: 50 | D79: 0.008313898633

Sheet REG_Timing
C1: Regulatory Period Timing
J2: 2024 | K2: =J2+1 -> 2025 | L2: =K2+1 -> 2026 | M2: =L2+1 -> 2027 | N2: =M2+1 -> 2028 | O2: =N2+1 -> 2029
C4: Flags
C6: Year | D6: # | K6: =J6+1 -> 1 | L6: =K6+1 -> 2 | M6: =L6+1 -> 3 | N6: =M6+1 -> 4 | O6: =N6+1 -> 5
C8: Escalation
C10: Escalation Rate
C11: =Global!C83 -> CPI | D11: % p.a. | K11: =Global!F83 -> 0.02799781128 | L11: =Global!G83 -> 0.02799781128 | M11: =Global!H83 -> 0.02799781128 | N11: =Global!I83 -> 0.02799781128 | O11: =Global!J83 -> 0.02799781128
C12: =Global!C84 -> LPI | D12: % p.a. | K12: =Global!F84 -> 0.01652827985 | L12: =Global!G84 -> 0.01495766389 | M12: =Global!H84 -> 0.006634271053 | N12: =Global!I84 -> 0.005015929052 | O12: =Global!J84 -> 0.007061266653
C13: =Global!C85 -> Real capex | D13: % p.a. | K13: =Global!F85 -> 0 | L13: =Global!G85 -> 0 | M13: =Global!H85 -> 0 | N13: =Global!I85 -> 0 | O13: =Global!J85 -> 0
C14: =Global!C86 -> Real labour (capex) | D14: % p.a. | K14: =Global!F86 -> 0.003305655969 | L14: =Global!G86 -> 0.002991532779 | M14: =Global!H86 -> 0.001326854211 | N14: =Global!I86 -> 0.00100318581 | O14: =Global!J86 -> 0.001412253331
C15: =Global!C87 -> Real opex | D15: % p.a. | K15: =Global!F87 -> 0.004859314275 | L15: =Global!G87 -> 0.004397553185 | M15: =Global!H87 -> 0.001950475689 | N15: =Global!I87 -> 0.001474683141 | O15: =Global!J87 -> 0.002076012396
C17: Escalation Index
C18: =C11 -> CPI | D18: index | K18: =Global!F90 -> 1 | L18: =K18*(1+L11) -> 1.027997811 | M18: =L18*(1+M11) -> 1.0567795 | N18: 1.086367013 | O18: 1.116782912
C19: =C12 -> LPI | D19: index | K19: =Global!F91 -> 1 | L19: =K19*(1+L12) -> 1.014957664 | M19: 1.021691168 | N19: 1.026815899 | O19: 1.034066519
C20: =C13 -> Real capex | D20: index | K20: =Global!F92 -> 1 | L20: 1 | M20: 1 | N20: 1 | O20: 1
C21: =C14 -> Real labour (capex) | D21: index | K21: =Global!F93 -> 1 | L21: 1.002991533 | M21: 1.004322356 | N21: 1.005329878 | O21: 1.006749659
C22: =C15 -> Real opex | D22: index | K22: =Global!F94 -> 1 | L22: 1.004397553 | M22: 1.006356606 | N22: 1.007840663 | O22: 1.009932953

Sheet Outputs>>

Sheet Output
B2: Staging of calculated component capital recovery and overheads
B4: Real
B6: Tariff Class 3 - $ / Component
D9: Capital Recovery | J9: Maintenance | P9: Total Tariff
D10: =REG_Timing!$K$2 -> 2025 | E10: =REG_Timing!$L$2 -> 2026 | F10: =REG_Timing!$M$2 -> 2027 | G10: =REG_Timing!$N$2 -> 2028 | H10: =REG_Timing!$O$2 -> 2029 | J10: =REG_Timing!$K$2 -> 2025 | K10: =REG_Timing!$L$2 -> 2026 | L10: =REG_Timing!$M$2 -> 2027 | M10: =REG_Timing!$N$2 -> 2028 | N10: =REG_Timing!$O$2 -> 2029 | P10: =REG_Timing!$K$2 -> 2025 | Q10: =REG_Timing!$L$2 -> 2026 | R10: =REG_Timing!$M$2 -> 2027 | S10: =REG_Timing!$N$2 -> 2028 | T10: =REG_Timing!$O$2 -> 2029 | X10: Capital Recovery | Y10: =CalcRecovery!K2 -> 1 | Z10: =CalcRecovery!L2 -> 2 | AA10: =CalcRecovery!M2 -> 3 | AB10: =CalcRecovery!N2 -> 4 | AC10: =CalcRecovery!O2 -> 5 | AD10: =CalcRecovery!P2 -> 6 | AE10: =CalcRecovery!Q2 -> 7 | AF10: =CalcRecovery!R2 -> 8 | AG10: =CalcRecovery!S2 -> 9 | AH10: =CalcRecovery!T2 -> 10 | AI10: =CalcRecovery!U2 -> 11 | AJ10: =CalcRecovery!V2 -> 12 | AK10: =CalcRecovery!W2 -> 13 | AL10: =CalcRecovery!X2 -> 14 | AM10: =CalcRecovery!Y2 -> 15 | AN10: =CalcRecovery!Z2 -> 16 | AO10: =CalcRecovery!AA2 -> 17 | AP10: =CalcRecovery!AB2 -> 18 | AQ10: =CalcRecovery!AC2 -> 19 | AR10: =CalcRecovery!AD2 -> 20 | AS10: =CalcRecovery!AE2 -> 21 | AT10: =CalcRecovery!AF2 -> 22 | AU10: =CalcRecovery!AG2 -> 23 | AV10: =CalcRecovery!AH2 -> 24 | AW10: =CalcRecovery!AI2 -> 25
B11: =Annuity!C23 -> NIGHTWATCH MINOR (F42) - FF1A | C11: =Annuity!D23 -> FF1A | D11: 174.0665521 | E11: 173.5783188 | F11: 173.4564666 | G11: 173.4017882 | H11: 173.2880818 | J11: =CalcAnnual!K257 -> 341.3176646 | K11: =CalcAnnual!L257 -> 342.8186272 | L11: =CalcAnnual!M257 -> 343.4872866 | M11: =CalcAnnual!N257 -> 343.9938215 | N11: =CalcAnnual!O257 -> 344.7079569 | P11: =D11+J11 -> 515.3842167 | Q11: =E11+K11 -> 516.396946 | R11: =F11+L11 -> 516.9437532 | S11: =G11+M11 -> 517.3956097 | T11: =H11+N11 -> 517.9960387 | X11: =C11 -> FF1A | Y11: =CalcRecovery!K79 -> 0 | Z11: =CalcRecovery!L79 -> 0 | AA11: =CalcRecovery!M79 -> 0 | AB11: =CalcRecovery!N79 -> 0 | AC11: =CalcRecovery!O79 -> 0 | AD11: =CalcRecovery!P79 -> 0 | AE11: =CalcRecovery!Q79 -> 0 | AF11: =CalcRecovery!R79 -> 0 | AG11: =CalcRecovery!S79 -> 0 | AH11: =CalcRecovery!T79 -> 0 | AI11: =CalcRecovery!U79 -> 0 | AJ11: =CalcRecovery!V79 -> 0 | AK11: =CalcRecovery!W79 -> 0 | AL11: =CalcRecovery!X79 -> 0 | AM11: =CalcRecovery!Y79 -> 0 | AN11: =CalcRecovery!Z79 -> 0 | AO11: =CalcRecovery!AA79 -> 0 | AP11: =CalcRecovery!AB79 -> 0 | AQ11: =CalcRecovery!AC79 -> 0 | AR11: =CalcRecovery!AD79 -> 0 | AS11: =CalcRecovery!AE79 -> 0 | AT11: =CalcRecovery!AF79 -> 0 | AU11: =CalcRecovery!AG79 -> 0 | AV11: =CalcRecovery!AH79 -> 0 | AW11: =CalcRecovery!AI79 -> 0
B12: =Annuity!C24 -> NIGHTWATCH MINOR (F2X14) - FF2A | C12: =Annuity!D24 -> FF2A | D12: 253.0874271 | E12: 252.642537 | F12: 252.5835547 | G12: 252.5937574 | H12: 252.5549637 | J12: =CalcAnnual!K258 -> 319.0888853 | K12: =CalcAnnual!L258 -> 320.4920956 | L12: =CalcAnnual!M258 -> 321.1172077 | M12: =CalcAnnual!N258 -> 321.5907538 | N12: =CalcAnnual!O258 -> 322.2583802 | P12: 572.1763124 | Q12: 573.1346326 | R12: 573.7007624 | S12: 574.1845112 | T12: 574.8133439 | X12: FF2A | Y12: =CalcRecovery!K80 -> 0 | Z12: =CalcRecovery!L80 -> 0 | AA12: =CalcRecovery!M80 -> 0 | AB12: =CalcRecovery!N80 -> 0 | AC12: =CalcRecovery!O80 -> 0 | AD12: =CalcRecovery!P80 -> 0 | AE12: =CalcRecovery!Q80 -> 0 | AF12: =CalcRecovery!R80 -> 0 | AG12: =CalcRecovery!S80 -> 0 | AH12: =CalcRecovery!T80 -> 0 | AI12: =CalcRecovery!U80 -> 0 | AJ12: =CalcRecovery!V80 -> 0 | AK12: =CalcRecovery!W80 -> 0 | AL12: =CalcRecovery!X80 -> 0 | AM12: =CalcRecovery!Y80 -> 0 | AN12: =CalcRecovery!Z80 -> 0 | AO12: =CalcRecovery!AA80 -> 0 | AP12: =CalcRecovery!AB80 -> 0 | AQ12: =CalcRecovery!AC80 -> 0 | AR12: =CalcRecovery!AD80 -> 0 | AS12: =CalcRecovery!AE80 -> 0 | AT12: =CalcRecovery!AF80 -> 0 | AU12: =CalcRecovery!AG80 -> 0 | AV12: =CalcRecovery!AH80 -> 0 | AW12: =CalcRecovery!AI80 -> 0
B13: =Annuity!C25 -> NIGHTWATCH SMALL (MH150) - FH1A | C13: =Annuity!D25 -> FH1A | D13: 132.8007323 | E13: 131.0189788 | F13: 130.2974643 | G13: 129.7786825 | H13: 129.0190021 | J13: =CalcAnnual!K259 -> 510.812107 | K13: =CalcAnnual!L259 -> 513.0584304 | L13: =CalcAnnual!M259 -> 514.0591384 | M13: =CalcAnnual!N259 -> 514.8172127 | N13: =CalcAnnual!O259 -> 515.8859797 | P13: 643.6128393 | Q13: 644.0774092 | R13: 644.3566027 | S13: 644.5958952 | T13: 644.9049817 | X13: FH1A | Y13: =CalcRecovery!K81 -> 0 | Z13: =CalcRecovery!L81 -> 0 | AA13: =CalcRecovery!M81 -> 0 | AB13: =CalcRecovery!N81 -> 0 | AC13: =CalcRecovery!O81 -> 0 | AD13: =CalcRecovery!P81 -> 0 | AE13: =CalcRecovery!Q81 -> 0 | AF13: =CalcRecovery!R81 -> 0 | AG13: =CalcRecovery!S81 -> 0 | AH13: =CalcRecovery!T81 -> 0 | AI13: =CalcRecovery!U81 -> 0 | AJ13: =CalcRecovery!V81 -> 0 | AK13: =CalcRecovery!W81 -> 0 | AL13: =CalcRecovery!X81 -> 0 | AM13: =CalcRecovery!Y81 -> 0 | AN13: =CalcRecovery!Z81 -> 0 | AO13: =CalcRecovery!AA81 -> 0 | AP13: =CalcRecovery!AB81 -> 0 | AQ13: =CalcRecovery!AC81 -> 0 | AR13: =CalcRecovery!AD81 -> 0 | AS13: =CalcRecovery!AE81 -> 0 | AT13: =CalcRecovery!AF81 -> 0 | AU13: =CalcRecovery!AG81 -> 0 | AV13: =CalcRecovery!AH81 -> 0 | AW13: =CalcRecovery!AI81 -> 0
B14: =Annuity!C26 -> NIGHTWATCH MEDIUM (MH250) - FH2A | C14: =Annuity!D26 -> FH2A | D14: -65.482528 | E14: -67.92549429 | F14: -69.05116652 | G14: -69.91976851 | H14: -71.13122301 | J14: =CalcAnnual!K260 -> 704.4501803 | K14: =CalcAnnual!L260 -> 707.5480374 | L14: =CalcAnnual!M260 -> 708.9280927 | M14: =CalcAnnual!N260 -> 709.973537 | N14: =CalcAnnual!O260 -> 711.4474508 | P14: 638.9676523 | Q14: 639.6225431 | R14: 639.8769261 | S14: 640.0537685 | T14: 640.3162278 | X14: FH2A | Y14: =CalcRecovery!K82 -> 0 | Z14: =CalcRecovery!L82 -> 0 | AA14: =CalcRecovery!M82 -> 0 | AB14: =CalcRecovery!N82 -> 0 | AC14: =CalcRecovery!O82 -> 0 | AD14: =CalcRecovery!P82 -> 0 | AE14: =CalcRecovery!Q82 -> 0 | AF14: =CalcRecovery!R82 -> 0 | AG14: =CalcRecovery!S82 -> 0 | AH14: =CalcRecovery!T82 -> 0 | AI14: =CalcRecovery!U82 -> 0 | AJ14: =CalcRecovery!V82 -> 0 | AK14: =CalcRecovery!W82 -> 0 | AL14: =CalcRecovery!X82 -> 0 | AM14: =CalcRecovery!Y82 -> 0 | AN14: =CalcRecovery!Z82 -> 0 | AO14: =CalcRecovery!AA82 -> 0 | AP14: =CalcRecovery!AB82 -> 0 | AQ14: =CalcRecovery!AC82 -> 0 | AR14: =CalcRecovery!AD82 -> 0 | AS14: =CalcRecovery!AE82 -> 0 | AT14: =CalcRecovery!AF82 -> 0 | AU14: =CalcRecovery!AG82 -> 0 | AV14: =CalcRecovery!AH82 -> 0 | AW14: =CalcRecovery!AI82 -> 0
B15: =Annuity!C27 -> NIGHTWATCH LARGE (MH400) - FH3A | C15: =Annuity!D27 -> FH3A | D15: -61.26736263 | E15: -63.78086598 | F15: -64.93567617 | G15: -65.8254782 | H15: -67.06772242 | J15: =CalcAnnual!K261 -> 1031.986482 | K15: =CalcAnnual!L261 -> 1036.524698 | L15: =CalcAnnual!M261 -> 1038.546414 | M15: =CalcAnnual!N261 -> 1040.077941 | N15: =CalcAnnual!O261 -> 1042.237156 | P15: 970.7191198 | Q15: 972.7438319 | R15: 973.6107379 | S15: 974.2524628 | T15: 975.1694332 | X15: FH3A | Y15: =CalcRecovery!K83 -> 0 | Z15: =CalcRecovery!L83 -> 0 | AA15: =CalcRecovery!M83 -> 0 | AB15: =CalcRecovery!N83 -> 0 | AC15: =CalcRecovery!O83 -> 0 | AD15: =CalcRecovery!P83 -> 0 | AE15: =CalcRecovery!Q83 -> 0 | AF15: =CalcRecovery!R83 -> 0 | AG15: =CalcRecovery!S83 -> 0 | AH15: =CalcRecovery!T83 -> 0 | AI15: =CalcRecovery!U83 -> 0 | AJ15: =CalcRecovery!V83 -> 0 | AK15: =CalcRecovery!W83 -> 0 | AL15: =CalcRecovery!X83 -> 0 | AM15: =CalcRecovery!Y83 -> 0 | AN15: =CalcRecovery!Z83 -> 0 | AO15: =CalcRecovery!AA83 -> 0 | AP15: =CalcRecovery!AB83 -> 0 | AQ15: =CalcRecovery!AC83 -> 0 | AR15: =CalcRecovery!AD83 -> 0 | AS15: =CalcRecovery!AE83 -> 0 | AT15: =CalcRecovery!AF83 -> 0 | AU15: =CalcRecovery!AG83 -> 0 | AV15: =CalcRecovery!AH83 -> 0 | AW15: =CalcRecovery!AI83 -> 0
B16: =Annuity!C28 -> NIGHTWATCH X-LARGE (MH1000) - FH4A | C16: =Annuity!D28 -> FH4A | D16: 283.6781314 | E16: 281.7491648 | F16: 281.0451207 | G16: 280.572369 | H16: 279.8459108 | J16: =CalcAnnual!K262 -> 1886.405188 | K16: =CalcAnnual!L262 -> 1894.700755 | L16: =CalcAnnual!M262 -> 1898.396323 | M16: =CalcAnnual!N262 -> 1901.195856 | N16: =CalcAnnual!O262 -> 1905.142762 | P16: 2170.083319 | Q16: 2176.44992 | R16: 2179.441443 | S16: 2181.768225 | T16: 2184.988673 | X16: FH4A | Y16: =CalcRecovery!K84 -> 0 | Z16: =CalcRecovery!L84 -> 0 | AA16: =CalcRecovery!M84 -> 0 | AB16: =CalcRecovery!N84 -> 0 | AC16: =CalcRecovery!O84 -> 0 | AD16: =CalcRecovery!P84 -> 0 | AE16: =CalcRecovery!Q84 -> 0 | AF16: =CalcRecovery!R84 -> 0 | AG16: =CalcRecovery!S84 -> 0 | AH16: =CalcRecovery!T84 -> 0 | AI16: =CalcRecovery!U84 -> 0 | AJ16: =CalcRecovery!V84 -> 0 | AK16: =CalcRecovery!W84 -> 0 | AL16: =CalcRecovery!X84 -> 0 | AM16: =CalcRecovery!Y84 -> 0 | AN16: =CalcRecovery!Z84 -> 0 | AO16: =CalcRecovery!AA84 -> 0 | AP16: =CalcRecovery!AB84 -> 0 | AQ16: =CalcRecovery!AC84 -> 0 | AR16: =CalcRecovery!AD84 -> 0 | AS16: =CalcRecovery!AE84 -> 0 | AT16: =CalcRecovery!AF84 -> 0 | AU16: =CalcRecovery!AG84 -> 0 | AV16: =CalcRecovery!AH84 -> 0 | AW16: =CalcRecovery!AI84 -> 0
B17: =Annuity!C29 -> NIGHTWATCH MINOR (L17) - FL1A | C17: =Annuity!D29 -> FL1A | D17: 168.4952066 | E17: 168.0039174 | F17: 167.8776326 | G17: 167.8183797 | H17: 167.6993916 | J17: =CalcAnnual!K263 -> 301.0280021 | K17: =CalcAnnual!L263 -> 302.3517887 | L17: =CalcAnnual!M263 -> 302.9415185 | M17: =CalcAnnual!N263 -> 303.3882613 | N17: =CalcAnnual!O263 -> 304.0180991 | P17: 469.5232087 | Q17: 470.3557061 | R17: 470.8191511 | S17: 471.206641 | T17: 471.7174907 | X17: FL1A | Y17: =CalcRecovery!K85 -> 0 | Z17: =CalcRecovery!L85 -> 0 | AA17: =CalcRecovery!M85 -> 0 | AB17: =CalcRecovery!N85 -> 0 | AC17: =CalcRecovery!O85 -> 0 | AD17: =CalcRecovery!P85 -> 0 | AE17: =CalcRecovery!Q85 -> 0 | AF17: =CalcRecovery!R85 -> 0 | AG17: =CalcRecovery!S85 -> 0 | AH17: =CalcRecovery!T85 -> 0 | AI17: =CalcRecovery!U85 -> 0 | AJ17: =CalcRecovery!V85 -> 0 | AK17: =CalcRecovery!W85 -> 0 | AL17: =CalcRecovery!X85 -> 0 | AM17: =CalcRecovery!Y85 -> 0 | AN17: =CalcRecovery!Z85 -> 0 | AO17: =CalcRecovery!AA85 -> 0 | AP17: =CalcRecovery!AB85 -> 0 | AQ17: =CalcRecovery!AC85 -> 0 | AR17: =CalcRecovery!AD85 -> 0 | AS17: =CalcRecovery!AE85 -> 0 | AT17: =CalcRecovery!AF85 -> 0 | AU17: =CalcRecovery!AG85 -> 0 | AV17: =CalcRecovery!AH85 -> 0 | AW17: =CalcRecovery!AI85 -> 0
B18: =Annuity!C30 -> NIGHTWATCH MINOR (L18) - FL1B | C18: =Annuity!D30 -> FL1B | D18: 1259.021352 | E18: 1259.12822 | F18: 1259.86957 | G18: 1260.705707 | H18: 1261.620552 | J18: =CalcAnnual!K264 -> 307.9744956 | K18: =CalcAnnual!L264 -> 309.3288298 | L18: =CalcAnnual!M264 -> 309.9321682 | M18: =CalcAnnual!N264 -> 310.38922 | N18: =CalcAnnual!O264 -> 311.0335918 | P18: 1566.995848 | Q18: 1568.45705 | R18: 1569.801739 | S18: 1571.094927 | T18: 1572.654144 | X18: FL1B | Y18: =CalcRecovery!K86 -> 0 | Z18: =CalcRecovery!L86 -> 0 | AA18: =CalcRecovery!M86 -> 0 | AB18: =CalcRecovery!N86 -> 0 | AC18: =CalcRecovery!O86 -> 0 | AD18: =CalcRecovery!P86 -> 0 | AE18: =CalcRecovery!Q86 -> 0 | AF18: =CalcRecovery!R86 -> 0 | AG18: =CalcRecovery!S86 -> 0 | AH18: =CalcRecovery!T86 -> 0 | AI18: =CalcRecovery!U86 -> 0 | AJ18: =CalcRecovery!V86 -> 0 | AK18: =CalcRecovery!W86 -> 0 | AL18: =CalcRecovery!X86 -> 0 | AM18: =CalcRecovery!Y86 -> 0 | AN18: =CalcRecovery!Z86 -> 0 | AO18: =CalcRecovery!AA86 -> 0 | AP18: =CalcRecovery!AB86 -> 0 | AQ18: =CalcRecovery!AC86 -> 0 | AR18: =CalcRecovery!AD86 -> 0 | AS18: =CalcRecovery!AE86 -> 0 | AT18: =CalcRecovery!AF86 -> 0 | AU18: =CalcRecovery!AG86 -> 0 | AV18: =CalcRecovery!AH86 -> 0 | AW18: =CalcRecovery!AI86 -> 0
B19: =Annuity!C31 -> NIGHTWATCH SMALL (L75+) - FL2A | C19: =Annuity!D31 -> FL2A | D19: 1688.680352 | E19: 1687.752003 | F19: 1688.268364 | G19: 1689.027056 | H19: 1689.742369 | J19: =CalcAnnual!K265 -> 387.164522 | K19: =CalcAnnual!L265 -> 388.8670986 | L19: =CalcAnnual!M265 -> 389.6255744 | M19: =CalcAnnual!N265 -> 390.2001486 | N19: =CalcAnnual!O265 -> 391.010209 | P19: 2075.844874 | Q19: 2076.619101 | R19: 2077.893938 | S19: 2079.227205 | T19: 2080.752578 | X19: FL2A | Y19: =CalcRecovery!K87 -> 0 | Z19: =CalcRecovery!L87 -> 0 | AA19: =CalcRecovery!M87 -> 0 | AB19: =CalcRecovery!N87 -> 0 | AC19: =CalcRecovery!O87 -> 0 | AD19: =CalcRecovery!P87 -> 0 | AE19: =CalcRecovery!Q87 -> 0 | AF19: =CalcRecovery!R87 -> 0 | AG19: =CalcRecovery!S87 -> 0 | AH19: =CalcRecovery!T87 -> 0 | AI19: =CalcRecovery!U87 -> 0 | AJ19: =CalcRecovery!V87 -> 0 | AK19: =CalcRecovery!W87 -> 0 | AL19: =CalcRecovery!X87 -> 0 | AM19: =CalcRecovery!Y87 -> 0 | AN19: =CalcRecovery!Z87 -> 0 | AO19: =CalcRecovery!AA87 -> 0 | AP19: =CalcRecovery!AB87 -> 0 | AQ19: =CalcRecovery!AC87 -> 0 | AR19: =CalcRecovery!AD87 -> 0 | AS19: =CalcRecovery!AE87 -> 0 | AT19: =CalcRecovery!AF87 -> 0 | AU19: =CalcRecovery!AG87 -> 0 | AV19: =CalcRecovery!AH87 -> 0 | AW19: =CalcRecovery!AI87 -> 0
B20: =Annuity!C32 -> NIGHTWATCH MEDIUM (L100+) - FL3A | C20: =Annuity!D32 -> FL3A | D20: 1781.816858 | E20: 1780.38714 | F20: 1780.731201 | G20: 1781.379347 | H20: 1781.919155 | J20: =CalcAnnual!K266 -> 479.3837896 | K20: =CalcAnnual!L266 -> 481.4919053 | L20: =CalcAnnual!M266 -> 482.4310436 | M20: =CalcAnnual!N266 -> 483.1424765 | N20: =CalcAnnual!O266 -> 484.1454862 | P20: 2261.200647 | Q20: 2261.879046 | R20: 2263.162245 | S20: 2264.521823 | T20: 2266.064641 | X20: FL3A | Y20: =CalcRecovery!K88 -> 0 | Z20: =CalcRecovery!L88 -> 0 | AA20: =CalcRecovery!M88 -> 0 | AB20: =CalcRecovery!N88 -> 0 | AC20: =CalcRecovery!O88 -> 0 | AD20: =CalcRecovery!P88 -> 0 | AE20: =CalcRecovery!Q88 -> 0 | AF20: =CalcRecovery!R88 -> 0 | AG20: =CalcRecovery!S88 -> 0 | AH20: =CalcRecovery!T88 -> 0 | AI20: =CalcRecovery!U88 -> 0 | AJ20: =CalcRecovery!V88 -> 0 | AK20: =CalcRecovery!W88 -> 0 | AL20: =CalcRecovery!X88 -> 0 | AM20: =CalcRecovery!Y88 -> 0 | AN20: =CalcRecovery!Z88 -> 0 | AO20: =CalcRecovery!AA88 -> 0 | AP20: =CalcRecovery!AB88 -> 0 | AQ20: =CalcRecovery!AC88 -> 0 | AR20: =CalcRecovery!AD88 -> 0 | AS20: =CalcRecovery!AE88 -> 0 | AT20: =CalcRecovery!AF88 -> 0 | AU20: =CalcRecovery!AG88 -> 0 | AV20: =CalcRecovery!AH88 -> 0 | AW20: =CalcRecovery!AI88 -> 0
B21: =Annuity!C33 -> NIGHTWATCH MEDIUM (L150) - FL3B | C21: =Annuity!D33 -> FL3B | D21: 1607.284801 | E21: 1605.759352 | F21: 1605.964553 | G21: 1606.469397 | H21: 1606.843747 | J21: =CalcAnnual!K267 -> 551.6273224 | K21: =CalcAnnual!L267 -> 554.0531329 | L21: =CalcAnnual!M267 -> 555.1338001 | M21: =CalcAnnual!N267 -> 555.9524465 | N21: =CalcAnnual!O267 -> 557.1066107 | P21: 2158.912123 | Q21: 2159.812485 | R21: 2161.098353 | S21: 2162.421844 | T21: 2163.950358 | X21: FL3B | Y21: =CalcRecovery!K89 -> 0 | Z21: =CalcRecovery!L89 -> 0 | AA21: =CalcRecovery!M89 -> 0 | AB21: =CalcRecovery!N89 -> 0 | AC21: =CalcRecovery!O89 -> 0 | AD21: =CalcRecovery!P89 -> 0 | AE21: =CalcRecovery!Q89 -> 0 | AF21: =CalcRecovery!R89 -> 0 | AG21: =CalcRecovery!S89 -> 0 | AH21: =CalcRecovery!T89 -> 0 | AI21: =CalcRecovery!U89 -> 0 | AJ21: =CalcRecovery!V89 -> 0 | AK21: =CalcRecovery!W89 -> 0 | AL21: =CalcRecovery!X89 -> 0 | AM21: =CalcRecovery!Y89 -> 0 | AN21: =CalcRecovery!Z89 -> 0 | AO21: =CalcRecovery!AA89 -> 0 | AP21: =CalcRecovery!AB89 -> 0 | AQ21: =CalcRecovery!AC89 -> 0 | AR21: =CalcRecovery!AD89 -> 0 | AS21: =CalcRecovery!AE89 -> 0 | AT21: =CalcRecovery!AF89 -> 0 | AU21: =CalcRecovery!AG89 -> 0 | AV21: =CalcRecovery!AH89 -> 0 | AW21: =CalcRecovery!AI89 -> 0
B22: =Annuity!C34 -> NIGHTWATCH LARGE (L150+) - FL4A | C22: =Annuity!D34 -> FL4A | D22: 1789.297841 | E22: 1787.799378 | F22: 1788.116899 | G22: 1788.746526 | H22: 1789.258641 | J22: =CalcAnnual!K268 -> 661.0437274 | K22: =CalcAnnual!L268 -> 663.9507023 | L22: =CalcAnnual!M268 -> 665.245722 | M22: =CalcAnnual!N268 -> 666.2267487 | N22: =CalcAnnual!O268 -> 667.6098437 | P22: =D22+J22 -> 2450.341568 | Q22: =E22+K22 -> 2451.75008 | R22: =F22+L22 -> 2453.362621 | S22: =G22+M22 -> 2454.973274 | T22: =H22+N22 -> 2456.868484 | X22: FL4A | Y22: =CalcRecovery!K90 -> 0 | Z22: =CalcRecovery!L90 -> 0 | AA22: =CalcRecovery!M90 -> 0 | AB22: =CalcRecovery!N90 -> 0 | AC22: =CalcRecovery!O90 -> 0 | AD22: =CalcRecovery!P90 -> 0 | AE22: =CalcRecovery!Q90 -> 0 | AF22: =CalcRecovery!R90 -> 0 | AG22: =CalcRecovery!S90 -> 0 | AH22: =CalcRecovery!T90 -> 0 | AI22: =CalcRecovery!U90 -> 0 | AJ22: =CalcRecovery!V90 -> 0 | AK22: =CalcRecovery!W90 -> 0 | AL22: =CalcRecovery!X90 -> 0 | AM22: =CalcRecovery!Y90 -> 0 | AN22: =CalcRecovery!Z90 -> 0 | AO22: =CalcRecovery!AA90 -> 0 | AP22: =CalcRecovery!AB90 -> 0 | AQ22: =CalcRecovery!AC90 -> 0 | AR22: =CalcRecovery!AD90 -> 0 | AS22: =CalcRecovery!AE90 -> 0 | AT22: =CalcRecovery!AF90 -> 0 | AU22: =CalcRecovery!AG90 -> 0 | AV22: =CalcRecovery!AH90 -> 0 | AW22: =CalcRecovery!AI90 -> 0
B23: =Annuity!C35 -> NIGHTWATCH LARGE (L200) - FL4B | C23: =Annuity!D35 -> FL4B | D23: -174.0639882 | E23: -176.6393608 | F23: -177.8839133 | G23: -178.8663284 | H23: -180.2155052 | J23: =CalcAnnual!K269 -> 747.1802473 | K23: =CalcAnnual!L269 -> 750.4660121 | L23: =CalcAnnual!M269 -> 751.9297779 | M23: =CalcAnnual!N269 -> 753.038636 | N23: =CalcAnnual!O269 -> 754.6019536 | P23: 573.1162591 | Q23: 573.8266514 | R23: 574.0458646 | S23: 574.1723077 | T23: 574.3864484 | X23: FL4B | Y23: =CalcRecovery!K91 -> 0 | Z23: =CalcRecovery!L91 -> 0 | AA23: =CalcRecovery!M91 -> 0 | AB23: =CalcRecovery!N91 -> 0 | AC23: =CalcRecovery!O91 -> 0 | AD23: =CalcRecovery!P91 -> 0 | AE23: =CalcRecovery!Q91 -> 0 | AF23: =CalcRecovery!R91 -> 0 | AG23: =CalcRecovery!S91 -> 0 | AH23: =CalcRecovery!T91 -> 0 | AI23: =CalcRecovery!U91 -> 0 | AJ23: =CalcRecovery!V91 -> 0 | AK23: =CalcRecovery!W91 -> 0 | AL23: =CalcRecovery!X91 -> 0 | AM23: =CalcRecovery!Y91 -> 0 | AN23: =CalcRecovery!Z91 -> 0 | AO23: =CalcRecovery!AA91 -> 0 | AP23: =CalcRecovery!AB91 -> 0 | AQ23: =CalcRecovery!AC91 -> 0 | AR23: =CalcRecovery!AD91 -> 0 | AS23: =CalcRecovery!AE91 -> 0 | AT23: =CalcRecovery!AF91 -> 0 | AU23: =CalcRecovery!AG91 -> 0 | AV23: =CalcRecovery!AH91 -> 0 | AW23: =CalcRecovery!AI91 -> 0
B24: =Annuity!C36 -> NIGHTWATCH X-LARGE (L300+) - FL5A | C24: =Annuity!D36 -> FL5A | D24: 290.0028034 | E24: 288.0773059 | F24: 287.3782938 | G24: 286.910735 | H24: 286.1902726 | J24: =CalcAnnual!K270 -> 880.5529232 | K24: =CalcAnnual!L270 -> 884.4252016 | L24: =CalcAnnual!M270 -> 886.1502514 | M24: =CalcAnnual!N270 -> 887.4570422 | N24: =CalcAnnual!O270 -> 889.2994141 | P24: 1170.555727 | Q24: 1172.502507 | R24: 1173.528545 | S24: 1174.367777 | T24: 1175.489687 | X24: FL5A | Y24: =CalcRecovery!K92 -> 0 | Z24: =CalcRecovery!L92 -> 0 | AA24: =CalcRecovery!M92 -> 0 | AB24: =CalcRecovery!N92 -> 0 | AC24: =CalcRecovery!O92 -> 0 | AD24: =CalcRecovery!P92 -> 0 | AE24: =CalcRecovery!Q92 -> 0 | AF24: =CalcRecovery!R92 -> 0 | AG24: =CalcRecovery!S92 -> 0 | AH24: =CalcRecovery!T92 -> 0 | AI24: =CalcRecovery!U92 -> 0 | AJ24: =CalcRecovery!V92 -> 0 | AK24: =CalcRecovery!W92 -> 0 | AL24: =CalcRecovery!X92 -> 0 | AM24: =CalcRecovery!Y92 -> 0 | AN24: =CalcRecovery!Z92 -> 0 | AO24: =CalcRecovery!AA92 -> 0 | AP24: =CalcRecovery!AB92 -> 0 | AQ24: =CalcRecovery!AC92 -> 0 | AR24: =CalcRecovery!AD92 -> 0 | AS24: =CalcRecovery!AE92 -> 0 | AT24: =CalcRecovery!AF92 -> 0 | AU24: =CalcRecovery!AG92 -> 0 | AV24: =CalcRecovery!AH92 -> 0 | AW24: =CalcRecovery!AI92 -> 0
B25: =Annuity!C37 -> NIGHTWATCH MINOR (M80) - FM1A | C25: =Annuity!D37 -> FM1A | D25: 84.76810554 | E25: 84.23089178 | F25: 84.03799272 | G25: 83.90999472 | H25: 83.71163225 | J25: =CalcAnnual!K271 -> 410.7826 | K25: =CalcAnnual!L271 -> 412.5890383 | L25: =CalcAnnual!M271 -> 413.3937832 | M25: =CalcAnnual!N271 -> 414.0034081 | N25: =CalcAnnual!O271 -> 414.8628843 | P25: 495.5507056 | Q25: 496.8199301 | R25: 497.431776 | S25: 497.9134028 | T25: 498.5745165 | X25: FM1A | Y25: =CalcRecovery!K93 -> 0 | Z25: =CalcRecovery!L93 -> 0 | AA25: =CalcRecovery!M93 -> 0 | AB25: =CalcRecovery!N93 -> 0 | AC25: =CalcRecovery!O93 -> 0 | AD25: =CalcRecovery!P93 -> 0 | AE25: =CalcRecovery!Q93 -> 0 | AF25: =CalcRecovery!R93 -> 0 | AG25: =CalcRecovery!S93 -> 0 | AH25: =CalcRecovery!T93 -> 0 | AI25: =CalcRecovery!U93 -> 0 | AJ25: =CalcRecovery!V93 -> 0 | AK25: =CalcRecovery!W93 -> 0 | AL25: =CalcRecovery!X93 -> 0 | AM25: =CalcRecovery!Y93 -> 0 | AN25: =CalcRecovery!Z93 -> 0 | AO25: =CalcRecovery!AA93 -> 0 | AP25: =CalcRecovery!AB93 -> 0 | AQ25: =CalcRecovery!AC93 -> 0 | AR25: =CalcRecovery!AD93 -> 0 | AS25: =CalcRecovery!AE93 -> 0 | AT25: =CalcRecovery!AF93 -> 0 | AU25: =CalcRecovery!AG93 -> 0 | AV25: =CalcRecovery!AH93 -> 0 | AW25: =CalcRecovery!AI93 -> 0
B26: =Annuity!C38 -> NIGHTWATCH SMALL (S150) - FS1A | C26: =Annuity!D38 -> FS1A | D26: 95.55429546 | E26: 93.75211219 | F26: 93.000964 | G26: 92.45160052 | H26: 91.65661006 | J26: =CalcAnnual!K272 -> 517.7586005 | K26: =CalcAnnual!L272 -> 520.0354715 | L26: =CalcAnnual!M272 -> 521.0497881 | M26: =CalcAnnual!N272 -> 521.8181714 | N26: =CalcAnnual!O272 -> 522.9014724 | P26: 613.312896 | Q26: 613.7875837 | R26: 614.0507521 | S26: 614.2697719 | T26: 614.5580825 | X26: FS1A | Y26: =CalcRecovery!K94 -> 0 | Z26: =CalcRecovery!L94 -> 0 | AA26: =CalcRecovery!M94 -> 0 | AB26: =CalcRecovery!N94 -> 0 | AC26: =CalcRecovery!O94 -> 0 | AD26: =CalcRecovery!P94 -> 0 | AE26: =CalcRecovery!Q94 -> 0 | AF26: =CalcRecovery!R94 -> 0 | AG26: =CalcRecovery!S94 -> 0 | AH26: =CalcRecovery!T94 -> 0 | AI26: =CalcRecovery!U94 -> 0 | AJ26: =CalcRecovery!V94 -> 0 | AK26: =CalcRecovery!W94 -> 0 | AL26: =CalcRecovery!X94 -> 0 | AM26: =CalcRecovery!Y94 -> 0 | AN26: =CalcRecovery!Z94 -> 0 | AO26: =CalcRecovery!AA94 -> 0 | AP26: =CalcRecovery!AB94 -> 0 | AQ26: =CalcRecovery!AC94 -> 0 | AR26: =CalcRecovery!AD94 -> 0 | AS26: =CalcRecovery!AE94 -> 0 | AT26: =CalcRecovery!AF94 -> 0 | AU26: =CalcRecovery!AG94 -> 0 | AV26: =CalcRecovery!AH94 -> 0 | AW26: =CalcRecovery!AI94 -> 0
B27: =Annuity!C39 -> NIGHTWATCH MEDIUM (S250) - FS2A | C27: =Annuity!D39 -> FS2A | D27: 415.2384874 | E27: 413.0591979 | F27: 412.315993 | G27: 411.8420928 | H27: 411.0863679 | J27: =CalcAnnual!K273 -> 711.3966738 | K27: =CalcAnnual!L273 -> 714.5250785 | L27: =CalcAnnual!M273 -> 715.9187423 | M27: =CalcAnnual!N273 -> 716.9744956 | N27: =CalcAnnual!O273 -> 718.4629436 | P27: 1126.635161 | Q27: 1127.584276 | R27: 1128.234735 | S27: 1128.816588 | T27: 1129.549311 | X27: FS2A | Y27: =CalcRecovery!K95 -> 0 | Z27: =CalcRecovery!L95 -> 0 | AA27: =CalcRecovery!M95 -> 0 | AB27: =CalcRecovery!N95 -> 0 | AC27: =CalcRecovery!O95 -> 0 | AD27: =CalcRecovery!P95 -> 0 | AE27: =CalcRecovery!Q95 -> 0 | AF27: =CalcRecovery!R95 -> 0 | AG27: =CalcRecovery!S95 -> 0 | AH27: =CalcRecovery!T95 -> 0 | AI27: =CalcRecovery!U95 -> 0 | AJ27: =CalcRecovery!V95 -> 0 | AK27: =CalcRecovery!W95 -> 0 | AL27: =CalcRecovery!X95 -> 0 | AM27: =CalcRecovery!Y95 -> 0 | AN27: =CalcRecovery!Z95 -> 0 | AO27: =CalcRecovery!AA95 -> 0 | AP27: =CalcRecovery!AB95 -> 0 | AQ27: =CalcRecovery!AC95 -> 0 | AR27: =CalcRecovery!AD95 -> 0 | AS27: =CalcRecovery!AE95 -> 0 | AT27: =CalcRecovery!AF95 -> 0 | AU27: =CalcRecovery!AG95 -> 0 | AV27: =CalcRecovery!AH95 -> 0 | AW27: =CalcRecovery!AI95 -> 0
B28: =Annuity!C40 -> NIGHTWATCH LARGE (S400) - FS3A | C28: =Annuity!D40 -> FS3A | D28: 1055.352294 | E28: 1053.45126 | F28: 1053.184845 | G28: 1053.211858 | H28: 1053.028183 | J28: =CalcAnnual!K274 -> 1052.825963 | K28: =CalcAnnual!L274 -> 1057.455821 | L28: =CalcAnnual!M274 -> 1059.518363 | M28: =CalcAnnual!N274 -> 1061.080817 | N28: =CalcAnnual!O274 -> 1063.283634 | P28: 2108.178257 | Q28: 2110.907081 | R28: 2112.703209 | S28: 2114.292675 | T28: 2116.311817 | X28: FS3A | Y28: =CalcRecovery!K96 -> 0 | Z28: =CalcRecovery!L96 -> 0 | AA28: =CalcRecovery!M96 -> 0 | AB28: =CalcRecovery!N96 -> 0 | AC28: =CalcRecovery!O96 -> 0 | AD28: =CalcRecovery!P96 -> 0 | AE28: =CalcRecovery!Q96 -> 0 | AF28: =CalcRecovery!R96 -> 0 | AG28: =CalcRecovery!S96 -> 0 | AH28: =CalcRecovery!T96 -> 0 | AI28: =CalcRecovery!U96 -> 0 | AJ28: =CalcRecovery!V96 -> 0 | AK28: =CalcRecovery!W96 -> 0 | AL28: =CalcRecovery!X96 -> 0 | AM28: =CalcRecovery!Y96 -> 0 | AN28: =CalcRecovery!Z96 -> 0 | AO28: =CalcRecovery!AA96 -> 0 | AP28: =CalcRecovery!AB96 -> 0 | AQ28: =CalcRecovery!AC96 -> 0 | AR28: =CalcRecovery!AD96 -> 0 | AS28: =CalcRecovery!AE96 -> 0 | AT28: =CalcRecovery!AF96 -> 0 | AU28: =CalcRecovery!AG96 -> 0 | AV28: =CalcRecovery!AH96 -> 0 | AW28: =CalcRecovery!AI96 -> 0
B29: =Annuity!C41 -> NIGHTWATCH MINOR (S100) - FS4A | C29: =Annuity!D41 -> FS4A | D29: 277.3352792 | E29: 276.9036891 | F29: 276.8639987 | G29: 276.8941103 | H29: 276.8783039 | J29: =CalcAnnual!K275 -> 444.125769 | K29: =CalcAnnual!L275 -> 446.0788357 | L29: =CalcAnnual!M275 -> 446.9489016 | M29: =CalcAnnual!N275 -> 447.6080096 | N29: =CalcAnnual!O275 -> 448.5372494 | P29: =D29+J29 -> 721.4610482 | Q29: =E29+K29 -> 722.9825248 | R29: =F29+L29 -> 723.8129003 | S29: =G29+M29 -> 724.50212 | T29: =H29+N29 -> 725.4155534 | X29: FS4A | Y29: =CalcRecovery!K90 -> 0 | Z29: =CalcRecovery!L90 -> 0 | AA29: =CalcRecovery!M90 -> 0 | AB29: =CalcRecovery!N90 -> 0 | AC29: =CalcRecovery!O90 -> 0 | AD29: =CalcRecovery!P90 -> 0 | AE29: =CalcRecovery!Q90 -> 0 | AF29: =CalcRecovery!R90 -> 0 | AG29: =CalcRecovery!S90 -> 0 | AH29: =CalcRecovery!T90 -> 0 | AI29: =CalcRecovery!U90 -> 0 | AJ29: =CalcRecovery!V90 -> 0 | AK29: =CalcRecovery!W90 -> 0 | AL29: =CalcRecovery!X90 -> 0 | AM29: =CalcRecovery!Y90 -> 0 | AN29: =CalcRecovery!Z90 -> 0 | AO29: =CalcRecovery!AA90 -> 0 | AP29: =CalcRecovery!AB90 -> 0 | AQ29: =CalcRecovery!AC90 -> 0 | AR29: =CalcRecovery!AD90 -> 0 | AS29: =CalcRecovery!AE90 -> 0 | AT29: =CalcRecovery!AF90 -> 0 | AU29: =CalcRecovery!AG90 -> 0 | AV29: =CalcRecovery!AH90 -> 0 | AW29: =CalcRecovery!AI90 -> 0
B30: =Annuity!C42 -> NIGHTWATCH MINOR (S70) - FS5A | C30: =Annuity!D42 -> FS5A | D30: 156.8363496 | E30: 156.3386655 | F30: 156.2031048 | G30: 156.1342793 | H30: 156.0042384 | J30: =CalcAnnual!K276 -> 396.8896129 | K30: =CalcAnnual!L276 -> 398.6349561 | L30: =CalcAnnual!M276 -> 399.4124839 | M30: =CalcAnnual!N276 -> 400.0014908 | N30: =CalcAnnual!O276 -> 400.8318988 | P30: 553.7259626 | Q30: 554.9736216 | R30: 555.6155887 | S30: 556.1357701 | T30: 556.8361372 | X30: FS5A | Y30: =CalcRecovery!K91 -> 0 | Z30: =CalcRecovery!L91 -> 0 | AA30: =CalcRecovery!M91 -> 0 | AB30: =CalcRecovery!N91 -> 0 | AC30: =CalcRecovery!O91 -> 0 | AD30: =CalcRecovery!P91 -> 0 | AE30: =CalcRecovery!Q91 -> 0 | AF30: =CalcRecovery!R91 -> 0 | AG30: =CalcRecovery!S91 -> 0 | AH30: =CalcRecovery!T91 -> 0 | AI30: =CalcRecovery!U91 -> 0 | AJ30: =CalcRecovery!V91 -> 0 | AK30: =CalcRecovery!W91 -> 0 | AL30: =CalcRecovery!X91 -> 0 | AM30: =CalcRecovery!Y91 -> 0 | AN30: =CalcRecovery!Z91 -> 0 | AO30: =CalcRecovery!AA91 -> 0 | AP30: =CalcRecovery!AB91 -> 0 | AQ30: =CalcRecovery!AC91 -> 0 | AR30: =CalcRecovery!AD91 -> 0 | AS30: =CalcRecovery!AE91 -> 0 | AT30: =CalcRecovery!AF91 -> 0 | AU30: =CalcRecovery!AG91 -> 0 | AV30: =CalcRecovery!AH91 -> 0 | AW30: =CalcRecovery!AI91 -> 0
B31: =Annuity!C43 -> Spare | D31: =CalcAnnual!K38 -> 0 | E31: =CalcAnnual!L38 -> 0 | F31: =CalcAnnual!M38 -> 0 | G31: =CalcAnnual!N38 -> 0 | H31: =CalcAnnual!O38 -> 0 | J31: =CalcAnnual!K157+CalcAnnual!K277 -> 0 | K31: =CalcAnnual!L157+CalcAnnual!L277 -> 0 | L31: =CalcAnnual!M157+CalcAnnual!M277 -> 0 | M31: =CalcAnnual!N157+CalcAnnual!N277 -> 0 | N31: =CalcAnnual!O157+CalcAnnual!O277 -> 0 | P31: 0 | Q31: 0 | R31: 0 | S31: 0 | T31: 0 | Y31: =CalcRecovery!K92 -> 0 | Z31: =CalcRecovery!L92 -> 0 | AA31: =CalcRecovery!M92 -> 0 | AB31: =CalcRecovery!N92 -> 0 | AC31: =CalcRecovery!O92 -> 0 | AD31: =CalcRecovery!P92 -> 0 | AE31: =CalcRecovery!Q92 -> 0 | AF31: =CalcRecovery!R92 -> 0 | AG31: =CalcRecovery!S92 -> 0 | AH31: =CalcRecovery!T92 -> 0 | AI31: =CalcRecovery!U92 -> 0 | AJ31: =CalcRecovery!V92 -> 0 | AK31: =CalcRecovery!W92 -> 0 | AL31: =CalcRecovery!X92 -> 0 | AM31: =CalcRecovery!Y92 -> 0 | AN31: =CalcRecovery!Z92 -> 0 | AO31: =CalcRecovery!AA92 -> 0 | AP31: =CalcRecovery!AB92 -> 0 | AQ31: =CalcRecovery!AC92 -> 0 | AR31: =CalcRecovery!AD92 -> 0 | AS31: =CalcRecovery!AE92 -> 0 | AT31: =CalcRecovery!AF92 -> 0 | AU31: =CalcRecovery!AG92 -> 0 | AV31: =CalcRecovery!AH92 -> 0 | AW31: =CalcRecovery!AI92 -> 0
B32: =Annuity!C44 -> Spare | D32: =CalcAnnual!K39 -> 0 | E32: =CalcAnnual!L39 -> 0 | F32: =CalcAnnual!M39 -> 0 | G32: =CalcAnnual!N39 -> 0 | H32: =CalcAnnual!O39 -> 0 | J32: =CalcAnnual!K158+CalcAnnual!K278 -> 0 | K32: =CalcAnnual!L158+CalcAnnual!L278 -> 0 | L32: =CalcAnnual!M158+CalcAnnual!M278 -> 0 | M32: =CalcAnnual!N158+CalcAnnual!N278 -> 0 | N32: =CalcAnnual!O158+CalcAnnual!O278 -> 0 | P32: 0 | Q32: 0 | R32: 0 | S32: 0 | T32: 0 | Y32: =CalcRecovery!K93 -> 0 | Z32: =CalcRecovery!L93 -> 0 | AA32: =CalcRecovery!M93 -> 0 | AB32: =CalcRecovery!N93 -> 0 | AC32: =CalcRecovery!O93 -> 0 | AD32: =CalcRecovery!P93 -> 0 | AE32: =CalcRecovery!Q93 -> 0 | AF32: =CalcRecovery!R93 -> 0 | AG32: =CalcRecovery!S93 -> 0 | AH32: =CalcRecovery!T93 -> 0 | AI32: =CalcRecovery!U93 -> 0 | AJ32: =CalcRecovery!V93 -> 0 | AK32: =CalcRecovery!W93 -> 0 | AL32: =CalcRecovery!X93 -> 0 | AM32: =CalcRecovery!Y93 -> 0 | AN32: =CalcRecovery!Z93 -> 0 | AO32: =CalcRecovery!AA93 -> 0 | AP32: =CalcRecovery!AB93 -> 0 | AQ32: =CalcRecovery!AC93 -> 0 | AR32: =CalcRecovery!AD93 -> 0 | AS32: =CalcRecovery!AE93 -> 0 | AT32: =CalcRecovery!AF93 -> 0 | AU32: =CalcRecovery!AG93 -> 0 | AV32: =CalcRecovery!AH93 -> 0 | AW32: =CalcRecovery!AI93 -> 0
B33: =Annuity!C45 -> Spare | D33: =CalcAnnual!K40 -> 0 | E33: =CalcAnnual!L40 -> 0 | F33: =CalcAnnual!M40 -> 0 | G33: =CalcAnnual!N40 -> 0 | H33: =CalcAnnual!O40 -> 0 | J33: =CalcAnnual!K159+CalcAnnual!K279 -> 0 | K33: =CalcAnnual!L159+CalcAnnual!L279 -> 0 | L33: =CalcAnnual!M159+CalcAnnual!M279 -> 0 | M33: =CalcAnnual!N159+CalcAnnual!N279 -> 0 | N33: =CalcAnnual!O159+CalcAnnual!O279 -> 0 | P33: 0 | Q33: 0 | R33: 0 | S33: 0 | T33: 0 | Y33: =CalcRecovery!K94 -> 0 | Z33: =CalcRecovery!L94 -> 0 | AA33: =CalcRecovery!M94 -> 0 | AB33: =CalcRecovery!N94 -> 0 | AC33: =CalcRecovery!O94 -> 0 | AD33: =CalcRecovery!P94 -> 0 | AE33: =CalcRecovery!Q94 -> 0 | AF33: =CalcRecovery!R94 -> 0 | AG33: =CalcRecovery!S94 -> 0 | AH33: =CalcRecovery!T94 -> 0 | AI33: =CalcRecovery!U94 -> 0 | AJ33: =CalcRecovery!V94 -> 0 | AK33: =CalcRecovery!W94 -> 0 | AL33: =CalcRecovery!X94 -> 0 | AM33: =CalcRecovery!Y94 -> 0 | AN33: =CalcRecovery!Z94 -> 0 | AO33: =CalcRecovery!AA94 -> 0 | AP33: =CalcRecovery!AB94 -> 0 | AQ33: =CalcRecovery!AC94 -> 0 | AR33: =CalcRecovery!AD94 -> 0 | AS33: =CalcRecovery!AE94 -> 0 | AT33: =CalcRecovery!AF94 -> 0 | AU33: =CalcRecovery!AG94 -> 0 | AV33: =CalcRecovery!AH94 -> 0 | AW33: =CalcRecovery!AI94 -> 0
B34: =Annuity!C46 -> Spare | D34: =CalcAnnual!K41 -> 0 | E34: =CalcAnnual!L41 -> 0 | F34: =CalcAnnual!M41 -> 0 | G34: =CalcAnnual!N41 -> 0 | H34: =CalcAnnual!O41 -> 0 | J34: =CalcAnnual!K160+CalcAnnual!K280 -> 0 | K34: =CalcAnnual!L160+CalcAnnual!L280 -> 0 | L34: =CalcAnnual!M160+CalcAnnual!M280 -> 0 | M34: =CalcAnnual!N160+CalcAnnual!N280 -> 0 | N34: =CalcAnnual!O160+CalcAnnual!O280 -> 0 | P34: 0 | Q34: 0 | R34: 0 | S34: 0 | T34: 0 | Y34: =CalcRecovery!K95 -> 0 | Z34: =CalcRecovery!L95 -> 0 | AA34: =CalcRecovery!M95 -> 0 | AB34: =CalcRecovery!N95 -> 0 | AC34: =CalcRecovery!O95 -> 0 | AD34: =CalcRecovery!P95 -> 0 | AE34: =CalcRecovery!Q95 -> 0 | AF34: =CalcRecovery!R95 -> 0 | AG34: =CalcRecovery!S95 -> 0 | AH34: =CalcRecovery!T95 -> 0 | AI34: =CalcRecovery!U95 -> 0 | AJ34: =CalcRecovery!V95 -> 0 | AK34: =CalcRecovery!W95 -> 0 | AL34: =CalcRecovery!X95 -> 0 | AM34: =CalcRecovery!Y95 -> 0 | AN34: =CalcRecovery!Z95 -> 0 | AO34: =CalcRecovery!AA95 -> 0 | AP34: =CalcRecovery!AB95 -> 0 | AQ34: =CalcRecovery!AC95 -> 0 | AR34: =CalcRecovery!AD95 -> 0 | AS34: =CalcRecovery!AE95 -> 0 | AT34: =CalcRecovery!AF95 -> 0 | AU34: =CalcRecovery!AG95 -> 0 | AV34: =CalcRecovery!AH95 -> 0 | AW34: =CalcRecovery!AI95 -> 0
B35: =Annuity!C47 -> Spare | D35: =CalcAnnual!K42 -> 0 | E35: =CalcAnnual!L42 -> 0 | F35: =CalcAnnual!M42 -> 0 | G35: =CalcAnnual!N42 -> 0 | H35: =CalcAnnual!O42 -> 0 | J35: =CalcAnnual!K161+CalcAnnual!K281 -> 0 | K35: =CalcAnnual!L161+CalcAnnual!L281 -> 0 | L35: =CalcAnnual!M161+CalcAnnual!M281 -> 0 | M35: =CalcAnnual!N161+CalcAnnual!N281 -> 0 | N35: =CalcAnnual!O161+CalcAnnual!O281 -> 0 | P35: 0 | Q35: 0 | R35: 0 | S35: 0 | T35: 0 | Y35: =CalcRecovery!K96 -> 0 | Z35: =CalcRecovery!L96 -> 0 | AA35: =CalcRecovery!M96 -> 0 | AB35: =CalcRecovery!N96 -> 0 | AC35: =CalcRecovery!O96 -> 0 | AD35: =CalcRecovery!P96 -> 0 | AE35: =CalcRecovery!Q96 -> 0 | AF35: =CalcRecovery!R96 -> 0 | AG35: =CalcRecovery!S96 -> 0 | AH35: =CalcRecovery!T96 -> 0 | AI35: =CalcRecovery!U96 -> 0 | AJ35: =CalcRecovery!V96 -> 0 | AK35: =CalcRecovery!W96 -> 0 | AL35: =CalcRecovery!X96 -> 0 | AM35: =CalcRecovery!Y96 -> 0 | AN35: =CalcRecovery!Z96 -> 0 | AO35: =CalcRecovery!AA96 -> 0 | AP35: =CalcRecovery!AB96 -> 0 | AQ35: =CalcRecovery!AC96 -> 0 | AR35: =CalcRecovery!AD96 -> 0 | AS35: =CalcRecovery!AE96 -> 0 | AT35: =CalcRecovery!AF96 -> 0 | AU35: =CalcRecovery!AG96 -> 0 | AV35: =CalcRecovery!AH96 -> 0 | AW35: =CalcRecovery!AI96 -> 0
B36: =Annuity!C48 -> Spare | D36: =CalcAnnual!K43 -> 0 | E36: =CalcAnnual!L43 -> 0 | F36: =CalcAnnual!M43 -> 0 | G36: =CalcAnnual!N43 -> 0 | H36: =CalcAnnual!O43 -> 0 | J36: =CalcAnnual!K162+CalcAnnual!K282 -> 0 | K36: =CalcAnnual!L162+CalcAnnual!L282 -> 0 | L36: =CalcAnnual!M162+CalcAnnual!M282 -> 0 | M36: =CalcAnnual!N162+CalcAnnual!N282 -> 0 | N36: =CalcAnnual!O162+CalcAnnual!O282 -> 0 | P36: 0 | Q36: 0 | R36: 0 | S36: 0 | T36: 0 | Y36: =CalcRecovery!K97 -> 0 | Z36: =CalcRecovery!L97 -> 0 | AA36: =CalcRecovery!M97 -> 0 | AB36: =CalcRecovery!N97 -> 0 | AC36: =CalcRecovery!O97 -> 0 | AD36: =CalcRecovery!P97 -> 0 | AE36: =CalcRecovery!Q97 -> 0 | AF36: =CalcRecovery!R97 -> 0 | AG36: =CalcRecovery!S97 -> 0 | AH36: =CalcRecovery!T97 -> 0 | AI36: =CalcRecovery!U97 -> 0 | AJ36: =CalcRecovery!V97 -> 0 | AK36: =CalcRecovery!W97 -> 0 | AL36: =CalcRecovery!X97 -> 0 | AM36: =CalcRecovery!Y97 -> 0 | AN36: =CalcRecovery!Z97 -> 0 | AO36: =CalcRecovery!AA97 -> 0 | AP36: =CalcRecovery!AB97 -> 0 | AQ36: =CalcRecovery!AC97 -> 0 | AR36: =CalcRecovery!AD97 -> 0 | AS36: =CalcRecovery!AE97 -> 0 | AT36: =CalcRecovery!AF97 -> 0 | AU36: =CalcRecovery!AG97 -> 0 | AV36: =CalcRecovery!AH97 -> 0 | AW36: =CalcRecovery!AI97 -> 0
B37: =Annuity!C49 -> Spare | D37: =CalcAnnual!K44 -> 0 | E37: =CalcAnnual!L44 -> 0 | F37: =CalcAnnual!M44 -> 0 | G37: =CalcAnnual!N44 -> 0 | H37: =CalcAnnual!O44 -> 0 | J37: =CalcAnnual!K163+CalcAnnual!K283 -> 0 | K37: =CalcAnnual!L163+CalcAnnual!L283 -> 0 | L37: =CalcAnnual!M163+CalcAnnual!M283 -> 0 | M37: =CalcAnnual!N163+CalcAnnual!N283 -> 0 | N37: =CalcAnnual!O163+CalcAnnual!O283 -> 0 | P37: 0 | Q37: 0 | R37: 0 | S37: 0 | T37: 0 | Y37: =CalcRecovery!K98 -> 0 | Z37: =CalcRecovery!L98 -> 0 | AA37: =CalcRecovery!M98 -> 0 | AB37: =CalcRecovery!N98 -> 0 | AC37: =CalcRecovery!O98 -> 0 | AD37: =CalcRecovery!P98 -> 0 | AE37: =CalcRecovery!Q98 -> 0 | AF37: =CalcRecovery!R98 -> 0 | AG37: =CalcRecovery!S98 -> 0 | AH37: =CalcRecovery!T98 -> 0 | AI37: =CalcRecovery!U98 -> 0 | AJ37: =CalcRecovery!V98 -> 0 | AK37: =CalcRecovery!W98 -> 0 | AL37: =CalcRecovery!X98 -> 0 | AM37: =CalcRecovery!Y98 -> 0 | AN37: =CalcRecovery!Z98 -> 0 | AO37: =CalcRecovery!AA98 -> 0 | AP37: =CalcRecovery!AB98 -> 0 | AQ37: =CalcRecovery!AC98 -> 0 | AR37: =CalcRecovery!AD98 -> 0 | AS37: =CalcRecovery!AE98 -> 0 | AT37: =CalcRecovery!AF98 -> 0 | AU37: =CalcRecovery!AG98 -> 0 | AV37: =CalcRecovery!AH98 -> 0 | AW37: =CalcRecovery!AI98 -> 0
B38: =Annuity!C50 -> Spare | D38: =CalcAnnual!K45 -> 0 | E38: =CalcAnnual!L45 -> 0 | F38: =CalcAnnual!M45 -> 0 | G38: =CalcAnnual!N45 -> 0 | H38: =CalcAnnual!O45 -> 0 | J38: =CalcAnnual!K164+CalcAnnual!K284 -> 0 | K38: =CalcAnnual!L164+CalcAnnual!L284 -> 0 | L38: =CalcAnnual!M164+CalcAnnual!M284 -> 0 | M38: =CalcAnnual!N164+CalcAnnual!N284 -> 0 | N38: =CalcAnnual!O164+CalcAnnual!O284 -> 0 | P38: 0 | Q38: 0 | R38: 0 | S38: 0 | T38: 0 | Y38: =CalcRecovery!K99 -> 0 | Z38: =CalcRecovery!L99 -> 0 | AA38: =CalcRecovery!M99 -> 0 | AB38: =CalcRecovery!N99 -> 0 | AC38: =CalcRecovery!O99 -> 0 | AD38: =CalcRecovery!P99 -> 0 | AE38: =CalcRecovery!Q99 -> 0 | AF38: =CalcRecovery!R99 -> 0 | AG38: =CalcRecovery!S99 -> 0 | AH38: =CalcRecovery!T99 -> 0 | AI38: =CalcRecovery!U99 -> 0 | AJ38: =CalcRecovery!V99 -> 0 | AK38: =CalcRecovery!W99 -> 0 | AL38: =CalcRecovery!X99 -> 0 | AM38: =CalcRecovery!Y99 -> 0 | AN38: =CalcRecovery!Z99 -> 0 | AO38: =CalcRecovery!AA99 -> 0 | AP38: =CalcRecovery!AB99 -> 0 | AQ38: =CalcRecovery!AC99 -> 0 | AR38: =CalcRecovery!AD99 -> 0 | AS38: =CalcRecovery!AE99 -> 0 | AT38: =CalcRecovery!AF99 -> 0 | AU38: =CalcRecovery!AG99 -> 0 | AV38: =CalcRecovery!AH99 -> 0 | AW38: =CalcRecovery!AI99 -> 0
B39: =Annuity!C51 -> Spare | D39: =CalcAnnual!K46 -> 0 | E39: =CalcAnnual!L46 -> 0 | F39: =CalcAnnual!M46 -> 0 | G39: =CalcAnnual!N46 -> 0 | H39: =CalcAnnual!O46 -> 0 | J39: =CalcAnnual!K165+CalcAnnual!K285 -> 0 | K39: =CalcAnnual!L165+CalcAnnual!L285 -> 0 | L39: =CalcAnnual!M165+CalcAnnual!M285 -> 0 | M39: =CalcAnnual!N165+CalcAnnual!N285 -> 0 | N39: =CalcAnnual!O165+CalcAnnual!O285 -> 0 | P39: 0 | Q39: 0 | R39: 0 | S39: 0 | T39: 0 | Y39: =CalcRecovery!K100 -> 0 | Z39: =CalcRecovery!L100 -> 0 | AA39: =CalcRecovery!M100 -> 0 | AB39: =CalcRecovery!N100 -> 0 | AC39: =CalcRecovery!O100 -> 0 | AD39: =CalcRecovery!P100 -> 0 | AE39: =CalcRecovery!Q100 -> 0 | AF39: =CalcRecovery!R100 -> 0 | AG39: =CalcRecovery!S100 -> 0 | AH39: =CalcRecovery!T100 -> 0 | AI39: =CalcRecovery!U100 -> 0 | AJ39: =CalcRecovery!V100 -> 0 | AK39: =CalcRecovery!W100 -> 0 | AL39: =CalcRecovery!X100 -> 0 | AM39: =CalcRecovery!Y100 -> 0 | AN39: =CalcRecovery!Z100 -> 0 | AO39: =CalcRecovery!AA100 -> 0 | AP39: =CalcRecovery!AB100 -> 0 | AQ39: =CalcRecovery!AC100 -> 0 | AR39: =CalcRecovery!AD100 -> 0 | AS39: =CalcRecovery!AE100 -> 0 | AT39: =CalcRecovery!AF100 -> 0 | AU39: =CalcRecovery!AG100 -> 0 | AV39: =CalcRecovery!AH100 -> 0 | AW39: =CalcRecovery!AI100 -> 0
B40: =Annuity!C52 -> Spare | D40: =CalcAnnual!K47 -> 0 | E40: =CalcAnnual!L47 -> 0 | F40: =CalcAnnual!M47 -> 0 | G40: =CalcAnnual!N47 -> 0 | H40: =CalcAnnual!O47 -> 0 | J40: =CalcAnnual!K166+CalcAnnual!K286 -> 0 | K40: =CalcAnnual!L166+CalcAnnual!L286 -> 0 | L40: =CalcAnnual!M166+CalcAnnual!M286 -> 0 | M40: =CalcAnnual!N166+CalcAnnual!N286 -> 0 | N40: =CalcAnnual!O166+CalcAnnual!O286 -> 0 | P40: 0 | Q40: 0 | R40: 0 | S40: 0 | T40: 0 | Y40: =CalcRecovery!K101 -> 0 | Z40: =CalcRecovery!L101 -> 0 | AA40: =CalcRecovery!M101 -> 0 | AB40: =CalcRecovery!N101 -> 0 | AC40: =CalcRecovery!O101 -> 0 | AD40: =CalcRecovery!P101 -> 0 | AE40: =CalcRecovery!Q101 -> 0 | AF40: =CalcRecovery!R101 -> 0 | AG40: =CalcRecovery!S101 -> 0 | AH40: =CalcRecovery!T101 -> 0 | AI40: =CalcRecovery!U101 -> 0 | AJ40: =CalcRecovery!V101 -> 0 | AK40: =CalcRecovery!W101 -> 0 | AL40: =CalcRecovery!X101 -> 0 | AM40: =CalcRecovery!Y101 -> 0 | AN40: =CalcRecovery!Z101 -> 0 | AO40: =CalcRecovery!AA101 -> 0 | AP40: =CalcRecovery!AB101 -> 0 | AQ40: =CalcRecovery!AC101 -> 0 | AR40: =CalcRecovery!AD101 -> 0 | AS40: =CalcRecovery!AE101 -> 0 | AT40: =CalcRecovery!AF101 -> 0 | AU40: =CalcRecovery!AG101 -> 0 | AV40: =CalcRecovery!AH101 -> 0 | AW40: =CalcRecovery!AI101 -> 0
B41: =Annuity!C53 -> Spare | D41: =CalcAnnual!K48 -> 0 | E41: =CalcAnnual!L48 -> 0 | F41: =CalcAnnual!M48 -> 0 | G41: =CalcAnnual!N48 -> 0 | H41: =CalcAnnual!O48 -> 0 | J41: =CalcAnnual!K167+CalcAnnual!K287 -> 0 | K41: =CalcAnnual!L167+CalcAnnual!L287 -> 0 | L41: =CalcAnnual!M167+CalcAnnual!M287 -> 0 | M41: =CalcAnnual!N167+CalcAnnual!N287 -> 0 | N41: =CalcAnnual!O167+CalcAnnual!O287 -> 0 | P41: 0 | Q41: 0 | R41: 0 | S41: 0 | T41: 0 | Y41: =CalcRecovery!K102 -> 0 | Z41: =CalcRecovery!L102 -> 0 | AA41: =CalcRecovery!M102 -> 0 | AB41: =CalcRecovery!N102 -> 0 | AC41: =CalcRecovery!O102 -> 0 | AD41: =CalcRecovery!P102 -> 0 | AE41: =CalcRecovery!Q102 -> 0 | AF41: =CalcRecovery!R102 -> 0 | AG41: =CalcRecovery!S102 -> 0 | AH41: =CalcRecovery!T102 -> 0 | AI41: =CalcRecovery!U102 -> 0 | AJ41: =CalcRecovery!V102 -> 0 | AK41: =CalcRecovery!W102 -> 0 | AL41: =CalcRecovery!X102 -> 0 | AM41: =CalcRecovery!Y102 -> 0 | AN41: =CalcRecovery!Z102 -> 0 | AO41: =CalcRecovery!AA102 -> 0 | AP41: =CalcRecovery!AB102 -> 0 | AQ41: =CalcRecovery!AC102 -> 0 | AR41: =CalcRecovery!AD102 -> 0 | AS41: =CalcRecovery!AE102 -> 0 | AT41: =CalcRecovery!AF102 -> 0 | AU41: =CalcRecovery!AG102 -> 0 | AV41: =CalcRecovery!AH102 -> 0 | AW41: =CalcRecovery!AI102 -> 0
B42: =Annuity!C54 -> Spare | D42: =CalcAnnual!K49 -> 0 | E42: =CalcAnnual!L49 -> 0 | F42: =CalcAnnual!M49 -> 0 | G42: =CalcAnnual!N49 -> 0 | H42: =CalcAnnual!O49 -> 0 | J42: =CalcAnnual!K168+CalcAnnual!K288 -> 0 | K42: =CalcAnnual!L168+CalcAnnual!L288 -> 0 | L42: =CalcAnnual!M168+CalcAnnual!M288 -> 0 | M42: =CalcAnnual!N168+CalcAnnual!N288 -> 0 | N42: =CalcAnnual!O168+CalcAnnual!O288 -> 0 | P42: =D42+J42 -> 0 | Q42: =E42+K42 -> 0 | R42: =F42+L42 -> 0 | S42: =G42+M42 -> 0 | T42: =H42+N42 -> 0 | Y42: =CalcRecovery!K103 -> 0 | Z42: =CalcRecovery!L103 -> 0 | AA42: =CalcRecovery!M103 -> 0 | AB42: =CalcRecovery!N103 -> 0 | AC42: =CalcRecovery!O103 -> 0 | AD42: =CalcRecovery!P103 -> 0 | AE42: =CalcRecovery!Q103 -> 0 | AF42: =CalcRecovery!R103 -> 0 | AG42: =CalcRecovery!S103 -> 0 | AH42: =CalcRecovery!T103 -> 0 | AI42: =CalcRecovery!U103 -> 0 | AJ42: =CalcRecovery!V103 -> 0 | AK42: =CalcRecovery!W103 -> 0 | AL42: =CalcRecovery!X103 -> 0 | AM42: =CalcRecovery!Y103 -> 0 | AN42: =CalcRecovery!Z103 -> 0 | AO42: =CalcRecovery!AA103 -> 0 | AP42: =CalcRecovery!AB103 -> 0 | AQ42: =CalcRecovery!AC103 -> 0 | AR42: =CalcRecovery!AD103 -> 0 | AS42: =CalcRecovery!AE103 -> 0 | AT42: =CalcRecovery!AF103 -> 0 | AU42: =CalcRecovery!AG103 -> 0 | AV42: =CalcRecovery!AH103 -> 0 | AW42: =CalcRecovery!AI103 -> 0
B43: =Annuity!C55 -> Spare | D43: =CalcAnnual!K50 -> 0 | E43: =CalcAnnual!L50 -> 0 | F43: =CalcAnnual!M50 -> 0 | G43: =CalcAnnual!N50 -> 0 | H43: =CalcAnnual!O50 -> 0 | J43: =CalcAnnual!K169+CalcAnnual!K289 -> 0 | K43: =CalcAnnual!L169+CalcAnnual!L289 -> 0 | L43: =CalcAnnual!M169+CalcAnnual!M289 -> 0 | M43: =CalcAnnual!N169+CalcAnnual!N289 -> 0 | N43: =CalcAnnual!O169+CalcAnnual!O289 -> 0 | P43: 0 | Q43: 0 | R43: 0 | S43: 0 | T43: 0 | Y43: =CalcRecovery!K104 -> 0 | Z43: =CalcRecovery!L104 -> 0 | AA43: =CalcRecovery!M104 -> 0 | AB43: =CalcRecovery!N104 -> 0 | AC43: =CalcRecovery!O104 -> 0 | AD43: =CalcRecovery!P104 -> 0 | AE43: =CalcRecovery!Q104 -> 0 | AF43: =CalcRecovery!R104 -> 0 | AG43: =CalcRecovery!S104 -> 0 | AH43: =CalcRecovery!T104 -> 0 | AI43: =CalcRecovery!U104 -> 0 | AJ43: =CalcRecovery!V104 -> 0 | AK43: =CalcRecovery!W104 -> 0 | AL43: =CalcRecovery!X104 -> 0 | AM43: =CalcRecovery!Y104 -> 0 | AN43: =CalcRecovery!Z104 -> 0 | AO43: =CalcRecovery!AA104 -> 0 | AP43: =CalcRecovery!AB104 -> 0 | AQ43: =CalcRecovery!AC104 -> 0 | AR43: =CalcRecovery!AD104 -> 0 | AS43: =CalcRecovery!AE104 -> 0 | AT43: =CalcRecovery!AF104 -> 0 | AU43: =CalcRecovery!AG104 -> 0 | AV43: =CalcRecovery!AH104 -> 0 | AW43: =CalcRecovery!AI104 -> 0
B44: =Annuity!C56 -> Spare | D44: =CalcAnnual!K51 -> 0 | E44: =CalcAnnual!L51 -> 0 | F44: =CalcAnnual!M51 -> 0 | G44: =CalcAnnual!N51 -> 0 | H44: =CalcAnnual!O51 -> 0 | J44: =CalcAnnual!K170+CalcAnnual!K290 -> 0 | K44: =CalcAnnual!L170+CalcAnnual!L290 -> 0 | L44: =CalcAnnual!M170+CalcAnnual!M290 -> 0 | M44: =CalcAnnual!N170+CalcAnnual!N290 -> 0 | N44: =CalcAnnual!O170+CalcAnnual!O290 -> 0 | P44: 0 | Q44: 0 | R44: 0 | S44: 0 | T44: 0 | Y44: =CalcRecovery!K105 -> 0 | Z44: =CalcRecovery!L105 -> 0 | AA44: =CalcRecovery!M105 -> 0 | AB44: =CalcRecovery!N105 -> 0 | AC44: =CalcRecovery!O105 -> 0 | AD44: =CalcRecovery!P105 -> 0 | AE44: =CalcRecovery!Q105 -> 0 | AF44: =CalcRecovery!R105 -> 0 | AG44: =CalcRecovery!S105 -> 0 | AH44: =CalcRecovery!T105 -> 0 | AI44: =CalcRecovery!U105 -> 0 | AJ44: =CalcRecovery!V105 -> 0 | AK44: =CalcRecovery!W105 -> 0 | AL44: =CalcRecovery!X105 -> 0 | AM44: =CalcRecovery!Y105 -> 0 | AN44: =CalcRecovery!Z105 -> 0 | AO44: =CalcRecovery!AA105 -> 0 | AP44: =CalcRecovery!AB105 -> 0 | AQ44: =CalcRecovery!AC105 -> 0 | AR44: =CalcRecovery!AD105 -> 0 | AS44: =CalcRecovery!AE105 -> 0 | AT44: =CalcRecovery!AF105 -> 0 | AU44: =CalcRecovery!AG105 -> 0 | AV44: =CalcRecovery!AH105 -> 0 | AW44: =CalcRecovery!AI105 -> 0
B45: =Annuity!C57 -> Spare | D45: =CalcAnnual!K52 -> 0 | E45: =CalcAnnual!L52 -> 0 | F45: =CalcAnnual!M52 -> 0 | G45: =CalcAnnual!N52 -> 0 | H45: =CalcAnnual!O52 -> 0 | J45: =CalcAnnual!K171+CalcAnnual!K291 -> 0 | K45: =CalcAnnual!L171+CalcAnnual!L291 -> 0 | L45: =CalcAnnual!M171+CalcAnnual!M291 -> 0 | M45: =CalcAnnual!N171+CalcAnnual!N291 -> 0 | N45: =CalcAnnual!O171+CalcAnnual!O291 -> 0 | P45: 0 | Q45: 0 | R45: 0 | S45: 0 | T45: 0 | Y45: =CalcRecovery!K106 -> 0 | Z45: =CalcRecovery!L106 -> 0 | AA45: =CalcRecovery!M106 -> 0 | AB45: =CalcRecovery!N106 -> 0 | AC45: =CalcRecovery!O106 -> 0 | AD45: =CalcRecovery!P106 -> 0 | AE45: =CalcRecovery!Q106 -> 0 | AF45: =CalcRecovery!R106 -> 0 | AG45: =CalcRecovery!S106 -> 0 | AH45: =CalcRecovery!T106 -> 0 | AI45: =CalcRecovery!U106 -> 0 | AJ45: =CalcRecovery!V106 -> 0 | AK45: =CalcRecovery!W106 -> 0 | AL45: =CalcRecovery!X106 -> 0 | AM45: =CalcRecovery!Y106 -> 0 | AN45: =CalcRecovery!Z106 -> 0 | AO45: =CalcRecovery!AA106 -> 0 | AP45: =CalcRecovery!AB106 -> 0 | AQ45: =CalcRecovery!AC106 -> 0 | AR45: =CalcRecovery!AD106 -> 0 | AS45: =CalcRecovery!AE106 -> 0 | AT45: =CalcRecovery!AF106 -> 0 | AU45: =CalcRecovery!AG106 -> 0 | AV45: =CalcRecovery!AH106 -> 0 | AW45: =CalcRecovery!AI106 -> 0
B46: =Annuity!C58 -> Spare | D46: =CalcAnnual!K53 -> 0 | E46: =CalcAnnual!L53 -> 0 | F46: =CalcAnnual!M53 -> 0 | G46: =CalcAnnual!N53 -> 0 | H46: =CalcAnnual!O53 -> 0 | J46: =CalcAnnual!K172+CalcAnnual!K292 -> 0 | K46: =CalcAnnual!L172+CalcAnnual!L292 -> 0 | L46: =CalcAnnual!M172+CalcAnnual!M292 -> 0 | M46: =CalcAnnual!N172+CalcAnnual!N292 -> 0 | N46: =CalcAnnual!O172+CalcAnnual!O292 -> 0 | P46: 0 | Q46: 0 | R46: 0 | S46: 0 | T46: 0 | Y46: =CalcRecovery!K107 -> 0 | Z46: =CalcRecovery!L107 -> 0 | AA46: =CalcRecovery!M107 -> 0 | AB46: =CalcRecovery!N107 -> 0 | AC46: =CalcRecovery!O107 -> 0 | AD46: =CalcRecovery!P107 -> 0 | AE46: =CalcRecovery!Q107 -> 0 | AF46: =CalcRecovery!R107 -> 0 | AG46: =CalcRecovery!S107 -> 0 | AH46: =CalcRecovery!T107 -> 0 | AI46: =CalcRecovery!U107 -> 0 | AJ46: =CalcRecovery!V107 -> 0 | AK46: =CalcRecovery!W107 -> 0 | AL46: =CalcRecovery!X107 -> 0 | AM46: =CalcRecovery!Y107 -> 0 | AN46: =CalcRecovery!Z107 -> 0 | AO46: =CalcRecovery!AA107 -> 0 | AP46: =CalcRecovery!AB107 -> 0 | AQ46: =CalcRecovery!AC107 -> 0 | AR46: =CalcRecovery!AD107 -> 0 | AS46: =CalcRecovery!AE107 -> 0 | AT46: =CalcRecovery!AF107 -> 0 | AU46: =CalcRecovery!AG107 -> 0 | AV46: =CalcRecovery!AH107 -> 0 | AW46: =CalcRecovery!AI107 -> 0
B47: =Annuity!C59 -> Spare | D47: =CalcAnnual!K54 -> 0 | E47: =CalcAnnual!L54 -> 0 | F47: =CalcAnnual!M54 -> 0 | G47: =CalcAnnual!N54 -> 0 | H47: =CalcAnnual!O54 -> 0 | J47: =CalcAnnual!K173+CalcAnnual!K293 -> 0 | K47: =CalcAnnual!L173+CalcAnnual!L293 -> 0 | L47: =CalcAnnual!M173+CalcAnnual!M293 -> 0 | M47: =CalcAnnual!N173+CalcAnnual!N293 -> 0 | N47: =CalcAnnual!O173+CalcAnnual!O293 -> 0 | P47: 0 | Q47: 0 | R47: 0 | S47: 0 | T47: 0 | Y47: =CalcRecovery!K108 -> 0 | Z47: =CalcRecovery!L108 -> 0 | AA47: =CalcRecovery!M108 -> 0 | AB47: =CalcRecovery!N108 -> 0 | AC47: =CalcRecovery!O108 -> 0 | AD47: =CalcRecovery!P108 -> 0 | AE47: =CalcRecovery!Q108 -> 0 | AF47: =CalcRecovery!R108 -> 0 | AG47: =CalcRecovery!S108 -> 0 | AH47: =CalcRecovery!T108 -> 0 | AI47: =CalcRecovery!U108 -> 0 | AJ47: =CalcRecovery!V108 -> 0 | AK47: =CalcRecovery!W108 -> 0 | AL47: =CalcRecovery!X108 -> 0 | AM47: =CalcRecovery!Y108 -> 0 | AN47: =CalcRecovery!Z108 -> 0 | AO47: =CalcRecovery!AA108 -> 0 | AP47: =CalcRecovery!AB108 -> 0 | AQ47: =CalcRecovery!AC108 -> 0 | AR47: =CalcRecovery!AD108 -> 0 | AS47: =CalcRecovery!AE108 -> 0 | AT47: =CalcRecovery!AF108 -> 0 | AU47: =CalcRecovery!AG108 -> 0 | AV47: =CalcRecovery!AH108 -> 0 | AW47: =CalcRecovery!AI108 -> 0
B48: =Annuity!C60 -> Spare | D48: =CalcAnnual!K55 -> 0 | E48: =CalcAnnual!L55 -> 0 | F48: =CalcAnnual!M55 -> 0 | G48: =CalcAnnual!N55 -> 0 | H48: =CalcAnnual!O55 -> 0 | J48: =CalcAnnual!K174+CalcAnnual!K294 -> 0 | K48: =CalcAnnual!L174+CalcAnnual!L294 -> 0 | L48: =CalcAnnual!M174+CalcAnnual!M294 -> 0 | M48: =CalcAnnual!N174+CalcAnnual!N294 -> 0 | N48: =CalcAnnual!O174+CalcAnnual!O294 -> 0 | P48: 0 | Q48: 0 | R48: 0 | S48: 0 | T48: 0 | Y48: =CalcRecovery!K109 -> 0 | Z48: =CalcRecovery!L109 -> 0 | AA48: =CalcRecovery!M109 -> 0 | AB48: =CalcRecovery!N109 -> 0 | AC48: =CalcRecovery!O109 -> 0 | AD48: =CalcRecovery!P109 -> 0 | AE48: =CalcRecovery!Q109 -> 0 | AF48: =CalcRecovery!R109 -> 0 | AG48: =CalcRecovery!S109 -> 0 | AH48: =CalcRecovery!T109 -> 0 | AI48: =CalcRecovery!U109 -> 0 | AJ48: =CalcRecovery!V109 -> 0 | AK48: =CalcRecovery!W109 -> 0 | AL48: =CalcRecovery!X109 -> 0 | AM48: =CalcRecovery!Y109 -> 0 | AN48: =CalcRecovery!Z109 -> 0 | AO48: =CalcRecovery!AA109 -> 0 | AP48: =CalcRecovery!AB109 -> 0 | AQ48: =CalcRecovery!AC109 -> 0 | AR48: =CalcRecovery!AD109 -> 0 | AS48: =CalcRecovery!AE109 -> 0 | AT48: =CalcRecovery!AF109 -> 0 | AU48: =CalcRecovery!AG109 -> 0 | AV48: =CalcRecovery!AH109 -> 0 | AW48: =CalcRecovery!AI109 -> 0
